Workbook

Sheet ANNEX
A8: 2013 EBA
A9: Transparency Exercise Sample
B11: EBA Bankcode | C11: Bankname | D11: Country
B12: AT001 | C12: Erste Group Bank (EGB) | D12: =LEFT(B12,2) -> AT
B13: AT002 | C13: Raiffeisen Zentralbank Österreich (RZB) | D13: =LEFT(B13,2) -> AT
B14: BE005 | C14: KBC BANK | D14: BE
B15: CY007 | C15: BANK OF CYPRUS PUBLIC CO LTD | D15: =LEFT(B15,2) -> CY
B16: DE017 | C16: DEUTSCHE BANK AG | D16: DE
B17: DE018 | C17: COMMERZBANK AG | D17: DE
B18: DE019 | C18: Landesbank Baden-Württemberg | D18: DE
B19: DE020 | C19: DZ BANK AG Dt. Zentral-Genossenschaftsbank | D19: DE
B20: DE021 | C20: Bayerische Landesbank | D20: DE
B21: DE022 | C21: Norddeutsche Landesbank -GZ | D21: DE
B22: DE023 | C22: Hypo Real Estate Holding AG | D22: DE
B23: DE025 | C23: HSH Nordbank AG, Hamburg | D23: DE
B24: DE026 | C24: Landesbank Hessen-Thüringen GZ, Frankfurt | D24: DE
B25: DE027 | C25: Landesbank Berlin AG | D25: DE
B26: DE028 | C26: DekaBank Deutsche Girozentrale, Frankfurt | D26: DE
B27: DE029 | C27: WGZ BANK AG Westdt. Geno. Zentralbk, Ddf | D27: DE
B28: DK008 | C28: DANSKE BANK | D28: DK
B29: DK009 | C29: Jyske Bank | D29: DK
B30: DK010 | C30: Sydbank | D30: DK
B31: DK011 | C31: Nykredit | D31: DK
B32: ES059 | C32: BANCO SANTANDER S.A. | D32: ES
B33: ES060 | C33: BANCO BILBAO VIZCAYA ARGENTARIA S.A. (BBVA) | D33: ES
B34: ES062 | C34: CAJA DE AHORROS Y PENSIONES DE BARCELONA | D34: ES
B35: ES064 | C35: BANCO POPULAR ESPAÑOL, S.A. | D35: ES
B36: FI012 | C36: OP-Pohjola Group | D36: FI
B37: FR013 | C37: BNP PARIBAS | D37: FR
B38: FR014 | C38: CREDIT AGRICOLE | D38: FR
B39: FR015 | C39: BPCE | D39: FR
B40: FR016 | C40: SOCIETE GENERALE | D40: FR
B41: GB088 | C41: ROYAL BANK OF SCOTLAND GROUP plc | D41: GB
B42: GB089 | C42: HSBC HOLDINGS plc | D42: GB
B43: GB090 | C43: BARCLAYS plc | D43: GB
B44: GB091 | C44: LLOYDS BANKING GROUP plc | D44: GB
B45: GR030 | C45: EFG EUROBANK ERGASIAS S.A. | D45: =LEFT(B45,2) -> GR
B46: GR031 | C46: NATIONAL BANK OF GREECE | D46: GR
B47: GR032 | C47: ALPHA BANK | D47: GR
B48: GR033 | C48: PIRAEUS BANK GROUP | D48: GR
B49: HU036 | C49: OTP BANK NYRT. | D49: =LEFT(B49,2) -> HU
B50: IE037 | C50: ALLIED IRISH BANKS PLC | D50: IE
B51: IE038 | C51: BANK OF IRELAND | D51: IE
B52: IE039 | C52: PERMANENT TSB | D52: IE
B53: IT040 | C53: INTESA SANPAOLO S.p.A | D53: IT
B54: IT041 | C54: UNICREDIT S.p.A | D54: IT
B55: IT042 | C55: BANCA MONTE DEI PASCHI DI SIENA S.p.A | D55: IT
B56: IT043 | C56: BANCO POPOLARE - S.C. | D56: IT
B57: IT044 | C57: UNIONE DI BANCHE ITALIANE SCPA (UBI BANCA) | D57: IT
B58: LU045 | C58: BANQUE ET CAISSE D'EPARGNE DE L'ETAT | D58: LU
B59: MT046 | C59: BANK OF VALLETTA (BOV) | D59: MT
B60: NL047 | C60: ING BANK NV | D60: NL
B61: NL048 | C61: RABOBANK NEDERLAND | D61: NL
B62: NL049 | C62: ABN AMRO BANK NV | D62: NL
B63: NL050 | C63: SNS BANK NV | D63: NL
B64: NO051 | C64: DNB Bank ASA | D64: NO
B65: PL052 | C65: POWSZECHNA KASA OSZCZEDNOSCI BANK POLSKI S.A. (PKO BANK POLSKI) | D65: PL
B66: PT053 | C66: CAIXA GERAL DE DEPÓSITOS SA | D66: PT
B67: PT054 | C67: BANCO COMERCIAL PORTUGUES SA (BCP OR MILLENNIUM BCP) | D67: PT
B68: PT055 | C68: ESPÍRITO SANTO FINANCIAL GROUP SA (ESFG) | D68: PT
B69: PT056 | C69: Banco BPI, SA | D69: PT
B70: SE084 | C70: Nordea Bank AB (publ) | D70: SE
B71: SE085 | C71: Skandinaviska Enskilda Banken AB (publ) (SEB) | D71: SE
B72: SE086 | C72: Svenska Handelsbanken AB (publ) | D72: SE
B73: SE087 | C73: Swedbank AB (publ) | D73: SE
B74: SI057 | C74: NOVA LJUBLJANSKA BANKA D.D. (NLB d.d.) | D74: SI
B75: SI058 | C75: NOVA KREDITNA BANKA MARIBOR D.D. (NKBM d.d.) | D75: SI

Sheet Menu
G2: 1. Individual Bank Reports
A5: Banks | B5: =VLOOKUP(H15,Sheet1!D4:E25,2,FALSE) -> 64
G6: Bank
G7: Template
E8: 2013 EBA
E9: Transparency Exercise
G11: 2. Aggregated Data Reports1 | X11: Bankcode | Y11: BankName
X12: =IF(H15="[TO] TOTAL","",IF(H15="[AT] Austria","AT001",IF(H15="[BE] Belgium","BE005",IF(H15="[CY] Cyprus","CY007",IF(H15="[DE] Germany","DE017",IF(H15="[DK] Denmark","DK008",IF(H15="[ES] Spain","ES059",IF(H15="[FI] Finland","FI012",IF(H15="[FR] France","FR013",IF(H15="[GB] United Kingdom","GB088",IF(H15="[GR] Greece","GR030", IF(H15="[HU] Hungary","HU036",IF(H15="[IE] Ireland","IE037",IF(H15="[IT] Italy","IT040",IF(H15="[LU] Luxemburg","LU045",IF(H15="[MT] Malta","MT046",IF(H15="[NL] Netherlands","NL047",IF(H15="[NO] Norway","NO051",IF(H15="[PL] Poland","PL052",IF(H15="[PT] Portugal","PT053",IF(H15="[SE] Sweden","SE084",IF(H15="[SI] Slovenia","SI057")))))))))))))))))))))) ->  | Y12: =IF(H15="[TO] TOTAL","",IF(H15="[AT] Austria","Erste Group Bank (EGB)",IF(H15="[BE] Belgium","KBC BANK",IF(H15="[CY] Cyprus","BANK OF CYPRUS PUBLIC CO LTD",IF(H15="[DE] Germany","DEUTSCHE BANK AG",IF(H15="[DK] Denmark","DANSKE BANK",IF(H15="[ES] Spain","BANCO SANTANDER S.A.",IF(H15="[FI] Finland","OP-Pohjola Group",IF(H15="[FR] France","BNP PARIBAS",IF(H15="[GB] United Kingdom","ROYAL BANK OF SCOTLAND GROUP plc",IF(H15="[GR] Greece","EUROBANK ERGASIAS S.A.",IF(H15="[HU] Hungary","OTP BANK NYRT.",IF(H15="[IE] Ireland","ALLIED IRISH BANKS PLC",IF(H15="[IT] Italy","INTESA SANPAOLO S.p.A",IF(H15="[LU] Luxemburg","BANQUE ET CAISSE D'EPARGNE DE L'ETAT",IF(H15="[MT] Malta","BANK OF VALLETTA (BOV)",IF(H15="[NL] Netherlands","ING BANK NV",IF(H15="[NO] Norway","DNB Bank ASA",IF(H15="[PL] Poland","POWSZECHNA KASA OSZCZEDNOSCI BANK POLSKI S.A. (PKO BANK POLSKI)",IF(H15="[PT] Portugal","CAIXA GERAL DE DEPÓSITOS SA",IF(H15="[SE] Sweden","Nordea Bank AB (publ)",IF(H15="[SI] Slovenia","NOVA LJUBLJANSKA BANKA D.D. (NLB d.d.)")))))))))))))))))))))) -> 
X13: =IF(H15="[TO] TOTAL","",IF(H15="[AT] Austria","AT002",IF(H15="[BE] Belgium","",IF(H15="[CY] Cyprus","",IF(H15="[DE] Germany","DE018",IF(H15="[DK] Denmark","DK009",IF(H15="[ES] Spain","ES060",IF(H15="[FI] Finland","",IF(H15="[FR] France","FR014",IF(H15="[GB] United Kingdom","GB089", IF(H15="[GR] Greece","GR031", IF(H15="[HU] Hungary","",IF(H15="[IE] Ireland","IE038",IF(H15="[IT] Italy","IT041",IF(H15="[LU] Luxemburg","",IF(H15="[MT] Malta","",IF(H15="[NL] Netherlands","NL048",IF(H15="[NO] Norway","",IF(H15="[PL] Poland","",IF(H15="[PT] Portugal","PT054",IF(H15="[SE] Sweden","SE085",IF(H15="[SI] Slovenia","SI058")))))))))))))))))))))) ->  | Y13: =IF(H15="[TO] TOTAL","",IF(H15="[AT] Austria","Raiffeisen Zentralbank Österreich (RZB)",IF(H15="[BE] Belgium","",IF(H15="[CY] Cyprus","",IF(H15="[DE] Germany","COMMERZBANK AG",IF(H15="[DK] Denmark","Jyske Bank",IF(H15="[ES] Spain","BANCO BILBAO VIZCAYA ARGENTARIA S.A. (BBVA)",IF(H15="[FI] Finland","",IF(H15="[FR] France","CREDIT AGRICOLE",IF(H15="[GB] United Kingdom","HSBC HOLDINGS plc",IF(H15="[GR] Greece","NATIONAL BANK OF GREECE",IF(H15="[HU] Hungary","",IF(H15="[IE] Ireland","BANK OF IRELAND",IF(H15="[IT] Italy","UNICREDIT S.p.A",IF(H15="[LU] Luxemburg","",IF(H15="[MT] Malta","",IF(H15="[NL] Netherlands","RABOBANK NEDERLAND",IF(H15="[NO] Norway","",IF(H15="[PL] Poland","",IF(H15="[PT] Portugal","BANCO COMERCIAL PORTUGUES SA (BCP OR MILLENNIUM BCP)",IF(H15="[SE] Sweden","Skandinaviska Enskilda Banken AB (publ) (SEB)",IF(H15="[SI] Slovenia","NOVA KREDITNA BANKA MARIBOR D.D. (NKBM d.d.)")))))))))))))))))))))) -> 
E14: TEMPLATES: | X14: =IF(H15="[TO] TOTAL","",IF(H15="[AT] Austria","",IF(H15="[BE] Belgium","",IF(H15="[CY] Cyprus","",IF(H15="[DE] Germany","DE019",IF(H15="[DK] Denmark","DK010",IF(H15="[ES] Spain","ES062",IF(H15="[FI] Finland","",IF(H15="[FR] France","FR015",IF(H15="[GB] United Kingdom","GB090",IF(H15="[GR] Greece","GR032", IF(H15="[HU] Hungary","",IF(H15="[IE] Ireland","IE039",IF(H15="[IT] Italy","IT042",IF(H15="[LU] Luxemburg","",IF(H15="[MT] Malta","",IF(H15="[NL] Netherlands","NL049",IF(H15="[NO] Norway","",IF(H15="[PL] Poland","",IF(H15="[PT] Portugal","PT055",IF(H15="[SE] Sweden","SE086",IF(H15="[SI] Slovenia","")))))))))))))))))))))) ->  | Y14: =IF(H15="[TO] TOTAL","",IF(H15="[AT] Austria","",IF(H15="[BE] Belgium","",IF(H15="[CY] Cyprus","",IF(H15="[DE] Germany","Landesbank Baden-Württemberg",IF(H15="[DK] Denmark","Sydbank",IF(H15="[ES] Spain","CAJA DE AHORROS Y PENSIONES DE BARCELONA",IF(H15="[FI] Finland","",IF(H15="[FR] France","BPCE",IF(H15="[GB] United Kingdom","BARCLAYS plc",IF(H15="[GR] Greece","ALPHA BANK , S.A", IF(H15="[HU] Hungary","",IF(H15="[IE] Ireland","PERMANENT TSB",IF(H15="[IT] Italy","BANCA MONTE DEI PASCHI DI SIENA S.p.A",IF(H15="[LU] Luxemburg","",IF(H15="[MT] Malta","",IF(H15="[NL] Netherlands","ABN AMRO BANK NV",IF(H15="[NO] Norway","",IF(H15="[PL] Poland","",IF(H15="[PT] Portugal","ESPÍRITO SANTO FINANCIAL GROUP SA (ESFG)",IF(H15="[SE] Sweden","Svenska Handelsbanken AB (publ)",IF(H15="[SI] Slovenia","")))))))))))))))))))))) -> 
E15: 1. Capital | G15: Country | H15: [TO] TOTAL | X15: =IF(H15="[TO] TOTAL","",IF(H15="[AT] Austria","",IF(H15="[BE] Belgium","",IF(H15="[CY] Cyprus","",IF(H15="[DE] Germany","DE020",IF(H15="[DK] Denmark","DK011",IF(H15="[ES] Spain","ES064",IF(H15="[FI] Finland","",IF(H15="[FR] France","FR016",IF(H15="[GB] United Kingdom","GB091",IF(H15="[GR] Greece","GR033", IF(H15="[HU] Hungary","",IF(H15="[IE] Ireland","",IF(H15="[IT] Italy","IT043",IF(H15="[LU] Luxemburg","",IF(H15="[MT] Malta","",IF(H15="[NL] Netherlands","NL050",IF(H15="[NO] Norway","",IF(H15="[PL] Poland","",IF(H15="[PT] Portugal","PT056",IF(H15="[SE] Sweden","SE087",IF(H15="[SI] Slovenia","")))))))))))))))))))))) ->  | Y15: =IF(H15="[TO] TOTAL","",IF(H15="[AT] Austria","",IF(H15="[BE] Belgium","",IF(H15="[CY] Cyprus","",IF(H15="[DE] Germany","DZ BANK AG Dt. Zentral-Genossenschaftsbank",IF(H15="[DK] Denmark","Nykredit",IF(H15="[ES] Spain","BANCO POPULAR ESPAÑOL, S.A.",IF(H15="[FI] Finland","",IF(H15="[FR] France","SOCIETE GENERALE",IF(H15="[GB] United Kingdom","LLOYDS BANKING GROUP plc",IF(H15="[GR] Greece","PIRAEUS BANK GROUP",IF(H15="[HU] Hungary","",IF(H15="[IE] Ireland","",IF(H15="[IT] Italy","BANCO POPOLARE - S.C.",IF(H15="[LU] Luxemburg","",IF(H15="[MT] Malta","",IF(H15="[NL] Netherlands","SNS BANK NV",IF(H15="[NO] Norway","",IF(H15="[PL] Poland","",IF(H15="[PT] Portugal","Banco BPI, SA",IF(H15="[SE] Sweden","Swedbank AB (publ)",IF(H15="[SI] Slovenia","")))))))))))))))))))))) -> 
B16: =LEFT(H16,1) ->  | E16: 3. Securitisation Summary | G16: Template | X16: =IF(H15="[TO] TOTAL","",IF(H15="[AT] Austria","",IF(H15="[BE] Belgium","",IF(H15="[CY] Cyprus","",IF(H15="[DE] Germany","DE021",IF(H15="[DK] Denmark","",IF(H15="[ES] Spain","",IF(H15="[FI] Finland","",IF(H15="[FR] France","",IF(H15="[GB] United Kingdom","",IF(H15="[GR] Greece","",IF(H15="[HU] Hungary","",IF(H15="[IE] Ireland","",IF(H15="[IT] Italy","IT044",IF(H15="[LU] Luxemburg","",IF(H15="[MT] Malta","",IF(H15="[NL] Netherlands","",IF(H15="[NO] Norway","",IF(H15="[PL] Poland","",IF(H15="[PT] Portugal","",IF(H15="[SE] Sweden","",IF(H15="[SI] Slovenia","")))))))))))))))))))))) ->  | Y16: =IF(H15="[TO] TOTAL","",IF(H15="[AT] Austria","",IF(H15="[BE] Belgium","",IF(H15="[CY] Cyprus","",IF(H15="[DE] Germany","Bayerische Landesbank",IF(H15="[DK] Denmark","",IF(H15="[ES] Spain","",IF(H15="[FI] Finland","",IF(H15="[FR] France","",IF(H15="[GB] United Kingdom","",IF(H15="[GR] Greece","",IF(H15="[HU] Hungary","",IF(H15="[IE] Ireland","",IF(H15="[IT] Italy","UNIONE DI BANCHE ITALIANE SCPA (UBI BANCA)",IF(H15="[LU] Luxemburg","",IF(H15="[MT] Malta","",IF(H15="[NL] Netherlands","",IF(H15="[NO] Norway","",IF(H15="[PL] Poland","",IF(H15="[PT] Portugal","",IF(H15="[SE] Sweden","",IF(H15="[SI] Slovenia","")))))))))))))))))))))) -> 
B17: =IF(AND(B16<>"2",B16<>"4"),1,"") -> 1 | E17: 4. Market Risk | X17: =IF(H15="[TO] TOTAL","",IF(H15="[AT] Austria","",IF(H15="[BE] Belgium","",IF(H15="[CY] Cyprus","",IF(H15="[DE] Germany","DE022",IF(H15="[DK] Denmark","",IF(H15="[ES] Spain","",IF(H15="[FI] Finland","",IF(H15="[FR] France","",IF(H15="[GB] United Kingdom","",IF(H15="[GR] Greece","",IF(H15="[HU] Hungary","",IF(H15="[IE] Ireland","",IF(H15="[IT] Italy","",IF(H15="[LU] Luxemburg","",IF(H15="[MT] Malta","",IF(H15="[NL] Netherlands","",IF(H15="[NO] Norway","",IF(H15="[PL] Poland","",IF(H15="[PT] Portugal","",IF(H15="[SE] Sweden","",IF(H15="[SI] Slovenia","")))))))))))))))))))))) ->  | Y17: =IF(H15="[TO] TOTAL","",IF(H15="[AT] Austria","",IF(H15="[BE] Belgium","",IF(H15="[CY] Cyprus","",IF(H15="[DE] Germany","Norddeutsche Landesbank -GZ",IF(H15="[DK] Denmark","",IF(H15="[ES] Spain","",IF(H15="[FI] Finland","",IF(H15="[FR] France","",IF(H15="[GB] United Kingdom","",IF(H15="[GR] Greece","",IF(H15="[HU] Hungary","",IF(H15="[IE] Ireland","",IF(H15="[IT] Italy","",IF(H15="[LU] Luxemburg","",IF(H15="[MT] Malta","",IF(H15="[NL] Netherlands","",IF(H15="[NO] Norway","",IF(H15="[PL] Poland","",IF(H15="[PT] Portugal","",IF(H15="[SE] Sweden","",IF(H15="[SI] Slovenia","")))))))))))))))))))))) -> 
E18: 6. RWA | X18: =IF(H15="[TO] TOTAL","",IF(H15="[AT] Austria","",IF(H15="[BE] Belgium","",IF(H15="[CY] Cyprus","",IF(H15="[DE] Germany","DE023",IF(H15="[DK] Denmark","",IF(H15="[ES] Spain","",IF(H15="[FI] Finland","",IF(H15="[FR] France","",IF(H15="[GB] United Kingdom","",IF(H15="[GR] Greece","",IF(H15="[HU] Hungary","",IF(H15="[IE] Ireland","",IF(H15="[IT] Italy","",IF(H15="[LU] Luxemburg","",IF(H15="[MT] Malta","",IF(H15="[NL] Netherlands","",IF(H15="[NO] Norway","",IF(H15="[PL] Poland","",IF(H15="[PT] Portugal","",IF(H15="[SE] Sweden","",IF(H15="[SI] Slovenia","")))))))))))))))))))))) ->  | Y18: =IF(H15="[TO] TOTAL","",IF(H15="[AT] Austria","",IF(H15="[BE] Belgium","",IF(H15="[CY] Cyprus","",IF(H15="[DE] Germany","Hypo Real Estate Holding AG",IF(H15="[DK] Denmark","",IF(H15="[ES] Spain","",IF(H15="[FI] Finland","",IF(H15="[FR] France","",IF(H15="[GB] United Kingdom","",IF(H15="[GR] Greece","",IF(H15="[HU] Hungary","",IF(H15="[IE] Ireland","",IF(H15="[IT] Italy","",IF(H15="[LU] Luxemburg","",IF(H15="[MT] Malta","",IF(H15="[NL] Netherlands","",IF(H15="[NO] Norway","",IF(H15="[PL] Poland","",IF(H15="[PT] Portugal","",IF(H15="[SE] Sweden","",IF(H15="[SI] Slovenia","")))))))))))))))))))))) -> 
G19: Participating Banks: | H19: =B5 -> 64 | X19: =IF(H15="[TO] TOTAL","",IF(H15="[AT] Austria","",IF(H15="[BE] Belgium","",IF(H15="[CY] Cyprus","",IF(H15="[DE] Germany","DE025",IF(H15="[DK] Denmark","",IF(H15="[ES] Spain","",IF(H15="[FI] Finland","",IF(H15="[FR] France","",IF(H15="[GB] United Kingdom","",IF(H15="[GR] Greece","",IF(H15="[HU] Hungary","",IF(H15="[IE] Ireland","",IF(H15="[IT] Italy","",IF(H15="[LU] Luxemburg","",IF(H15="[MT] Malta","",IF(H15="[NL] Netherlands","",IF(H15="[NO] Norway","",IF(H15="[PL] Poland","",IF(H15="[PT] Portugal","",IF(H15="[SE] Sweden","",IF(H15="[SI] Slovenia","")))))))))))))))))))))) ->  | Y19: =IF(H15="[TO] TOTAL","",IF(H15="[AT] Austria","",IF(H15="[BE] Belgium","",IF(H15="[CY] Cyprus","",IF(H15="[DE] Germany","HSH Nordbank AG, Hamburg",IF(H15="[DK] Denmark","",IF(H15="[ES] Spain","",IF(H15="[FI] Finland","",IF(H15="[FR] France","",IF(H15="[GB] United Kingdom","",IF(H15="[GR] Greece","",IF(H15="[HU] Hungary","",IF(H15="[IE] Ireland","",IF(H15="[IT] Italy","",IF(H15="[LU] Luxemburg","",IF(H15="[MT] Malta","",IF(H15="[NL] Netherlands","",IF(H15="[NO] Norway","",IF(H15="[PL] Poland","",IF(H15="[PT] Portugal","",IF(H15="[SE] Sweden","",IF(H15="[SI] Slovenia","")))))))))))))))))))))) -> 
X20: =IF(H15="[TO] TOTAL","",IF(H15="[AT] Austria","",IF(H15="[BE] Belgium","",IF(H15="[CY] Cyprus","",IF(H15="[DE] Germany","DE026",IF(H15="[DK] Denmark","",IF(H15="[ES] Spain","",IF(H15="[FI] Finland","",IF(H15="[FR] France","",IF(H15="[GB] United Kingdom","",IF(H15="[GR] Greece","",IF(H15="[HU] Hungary","",IF(H15="[IE] Ireland","",IF(H15="[IT] Italy","",IF(H15="[LU] Luxemburg","",IF(H15="[MT] Malta","",IF(H15="[NL] Netherlands","",IF(H15="[NO] Norway","",IF(H15="[PL] Poland","",IF(H15="[PT] Portugal","",IF(H15="[SE] Sweden","",IF(H15="[SI] Slovenia","")))))))))))))))))))))) ->  | Y20: =IF(H15="[TO] TOTAL","",IF(H15="[AT] Austria","",IF(H15="[BE] Belgium","",IF(H15="[CY] Cyprus","",IF(H15="[DE] Germany","Landesbank Hessen-Thüringen GZ, Frankfurt",IF(H15="[DK] Denmark","",IF(H15="[ES] Spain","",IF(H15="[FI] Finland","",IF(H15="[FR] France","",IF(H15="[GB] United Kingdom","",IF(H15="[GR] Greece","",IF(H15="[HU] Hungary","",IF(H15="[IE] Ireland","",IF(H15="[IT] Italy","",IF(H15="[LU] Luxemburg","",IF(H15="[MT] Malta","",IF(H15="[NL] Netherlands","",IF(H15="[NO] Norway","",IF(H15="[PL] Poland","",IF(H15="[PT] Portugal","",IF(H15="[SE] Sweden","",IF(H15="[SI] Slovenia","")))))))))))))))))))))) -> 
X21: =IF(H15="[TO] TOTAL","",IF(H15="[AT] Austria","",IF(H15="[BE] Belgium","",IF(H15="[CY] Cyprus","",IF(H15="[DE] Germany","DE027",IF(H15="[DK] Denmark","",IF(H15="[ES] Spain","",IF(H15="[FI] Finland","",IF(H15="[FR] France","",IF(H15="[GB] United Kingdom","",IF(H15="[GR] Greece","",IF(H15="[HU] Hungary","",IF(H15="[IE] Ireland","",IF(H15="[IT] Italy","",IF(H15="[LU] Luxemburg","",IF(H15="[MT] Malta","",IF(H15="[NL] Netherlands","",IF(H15="[NO] Norway","",IF(H15="[PL] Poland","",IF(H15="[PT] Portugal","",IF(H15="[SE] Sweden","",IF(H15="[SI] Slovenia","")))))))))))))))))))))) ->  | Y21: =IF(H15="[TO] TOTAL","",IF(H15="[AT] Austria","",IF(H15="[BE] Belgium","",IF(H15="[CY] Cyprus","",IF(H15="[DE] Germany","Landesbank Berlin AG",IF(H15="[DK] Denmark","",IF(H15="[ES] Spain","",IF(H15="[FI] Finland","",IF(H15="[FR] France","",IF(H15="[GB] United Kingdom","",IF(H15="[GR] Greece","",IF(H15="[HU] Hungary","",IF(H15="[IE] Ireland","",IF(H15="[IT] Italy","",IF(H15="[LU] Luxemburg","",IF(H15="[MT] Malta","",IF(H15="[NL] Netherlands","",IF(H15="[NO] Norway","",IF(H15="[PL] Poland","",IF(H15="[PT] Portugal","",IF(H15="[SE] Sweden","",IF(H15="[SI] Slovenia","")))))))))))))))))))))) -> 
X22: =IF(H15="[TO] TOTAL","",IF(H15="[AT] Austria","",IF(H15="[BE] Belgium","",IF(H15="[CY] Cyprus","",IF(H15="[DE] Germany","DE028",IF(H15="[DK] Denmark","",IF(H15="[ES] Spain","",IF(H15="[FI] Finland","",IF(H15="[FR] France","",IF(H15="[GB] United Kingdom","",IF(H15="[GR] Greece","",IF(H15="[HU] Hungary","",IF(H15="[IE] Ireland","",IF(H15="[IT] Italy","",IF(H15="[LU] Luxemburg","",IF(H15="[MT] Malta","",IF(H15="[NL] Netherlands","",IF(H15="[NO] Norway","",IF(H15="[PL] Poland","",IF(H15="[PT] Portugal","",IF(H15="[SE] Sweden","",IF(H15="[SI] Slovenia","")))))))))))))))))))))) ->  | Y22: =IF(H15="[TO] TOTAL","",IF(H15="[AT] Austria","",IF(H15="[BE] Belgium","",IF(H15="[CY] Cyprus","",IF(H15="[DE] Germany","DekaBank Deutsche Girozentrale, Frankfurt",IF(H15="[DK] Denmark","",IF(H15="[ES] Spain","",IF(H15="[FI] Finland","",IF(H15="[FR] France","",IF(H15="[GB] United Kingdom","",IF(H15="[GR] Greece","",IF(H15="[HU] Hungary","",IF(H15="[IE] Ireland","",IF(H15="[IT] Italy","",IF(H15="[LU] Luxemburg","",IF(H15="[MT] Malta","",IF(H15="[NL] Netherlands","",IF(H15="[NO] Norway","",IF(H15="[PL] Poland","",IF(H15="[PT] Portugal","",IF(H15="[SE] Sweden","",IF(H15="[SI] Slovenia","")))))))))))))))))))))) -> 
B23: =IF(H30<>"",1,IF(H31<>"",1,0)) -> 0 | G23: 1) Country aggregates refer only to those resident banks participating in the study. | X23: =IF(H15="[TO] TOTAL","",IF(H15="[AT] Austria","",IF(H15="[BE] Belgium","",IF(H15="[CY] Cyprus","",IF(H15="[DE] Germany","DE029",IF(H15="[DK] Denmark","",IF(H15="[ES] Spain","",IF(H15="[FI] Finland","",IF(H15="[FR] France","",IF(H15="[GB] United Kingdom","",IF(H15="[GR] Greece","",IF(H15="[HU] Hungary","",IF(H15="[IE] Ireland","",IF(H15="[IT] Italy","",IF(H15="[LU] Luxemburg","",IF(H15="[MT] Malta","",IF(H15="[NL] Netherlands","",IF(H15="[NO] Norway","",IF(H15="[PL] Poland","",IF(H15="[PT] Portugal","",IF(H15="[SE] Sweden","",IF(H15="[SI] Slovenia","")))))))))))))))))))))) ->  | Y23: =IF(H15="[TO] TOTAL","",IF(H15="[AT] Austria","",IF(H15="[BE] Belgium","",IF(H15="[CY] Cyprus","",IF(H15="[DE] Germany","WGZ BANK AG Westdt. Geno. Zentralbk, Ddf",IF(H15="[DK] Denmark","",IF(H15="[ES] Spain","",IF(H15="[FI] Finland","",IF(H15="[FR] France","",IF(H15="[GB] United Kingdom","",IF(H15="[GR] Greece","",IF(H15="[HU] Hungary","",IF(H15="[IE] Ireland","",IF(H15="[IT] Italy","",IF(H15="[LU] Luxemburg","",IF(H15="[MT] Malta","",IF(H15="[NL] Netherlands","",IF(H15="[NO] Norway","",IF(H15="[PL] Poland","",IF(H15="[PT] Portugal","",IF(H15="[SE] Sweden","",IF(H15="[SI] Slovenia","")))))))))))))))))))))) -> 
B25: =IF(H31<>"",1,IF(H34<>"",1,0)) -> 0 | G25: 3. User Defined Reports | U25: EXAMPLE OF OUTPUT TABLE
B27: =LEFT(H28,1) ->  | U27: Variables across COLUMNS
B28: =CONCATENATE("Ref. Period: ",TEXT(H29,"dd/mm/yyyy")) -> Ref. Period: 00/01/1900 | G28: Template | V28: Variables across ROWS
G29: Reference Period | O29: 1 | P29: 2 | Q29: 3 | R29: 4 | S29: 5 | T29: 6 | Y29: =IF(B27="2",B33, "") -> 
B30: =IF(OR(B27="2", B27="4"),1,"") ->  | G30: Unit | O30: 1 | P30: 2 | Q30: 3 | R30: 4 | S30: 5 | T30: 6 | Y30: =IF(B27="2", B31,IF(B27="4",B32,IF(B27="5",B35,""))) -> 
G31: Regulatory Approach | P31: 2
B32: =CONCATENATE("Approach: ",H31) -> Approach: | P32: 2 | R32: 4 | Y32: =IF(H29<>"",B28,"") -> 
B33: =CONCATENATE("Status: ",H33) -> Status: | P33: 2 | X33: Banks | Y33: =IF(H30<>"",CONCATENATE("Unit: ",H30), "") -> 
B34: =CONCATENATE("Residual maturity: ",H34) -> Residual maturity: | S34: 5 | Y34: =IF(H36<>"",CONCATENATE("Credit Risk Value: ",H36), "") -> 
B35: =CONCATENATE("Country / Region: ",H35) -> Country / Region: | S35: 5 | Y35: =H28 -> 00:00:00
G43: 4. Data Maps
G51: 5. View Raw Data
G57: 4. Delete user defined reports
E63: DISCLAIMER
E64: This tool is provided for analytical purposes only and does not substitute the original disclosures made by the participating banks and re-published by
E65: the EBA which are considered to be the only official results.
E66: The underlying data are also provided in separate CSV files.
E67: Cut-off date for the data: 16 December 2013 – 10.00 a.m. CET, including few revisions that arrived later.
A74: TOTAL | B74: 61
A75: [AT] Austria | B75: 2
A76: [BE] Belgium | B76: 1
A77: [CY] Cyprus | B77: 2
A78: [DK] Denmark | B78: 4
A79: [DE] Germany | B79: 12
A80: [ES] Spain | B80: 4
A81: [FI] Finland | B81: 1
A82: [FR] France | B82: 4
A83: [GB] United Kingdom | B83: 4
A84: [HU] Hungary | B84: 1
A85: [IE] Ireland | B85: 3
A86: [IT] Italy | B86: 5
A87: [LU] Luxemburg | B87: 1
A88: [MT] Malta | B88: 1
A89: [NL] Netherlands | B89: 4
A90: [NO] Norway | B90: 1
A91: [PL] Poland | B91: 1
A92: [PT] Portugal | B92: 4
A93: [SE] Sweden | B93: 4
A94: [SI] Slovenia | B94: 2
A97: [AT] Austria | B97: AT001 | C97: Erste Group Bank (EGB)
B98: AT002 | C98: Raiffeisen Zentralbank Österreich (RZB)
A99: [BE] Belgium | B99: BE005 | C99: KBC BANK
A100: [CY] Cyprus | B100: CY006 | C100: MARFIN POPULAR BANK PUBLIC CO LTD
B101: CY007 | C101: BANK OF CYPRUS PUBLIC CO LTD
A102: [DE] Germany | B102: DE017 | C102: DEUTSCHE BANK AG
B103: DE018 | C103: COMMERZBANK AG
B104: DE019 | C104: Landesbank Baden-Württemberg
B105: DE020 | C105: DZ BANK AG Dt. Zentral-Genossenschaftsbank
B106: DE021 | C106: Bayerische Landesbank
B107: DE022 | C107: Norddeutsche Landesbank -GZ
B108: DE023 | C108: Hypo Real Estate Holding AG
B109: DE025 | C109: HSH Nordbank AG, Hamburg
B110: DE026 | C110: Landesbank Hessen-Thüringen GZ, Frankfurt
B111: DE027 | C111: Landesbank Berlin AG
B112: DE028 | C112: DekaBank Deutsche Girozentrale, Frankfurt
B113: DE029 | C113: WGZ BANK AG Westdt. Geno. Zentralbk, Ddf
A114: [DK] Denmark | B114: DK008 | C114: DANSKE BANK
B115: DK009 | C115: Jyske Bank
B116: DK010 | C116: Sydbank
B117: DK011 | C117: Nykredit
A118: [ES] Spain | B118: ES059 | C118: BANCO SANTANDER S.A.
B119: ES060 | C119: BANCO BILBAO VIZCAYA ARGENTARIA S.A. (BBVA)
B120: ES062 | C120: CAJA DE AHORROS Y PENSIONES DE BARCELONA
B121: ES064 | C121: BANCO POPULAR ESPAÑOL, S.A.
A122: [FI] Finland | B122: FI012 | C122: OP-Pohjola Group
A123: [FR] France | B123: FR013 | C123: BNP PARIBAS
B124: FR014 | C124: CREDIT AGRICOLE
B125: FR015 | C125: BPCE
B126: FR016 | C126: SOCIETE GENERALE
A127: [GB] United Kingdom | B127: GB088 | C127: ROYAL BANK OF SCOTLAND GROUP plc
B128: GB089 | C128: HSBC HOLDINGS plc
B129: GB090 | C129: BARCLAYS plc
B130: GB091 | C130: LLOYDS BANKING GROUP plc
A131: [HU] Hungary | B131: HU036 | C131: OTP BANK NYRT.
A132: [IE] Ireland | B132: IE037 | C132: ALLIED IRISH BANKS PLC
B133: IE038 | C133: BANK OF IRELAND
B134: IE039 | C134: IRISH LIFE AND PERMANENT
A135: [IT] Italy | B135: IT040 | C135: INTESA SANPAOLO S.p.A
B136: IT041 | C136: UNICREDIT S.p.A
B137: IT042 | C137: BANCA MONTE DEI PASCHI DI SIENA S.p.A
B138: IT043 | C138: BANCO POPOLARE - S.C.
B139: IT044 | C139: UNIONE DI BANCHE ITALIANE SCPA (UBI BANCA)
A140: [LU] Luxemburg | B140: LU045 | C140: BANQUE ET CAISSE D'EPARGNE DE L'ETAT
A141: [MT] Malta | B141: MT046 | C141: BANK OF VALLETTA (BOV)
A142: [NL] Netherlands | B142: NL047 | C142: ING BANK NV
B143: NL048 | C143: RABOBANK NEDERLAND
B144: NL049 | C144: ABN AMRO BANK NV
B145: NL050 | C145: SNS BANK NV
A146: [NO] Norway | B146: NO051 | C146: DnB NOR Bank ASA
A147: [PL] Poland | B147: PL052 | C147: POWSZECHNA KASA OSZCZEDNOSCI BANK POLSKI S.A. (PKO BANK POLSKI)
A148: [PT] Portugal | B148: PT053 | C148: CAIXA GERAL DE DEPÓSITOS SA
B149: PT054 | C149: BANCO COMERCIAL PORTUGUES SA (BCP OR MILLENNIUM BCP)
B150: PT055 | C150: ESPÍRITO SANTO FINANCIAL GROUP SA (ESFG)
B151: PT056 | C151: Banco BPI, SA
A152: [SE] Sweden | B152: SE084 | C152: Nordea Bank AB (publ)
B153: SE085 | C153: Skandinaviska Enskilda Banken AB (publ) (SEB)
B154: SE086 | C154: Svenska Handelsbanken AB (publ)
B155: SE087 | C155: Swedbank AB (publ)
A156: [SI] Slovenia | B156: SI057 | C156: NOVA LJUBLJANSKA BANKA D.D. (NLB d.d.)
B157: SI058 | C157: NOVA KREDITNA BANKA MARIBOR D.D. (NKBM d.d.)

Sheet TOT 1. Capital Composition_ (hidden)
D1: =RIGHT(LEFT(Menu!H15,3),2) -> TO | E1: OK | F1: 0 | G1: 0 | H1: 0
C2: 1. CAPITAL | D2: Period | E2: 0 | F2: 0 | G2: 0 | H2: 0
H4: =Menu!H15 -> [TO] TOTAL
A6: PERIOD | B6: ITEM
C7: Capital position CRD3 rules | D7: 2012-12-31 | F7: 2013-06-30 | H7: References to COREP reporting
D8: Million EUR | E8: % RWA | F8: Million EUR | G8: % RWA
B9: =VLOOKUP(C9,'DATA MART_'!$Y$30:$Z$81,2,0) -> 100100 | C9: A) Common equity before deductions (Original own funds without hybrid instruments and government support measures other than ordinary shares) (+) | D9: =IF($D$1="TO",SUMIFS('DATA MART_'!$Q:$Q,'DATA MART_'!$G:$G,$D$7,'DATA MART_'!$A:$A,CONCATENATE($D$7,"|",$B9,"|",$E$2,"|",$F$1,"|",$F$2,"|",$G$1,"|",$G$2,"|",$H$1,"|",$H$2)),SUMIFS('DATA MART_'!$Q:$Q,'DATA MART_'!$G:$G,$D$7,'DATA MART_'!$A:$A,CONCATENATE($D$7,"|",$B9,"|",$E$2,"|",$F$1,"|",$F$2,"|",$G$1,"|",$G$2,"|",$H$1,"|",$H$2),'DATA MART_'!$F:$F,$D$1)) -> 1098115.356 | F9: =IF($D$1="TO",SUMIFS('DATA MART_'!$Q:$Q,'DATA MART_'!$G:$G,$F$7,'DATA MART_'!$A:$A,CONCATENATE($F$7,"|",$B9,"|",$E$2,"|",$F$1,"|",$F$2,"|",$G$1,"|",$G$2,"|",$H$1,"|",$H$2)),SUMIFS('DATA MART_'!$Q:$Q,'DATA MART_'!$G:$G,$F$7,'DATA MART_'!$A:$A,CONCATENATE($F$7,"|",$B9,"|",$E$2,"|",$F$1,"|",$F$2,"|",$G$1,"|",$G$2,"|",$H$1,"|",$H$2),'DATA MART_'!$F:$F,$D$1)) -> 1133248.204 | H9: COREP CA 1.1 without Hybrid instruments and government support measures other than ordinary shares | J9: 100100
B10: 100103 | C10: Of which: adjustment to valuation differences in other AFS assets (1) (-/+) | D10: =IF($D$1="TO",SUMIFS('DATA MART_'!$Q:$Q,'DATA MART_'!$G:$G,$D$7,'DATA MART_'!$A:$A,CONCATENATE($D$7,"|",$B10,"|",$E$2,"|",$F$1,"|",$F$2,"|",$G$1,"|",$G$2,"|",$H$1,"|",$H$2)),SUMIFS('DATA MART_'!$Q:$Q,'DATA MART_'!$G:$G,$D$7,'DATA MART_'!$A:$A,CONCATENATE($D$7,"|",$B10,"|",$E$2,"|",$F$1,"|",$F$2,"|",$G$1,"|",$G$2,"|",$H$1,"|",$H$2),'DATA MART_'!$F:$F,$D$1)) -> 2879.090461 | F10: =IF($D$1="TO",SUMIFS('DATA MART_'!$Q:$Q,'DATA MART_'!$G:$G,$F$7,'DATA MART_'!$A:$A,CONCATENATE($F$7,"|",$B10,"|",$E$2,"|",$F$1,"|",$F$2,"|",$G$1,"|",$G$2,"|",$H$1,"|",$H$2)),SUMIFS('DATA MART_'!$Q:$Q,'DATA MART_'!$G:$G,$F$7,'DATA MART_'!$A:$A,CONCATENATE($F$7,"|",$B10,"|",$E$2,"|",$F$1,"|",$F$2,"|",$G$1,"|",$G$2,"|",$H$1,"|",$H$2),'DATA MART_'!$F:$F,$D$1)) -> 4802.889458 | H10: Prudential filters for regulatory capital (COREP line 1.1.2.6.06) | J10: 100103
B11: =VLOOKUP(C11,'DATA MART_'!$Y$30:$Z$81,2,0) -> 100200 | C11: B) Deductions from common equity (Elements deducted from original own funds) (-) | D11: =IF($D$1="TO",SUMIFS('DATA MART_'!$Q:$Q,'DATA MART_'!$G:$G,$D$7,'DATA MART_'!$A:$A,CONCATENATE($D$7,"|",$B11,"|",$E$2,"|",$F$1,"|",$F$2,"|",$G$1,"|",$G$2,"|",$H$1,"|",$H$2)),SUMIFS('DATA MART_'!$Q:$Q,'DATA MART_'!$G:$G,$D$7,'DATA MART_'!$A:$A,CONCATENATE($D$7,"|",$B11,"|",$E$2,"|",$F$1,"|",$F$2,"|",$G$1,"|",$G$2,"|",$H$1,"|",$H$2),'DATA MART_'!$F:$F,$D$1)) -> -59661.56 | F11: =IF($D$1="TO",SUMIFS('DATA MART_'!$Q:$Q,'DATA MART_'!$G:$G,$F$7,'DATA MART_'!$A:$A,CONCATENATE($F$7,"|",$B11,"|",$E$2,"|",$F$1,"|",$F$2,"|",$G$1,"|",$G$2,"|",$H$1,"|",$H$2)),SUMIFS('DATA MART_'!$Q:$Q,'DATA MART_'!$G:$G,$F$7,'DATA MART_'!$A:$A,CONCATENATE($F$7,"|",$B11,"|",$E$2,"|",$F$1,"|",$F$2,"|",$G$1,"|",$G$2,"|",$H$1,"|",$H$2),'DATA MART_'!$F:$F,$D$1)) -> -69768.27653 | H11: COREP CA 1.3.T1* (negative amount) | J11: 100200
B12: 100203 | C12: Of which: IRB provision shortfall and IRB equity expected loss amounts (before tax) (-) | D12: =IF($D$1="TO",SUMIFS('DATA MART_'!$Q:$Q,'DATA MART_'!$G:$G,$D$7,'DATA MART_'!$A:$A,CONCATENATE($D$7,"|",$B12,"|",$E$2,"|",$F$1,"|",$F$2,"|",$G$1,"|",$G$2,"|",$H$1,"|",$H$2)),SUMIFS('DATA MART_'!$Q:$Q,'DATA MART_'!$G:$G,$D$7,'DATA MART_'!$A:$A,CONCATENATE($D$7,"|",$B12,"|",$E$2,"|",$F$1,"|",$F$2,"|",$G$1,"|",$G$2,"|",$H$1,"|",$H$2),'DATA MART_'!$F:$F,$D$1)) -> -16941.25366 | F12: =IF($D$1="TO",SUMIFS('DATA MART_'!$Q:$Q,'DATA MART_'!$G:$G,$F$7,'DATA MART_'!$A:$A,CONCATENATE($F$7,"|",$B12,"|",$E$2,"|",$F$1,"|",$F$2,"|",$G$1,"|",$G$2,"|",$H$1,"|",$H$2)),SUMIFS('DATA MART_'!$Q:$Q,'DATA MART_'!$G:$G,$F$7,'DATA MART_'!$A:$A,CONCATENATE($F$7,"|",$B12,"|",$E$2,"|",$F$1,"|",$F$2,"|",$G$1,"|",$G$2,"|",$H$1,"|",$H$2),'DATA MART_'!$F:$F,$D$1)) -> -16704.43917 | H12: As defined by Article 57 (q) of Directive 2006/48/EC (COREP line 1.3.8 included in 1.3.T1*) | J12: 100203
B13: =VLOOKUP(C13,'DATA MART_'!$Y$30:$Z$81,2,0) -> 100300 | C13: C) Common equity (A+B) | D13: =IF($D$1="TO",SUMIFS('DATA MART_'!$Q:$Q,'DATA MART_'!$G:$G,$D$7,'DATA MART_'!$A:$A,CONCATENATE($D$7,"|",$B13,"|",$E$2,"|",$F$1,"|",$F$2,"|",$G$1,"|",$G$2,"|",$H$1,"|",$H$2)),SUMIFS('DATA MART_'!$Q:$Q,'DATA MART_'!$G:$G,$D$7,'DATA MART_'!$A:$A,CONCATENATE($D$7,"|",$B13,"|",$E$2,"|",$F$1,"|",$F$2,"|",$G$1,"|",$G$2,"|",$H$1,"|",$H$2),'DATA MART_'!$F:$F,$D$1)) -> 1038453.796 | E13: =IF(D$20>0,D13/D$20,"") -> 0.109291438 | F13: =IF($D$1="TO",SUMIFS('DATA MART_'!$Q:$Q,'DATA MART_'!$G:$G,$F$7,'DATA MART_'!$A:$A,CONCATENATE($F$7,"|",$B13,"|",$E$2,"|",$F$1,"|",$F$2,"|",$G$1,"|",$G$2,"|",$H$1,"|",$H$2)),SUMIFS('DATA MART_'!$Q:$Q,'DATA MART_'!$G:$G,$F$7,'DATA MART_'!$A:$A,CONCATENATE($F$7,"|",$B13,"|",$E$2,"|",$F$1,"|",$F$2,"|",$G$1,"|",$G$2,"|",$H$1,"|",$H$2),'DATA MART_'!$F:$F,$D$1)) -> 1063479.927 | G13: =IF(F$20>0,F13/F$20,"") -> 0.1150745093 | J13: 100300
B14: =VLOOKUP(C14,'DATA MART_'!$Y$30:$Z$81,2,0) -> 100301 | C14: Of which: ordinary shares subscribed by government | D14: =IF($D$1="TO",SUMIFS('DATA MART_'!$Q:$Q,'DATA MART_'!$G:$G,$D$7,'DATA MART_'!$A:$A,CONCATENATE($D$7,"|",$B14,"|",$E$2,"|",$F$1,"|",$F$2,"|",$G$1,"|",$G$2,"|",$H$1,"|",$H$2)),SUMIFS('DATA MART_'!$Q:$Q,'DATA MART_'!$G:$G,$D$7,'DATA MART_'!$A:$A,CONCATENATE($D$7,"|",$B14,"|",$E$2,"|",$F$1,"|",$F$2,"|",$G$1,"|",$G$2,"|",$H$1,"|",$H$2),'DATA MART_'!$F:$F,$D$1)) -> 64510.08805 | F14: =IF($D$1="TO",SUMIFS('DATA MART_'!$Q:$Q,'DATA MART_'!$G:$G,$F$7,'DATA MART_'!$A:$A,CONCATENATE($F$7,"|",$B14,"|",$E$2,"|",$F$1,"|",$F$2,"|",$G$1,"|",$G$2,"|",$H$1,"|",$H$2)),SUMIFS('DATA MART_'!$Q:$Q,'DATA MART_'!$G:$G,$F$7,'DATA MART_'!$A:$A,CONCATENATE($F$7,"|",$B14,"|",$E$2,"|",$F$1,"|",$F$2,"|",$G$1,"|",$G$2,"|",$H$1,"|",$H$2),'DATA MART_'!$F:$F,$D$1)) -> 62809.58698 | H14: Paid up ordinary shares subscribed by government | J14: 100301
B15: =VLOOKUP(C15,'DATA MART_'!$Y$30:$Z$81,2,0) -> 100402 | C15: D) CoCos issued before 30 June 2012 according to EBA Common Term Sheet (+) | D15: =IF($D$1="TO",SUMIFS('DATA MART_'!$Q:$Q,'DATA MART_'!$G:$G,$D$7,'DATA MART_'!$A:$A,CONCATENATE($D$7,"|",$B15,"|",$E$2,"|",$F$1,"|",$F$2,"|",$G$1,"|",$G$2,"|",$H$1,"|",$H$2)),SUMIFS('DATA MART_'!$Q:$Q,'DATA MART_'!$G:$G,$D$7,'DATA MART_'!$A:$A,CONCATENATE($D$7,"|",$B15,"|",$E$2,"|",$F$1,"|",$F$2,"|",$G$1,"|",$G$2,"|",$H$1,"|",$H$2),'DATA MART_'!$F:$F,$D$1)) -> 5850.9627 | F15: =IF($D$1="TO",SUMIFS('DATA MART_'!$Q:$Q,'DATA MART_'!$G:$G,$F$7,'DATA MART_'!$A:$A,CONCATENATE($F$7,"|",$B15,"|",$E$2,"|",$F$1,"|",$F$2,"|",$G$1,"|",$G$2,"|",$H$1,"|",$H$2)),SUMIFS('DATA MART_'!$Q:$Q,'DATA MART_'!$G:$G,$F$7,'DATA MART_'!$A:$A,CONCATENATE($F$7,"|",$B15,"|",$E$2,"|",$F$1,"|",$F$2,"|",$G$1,"|",$G$2,"|",$H$1,"|",$H$2),'DATA MART_'!$F:$F,$D$1)) -> 3052.6767 | H15: EBA/REC/2011/1 | J15: 100400
B16: =VLOOKUP(C16,'DATA MART_'!$Y$30:$Z$81,2,0) -> 100500 | C16: E) Other Existing government support measures (+) | D16: =IF($D$1="TO",SUMIFS('DATA MART_'!$Q:$Q,'DATA MART_'!$G:$G,$D$7,'DATA MART_'!$A:$A,CONCATENATE($D$7,"|",$B16,"|",$E$2,"|",$F$1,"|",$F$2,"|",$G$1,"|",$G$2,"|",$H$1,"|",$H$2)),SUMIFS('DATA MART_'!$Q:$Q,'DATA MART_'!$G:$G,$D$7,'DATA MART_'!$A:$A,CONCATENATE($D$7,"|",$B16,"|",$E$2,"|",$F$1,"|",$F$2,"|",$G$1,"|",$G$2,"|",$H$1,"|",$H$2),'DATA MART_'!$F:$F,$D$1)) -> 28339.77974 | F16: =IF($D$1="TO",SUMIFS('DATA MART_'!$Q:$Q,'DATA MART_'!$G:$G,$F$7,'DATA MART_'!$A:$A,CONCATENATE($F$7,"|",$B16,"|",$E$2,"|",$F$1,"|",$F$2,"|",$G$1,"|",$G$2,"|",$H$1,"|",$H$2)),SUMIFS('DATA MART_'!$Q:$Q,'DATA MART_'!$G:$G,$F$7,'DATA MART_'!$A:$A,CONCATENATE($F$7,"|",$B16,"|",$E$2,"|",$F$1,"|",$F$2,"|",$G$1,"|",$G$2,"|",$H$1,"|",$H$2),'DATA MART_'!$F:$F,$D$1)) -> 23367.72821 | J16: 100500
B17: =VLOOKUP(C17,'DATA MART_'!$Y$30:$Z$81,2,0) -> 100600 | C17: F) Core Tier 1 including other intruments eligible and existing government support measures (C+D+E) | D17: =IF($D$1="TO",SUMIFS('DATA MART_'!$Q:$Q,'DATA MART_'!$G:$G,$D$7,'DATA MART_'!$A:$A,CONCATENATE($D$7,"|",$B17,"|",$E$2,"|",$F$1,"|",$F$2,"|",$G$1,"|",$G$2,"|",$H$1,"|",$H$2)),SUMIFS('DATA MART_'!$Q:$Q,'DATA MART_'!$G:$G,$D$7,'DATA MART_'!$A:$A,CONCATENATE($D$7,"|",$B17,"|",$E$2,"|",$F$1,"|",$F$2,"|",$G$1,"|",$G$2,"|",$H$1,"|",$H$2),'DATA MART_'!$F:$F,$D$1)) -> 1072644.538 | E17: =IF(D$20>0,D17/D$20,"") -> 0.1128898219 | F17: =IF($D$1="TO",SUMIFS('DATA MART_'!$Q:$Q,'DATA MART_'!$G:$G,$F$7,'DATA MART_'!$A:$A,CONCATENATE($F$7,"|",$B17,"|",$E$2,"|",$F$1,"|",$F$2,"|",$G$1,"|",$G$2,"|",$H$1,"|",$H$2)),SUMIFS('DATA MART_'!$Q:$Q,'DATA MART_'!$G:$G,$F$7,'DATA MART_'!$A:$A,CONCATENATE($F$7,"|",$B17,"|",$E$2,"|",$F$1,"|",$F$2,"|",$G$1,"|",$G$2,"|",$H$1,"|",$H$2),'DATA MART_'!$F:$F,$D$1)) -> 1089900.332 | G17: =IF(F$20>0,F17/F$20,"") -> 0.1179333457 | J17: 100600
B18: =VLOOKUP(C18,'DATA MART_'!$Y$30:$Z$81,2,0) -> 100700 | C18: G) Hybrid instruments not subscribed by government | D18: =IF($D$1="TO",SUMIFS('DATA MART_'!$Q:$Q,'DATA MART_'!$G:$G,$D$7,'DATA MART_'!$A:$A,CONCATENATE($D$7,"|",$B18,"|",$E$2,"|",$F$1,"|",$F$2,"|",$G$1,"|",$G$2,"|",$H$1,"|",$H$2)),SUMIFS('DATA MART_'!$Q:$Q,'DATA MART_'!$G:$G,$D$7,'DATA MART_'!$A:$A,CONCATENATE($D$7,"|",$B18,"|",$E$2,"|",$F$1,"|",$F$2,"|",$G$1,"|",$G$2,"|",$H$1,"|",$H$2),'DATA MART_'!$F:$F,$D$1)) -> 145192.9281 | F18: =IF($D$1="TO",SUMIFS('DATA MART_'!$Q:$Q,'DATA MART_'!$G:$G,$F$7,'DATA MART_'!$A:$A,CONCATENATE($F$7,"|",$B18,"|",$E$2,"|",$F$1,"|",$F$2,"|",$G$1,"|",$G$2,"|",$H$1,"|",$H$2)),SUMIFS('DATA MART_'!$Q:$Q,'DATA MART_'!$G:$G,$F$7,'DATA MART_'!$A:$A,CONCATENATE($F$7,"|",$B18,"|",$E$2,"|",$F$1,"|",$F$2,"|",$G$1,"|",$G$2,"|",$H$1,"|",$H$2),'DATA MART_'!$F:$F,$D$1)) -> 131243.9727 | H18: Net amount included in T1 own funds (COREP line 1.1.4.1a + COREP lines from 1.1.2.2***01 to 1.1.2.2***05 + COREP line 1.1.5.2a (negative amount)) not subscribed by government | J18: 100700
B19: 100800 | C19: H) Tier 1 Capital (F+G) | D19: =IF($D$1="TO",SUMIFS('DATA MART_'!$Q:$Q,'DATA MART_'!$G:$G,$D$7,'DATA MART_'!$A:$A,CONCATENATE($D$7,"|",$B19,"|",$E$2,"|",$F$1,"|",$F$2,"|",$G$1,"|",$G$2,"|",$H$1,"|",$H$2)),SUMIFS('DATA MART_'!$Q:$Q,'DATA MART_'!$G:$G,$D$7,'DATA MART_'!$A:$A,CONCATENATE($D$7,"|",$B19,"|",$E$2,"|",$F$1,"|",$F$2,"|",$G$1,"|",$G$2,"|",$H$1,"|",$H$2),'DATA MART_'!$F:$F,$D$1)) -> 1217837.466 | E19: =IF(D$20>0,D19/D$20,"") -> 0.1281705632 | F19: =IF($D$1="TO",SUMIFS('DATA MART_'!$Q:$Q,'DATA MART_'!$G:$G,$F$7,'DATA MART_'!$A:$A,CONCATENATE($F$7,"|",$B19,"|",$E$2,"|",$F$1,"|",$F$2,"|",$G$1,"|",$G$2,"|",$H$1,"|",$H$2)),SUMIFS('DATA MART_'!$Q:$Q,'DATA MART_'!$G:$G,$F$7,'DATA MART_'!$A:$A,CONCATENATE($F$7,"|",$B19,"|",$E$2,"|",$F$1,"|",$F$2,"|",$G$1,"|",$G$2,"|",$H$1,"|",$H$2),'DATA MART_'!$F:$F,$D$1)) -> 1221144.305 | G19: =IF(F$20>0,F19/F$20,"") -> 0.1321346817 | H19: COREP CA 1.4 = COREP CA 1.1 + COREP CA 1.3.T1* (negative amount) | J19: 100800
B20: =VLOOKUP(C20,'DATA MART_'!$Y$30:$Z$81,2,0) -> 100900 | C20: I) RWA | D20: =IF($D$1="TO",SUMIFS('DATA MART_'!$Q:$Q,'DATA MART_'!$G:$G,$D$7,'DATA MART_'!$A:$A,CONCATENATE($D$7,"|",$B20,"|",$E$2,"|",$F$1,"|",$F$2,"|",$G$1,"|",$G$2,"|",$H$1,"|",$H$2)),SUMIFS('DATA MART_'!$Q:$Q,'DATA MART_'!$G:$G,$D$7,'DATA MART_'!$A:$A,CONCATENATE($D$7,"|",$B20,"|",$E$2,"|",$F$1,"|",$F$2,"|",$G$1,"|",$G$2,"|",$H$1,"|",$H$2),'DATA MART_'!$F:$F,$D$1)) -> 9501693.958 | F20: =IF($D$1="TO",SUMIFS('DATA MART_'!$Q:$Q,'DATA MART_'!$G:$G,$F$7,'DATA MART_'!$A:$A,CONCATENATE($F$7,"|",$B20,"|",$E$2,"|",$F$1,"|",$F$2,"|",$G$1,"|",$G$2,"|",$H$1,"|",$H$2)),SUMIFS('DATA MART_'!$Q:$Q,'DATA MART_'!$G:$G,$F$7,'DATA MART_'!$A:$A,CONCATENATE($F$7,"|",$B20,"|",$E$2,"|",$F$1,"|",$F$2,"|",$G$1,"|",$G$2,"|",$H$1,"|",$H$2),'DATA MART_'!$F:$F,$D$1)) -> 9241663.801 | J20: 100900
C21: CRR / CRDIV memo items
B22: =VLOOKUP(C22,'DATA MART_'!$Y$30:$Z$81,2,0) -> 130100 | C22: Common Equity instruments under A) not eligible as CET1 (under CRR) | D22: =IF($D$1="TO",SUMIFS('DATA MART_'!$Q:$Q,'DATA MART_'!$G:$G,$D$7,'DATA MART_'!$A:$A,CONCATENATE($D$7,"|",$B22,"|",$E$2,"|",$F$1,"|",$F$2,"|",$G$1,"|",$G$2,"|",$H$1,"|",$H$2)),SUMIFS('DATA MART_'!$Q:$Q,'DATA MART_'!$G:$G,$D$7,'DATA MART_'!$A:$A,CONCATENATE($D$7,"|",$B22,"|",$E$2,"|",$F$1,"|",$F$2,"|",$G$1,"|",$G$2,"|",$H$1,"|",$H$2),'DATA MART_'!$F:$F,$D$1)) -> 1499.3 | F22: =IF($D$1="TO",SUMIFS('DATA MART_'!$Q:$Q,'DATA MART_'!$G:$G,$F$7,'DATA MART_'!$A:$A,CONCATENATE($F$7,"|",$B22,"|",$E$2,"|",$F$1,"|",$F$2,"|",$G$1,"|",$G$2,"|",$H$1,"|",$H$2)),SUMIFS('DATA MART_'!$Q:$Q,'DATA MART_'!$G:$G,$F$7,'DATA MART_'!$A:$A,CONCATENATE($F$7,"|",$B22,"|",$E$2,"|",$F$1,"|",$F$2,"|",$G$1,"|",$G$2,"|",$H$1,"|",$H$2),'DATA MART_'!$F:$F,$D$1)) -> 1293.589 | H22: Articles 26(1) point (c) and 26(2) of CRR | J22: 101001 | N22: The template has been pre-filled in with the figures published on the EBA web site. Please, double check them and, should it be needed, change them.
B23: =VLOOKUP(C23,'DATA MART_'!$Y$30:$Z$81,2,0) -> 130200 | C23: Adjustments to Minority Interests | D23: =IF($D$1="TO",SUMIFS('DATA MART_'!$Q:$Q,'DATA MART_'!$G:$G,$D$7,'DATA MART_'!$A:$A,CONCATENATE($D$7,"|",$B23,"|",$E$2,"|",$F$1,"|",$F$2,"|",$G$1,"|",$G$2,"|",$H$1,"|",$H$2)),SUMIFS('DATA MART_'!$Q:$Q,'DATA MART_'!$G:$G,$D$7,'DATA MART_'!$A:$A,CONCATENATE($D$7,"|",$B23,"|",$E$2,"|",$F$1,"|",$F$2,"|",$G$1,"|",$G$2,"|",$H$1,"|",$H$2),'DATA MART_'!$F:$F,$D$1)) -> 23158.74 | F23: =IF($D$1="TO",SUMIFS('DATA MART_'!$Q:$Q,'DATA MART_'!$G:$G,$F$7,'DATA MART_'!$A:$A,CONCATENATE($F$7,"|",$B23,"|",$E$2,"|",$F$1,"|",$F$2,"|",$G$1,"|",$G$2,"|",$H$1,"|",$H$2)),SUMIFS('DATA MART_'!$Q:$Q,'DATA MART_'!$G:$G,$F$7,'DATA MART_'!$A:$A,CONCATENATE($F$7,"|",$B23,"|",$E$2,"|",$F$1,"|",$F$2,"|",$G$1,"|",$G$2,"|",$H$1,"|",$H$2),'DATA MART_'!$F:$F,$D$1)) -> 21441.87416 | H23: Article 84 of CRR | J23: 101002 | N23: The template has been pre-filled in with the figures published on the EBA web site. Please, double check them and, should it be needed, change them.
B24: =VLOOKUP(C24,'DATA MART_'!$Y$30:$Z$81,2,0) -> 130300 | C24: DTAs that rely on future profitability (net of associated DTL) | D24: =IF($D$1="TO",SUMIFS('DATA MART_'!$Q:$Q,'DATA MART_'!$G:$G,$D$7,'DATA MART_'!$A:$A,CONCATENATE($D$7,"|",$B24,"|",$E$2,"|",$F$1,"|",$F$2,"|",$G$1,"|",$G$2,"|",$H$1,"|",$H$2)),SUMIFS('DATA MART_'!$Q:$Q,'DATA MART_'!$G:$G,$D$7,'DATA MART_'!$A:$A,CONCATENATE($D$7,"|",$B24,"|",$E$2,"|",$F$1,"|",$F$2,"|",$G$1,"|",$G$2,"|",$H$1,"|",$H$2),'DATA MART_'!$F:$F,$D$1)) -> 109406.255 | F24: =IF($D$1="TO",SUMIFS('DATA MART_'!$Q:$Q,'DATA MART_'!$G:$G,$F$7,'DATA MART_'!$A:$A,CONCATENATE($F$7,"|",$B24,"|",$E$2,"|",$F$1,"|",$F$2,"|",$G$1,"|",$G$2,"|",$H$1,"|",$H$2)),SUMIFS('DATA MART_'!$Q:$Q,'DATA MART_'!$G:$G,$F$7,'DATA MART_'!$A:$A,CONCATENATE($F$7,"|",$B24,"|",$E$2,"|",$F$1,"|",$F$2,"|",$G$1,"|",$G$2,"|",$H$1,"|",$H$2),'DATA MART_'!$F:$F,$D$1)) -> 112805.6207 | H24: Articles 36(1) point (c) and 38 of CRR [new COREP CA4 lines {1.2 + 1.3 - 2.2.1 - 2.2.2}] | J24: 101000
B25: =VLOOKUP(C25,'DATA MART_'!$Y$30:$Z$81,2,0) -> 130400 | C25: Holdings of CET1 capital instruments of financial sector entities: reciprocal cross holdings, non significant and significant investments | D25: =IF($D$1="TO",SUMIFS('DATA MART_'!$Q:$Q,'DATA MART_'!$G:$G,$D$7,'DATA MART_'!$A:$A,CONCATENATE($D$7,"|",$B25,"|",$E$2,"|",$F$1,"|",$F$2,"|",$G$1,"|",$G$2,"|",$H$1,"|",$H$2)),SUMIFS('DATA MART_'!$Q:$Q,'DATA MART_'!$G:$G,$D$7,'DATA MART_'!$A:$A,CONCATENATE($D$7,"|",$B25,"|",$E$2,"|",$F$1,"|",$F$2,"|",$G$1,"|",$G$2,"|",$H$1,"|",$H$2),'DATA MART_'!$F:$F,$D$1)) -> 139978.1918 | F25: =IF($D$1="TO",SUMIFS('DATA MART_'!$Q:$Q,'DATA MART_'!$G:$G,$F$7,'DATA MART_'!$A:$A,CONCATENATE($F$7,"|",$B25,"|",$E$2,"|",$F$1,"|",$F$2,"|",$G$1,"|",$G$2,"|",$H$1,"|",$H$2)),SUMIFS('DATA MART_'!$Q:$Q,'DATA MART_'!$G:$G,$F$7,'DATA MART_'!$A:$A,CONCATENATE($F$7,"|",$B25,"|",$E$2,"|",$F$1,"|",$F$2,"|",$G$1,"|",$G$2,"|",$H$1,"|",$H$2),'DATA MART_'!$F:$F,$D$1)) -> 118380.3631 | H25: Articles 36(1) point (g), (h) and (i), 43, 44 and 45 of CRR | J25: 101100
B26: 130500 | C26: RWA for Credit Value Adjustment Risk (CVA) | D26: =IF($D$1="TO",SUMIFS('DATA MART_'!$Q:$Q,'DATA MART_'!$G:$G,$D$7,'DATA MART_'!$A:$A,CONCATENATE($D$7,"|",$B26,"|",$E$2,"|",$F$1,"|",$F$2,"|",$G$1,"|",$G$2,"|",$H$1,"|",$H$2)),SUMIFS('DATA MART_'!$Q:$Q,'DATA MART_'!$G:$G,$D$7,'DATA MART_'!$A:$A,CONCATENATE($D$7,"|",$B26,"|",$E$2,"|",$F$1,"|",$F$2,"|",$G$1,"|",$G$2,"|",$H$1,"|",$H$2),'DATA MART_'!$F:$F,$D$1)) -> 421263.6804 | F26: =IF($D$1="TO",SUMIFS('DATA MART_'!$Q:$Q,'DATA MART_'!$G:$G,$F$7,'DATA MART_'!$A:$A,CONCATENATE($F$7,"|",$B26,"|",$E$2,"|",$F$1,"|",$F$2,"|",$G$1,"|",$G$2,"|",$H$1,"|",$H$2)),SUMIFS('DATA MART_'!$Q:$Q,'DATA MART_'!$G:$G,$F$7,'DATA MART_'!$A:$A,CONCATENATE($F$7,"|",$B26,"|",$E$2,"|",$F$1,"|",$F$2,"|",$G$1,"|",$G$2,"|",$H$1,"|",$H$2),'DATA MART_'!$F:$F,$D$1)) -> 278912.7336 | H26: Articles 381 to 386 of CRR | J26: 101200
C27: Notes and definitions
C28: (1) The amount is already included in the computation of the eligible capital and reserves and it is provided separately for information purposes.

Sheet TOT 3. Securitisation Sum_ (hidden)
B1: =RIGHT(LEFT(Menu!H15,3),2) -> TO | C1: Item | D1: 0 | E1: 0 | F1: 0
A2: 3. SECURITISATION SUMMARY | B2: Period | C2: 0 | D2: 0 | E2: 0 | F2: 0
G3: Portfolio
C4: =Menu!$H$15 -> [TO] TOTAL | G4: Impact
A6: (in million Euro) | B6: 2012-12-31 | C6: 2013-06-30
B7: Exposure Value as of 31/12/2012 | C7: Exposure Value as of 30/06/2013
A8: Banking Book | B8: =IF($B$1="TO",SUMIFS('DATA MART_'!$Q:$Q,'DATA MART_'!$G:$G,$B$6,'DATA MART_'!$A:$A,CONCATENATE(B$6,"|",$D8,"|",$C$2,"|",$D$1,"|",$D$2,"|",$E$1,"|",$E$2,"|",$F$1,"|",$F$2)),SUMIFS('DATA MART_'!$Q:$Q,'DATA MART_'!$G:$G,$B$6,'DATA MART_'!$A:$A,CONCATENATE(B$6,"|",$D8,"|",$C$2,"|",$D$1,"|",$D$2,"|",$E$1,"|",$E$2,"|",$F$1,"|",$F$2),'DATA MART_'!$F:$F,$B$1)) -> 596845.1632 | C8: =IF($B$1="TO",SUMIFS('DATA MART_'!$Q:$Q,'DATA MART_'!$G:$G,$C$6,'DATA MART_'!$A:$A,CONCATENATE(C$6,"|",$D8,"|",$C$2,"|",$D$1,"|",$D$2,"|",$E$1,"|",$E$2,"|",$F$1,"|",$F$2)),SUMIFS('DATA MART_'!$Q:$Q,'DATA MART_'!$G:$G,$C$6,'DATA MART_'!$A:$A,CONCATENATE(C$6,"|",$D8,"|",$C$2,"|",$D$1,"|",$D$2,"|",$E$1,"|",$E$2,"|",$F$1,"|",$F$2),'DATA MART_'!$F:$F,$B$1)) -> 512343.8993 | D8: 700100 | G8: 200100
A9: Trading Book (excl. correlation trading) | B9: =IF($B$1="TO",SUMIFS('DATA MART_'!$Q:$Q,'DATA MART_'!$G:$G,$B$6,'DATA MART_'!$A:$A,CONCATENATE(B$6,"|",$D9,"|",$C$2,"|",$D$1,"|",$D$2,"|",$E$1,"|",$E$2,"|",$F$1,"|",$F$2)),SUMIFS('DATA MART_'!$Q:$Q,'DATA MART_'!$G:$G,$B$6,'DATA MART_'!$A:$A,CONCATENATE(B$6,"|",$D9,"|",$C$2,"|",$D$1,"|",$D$2,"|",$E$1,"|",$E$2,"|",$F$1,"|",$F$2),'DATA MART_'!$F:$F,$B$1)) -> 52591.46574 | C9: =IF($B$1="TO",SUMIFS('DATA MART_'!$Q:$Q,'DATA MART_'!$G:$G,$C$6,'DATA MART_'!$A:$A,CONCATENATE(C$6,"|",$D9,"|",$C$2,"|",$D$1,"|",$D$2,"|",$E$1,"|",$E$2,"|",$F$1,"|",$F$2)),SUMIFS('DATA MART_'!$Q:$Q,'DATA MART_'!$G:$G,$C$6,'DATA MART_'!$A:$A,CONCATENATE(C$6,"|",$D9,"|",$C$2,"|",$D$1,"|",$D$2,"|",$E$1,"|",$E$2,"|",$F$1,"|",$F$2),'DATA MART_'!$F:$F,$B$1)) -> 41604.73169 | D9: 700200 | G9: 200101
A10: Correlation Trading Portfolio | B10: =IF($B$1="TO",SUMIFS('DATA MART_'!$Q:$Q,'DATA MART_'!$G:$G,$B$6,'DATA MART_'!$A:$A,CONCATENATE(B$6,"|",$D10,"|",$C$2,"|",$D$1,"|",$D$2,"|",$E$1,"|",$E$2,"|",$F$1,"|",$F$2)),SUMIFS('DATA MART_'!$Q:$Q,'DATA MART_'!$G:$G,$B$6,'DATA MART_'!$A:$A,CONCATENATE(B$6,"|",$D10,"|",$C$2,"|",$D$1,"|",$D$2,"|",$E$1,"|",$E$2,"|",$F$1,"|",$F$2),'DATA MART_'!$F:$F,$B$1)) -> 188145.0314 | C10: =IF($B$1="TO",SUMIFS('DATA MART_'!$Q:$Q,'DATA MART_'!$G:$G,$C$6,'DATA MART_'!$A:$A,CONCATENATE(C$6,"|",$D10,"|",$C$2,"|",$D$1,"|",$D$2,"|",$E$1,"|",$E$2,"|",$F$1,"|",$F$2)),SUMIFS('DATA MART_'!$Q:$Q,'DATA MART_'!$G:$G,$C$6,'DATA MART_'!$A:$A,CONCATENATE(C$6,"|",$D10,"|",$C$2,"|",$D$1,"|",$D$2,"|",$E$1,"|",$E$2,"|",$F$1,"|",$F$2),'DATA MART_'!$F:$F,$B$1)) -> 137672.4376 | D10: 700300 | G10: 200102
A11: Total | B11: =IF($B$1="TO",SUMIFS('DATA MART_'!$Q:$Q,'DATA MART_'!$G:$G,$B$6,'DATA MART_'!$A:$A,CONCATENATE(B$6,"|",$D11,"|",$C$2,"|",$D$1,"|",$D$2,"|",$E$1,"|",$E$2,"|",$F$1,"|",$F$2)),SUMIFS('DATA MART_'!$Q:$Q,'DATA MART_'!$G:$G,$B$6,'DATA MART_'!$A:$A,CONCATENATE(B$6,"|",$D11,"|",$C$2,"|",$D$1,"|",$D$2,"|",$E$1,"|",$E$2,"|",$F$1,"|",$F$2),'DATA MART_'!$F:$F,$B$1)) -> 837581.6603 | C11: =IF($B$1="TO",SUMIFS('DATA MART_'!$Q:$Q,'DATA MART_'!$G:$G,$C$6,'DATA MART_'!$A:$A,CONCATENATE(C$6,"|",$D11,"|",$C$2,"|",$D$1,"|",$D$2,"|",$E$1,"|",$E$2,"|",$F$1,"|",$F$2)),SUMIFS('DATA MART_'!$Q:$Q,'DATA MART_'!$G:$G,$C$6,'DATA MART_'!$A:$A,CONCATENATE(C$6,"|",$D11,"|",$C$2,"|",$D$1,"|",$D$2,"|",$E$1,"|",$E$2,"|",$F$1,"|",$F$2),'DATA MART_'!$F:$F,$B$1)) -> 691621.0686 | D11: 700400 | G11: 100900
H24: 9% RWA - (CT 1 including existing government support measures - Sovereign capital buffer for exposures in EEA)

Sheet TOT 4. Market Risk_ (hidden)
B1: =RIGHT(LEFT(Menu!H15,3),2) -> TO | C1: Item | D1: 0 | E1: 0 | F1: Portfolio
A2: 4. MARKET RISK | B2: Period | C2: 0 | D2: 0 | E2: 0 | F2: 0
E4: =Menu!$H$15 -> [TO] TOTAL
A6: (in million Euro) | B6: 1 | C6: 5 | D6: 1 | E6: 5
B7: 2012-12-31 | D7: 2013-06-30
B8: TOTAL RISK EXPOSURE AMOUNT | D8: TOTAL RISK EXPOSURE AMOUNT
B9: SA | C9: IM | D9: SA | E9: IM
A10: Traded Debt Instruments | B10: =IF($B$1="TO",SUMIFS('DATA MART_'!$Q:$Q,'DATA MART_'!$G:$G,$B$7,'DATA MART_'!$A:$A,CONCATENATE(B$7,"|",$F10,"|",$C$2,"|",$D$1,"|",$D$2,"|",$E$1,"|",$E$2,"|",B$6,"|",$F$2)),SUMIFS('DATA MART_'!$Q:$Q,'DATA MART_'!$G:$G,$B$7,'DATA MART_'!$A:$A,CONCATENATE(B$7,"|",$F10,"|",$C$2,"|",$D$1,"|",$D$2,"|",$E$1,"|",$E$2,"|",B$6,"|",$F$2),'DATA MART_'!$F:$F,$B$1)) -> 122592.1193 | C10: =IF($B$1="TO",SUMIFS('DATA MART_'!$Q:$Q,'DATA MART_'!$G:$G,$B$7,'DATA MART_'!$A:$A,CONCATENATE($B$7,"|",$F10,"|",$C$2,"|",$D$1,"|",$D$2,"|",$E$1,"|",$E$2,"|",C$6,"|",$F$2)),SUMIFS('DATA MART_'!$Q:$Q,'DATA MART_'!$G:$G,$B$7,'DATA MART_'!$A:$A,CONCATENATE($B$7,"|",$F10,"|",$C$2,"|",$D$1,"|",$D$2,"|",$E$1,"|",$E$2,"|",C$6,"|",$F$2),'DATA MART_'!$F:$F,$B$1)) -> 304175.4118 | D10: =IF($B$1="TO",SUMIFS('DATA MART_'!$Q:$Q,'DATA MART_'!$G:$G,$D$7,'DATA MART_'!$A:$A,CONCATENATE($D$7,"|",$F10,"|",$C$2,"|",$D$1,"|",$D$2,"|",$E$1,"|",$E$2,"|",D$6,"|",$F$2)),SUMIFS('DATA MART_'!$Q:$Q,'DATA MART_'!$G:$G,$D$7,'DATA MART_'!$A:$A,CONCATENATE($D$7,"|",$F10,"|",$C$2,"|",$D$1,"|",$D$2,"|",$E$1,"|",$E$2,"|",D$6,"|",$F$2),'DATA MART_'!$F:$F,$B$1)) -> 118078.0408 | E10: =IF($B$1="TO",SUMIFS('DATA MART_'!$Q:$Q,'DATA MART_'!$G:$G,$D$7,'DATA MART_'!$A:$A,CONCATENATE($D$7,"|",$F10,"|",$C$2,"|",$D$1,"|",$D$2,"|",$E$1,"|",$E$2,"|",E$6,"|",$F$2)),SUMIFS('DATA MART_'!$Q:$Q,'DATA MART_'!$G:$G,$D$7,'DATA MART_'!$A:$A,CONCATENATE($D$7,"|",$F10,"|",$C$2,"|",$D$1,"|",$D$2,"|",$E$1,"|",$E$2,"|",E$6,"|",$F$2),'DATA MART_'!$F:$F,$B$1)) -> 317630.8336 | F10: 700500 | G10: 200100
A11: TDI - General risk | B11: =IF($B$1="TO",SUMIFS('DATA MART_'!$Q:$Q,'DATA MART_'!$G:$G,$B$7,'DATA MART_'!$A:$A,CONCATENATE(B$7,"|",$F11,"|",$C$2,"|",$D$1,"|",$D$2,"|",$E$1,"|",$E$2,"|",B$6,"|",$F$2)),SUMIFS('DATA MART_'!$Q:$Q,'DATA MART_'!$G:$G,$B$7,'DATA MART_'!$A:$A,CONCATENATE(B$7,"|",$F11,"|",$C$2,"|",$D$1,"|",$D$2,"|",$E$1,"|",$E$2,"|",B$6,"|",$F$2),'DATA MART_'!$F:$F,$B$1)) -> 53562.26748 | C11: =IF($B$1="TO",SUMIFS('DATA MART_'!$Q:$Q,'DATA MART_'!$G:$G,$B$7,'DATA MART_'!$A:$A,CONCATENATE($B$7,"|",$F11,"|",$C$2,"|",$D$1,"|",$D$2,"|",$E$1,"|",$E$2,"|",C$6,"|",$F$2)),SUMIFS('DATA MART_'!$Q:$Q,'DATA MART_'!$G:$G,$B$7,'DATA MART_'!$A:$A,CONCATENATE($B$7,"|",$F11,"|",$C$2,"|",$D$1,"|",$D$2,"|",$E$1,"|",$E$2,"|",C$6,"|",$F$2),'DATA MART_'!$F:$F,$B$1)) -> 140218.0874 | D11: =IF($B$1="TO",SUMIFS('DATA MART_'!$Q:$Q,'DATA MART_'!$G:$G,$D$7,'DATA MART_'!$A:$A,CONCATENATE($D$7,"|",$F11,"|",$C$2,"|",$D$1,"|",$D$2,"|",$E$1,"|",$E$2,"|",D$6,"|",$F$2)),SUMIFS('DATA MART_'!$Q:$Q,'DATA MART_'!$G:$G,$D$7,'DATA MART_'!$A:$A,CONCATENATE($D$7,"|",$F11,"|",$C$2,"|",$D$1,"|",$D$2,"|",$E$1,"|",$E$2,"|",D$6,"|",$F$2),'DATA MART_'!$F:$F,$B$1)) -> 53417.69434 | E11: =IF($B$1="TO",SUMIFS('DATA MART_'!$Q:$Q,'DATA MART_'!$G:$G,$D$7,'DATA MART_'!$A:$A,CONCATENATE($D$7,"|",$F11,"|",$C$2,"|",$D$1,"|",$D$2,"|",$E$1,"|",$E$2,"|",E$6,"|",$F$2)),SUMIFS('DATA MART_'!$Q:$Q,'DATA MART_'!$G:$G,$D$7,'DATA MART_'!$A:$A,CONCATENATE($D$7,"|",$F11,"|",$C$2,"|",$D$1,"|",$D$2,"|",$E$1,"|",$E$2,"|",E$6,"|",$F$2),'DATA MART_'!$F:$F,$B$1)) -> 138393.7937 | F11: 700501 | G11: 200101
A12: TDI - Specific risk | B12: =IF($B$1="TO",SUMIFS('DATA MART_'!$Q:$Q,'DATA MART_'!$G:$G,$B$7,'DATA MART_'!$A:$A,CONCATENATE(B$7,"|",$F12,"|",$C$2,"|",$D$1,"|",$D$2,"|",$E$1,"|",$E$2,"|",B$6,"|",$F$2)),SUMIFS('DATA MART_'!$Q:$Q,'DATA MART_'!$G:$G,$B$7,'DATA MART_'!$A:$A,CONCATENATE(B$7,"|",$F12,"|",$C$2,"|",$D$1,"|",$D$2,"|",$E$1,"|",$E$2,"|",B$6,"|",$F$2),'DATA MART_'!$F:$F,$B$1)) -> 66338.17006 | C12: =IF($B$1="TO",SUMIFS('DATA MART_'!$Q:$Q,'DATA MART_'!$G:$G,$B$7,'DATA MART_'!$A:$A,CONCATENATE($B$7,"|",$F12,"|",$C$2,"|",$D$1,"|",$D$2,"|",$E$1,"|",$E$2,"|",C$6,"|",$F$2)),SUMIFS('DATA MART_'!$Q:$Q,'DATA MART_'!$G:$G,$B$7,'DATA MART_'!$A:$A,CONCATENATE($B$7,"|",$F12,"|",$C$2,"|",$D$1,"|",$D$2,"|",$E$1,"|",$E$2,"|",C$6,"|",$F$2),'DATA MART_'!$F:$F,$B$1)) -> 114185.32 | D12: =IF($B$1="TO",SUMIFS('DATA MART_'!$Q:$Q,'DATA MART_'!$G:$G,$D$7,'DATA MART_'!$A:$A,CONCATENATE($D$7,"|",$F12,"|",$C$2,"|",$D$1,"|",$D$2,"|",$E$1,"|",$E$2,"|",D$6,"|",$F$2)),SUMIFS('DATA MART_'!$Q:$Q,'DATA MART_'!$G:$G,$D$7,'DATA MART_'!$A:$A,CONCATENATE($D$7,"|",$F12,"|",$C$2,"|",$D$1,"|",$D$2,"|",$E$1,"|",$E$2,"|",D$6,"|",$F$2),'DATA MART_'!$F:$F,$B$1)) -> 61948.9151 | E12: =IF($B$1="TO",SUMIFS('DATA MART_'!$Q:$Q,'DATA MART_'!$G:$G,$D$7,'DATA MART_'!$A:$A,CONCATENATE($D$7,"|",$F12,"|",$C$2,"|",$D$1,"|",$D$2,"|",$E$1,"|",$E$2,"|",E$6,"|",$F$2)),SUMIFS('DATA MART_'!$Q:$Q,'DATA MART_'!$G:$G,$D$7,'DATA MART_'!$A:$A,CONCATENATE($D$7,"|",$F12,"|",$C$2,"|",$D$1,"|",$D$2,"|",$E$1,"|",$E$2,"|",E$6,"|",$F$2),'DATA MART_'!$F:$F,$B$1)) -> 135239.8696 | F12: 700502 | G12: 200102
A13: Equities | B13: =IF($B$1="TO",SUMIFS('DATA MART_'!$Q:$Q,'DATA MART_'!$G:$G,$B$7,'DATA MART_'!$A:$A,CONCATENATE(B$7,"|",$F13,"|",$C$2,"|",$D$1,"|",$D$2,"|",$E$1,"|",$E$2,"|",B$6,"|",$F$2)),SUMIFS('DATA MART_'!$Q:$Q,'DATA MART_'!$G:$G,$B$7,'DATA MART_'!$A:$A,CONCATENATE(B$7,"|",$F13,"|",$C$2,"|",$D$1,"|",$D$2,"|",$E$1,"|",$E$2,"|",B$6,"|",$F$2),'DATA MART_'!$F:$F,$B$1)) -> 16132.42065 | C13: =IF($B$1="TO",SUMIFS('DATA MART_'!$Q:$Q,'DATA MART_'!$G:$G,$B$7,'DATA MART_'!$A:$A,CONCATENATE($B$7,"|",$F13,"|",$C$2,"|",$D$1,"|",$D$2,"|",$E$1,"|",$E$2,"|",C$6,"|",$F$2)),SUMIFS('DATA MART_'!$Q:$Q,'DATA MART_'!$G:$G,$B$7,'DATA MART_'!$A:$A,CONCATENATE($B$7,"|",$F13,"|",$C$2,"|",$D$1,"|",$D$2,"|",$E$1,"|",$E$2,"|",C$6,"|",$F$2),'DATA MART_'!$F:$F,$B$1)) -> 47437.62104 | D13: =IF($B$1="TO",SUMIFS('DATA MART_'!$Q:$Q,'DATA MART_'!$G:$G,$D$7,'DATA MART_'!$A:$A,CONCATENATE($D$7,"|",$F13,"|",$C$2,"|",$D$1,"|",$D$2,"|",$E$1,"|",$E$2,"|",D$6,"|",$F$2)),SUMIFS('DATA MART_'!$Q:$Q,'DATA MART_'!$G:$G,$D$7,'DATA MART_'!$A:$A,CONCATENATE($D$7,"|",$F13,"|",$C$2,"|",$D$1,"|",$D$2,"|",$E$1,"|",$E$2,"|",D$6,"|",$F$2),'DATA MART_'!$F:$F,$B$1)) -> 16097.7876 | E13: =IF($B$1="TO",SUMIFS('DATA MART_'!$Q:$Q,'DATA MART_'!$G:$G,$D$7,'DATA MART_'!$A:$A,CONCATENATE($D$7,"|",$F13,"|",$C$2,"|",$D$1,"|",$D$2,"|",$E$1,"|",$E$2,"|",E$6,"|",$F$2)),SUMIFS('DATA MART_'!$Q:$Q,'DATA MART_'!$G:$G,$D$7,'DATA MART_'!$A:$A,CONCATENATE($D$7,"|",$F13,"|",$C$2,"|",$D$1,"|",$D$2,"|",$E$1,"|",$E$2,"|",E$6,"|",$F$2),'DATA MART_'!$F:$F,$B$1)) -> 43323.08357 | F13: 700600 | G13: 200300
A14: Equities - General risk | B14: =IF($B$1="TO",SUMIFS('DATA MART_'!$Q:$Q,'DATA MART_'!$G:$G,$B$7,'DATA MART_'!$A:$A,CONCATENATE(B$7,"|",$F14,"|",$C$2,"|",$D$1,"|",$D$2,"|",$E$1,"|",$E$2,"|",B$6,"|",$F$2)),SUMIFS('DATA MART_'!$Q:$Q,'DATA MART_'!$G:$G,$B$7,'DATA MART_'!$A:$A,CONCATENATE(B$7,"|",$F14,"|",$C$2,"|",$D$1,"|",$D$2,"|",$E$1,"|",$E$2,"|",B$6,"|",$F$2),'DATA MART_'!$F:$F,$B$1)) -> 5868.609346 | C14: =IF($B$1="TO",SUMIFS('DATA MART_'!$Q:$Q,'DATA MART_'!$G:$G,$B$7,'DATA MART_'!$A:$A,CONCATENATE($B$7,"|",$F14,"|",$C$2,"|",$D$1,"|",$D$2,"|",$E$1,"|",$E$2,"|",C$6,"|",$F$2)),SUMIFS('DATA MART_'!$Q:$Q,'DATA MART_'!$G:$G,$B$7,'DATA MART_'!$A:$A,CONCATENATE($B$7,"|",$F14,"|",$C$2,"|",$D$1,"|",$D$2,"|",$E$1,"|",$E$2,"|",C$6,"|",$F$2),'DATA MART_'!$F:$F,$B$1)) -> 32431.15585 | D14: =IF($B$1="TO",SUMIFS('DATA MART_'!$Q:$Q,'DATA MART_'!$G:$G,$D$7,'DATA MART_'!$A:$A,CONCATENATE($D$7,"|",$F14,"|",$C$2,"|",$D$1,"|",$D$2,"|",$E$1,"|",$E$2,"|",D$6,"|",$F$2)),SUMIFS('DATA MART_'!$Q:$Q,'DATA MART_'!$G:$G,$D$7,'DATA MART_'!$A:$A,CONCATENATE($D$7,"|",$F14,"|",$C$2,"|",$D$1,"|",$D$2,"|",$E$1,"|",$E$2,"|",D$6,"|",$F$2),'DATA MART_'!$F:$F,$B$1)) -> 4928.18848 | E14: =IF($B$1="TO",SUMIFS('DATA MART_'!$Q:$Q,'DATA MART_'!$G:$G,$D$7,'DATA MART_'!$A:$A,CONCATENATE($D$7,"|",$F14,"|",$C$2,"|",$D$1,"|",$D$2,"|",$E$1,"|",$E$2,"|",E$6,"|",$F$2)),SUMIFS('DATA MART_'!$Q:$Q,'DATA MART_'!$G:$G,$D$7,'DATA MART_'!$A:$A,CONCATENATE($D$7,"|",$F14,"|",$C$2,"|",$D$1,"|",$D$2,"|",$E$1,"|",$E$2,"|",E$6,"|",$F$2),'DATA MART_'!$F:$F,$B$1)) -> 30784.53186 | F14: 700601 | G14: 200400
A15: Equities - Specific risk | B15: =IF($B$1="TO",SUMIFS('DATA MART_'!$Q:$Q,'DATA MART_'!$G:$G,$B$7,'DATA MART_'!$A:$A,CONCATENATE(B$7,"|",$F15,"|",$C$2,"|",$D$1,"|",$D$2,"|",$E$1,"|",$E$2,"|",B$6,"|",$F$2)),SUMIFS('DATA MART_'!$Q:$Q,'DATA MART_'!$G:$G,$B$7,'DATA MART_'!$A:$A,CONCATENATE(B$7,"|",$F15,"|",$C$2,"|",$D$1,"|",$D$2,"|",$E$1,"|",$E$2,"|",B$6,"|",$F$2),'DATA MART_'!$F:$F,$B$1)) -> 10211.81781 | C15: =IF($B$1="TO",SUMIFS('DATA MART_'!$Q:$Q,'DATA MART_'!$G:$G,$B$7,'DATA MART_'!$A:$A,CONCATENATE($B$7,"|",$F15,"|",$C$2,"|",$D$1,"|",$D$2,"|",$E$1,"|",$E$2,"|",C$6,"|",$F$2)),SUMIFS('DATA MART_'!$Q:$Q,'DATA MART_'!$G:$G,$B$7,'DATA MART_'!$A:$A,CONCATENATE($B$7,"|",$F15,"|",$C$2,"|",$D$1,"|",$D$2,"|",$E$1,"|",$E$2,"|",C$6,"|",$F$2),'DATA MART_'!$F:$F,$B$1)) -> 14794.60271 | D15: =IF($B$1="TO",SUMIFS('DATA MART_'!$Q:$Q,'DATA MART_'!$G:$G,$D$7,'DATA MART_'!$A:$A,CONCATENATE($D$7,"|",$F15,"|",$C$2,"|",$D$1,"|",$D$2,"|",$E$1,"|",$E$2,"|",D$6,"|",$F$2)),SUMIFS('DATA MART_'!$Q:$Q,'DATA MART_'!$G:$G,$D$7,'DATA MART_'!$A:$A,CONCATENATE($D$7,"|",$F15,"|",$C$2,"|",$D$1,"|",$D$2,"|",$E$1,"|",$E$2,"|",D$6,"|",$F$2),'DATA MART_'!$F:$F,$B$1)) -> 11117.94974 | E15: =IF($B$1="TO",SUMIFS('DATA MART_'!$Q:$Q,'DATA MART_'!$G:$G,$D$7,'DATA MART_'!$A:$A,CONCATENATE($D$7,"|",$F15,"|",$C$2,"|",$D$1,"|",$D$2,"|",$E$1,"|",$E$2,"|",E$6,"|",$F$2)),SUMIFS('DATA MART_'!$Q:$Q,'DATA MART_'!$G:$G,$D$7,'DATA MART_'!$A:$A,CONCATENATE($D$7,"|",$F15,"|",$C$2,"|",$D$1,"|",$D$2,"|",$E$1,"|",$E$2,"|",E$6,"|",$F$2),'DATA MART_'!$F:$F,$B$1)) -> 12303.82398 | F15: 700602 | G15: 200500
A16: Foreign exchange risk | B16: =IF($B$1="TO",SUMIFS('DATA MART_'!$Q:$Q,'DATA MART_'!$G:$G,$B$7,'DATA MART_'!$A:$A,CONCATENATE(B$7,"|",$F16,"|",$C$2,"|",$D$1,"|",$D$2,"|",$E$1,"|",$E$2,"|",B$6,"|",$F$2)),SUMIFS('DATA MART_'!$Q:$Q,'DATA MART_'!$G:$G,$B$7,'DATA MART_'!$A:$A,CONCATENATE(B$7,"|",$F16,"|",$C$2,"|",$D$1,"|",$D$2,"|",$E$1,"|",$E$2,"|",B$6,"|",$F$2),'DATA MART_'!$F:$F,$B$1)) -> 41046.24641 | C16: =IF($B$1="TO",SUMIFS('DATA MART_'!$Q:$Q,'DATA MART_'!$G:$G,$B$7,'DATA MART_'!$A:$A,CONCATENATE($B$7,"|",$F16,"|",$C$2,"|",$D$1,"|",$D$2,"|",$E$1,"|",$E$2,"|",C$6,"|",$F$2)),SUMIFS('DATA MART_'!$Q:$Q,'DATA MART_'!$G:$G,$B$7,'DATA MART_'!$A:$A,CONCATENATE($B$7,"|",$F16,"|",$C$2,"|",$D$1,"|",$D$2,"|",$E$1,"|",$E$2,"|",C$6,"|",$F$2),'DATA MART_'!$F:$F,$B$1)) -> 28526.93278 | D16: =IF($B$1="TO",SUMIFS('DATA MART_'!$Q:$Q,'DATA MART_'!$G:$G,$D$7,'DATA MART_'!$A:$A,CONCATENATE($D$7,"|",$F16,"|",$C$2,"|",$D$1,"|",$D$2,"|",$E$1,"|",$E$2,"|",D$6,"|",$F$2)),SUMIFS('DATA MART_'!$Q:$Q,'DATA MART_'!$G:$G,$D$7,'DATA MART_'!$A:$A,CONCATENATE($D$7,"|",$F16,"|",$C$2,"|",$D$1,"|",$D$2,"|",$E$1,"|",$E$2,"|",D$6,"|",$F$2),'DATA MART_'!$F:$F,$B$1)) -> 40589.82877 | E16: =IF($B$1="TO",SUMIFS('DATA MART_'!$Q:$Q,'DATA MART_'!$G:$G,$D$7,'DATA MART_'!$A:$A,CONCATENATE($D$7,"|",$F16,"|",$C$2,"|",$D$1,"|",$D$2,"|",$E$1,"|",$E$2,"|",E$6,"|",$F$2)),SUMIFS('DATA MART_'!$Q:$Q,'DATA MART_'!$G:$G,$D$7,'DATA MART_'!$A:$A,CONCATENATE($D$7,"|",$F16,"|",$C$2,"|",$D$1,"|",$D$2,"|",$E$1,"|",$E$2,"|",E$6,"|",$F$2),'DATA MART_'!$F:$F,$B$1)) -> 34729.9078 | F16: 700700 | G16: 200600
A17: Commodities risk | B17: =IF($B$1="TO",SUMIFS('DATA MART_'!$Q:$Q,'DATA MART_'!$G:$G,$B$7,'DATA MART_'!$A:$A,CONCATENATE(B$7,"|",$F17,"|",$C$2,"|",$D$1,"|",$D$2,"|",$E$1,"|",$E$2,"|",B$6,"|",$F$2)),SUMIFS('DATA MART_'!$Q:$Q,'DATA MART_'!$G:$G,$B$7,'DATA MART_'!$A:$A,CONCATENATE(B$7,"|",$F17,"|",$C$2,"|",$D$1,"|",$D$2,"|",$E$1,"|",$E$2,"|",B$6,"|",$F$2),'DATA MART_'!$F:$F,$B$1)) -> 4108.09507 | C17: =IF($B$1="TO",SUMIFS('DATA MART_'!$Q:$Q,'DATA MART_'!$G:$G,$B$7,'DATA MART_'!$A:$A,CONCATENATE($B$7,"|",$F17,"|",$C$2,"|",$D$1,"|",$D$2,"|",$E$1,"|",$E$2,"|",C$6,"|",$F$2)),SUMIFS('DATA MART_'!$Q:$Q,'DATA MART_'!$G:$G,$B$7,'DATA MART_'!$A:$A,CONCATENATE($B$7,"|",$F17,"|",$C$2,"|",$D$1,"|",$D$2,"|",$E$1,"|",$E$2,"|",C$6,"|",$F$2),'DATA MART_'!$F:$F,$B$1)) -> 10398.94246 | D17: =IF($B$1="TO",SUMIFS('DATA MART_'!$Q:$Q,'DATA MART_'!$G:$G,$D$7,'DATA MART_'!$A:$A,CONCATENATE($D$7,"|",$F17,"|",$C$2,"|",$D$1,"|",$D$2,"|",$E$1,"|",$E$2,"|",D$6,"|",$F$2)),SUMIFS('DATA MART_'!$Q:$Q,'DATA MART_'!$G:$G,$D$7,'DATA MART_'!$A:$A,CONCATENATE($D$7,"|",$F17,"|",$C$2,"|",$D$1,"|",$D$2,"|",$E$1,"|",$E$2,"|",D$6,"|",$F$2),'DATA MART_'!$F:$F,$B$1)) -> 3802.215625 | E17: =IF($B$1="TO",SUMIFS('DATA MART_'!$Q:$Q,'DATA MART_'!$G:$G,$D$7,'DATA MART_'!$A:$A,CONCATENATE($D$7,"|",$F17,"|",$C$2,"|",$D$1,"|",$D$2,"|",$E$1,"|",$E$2,"|",E$6,"|",$F$2)),SUMIFS('DATA MART_'!$Q:$Q,'DATA MART_'!$G:$G,$D$7,'DATA MART_'!$A:$A,CONCATENATE($D$7,"|",$F17,"|",$C$2,"|",$D$1,"|",$D$2,"|",$E$1,"|",$E$2,"|",E$6,"|",$F$2),'DATA MART_'!$F:$F,$B$1)) -> 8617.051732 | F17: 700800 | G17: 100900
H33: 9% RWA - (CT 1 including existing government support measures - Sovereign capital buffer for exposures in EEA)

Sheet TOT 6. RWA_ (hidden)
B1: =RIGHT(LEFT(Menu!H15,3),2) -> TO | C1: Item | D1: 0 | E1: 0 | F1: 0
A2: 6. RWA | B2: Period | C2: 0 | D2: 0 | E2: 0 | F2: 0 | H2: Portfolio
H3: Impact
C4: =Menu!$H$15 -> [TO] TOTAL
A6: (in million Euro)
B7: 2012-12-31 | C7: 2013-06-30
A8: RWA for credit risk | B8: =IF($B$1="TO",SUMIFS('DATA MART_'!$Q:$Q,'DATA MART_'!$G:$G,$B$7,'DATA MART_'!$A:$A,CONCATENATE($B$7,"|",$D8,"|",$C$2,"|",$D$1,"|",$D$2,"|",$E$1,"|",$E$2,"|",$F$1,"|",$F$2)),SUMIFS('DATA MART_'!$Q:$Q,'DATA MART_'!$G:$G,$B$7,'DATA MART_'!$A:$A,CONCATENATE($B$7,"|",$D8,"|",$C$2,"|",$D$1,"|",$D$2,"|",$E$1,"|",$E$2,"|",$F$1,"|",$F$2),'DATA MART_'!$F:$F,$B$1)) -> 7909851.368 | C8: =IF($B$1="TO",SUMIFS('DATA MART_'!$Q:$Q,'DATA MART_'!$G:$G,$C$7,'DATA MART_'!$A:$A,CONCATENATE($C$7,"|",$D8,"|",$C$2,"|",$D$1,"|",$D$2,"|",$E$1,"|",$E$2,"|",$F$1,"|",$F$2)),SUMIFS('DATA MART_'!$Q:$Q,'DATA MART_'!$G:$G,$C$7,'DATA MART_'!$A:$A,CONCATENATE($C$7,"|",$D8,"|",$C$2,"|",$D$1,"|",$D$2,"|",$E$1,"|",$E$2,"|",$F$1,"|",$F$2),'DATA MART_'!$F:$F,$B$1)) -> 7673727.729 | D8: =VLOOKUP(A8,'DATA MART_'!$Y$30:$Z$81,2,0) -> 200100 | G8: 200100
A9: RWA Securitisation and re-securitisations | B9: =IF($B$1="TO",SUMIFS('DATA MART_'!$Q:$Q,'DATA MART_'!$G:$G,$B$7,'DATA MART_'!$A:$A,CONCATENATE($B$7,"|",$D9,"|",$C$2,"|",$D$1,"|",$D$2,"|",$E$1,"|",$E$2,"|",$F$1,"|",$F$2)),SUMIFS('DATA MART_'!$Q:$Q,'DATA MART_'!$G:$G,$B$7,'DATA MART_'!$A:$A,CONCATENATE($B$7,"|",$D9,"|",$C$2,"|",$D$1,"|",$D$2,"|",$E$1,"|",$E$2,"|",$F$1,"|",$F$2),'DATA MART_'!$F:$F,$B$1)) -> 223064.8277 | C9: =IF($B$1="TO",SUMIFS('DATA MART_'!$Q:$Q,'DATA MART_'!$G:$G,$C$7,'DATA MART_'!$A:$A,CONCATENATE($C$7,"|",$D9,"|",$C$2,"|",$D$1,"|",$D$2,"|",$E$1,"|",$E$2,"|",$F$1,"|",$F$2)),SUMIFS('DATA MART_'!$Q:$Q,'DATA MART_'!$G:$G,$C$7,'DATA MART_'!$A:$A,CONCATENATE($C$7,"|",$D9,"|",$C$2,"|",$D$1,"|",$D$2,"|",$E$1,"|",$E$2,"|",$F$1,"|",$F$2),'DATA MART_'!$F:$F,$B$1)) -> 181792.4939 | D9: =VLOOKUP(TRIM(A9),'DATA MART_'!$Y$30:$Z$81,2,0) -> 200101 | G9: 200101
A10: RWA Other credit risk | B10: =IF($B$1="TO",SUMIFS('DATA MART_'!$Q:$Q,'DATA MART_'!$G:$G,$B$7,'DATA MART_'!$A:$A,CONCATENATE($B$7,"|",$D10,"|",$C$2,"|",$D$1,"|",$D$2,"|",$E$1,"|",$E$2,"|",$F$1,"|",$F$2)),SUMIFS('DATA MART_'!$Q:$Q,'DATA MART_'!$G:$G,$B$7,'DATA MART_'!$A:$A,CONCATENATE($B$7,"|",$D10,"|",$C$2,"|",$D$1,"|",$D$2,"|",$E$1,"|",$E$2,"|",$F$1,"|",$F$2),'DATA MART_'!$F:$F,$B$1)) -> 7253825.669 | C10: =IF($B$1="TO",SUMIFS('DATA MART_'!$Q:$Q,'DATA MART_'!$G:$G,$C$7,'DATA MART_'!$A:$A,CONCATENATE($C$7,"|",$D10,"|",$C$2,"|",$D$1,"|",$D$2,"|",$E$1,"|",$E$2,"|",$F$1,"|",$F$2)),SUMIFS('DATA MART_'!$Q:$Q,'DATA MART_'!$G:$G,$C$7,'DATA MART_'!$A:$A,CONCATENATE($C$7,"|",$D10,"|",$C$2,"|",$D$1,"|",$D$2,"|",$E$1,"|",$E$2,"|",$F$1,"|",$F$2),'DATA MART_'!$F:$F,$B$1)) -> 7049026.659 | D10: =VLOOKUP(TRIM(A10),'DATA MART_'!$Y$30:$Z$81,2,0) -> 200102 | G10: 200102
A11: RWA for market risk | B11: =IF($B$1="TO",SUMIFS('DATA MART_'!$Q:$Q,'DATA MART_'!$G:$G,$B$7,'DATA MART_'!$A:$A,CONCATENATE($B$7,"|",$D11,"|",$C$2,"|",$D$1,"|",$D$2,"|",$E$1,"|",$E$2,"|",$F$1,"|",$F$2)),SUMIFS('DATA MART_'!$Q:$Q,'DATA MART_'!$G:$G,$B$7,'DATA MART_'!$A:$A,CONCATENATE($B$7,"|",$D11,"|",$C$2,"|",$D$1,"|",$D$2,"|",$E$1,"|",$E$2,"|",$F$1,"|",$F$2),'DATA MART_'!$F:$F,$B$1)) -> 565115.7028 | C11: =IF($B$1="TO",SUMIFS('DATA MART_'!$Q:$Q,'DATA MART_'!$G:$G,$C$7,'DATA MART_'!$A:$A,CONCATENATE($C$7,"|",$D11,"|",$C$2,"|",$D$1,"|",$D$2,"|",$E$1,"|",$E$2,"|",$F$1,"|",$F$2)),SUMIFS('DATA MART_'!$Q:$Q,'DATA MART_'!$G:$G,$C$7,'DATA MART_'!$A:$A,CONCATENATE($C$7,"|",$D11,"|",$C$2,"|",$D$1,"|",$D$2,"|",$E$1,"|",$E$2,"|",$F$1,"|",$F$2),'DATA MART_'!$F:$F,$B$1)) -> 565549.2443 | D11: =VLOOKUP(TRIM(A11),'DATA MART_'!$Y$30:$Z$81,2,0) -> 200300 | G11: 200300
A12: RWA for operational risk | B12: =IF($B$1="TO",SUMIFS('DATA MART_'!$Q:$Q,'DATA MART_'!$G:$G,$B$7,'DATA MART_'!$A:$A,CONCATENATE($B$7,"|",$D12,"|",$C$2,"|",$D$1,"|",$D$2,"|",$E$1,"|",$E$2,"|",$F$1,"|",$F$2)),SUMIFS('DATA MART_'!$Q:$Q,'DATA MART_'!$G:$G,$B$7,'DATA MART_'!$A:$A,CONCATENATE($B$7,"|",$D12,"|",$C$2,"|",$D$1,"|",$D$2,"|",$E$1,"|",$E$2,"|",$F$1,"|",$F$2),'DATA MART_'!$F:$F,$B$1)) -> 967762.5465 | C12: =IF($B$1="TO",SUMIFS('DATA MART_'!$Q:$Q,'DATA MART_'!$G:$G,$C$7,'DATA MART_'!$A:$A,CONCATENATE($C$7,"|",$D12,"|",$C$2,"|",$D$1,"|",$D$2,"|",$E$1,"|",$E$2,"|",$F$1,"|",$F$2)),SUMIFS('DATA MART_'!$Q:$Q,'DATA MART_'!$G:$G,$C$7,'DATA MART_'!$A:$A,CONCATENATE($C$7,"|",$D12,"|",$C$2,"|",$D$1,"|",$D$2,"|",$E$1,"|",$E$2,"|",$F$1,"|",$F$2),'DATA MART_'!$F:$F,$B$1)) -> 941534.6381 | D12: =VLOOKUP(TRIM(A12),'DATA MART_'!$Y$30:$Z$81,2,0) -> 200400 | G12: 200400
A13: RWA Transitional floors | B13: =IF($B$1="TO",SUMIFS('DATA MART_'!$Q:$Q,'DATA MART_'!$G:$G,$B$7,'DATA MART_'!$A:$A,CONCATENATE($B$7,"|",$D13,"|",$C$2,"|",$D$1,"|",$D$2,"|",$E$1,"|",$E$2,"|",$F$1,"|",$F$2)),SUMIFS('DATA MART_'!$Q:$Q,'DATA MART_'!$G:$G,$B$7,'DATA MART_'!$A:$A,CONCATENATE($B$7,"|",$D13,"|",$C$2,"|",$D$1,"|",$D$2,"|",$E$1,"|",$E$2,"|",$F$1,"|",$F$2),'DATA MART_'!$F:$F,$B$1)) -> 15777.46059 | C13: =IF($B$1="TO",SUMIFS('DATA MART_'!$Q:$Q,'DATA MART_'!$G:$G,$C$7,'DATA MART_'!$A:$A,CONCATENATE($C$7,"|",$D13,"|",$C$2,"|",$D$1,"|",$D$2,"|",$E$1,"|",$E$2,"|",$F$1,"|",$F$2)),SUMIFS('DATA MART_'!$Q:$Q,'DATA MART_'!$G:$G,$C$7,'DATA MART_'!$A:$A,CONCATENATE($C$7,"|",$D13,"|",$C$2,"|",$D$1,"|",$D$2,"|",$E$1,"|",$E$2,"|",$F$1,"|",$F$2),'DATA MART_'!$F:$F,$B$1)) -> 13990.05514 | D13: 200500 | G13: 200500
A14: RWA Other | B14: =IF($B$1="TO",SUMIFS('DATA MART_'!$Q:$Q,'DATA MART_'!$G:$G,$B$7,'DATA MART_'!$A:$A,CONCATENATE($B$7,"|",$D14,"|",$C$2,"|",$D$1,"|",$D$2,"|",$E$1,"|",$E$2,"|",$F$1,"|",$F$2)),SUMIFS('DATA MART_'!$Q:$Q,'DATA MART_'!$G:$G,$B$7,'DATA MART_'!$A:$A,CONCATENATE($B$7,"|",$D14,"|",$C$2,"|",$D$1,"|",$D$2,"|",$E$1,"|",$E$2,"|",$F$1,"|",$F$2),'DATA MART_'!$F:$F,$B$1)) -> 43187.18129 | C14: =IF($B$1="TO",SUMIFS('DATA MART_'!$Q:$Q,'DATA MART_'!$G:$G,$C$7,'DATA MART_'!$A:$A,CONCATENATE($C$7,"|",$D14,"|",$C$2,"|",$D$1,"|",$D$2,"|",$E$1,"|",$E$2,"|",$F$1,"|",$F$2)),SUMIFS('DATA MART_'!$Q:$Q,'DATA MART_'!$G:$G,$C$7,'DATA MART_'!$A:$A,CONCATENATE($C$7,"|",$D14,"|",$C$2,"|",$D$1,"|",$D$2,"|",$E$1,"|",$E$2,"|",$F$1,"|",$F$2),'DATA MART_'!$F:$F,$B$1)) -> 46861.88487 | D14: =VLOOKUP(TRIM(A14),'DATA MART_'!$Y$30:$Z$81,2,0) -> 200600 | G14: 200600
A15: Total RWA (1) | B15: =SUM(B11:B14)+B8 -> 9501694.259 | C15: =SUM(C11:C14)+C8 -> 9241663.551 | G15: 100900
H31: 9% RWA - (CT 1 including existing government support measures - Sovereign capital buffer for exposures in EEA)

Sheet 1. Capital Composition_ (hidden)
D1: =RIGHT(LEFT(Menu!H6,6),5) ->  | E1: OK | F1: 0 | G1: 0 | H1: 0
C2: 1. CAPITAL | D2: Period | E2: 0 | F2: 0 | G2: 0 | H2: 0
H3: =+D1 -> 
H4: =VLOOKUP(H3,ANNEX!B12:C75,2) -> 
A6: PERIOD | B6: ITEM
C7: Capital position CRD3 rules | D7: 2012-12-31 | F7: 2013-06-30 | H7: References to COREP reporting
D8: Million EUR | E8: % RWA | F8: Million EUR | G8: % RWA
C9: Approach for the transitional floor capital requirement (1) : | D9: =CONCATENATE("Approach ",VLOOKUP(H3,Sheet1!AP3:AQ66,2,0)) -> 
B10: =VLOOKUP(C10,'DATA MART_'!$Y$30:$Z$81,2,0) -> 100100 | C10: A) Common equity before deductions (Original own funds without hybrid instruments and government support measures other than ordinary shares) (+) | D10: =VLOOKUP(CONCATENATE($D$1,"|",$D$7,"|",$B10,"|",$E$2,"|",$F$1,"|",$F$2,"|",$G$1,"|",$G$2,"|",$H$1,"|",$H$2),'DATA MART_'!$B$2:$Q$985098,16,0) ->  | F10: =VLOOKUP(CONCATENATE($D$1,"|",$F$7,"|",$B10,"|",$E$2,"|",$F$1,"|",$F$2,"|",$G$1,"|",$G$2,"|",$H$1,"|",$H$2),'DATA MART_'!$B$2:$Q$985098,16,0) ->  | H10: COREP CA 1.1 without Hybrid instruments and government support measures other than ordinary shares | J10: 100100
B11: 100103 | C11: Of which: adjustment to valuation differences in other AFS assets (2) (-/+) | D11: =VLOOKUP(CONCATENATE($D$1,"|",$D$7,"|",$B11,"|",$E$2,"|",$F$1,"|",$F$2,"|",$G$1,"|",$G$2,"|",$H$1,"|",$H$2),'DATA MART_'!$B$2:$Q$985098,16,0) ->  | F11: =VLOOKUP(CONCATENATE($D$1,"|",$F$7,"|",$B11,"|",$E$2,"|",$F$1,"|",$F$2,"|",$G$1,"|",$G$2,"|",$H$1,"|",$H$2),'DATA MART_'!$B$2:$Q$985098,16,0) ->  | H11: Prudential filters for regulatory capital (COREP line 1.1.2.6.06) | J11: 100103
B12: =VLOOKUP(C12,'DATA MART_'!$Y$30:$Z$81,2,0) -> 100200 | C12: B) Deductions from common equity (Elements deducted from original own funds) (-) | D12: =VLOOKUP(CONCATENATE($D$1,"|",$D$7,"|",$B12,"|",$E$2,"|",$F$1,"|",$F$2,"|",$G$1,"|",$G$2,"|",$H$1,"|",$H$2),'DATA MART_'!$B$2:$Q$985098,16,0) ->  | F12: =VLOOKUP(CONCATENATE($D$1,"|",$F$7,"|",$B12,"|",$E$2,"|",$F$1,"|",$F$2,"|",$G$1,"|",$G$2,"|",$H$1,"|",$H$2),'DATA MART_'!$B$2:$Q$985098,16,0) ->  | H12: COREP CA 1.3.T1* (negative amount) | J12: 100200
B13: 100203 | C13: Of which: IRB provision shortfall and IRB equity expected loss amounts (before tax) (-) | D13: =VLOOKUP(CONCATENATE($D$1,"|",$D$7,"|",$B13,"|",$E$2,"|",$F$1,"|",$F$2,"|",$G$1,"|",$G$2,"|",$H$1,"|",$H$2),'DATA MART_'!$B$2:$Q$985098,16,0) ->  | F13: =VLOOKUP(CONCATENATE($D$1,"|",$F$7,"|",$B13,"|",$E$2,"|",$F$1,"|",$F$2,"|",$G$1,"|",$G$2,"|",$H$1,"|",$H$2),'DATA MART_'!$B$2:$Q$985098,16,0) ->  | H13: As defined by Article 57 (q) of Directive 2006/48/EC (COREP line 1.3.8 included in 1.3.T1*) | J13: 100203
B14: =VLOOKUP(C14,'DATA MART_'!$Y$30:$Z$81,2,0) -> 100300 | C14: C) Common equity (A+B) | D14: =VLOOKUP(CONCATENATE($D$1,"|",$D$7,"|",$B14,"|",$E$2,"|",$F$1,"|",$F$2,"|",$G$1,"|",$G$2,"|",$H$1,"|",$H$2),'DATA MART_'!$B$2:$Q$985098,16,0) ->  | E14: =IF(D$21>0,D14/D$21,"") ->  | F14: =VLOOKUP(CONCATENATE($D$1,"|",$F$7,"|",$B14,"|",$E$2,"|",$F$1,"|",$F$2,"|",$G$1,"|",$G$2,"|",$H$1,"|",$H$2),'DATA MART_'!$B$2:$Q$985098,16,0) ->  | G14: =IF(F$21>0,F14/F$21,"") ->  | J14: 100300
B15: =VLOOKUP(C15,'DATA MART_'!$Y$30:$Z$81,2,0) -> 100301 | C15: Of which: ordinary shares subscribed by government | D15: =VLOOKUP(CONCATENATE($D$1,"|",$D$7,"|",$B15,"|",$E$2,"|",$F$1,"|",$F$2,"|",$G$1,"|",$G$2,"|",$H$1,"|",$H$2),'DATA MART_'!$B$2:$Q$985098,16,0) ->  | F15: =VLOOKUP(CONCATENATE($D$1,"|",$F$7,"|",$B15,"|",$E$2,"|",$F$1,"|",$F$2,"|",$G$1,"|",$G$2,"|",$H$1,"|",$H$2),'DATA MART_'!$B$2:$Q$985098,16,0) ->  | H15: Paid up ordinary shares subscribed by government | J15: 100301
B16: =VLOOKUP(C16,'DATA MART_'!$Y$30:$Z$81,2,0) -> 100402 | C16: D) CoCos issued before 30 June 2012 according to EBA Common Term Sheet (+) | D16: =VLOOKUP(CONCATENATE($D$1,"|",$D$7,"|",$B16,"|",$E$2,"|",$F$1,"|",$F$2,"|",$G$1,"|",$G$2,"|",$H$1,"|",$H$2),'DATA MART_'!$B$2:$Q$985098,16,0) ->  | F16: =VLOOKUP(CONCATENATE($D$1,"|",$F$7,"|",$B16,"|",$E$2,"|",$F$1,"|",$F$2,"|",$G$1,"|",$G$2,"|",$H$1,"|",$H$2),'DATA MART_'!$B$2:$Q$985098,16,0) ->  | H16: EBA/REC/2011/1 | J16: 100400
B17: =VLOOKUP(C17,'DATA MART_'!$Y$30:$Z$81,2,0) -> 100500 | C17: E) Other Existing government support measures (+) | D17: =VLOOKUP(CONCATENATE($D$1,"|",$D$7,"|",$B17,"|",$E$2,"|",$F$1,"|",$F$2,"|",$G$1,"|",$G$2,"|",$H$1,"|",$H$2),'DATA MART_'!$B$2:$Q$985098,16,0) ->  | F17: =VLOOKUP(CONCATENATE($D$1,"|",$F$7,"|",$B17,"|",$E$2,"|",$F$1,"|",$F$2,"|",$G$1,"|",$G$2,"|",$H$1,"|",$H$2),'DATA MART_'!$B$2:$Q$985098,16,0) ->  | J17: 100500
B18: =VLOOKUP(C18,'DATA MART_'!$Y$30:$Z$81,2,0) -> 100600 | C18: F) Core Tier 1 including other intruments eligible and existing government support measures (C+D+E) | D18: =VLOOKUP(CONCATENATE($D$1,"|",$D$7,"|",$B18,"|",$E$2,"|",$F$1,"|",$F$2,"|",$G$1,"|",$G$2,"|",$H$1,"|",$H$2),'DATA MART_'!$B$2:$Q$985098,16,0) ->  | E18: =IF(D$21>0,D18/D$21,"") ->  | F18: =VLOOKUP(CONCATENATE($D$1,"|",$F$7,"|",$B18,"|",$E$2,"|",$F$1,"|",$F$2,"|",$G$1,"|",$G$2,"|",$H$1,"|",$H$2),'DATA MART_'!$B$2:$Q$985098,16,0) ->  | G18: =IF(F$21>0,F18/F$21,"") ->  | J18: 100600
B19: =VLOOKUP(C19,'DATA MART_'!$Y$30:$Z$81,2,0) -> 100700 | C19: G) Hybrid instruments not subscribed by government | D19: =VLOOKUP(CONCATENATE($D$1,"|",$D$7,"|",$B19,"|",$E$2,"|",$F$1,"|",$F$2,"|",$G$1,"|",$G$2,"|",$H$1,"|",$H$2),'DATA MART_'!$B$2:$Q$985098,16,0) ->  | F19: =VLOOKUP(CONCATENATE($D$1,"|",$F$7,"|",$B19,"|",$E$2,"|",$F$1,"|",$F$2,"|",$G$1,"|",$G$2,"|",$H$1,"|",$H$2),'DATA MART_'!$B$2:$Q$985098,16,0) ->  | H19: Net amount included in T1 own funds (COREP line 1.1.4.1a + COREP lines from 1.1.2.2***01 to 1.1.2.2***05 + COREP line 1.1.5.2a (negative amount)) not subscribed by government | J19: 100700
B20: 100800 | C20: H) Tier 1 Capital (F+G) | D20: =VLOOKUP(CONCATENATE($D$1,"|",$D$7,"|",$B20,"|",$E$2,"|",$F$1,"|",$F$2,"|",$G$1,"|",$G$2,"|",$H$1,"|",$H$2),'DATA MART_'!$B$2:$Q$985098,16,0) ->  | E20: =IF(D$21>0,D20/D$21,"") ->  | F20: =VLOOKUP(CONCATENATE($D$1,"|",$F$7,"|",$B20,"|",$E$2,"|",$F$1,"|",$F$2,"|",$G$1,"|",$G$2,"|",$H$1,"|",$H$2),'DATA MART_'!$B$2:$Q$985098,16,0) ->  | G20: =IF(F$21>0,F20/F$21,"") ->  | H20: COREP CA 1.4 = COREP CA 1.1 + COREP CA 1.3.T1* (negative amount) | J20: 100800
B21: =VLOOKUP(C21,'DATA MART_'!$Y$30:$Z$81,2,0) -> 100900 | C21: I) RWA | D21: =VLOOKUP(CONCATENATE($D$1,"|",$D$7,"|",$B21,"|",$E$2,"|",$F$1,"|",$F$2,"|",$G$1,"|",$G$2,"|",$H$1,"|",$H$2),'DATA MART_'!$B$2:$Q$985098,16,0) ->  | F21: =VLOOKUP(CONCATENATE($D$1,"|",$F$7,"|",$B21,"|",$E$2,"|",$F$1,"|",$F$2,"|",$G$1,"|",$G$2,"|",$H$1,"|",$H$2),'DATA MART_'!$B$2:$Q$985098,16,0) ->  | J21: 100900
C22: CRR / CRDIV memo items
B23: =VLOOKUP(C23,'DATA MART_'!$Y$30:$Z$81,2,0) -> 130100 | C23: Common Equity instruments under A) not eligible as CET1 (under CRR) | D23: =VLOOKUP(CONCATENATE($D$1,"|",$D$7,"|",$B23,"|",$E$2,"|",$F$1,"|",$F$2,"|",$G$1,"|",$G$2,"|",$H$1,"|",$H$2),'DATA MART_'!$B$2:$Q$985098,16,0) ->  | F23: =VLOOKUP(CONCATENATE($D$1,"|",$F$7,"|",$B23,"|",$E$2,"|",$F$1,"|",$F$2,"|",$G$1,"|",$G$2,"|",$H$1,"|",$H$2),'DATA MART_'!$B$2:$Q$985098,16,0) ->  | H23: Articles 26(1) point (c) and 26(2) of CRR | J23: 101001 | N23: The template has been pre-filled in with the figures published on the EBA web site. Please, double check them and, should it be needed, change them.
B24: =VLOOKUP(C24,'DATA MART_'!$Y$30:$Z$81,2,0) -> 130200 | C24: Adjustments to Minority Interests | D24: =VLOOKUP(CONCATENATE($D$1,"|",$D$7,"|",$B24,"|",$E$2,"|",$F$1,"|",$F$2,"|",$G$1,"|",$G$2,"|",$H$1,"|",$H$2),'DATA MART_'!$B$2:$Q$985098,16,0) ->  | F24: =VLOOKUP(CONCATENATE($D$1,"|",$F$7,"|",$B24,"|",$E$2,"|",$F$1,"|",$F$2,"|",$G$1,"|",$G$2,"|",$H$1,"|",$H$2),'DATA MART_'!$B$2:$Q$985098,16,0) ->  | H24: Article 84 of CRR | J24: 101002 | N24: The template has been pre-filled in with the figures published on the EBA web site. Please, double check them and, should it be needed, change them.
B25: =VLOOKUP(C25,'DATA MART_'!$Y$30:$Z$81,2,0) -> 130300 | C25: DTAs that rely on future profitability (net of associated DTL) | D25: =VLOOKUP(CONCATENATE($D$1,"|",$D$7,"|",$B25,"|",$E$2,"|",$F$1,"|",$F$2,"|",$G$1,"|",$G$2,"|",$H$1,"|",$H$2),'DATA MART_'!$B$2:$Q$985098,16,0) ->  | F25: =VLOOKUP(CONCATENATE($D$1,"|",$F$7,"|",$B25,"|",$E$2,"|",$F$1,"|",$F$2,"|",$G$1,"|",$G$2,"|",$H$1,"|",$H$2),'DATA MART_'!$B$2:$Q$985098,16,0) ->  | H25: Articles 36(1) point (c) and 38 of CRR [new COREP CA4 lines {1.2 + 1.3 - 2.2.1 - 2.2.2}] | J25: 101000
B26: =VLOOKUP(C26,'DATA MART_'!$Y$30:$Z$81,2,0) -> 130400 | C26: Holdings of CET1 capital instruments of financial sector entities: reciprocal cross holdings, non significant and significant investments | D26: =VLOOKUP(CONCATENATE($D$1,"|",$D$7,"|",$B26,"|",$E$2,"|",$F$1,"|",$F$2,"|",$G$1,"|",$G$2,"|",$H$1,"|",$H$2),'DATA MART_'!$B$2:$Q$985098,16,0) ->  | F26: =VLOOKUP(CONCATENATE($D$1,"|",$F$7,"|",$B26,"|",$E$2,"|",$F$1,"|",$F$2,"|",$G$1,"|",$G$2,"|",$H$1,"|",$H$2),'DATA MART_'!$B$2:$Q$985098,16,0) ->  | H26: Articles 36(1) point (g), (h) and (i), 43, 44 and 45 of CRR | J26: 101100
B27: 130500 | C27: RWA for Credit Value Adjustment Risk (CVA) | D27: =VLOOKUP(CONCATENATE($D$1,"|",$D$7,"|",$B27,"|",$E$2,"|",$F$1,"|",$F$2,"|",$G$1,"|",$G$2,"|",$H$1,"|",$H$2),'DATA MART_'!$B$2:$Q$985098,16,0) ->  | F27: =VLOOKUP(CONCATENATE($D$1,"|",$F$7,"|",$B27,"|",$E$2,"|",$F$1,"|",$F$2,"|",$G$1,"|",$G$2,"|",$H$1,"|",$H$2),'DATA MART_'!$B$2:$Q$985098,16,0) ->  | H27: Articles 381 to 386 of CRR | J27: 101200
C28: Notes and definitions
C29: (1) Two methods have been identified for the calculation of the transitional floor. Option 1 and option 2 are explained in the methodological note: https://www.eba.europa.eu/documents/10180/26923/Methodology+FINAL.pdf
C30: (2) The amount is already included in the computation of the eligible capital and reserves and it is provided separately for information purposes.
C31: =IF(D9="Approach Not Applicable (3)","(3) For Standardised Approach banks.", IF(D9="Approach 1 (3)","(3) The Central Bank of Ireland requirement is to maintain a transitional floor above the 80% minimum, the effect of this is included in ‘Other RWA’.","")) -> 

Sheet 3. Securitisation Summary_ (hidden)
B1: =+'1. Capital Composition_'!H3 ->  | C1: Item | D1: 0 | E1: 0 | F1: 0
A2: 3. SECURITISATION SUMMARY | B2: Period | C2: 0 | D2: 0 | E2: 0 | F2: 0
C3: =+'1. Capital Composition_'!H3 ->  | G3: Portfolio
C4: =+'1. Capital Composition_'!H4 ->  | G4: Impact
A6: (in million Euro) | B6: 2012-12-31 | C6: 2013-06-30
B7: Exposure Value as of 31/12/2012 | C7: Exposure Value as of 30/06/2013
A8: Banking Book | B8: =VLOOKUP(CONCATENATE($B$1,"|",B$6,"|",$D8,"|",$C$2,"|",$D$1,"|",$D$2,"|",$E$1,"|",$E$2,"|",$F$1,"|",$F$2),'DATA MART_'!$B$2:$Q$985098,16,0) ->  | C8: =VLOOKUP(CONCATENATE($B$1,"|",C$6,"|",$D8,"|",$C$2,"|",$D$1,"|",$D$2,"|",$E$1,"|",$E$2,"|",$F$1,"|",$F$2),'DATA MART_'!$B$2:$Q$985098,16,0) ->  | D8: 700100 | G8: 200100
A9: Trading Book (excl. correlation trading) | B9: =VLOOKUP(CONCATENATE($B$1,"|",B$6,"|",$D9,"|",$C$2,"|",$D$1,"|",$D$2,"|",$E$1,"|",$E$2,"|",$F$1,"|",$F$2),'DATA MART_'!$B$2:$Q$985098,16,0) ->  | C9: =VLOOKUP(CONCATENATE($B$1,"|",C$6,"|",$D9,"|",$C$2,"|",$D$1,"|",$D$2,"|",$E$1,"|",$E$2,"|",$F$1,"|",$F$2),'DATA MART_'!$B$2:$Q$985098,16,0) ->  | D9: 700200 | G9: 200101
A10: Correlation Trading Portfolio | B10: =VLOOKUP(CONCATENATE($B$1,"|",B$6,"|",$D10,"|",$C$2,"|",$D$1,"|",$D$2,"|",$E$1,"|",$E$2,"|",$F$1,"|",$F$2),'DATA MART_'!$B$2:$Q$985098,16,0) ->  | C10: =VLOOKUP(CONCATENATE($B$1,"|",C$6,"|",$D10,"|",$C$2,"|",$D$1,"|",$D$2,"|",$E$1,"|",$E$2,"|",$F$1,"|",$F$2),'DATA MART_'!$B$2:$Q$985098,16,0) ->  | D10: 700300 | G10: 200102
A11: Total | B11: =VLOOKUP(CONCATENATE($B$1,"|",B$6,"|",$D11,"|",$C$2,"|",$D$1,"|",$D$2,"|",$E$1,"|",$E$2,"|",$F$1,"|",$F$2),'DATA MART_'!$B$2:$Q$985098,16,0) ->  | C11: =VLOOKUP(CONCATENATE($B$1,"|",C$6,"|",$D11,"|",$C$2,"|",$D$1,"|",$D$2,"|",$E$1,"|",$E$2,"|",$F$1,"|",$F$2),'DATA MART_'!$B$2:$Q$985098,16,0) ->  | D11: 700400 | G11: 100900
H24: 9% RWA - (CT 1 including existing government support measures - Sovereign capital buffer for exposures in EEA)

Sheet 4. Market Risk_ (hidden)
B1: =+'1. Capital Composition_'!H3 ->  | C1: Item | D1: 0 | E1: 0 | F1: Portfolio
A2: 4. MARKET RISK | B2: Period | C2: 0 | D2: 0 | E2: 0 | F2: 0
E3: =+'1. Capital Composition_'!H3 -> 
E4: =+'1. Capital Composition_'!H4 -> 
A6: (in million Euro) | B6: 1 | C6: 5 | D6: 1 | E6: 5
B7: 2012-12-31 | D7: 2013-06-30
B8: TOTAL RISK EXPOSURE AMOUNT | D8: TOTAL RISK EXPOSURE AMOUNT
B9: SA | C9: IM | D9: SA | E9: IM
A10: Traded Debt Instruments | B10: =VLOOKUP(CONCATENATE($B$1,"|",B$7,"|",$F10,"|",$C$2,"|",$D$1,"|",$D$2,"|",$E$1,"|",$E$2,"|",B$6,"|",$F$2),'DATA MART_'!$B$2:$Q$985098,16,0) ->  | C10: =VLOOKUP(CONCATENATE($B$1,"|",B$7,"|",$F10,"|",$C$2,"|",$D$1,"|",$D$2,"|",$E$1,"|",$E$2,"|",C$6,"|",$F$2),'DATA MART_'!$B$2:$Q$985098,16,0) ->  | D10: =VLOOKUP(CONCATENATE($B$1,"|",D$7,"|",$F10,"|",$C$2,"|",$D$1,"|",$D$2,"|",$E$1,"|",$E$2,"|",D$6,"|",$F$2),'DATA MART_'!$B$2:$Q$985098,16,0) ->  | E10: =VLOOKUP(CONCATENATE($B$1,"|",D$7,"|",$F10,"|",$C$2,"|",$D$1,"|",$D$2,"|",$E$1,"|",$E$2,"|",E$6,"|",$F$2),'DATA MART_'!$B$2:$Q$985098,16,0) ->  | F10: 700500 | G10: 200100
A11: TDI - General risk | B11: =VLOOKUP(CONCATENATE($B$1,"|",B$7,"|",$F11,"|",$C$2,"|",$D$1,"|",$D$2,"|",$E$1,"|",$E$2,"|",B$6,"|",$F$2),'DATA MART_'!$B$2:$Q$985098,16,0) ->  | C11: =VLOOKUP(CONCATENATE($B$1,"|",B$7,"|",$F11,"|",$C$2,"|",$D$1,"|",$D$2,"|",$E$1,"|",$E$2,"|",C$6,"|",$F$2),'DATA MART_'!$B$2:$Q$985098,16,0) ->  | D11: =VLOOKUP(CONCATENATE($B$1,"|",D$7,"|",$F11,"|",$C$2,"|",$D$1,"|",$D$2,"|",$E$1,"|",$E$2,"|",D$6,"|",$F$2),'DATA MART_'!$B$2:$Q$985098,16,0) ->  | E11: =VLOOKUP(CONCATENATE($B$1,"|",D$7,"|",$F11,"|",$C$2,"|",$D$1,"|",$D$2,"|",$E$1,"|",$E$2,"|",E$6,"|",$F$2),'DATA MART_'!$B$2:$Q$985098,16,0) ->  | F11: 700501 | G11: 200101
A12: TDI - Specific risk | B12: =VLOOKUP(CONCATENATE($B$1,"|",B$7,"|",$F12,"|",$C$2,"|",$D$1,"|",$D$2,"|",$E$1,"|",$E$2,"|",B$6,"|",$F$2),'DATA MART_'!$B$2:$Q$985098,16,0) ->  | C12: =VLOOKUP(CONCATENATE($B$1,"|",B$7,"|",$F12,"|",$C$2,"|",$D$1,"|",$D$2,"|",$E$1,"|",$E$2,"|",C$6,"|",$F$2),'DATA MART_'!$B$2:$Q$985098,16,0) ->  | D12: =VLOOKUP(CONCATENATE($B$1,"|",D$7,"|",$F12,"|",$C$2,"|",$D$1,"|",$D$2,"|",$E$1,"|",$E$2,"|",D$6,"|",$F$2),'DATA MART_'!$B$2:$Q$985098,16,0) ->  | E12: =VLOOKUP(CONCATENATE($B$1,"|",D$7,"|",$F12,"|",$C$2,"|",$D$1,"|",$D$2,"|",$E$1,"|",$E$2,"|",E$6,"|",$F$2),'DATA MART_'!$B$2:$Q$985098,16,0) ->  | F12: 700502 | G12: 200102
A13: Equities | B13: =VLOOKUP(CONCATENATE($B$1,"|",B$7,"|",$F13,"|",$C$2,"|",$D$1,"|",$D$2,"|",$E$1,"|",$E$2,"|",B$6,"|",$F$2),'DATA MART_'!$B$2:$Q$985098,16,0) ->  | C13: =VLOOKUP(CONCATENATE($B$1,"|",B$7,"|",$F13,"|",$C$2,"|",$D$1,"|",$D$2,"|",$E$1,"|",$E$2,"|",C$6,"|",$F$2),'DATA MART_'!$B$2:$Q$985098,16,0) ->  | D13: =VLOOKUP(CONCATENATE($B$1,"|",D$7,"|",$F13,"|",$C$2,"|",$D$1,"|",$D$2,"|",$E$1,"|",$E$2,"|",D$6,"|",$F$2),'DATA MART_'!$B$2:$Q$985098,16,0) ->  | E13: =VLOOKUP(CONCATENATE($B$1,"|",D$7,"|",$F13,"|",$C$2,"|",$D$1,"|",$D$2,"|",$E$1,"|",$E$2,"|",E$6,"|",$F$2),'DATA MART_'!$B$2:$Q$985098,16,0) ->  | F13: 700600 | G13: 200300
A14: Equities - General risk | B14: =VLOOKUP(CONCATENATE($B$1,"|",B$7,"|",$F14,"|",$C$2,"|",$D$1,"|",$D$2,"|",$E$1,"|",$E$2,"|",B$6,"|",$F$2),'DATA MART_'!$B$2:$Q$985098,16,0) ->  | C14: =VLOOKUP(CONCATENATE($B$1,"|",B$7,"|",$F14,"|",$C$2,"|",$D$1,"|",$D$2,"|",$E$1,"|",$E$2,"|",C$6,"|",$F$2),'DATA MART_'!$B$2:$Q$985098,16,0) ->  | D14: =VLOOKUP(CONCATENATE($B$1,"|",D$7,"|",$F14,"|",$C$2,"|",$D$1,"|",$D$2,"|",$E$1,"|",$E$2,"|",D$6,"|",$F$2),'DATA MART_'!$B$2:$Q$985098,16,0) ->  | E14: =VLOOKUP(CONCATENATE($B$1,"|",D$7,"|",$F14,"|",$C$2,"|",$D$1,"|",$D$2,"|",$E$1,"|",$E$2,"|",E$6,"|",$F$2),'DATA MART_'!$B$2:$Q$985098,16,0) ->  | F14: 700601 | G14: 200400
A15: Equities - Specific risk | B15: =VLOOKUP(CONCATENATE($B$1,"|",B$7,"|",$F15,"|",$C$2,"|",$D$1,"|",$D$2,"|",$E$1,"|",$E$2,"|",B$6,"|",$F$2),'DATA MART_'!$B$2:$Q$985098,16,0) ->  | C15: =VLOOKUP(CONCATENATE($B$1,"|",B$7,"|",$F15,"|",$C$2,"|",$D$1,"|",$D$2,"|",$E$1,"|",$E$2,"|",C$6,"|",$F$2),'DATA MART_'!$B$2:$Q$985098,16,0) ->  | D15: =VLOOKUP(CONCATENATE($B$1,"|",D$7,"|",$F15,"|",$C$2,"|",$D$1,"|",$D$2,"|",$E$1,"|",$E$2,"|",D$6,"|",$F$2),'DATA MART_'!$B$2:$Q$985098,16,0) ->  | E15: =VLOOKUP(CONCATENATE($B$1,"|",D$7,"|",$F15,"|",$C$2,"|",$D$1,"|",$D$2,"|",$E$1,"|",$E$2,"|",E$6,"|",$F$2),'DATA MART_'!$B$2:$Q$985098,16,0) ->  | F15: 700602 | G15: 200500
A16: Foreign exchange risk | B16: =VLOOKUP(CONCATENATE($B$1,"|",B$7,"|",$F16,"|",$C$2,"|",$D$1,"|",$D$2,"|",$E$1,"|",$E$2,"|",B$6,"|",$F$2),'DATA MART_'!$B$2:$Q$985098,16,0) ->  | C16: =VLOOKUP(CONCATENATE($B$1,"|",B$7,"|",$F16,"|",$C$2,"|",$D$1,"|",$D$2,"|",$E$1,"|",$E$2,"|",C$6,"|",$F$2),'DATA MART_'!$B$2:$Q$985098,16,0) ->  | D16: =VLOOKUP(CONCATENATE($B$1,"|",D$7,"|",$F16,"|",$C$2,"|",$D$1,"|",$D$2,"|",$E$1,"|",$E$2,"|",D$6,"|",$F$2),'DATA MART_'!$B$2:$Q$985098,16,0) ->  | E16: =VLOOKUP(CONCATENATE($B$1,"|",D$7,"|",$F16,"|",$C$2,"|",$D$1,"|",$D$2,"|",$E$1,"|",$E$2,"|",E$6,"|",$F$2),'DATA MART_'!$B$2:$Q$985098,16,0) ->  | F16: 700700 | G16: 200600
A17: Commodities risk | B17: =VLOOKUP(CONCATENATE($B$1,"|",B$7,"|",$F17,"|",$C$2,"|",$D$1,"|",$D$2,"|",$E$1,"|",$E$2,"|",B$6,"|",$F$2),'DATA MART_'!$B$2:$Q$985098,16,0) ->  | C17: =VLOOKUP(CONCATENATE($B$1,"|",B$7,"|",$F17,"|",$C$2,"|",$D$1,"|",$D$2,"|",$E$1,"|",$E$2,"|",C$6,"|",$F$2),'DATA MART_'!$B$2:$Q$985098,16,0) ->  | D17: =VLOOKUP(CONCATENATE($B$1,"|",D$7,"|",$F17,"|",$C$2,"|",$D$1,"|",$D$2,"|",$E$1,"|",$E$2,"|",D$6,"|",$F$2),'DATA MART_'!$B$2:$Q$985098,16,0) ->  | E17: =VLOOKUP(CONCATENATE($B$1,"|",D$7,"|",$F17,"|",$C$2,"|",$D$1,"|",$D$2,"|",$E$1,"|",$E$2,"|",E$6,"|",$F$2),'DATA MART_'!$B$2:$Q$985098,16,0) ->  | F17: 700800 | G17: 100900
H33: 9% RWA - (CT 1 including existing government support measures - Sovereign capital buffer for exposures in EEA)

Sheet 6. RWA_ (hidden)
B1: =+'1. Capital Composition_'!H3 ->  | C1: Item | D1: 0 | E1: 0 | F1: 0
A2: 6. RWA | B2: Period | C2: 0 | D2: 0 | E2: 0 | F2: 0 | H2: Portfolio
C3: =+'1. Capital Composition_'!H3 ->  | H3: Impact
C4: =+'1. Capital Composition_'!H4 -> 
A6: (in million Euro)
B7: 2012-12-31 | C7: 2013-06-30
A8: RWA for credit risk | B8: =VLOOKUP(CONCATENATE($B$1,"|",B$7,"|",$D8,"|",$C$2,"|",$D$1,"|",$D$2,"|",$E$1,"|",$E$2,"|",$F$1,"|",$F$2),'DATA MART_'!$B$2:$Q$985098,16,0) ->  | C8: =VLOOKUP(CONCATENATE($B$1,"|",C$7,"|",$D8,"|",$C$2,"|",$D$1,"|",$D$2,"|",$E$1,"|",$E$2,"|",$F$1,"|",$F$2),'DATA MART_'!$B$2:$Q$985098,16,0) ->  | D8: =VLOOKUP(A8,'DATA MART_'!$Y$30:$Z$81,2,0) -> 200100 | G8: 200100
A9: RWA Securitisation and re-securitisations | B9: =VLOOKUP(CONCATENATE($B$1,"|",B$7,"|",$D9,"|",$C$2,"|",$D$1,"|",$D$2,"|",$E$1,"|",$E$2,"|",$F$1,"|",$F$2),'DATA MART_'!$B$2:$Q$985098,16,0) ->  | C9: =VLOOKUP(CONCATENATE($B$1,"|",C$7,"|",$D9,"|",$C$2,"|",$D$1,"|",$D$2,"|",$E$1,"|",$E$2,"|",$F$1,"|",$F$2),'DATA MART_'!$B$2:$Q$985098,16,0) ->  | D9: =VLOOKUP(TRIM(A9),'DATA MART_'!$Y$30:$Z$81,2,0) -> 200101 | G9: 200101
A10: RWA Other credit risk | B10: =VLOOKUP(CONCATENATE($B$1,"|",B$7,"|",$D10,"|",$C$2,"|",$D$1,"|",$D$2,"|",$E$1,"|",$E$2,"|",$F$1,"|",$F$2),'DATA MART_'!$B$2:$Q$985098,16,0) ->  | C10: =VLOOKUP(CONCATENATE($B$1,"|",C$7,"|",$D10,"|",$C$2,"|",$D$1,"|",$D$2,"|",$E$1,"|",$E$2,"|",$F$1,"|",$F$2),'DATA MART_'!$B$2:$Q$985098,16,0) ->  | D10: =VLOOKUP(TRIM(A10),'DATA MART_'!$Y$30:$Z$81,2,0) -> 200102 | G10: 200102
A11: RWA for market risk | B11: =VLOOKUP(CONCATENATE($B$1,"|",B$7,"|",$D11,"|",$C$2,"|",$D$1,"|",$D$2,"|",$E$1,"|",$E$2,"|",$F$1,"|",$F$2),'DATA MART_'!$B$2:$Q$985098,16,0) ->  | C11: =VLOOKUP(CONCATENATE($B$1,"|",C$7,"|",$D11,"|",$C$2,"|",$D$1,"|",$D$2,"|",$E$1,"|",$E$2,"|",$F$1,"|",$F$2),'DATA MART_'!$B$2:$Q$985098,16,0) ->  | D11: =VLOOKUP(TRIM(A11),'DATA MART_'!$Y$30:$Z$81,2,0) -> 200300 | G11: 200300
A12: RWA for operational risk | B12: =VLOOKUP(CONCATENATE($B$1,"|",B$7,"|",$D12,"|",$C$2,"|",$D$1,"|",$D$2,"|",$E$1,"|",$E$2,"|",$F$1,"|",$F$2),'DATA MART_'!$B$2:$Q$985098,16,0) ->  | C12: =VLOOKUP(CONCATENATE($B$1,"|",C$7,"|",$D12,"|",$C$2,"|",$D$1,"|",$D$2,"|",$E$1,"|",$E$2,"|",$F$1,"|",$F$2),'DATA MART_'!$B$2:$Q$985098,16,0) ->  | D12: =VLOOKUP(TRIM(A12),'DATA MART_'!$Y$30:$Z$81,2,0) -> 200400 | G12: 200400
A13: RWA Transitional floors | B13: =VLOOKUP(CONCATENATE($B$1,"|",B$7,"|",$D13,"|",$C$2,"|",$D$1,"|",$D$2,"|",$E$1,"|",$E$2,"|",$F$1,"|",$F$2),'DATA MART_'!$B$2:$Q$985098,16,0) ->  | C13: =VLOOKUP(CONCATENATE($B$1,"|",C$7,"|",$D13,"|",$C$2,"|",$D$1,"|",$D$2,"|",$E$1,"|",$E$2,"|",$F$1,"|",$F$2),'DATA MART_'!$B$2:$Q$985098,16,0) ->  | D13: 200500 | G13: 200500
A14: RWA Other | B14: =VLOOKUP(CONCATENATE($B$1,"|",B$7,"|",$D14,"|",$C$2,"|",$D$1,"|",$D$2,"|",$E$1,"|",$E$2,"|",$F$1,"|",$F$2),'DATA MART_'!$B$2:$Q$985098,16,0) ->  | C14: =VLOOKUP(CONCATENATE($B$1,"|",C$7,"|",$D14,"|",$C$2,"|",$D$1,"|",$D$2,"|",$E$1,"|",$E$2,"|",$F$1,"|",$F$2),'DATA MART_'!$B$2:$Q$985098,16,0) ->  | D14: =VLOOKUP(TRIM(A14),'DATA MART_'!$Y$30:$Z$81,2,0) -> 200600 | G14: 200600
A15: Total RWA (1) | B15: =SUM(B11:B14)+B8 ->  | C15: =SUM(C11:C14)+C8 ->  | G15: 100900
H31: 9% RWA - (CT 1 including existing government support measures - Sovereign capital buffer for exposures in EEA)

Sheet Sheet1 (hidden)
AP1: Individual
A2: Bankcode | B2: Bankname | C2: Country | F2: Bankcode/Bankname | H2: Section | J2: Country | L2: Reference | N2: Quest | P2: TEMPL1 | R2: TEMPL2 | T2: TEMPL3 | V2: TEMPL4 | X2: TEMPL5 | Z2: TEMPL6 | AB2: Unit | AD2: Regulatory Approach | AF2: Status | AH2: Country | AI2: Label | AK2: Residual Maturity | AM2: Country/Region | AP2: EBA Bankcode | AQ2: Approach
E3: No of Banks | AP3: AT001 | AQ3: 2
A4: ALL | B4: ALL | D4: [TO] TOTAL | E4: =SUM(E5:E25) -> 64 | F4: =CONCATENATE("[",A5,"] ",B5) -> [AT001] Erste Group Bank (EGB) | H4: Templates 1,3,4,6 | J4: TOTAL | L4: 2012-12-31 | N4: 1. Capital | P4: A) Common equity before deductions (Original own funds without hybrid instruments and government support measures other than ordinary shares) (+) | R4: Central banks and central governments | T4: Banking Book | V4: Traded Debt Instruments | X4: GROSS DIRECT LONG EXPOSURES (accounting value gross of provisions) | Z4: RWA for credit risk | AB4: EUR (millions) | AD4: =IF(LEFT(Menu!H28,1)="2", "A-IRB", IF(LEFT(Menu!H28,1)="4","IM", "")) ->  | AF4: =IF(LEFT(Menu!H28,1)="2", "Non-defaulted","") ->  | AH4: 1 | AI4: Austria | AJ4: 1 | AK4: =IF(LEFT(Menu!H28,1)="5","[ 0 - 3M ]","") ->  | AM4: =IF(LEFT(Menu!H28,1)="5", "Austria", "") ->  | AP4: AT002 | AQ4: 1
A5: AT001 | B5: Erste Group Bank (EGB) | C5: =LEFT(A5,2) -> AT | D5: [AT] Austria | E5: 2 | F5: [AT002] Raiffeisen Zentralbank Österreich (RZB) | H5: 1. Capital | J5: AT | L5: 2013-06-30 | N5: 3. Securitisation Summary | P5: Of which: adjustment to valuation differences in other AFS assets (1) (-/+) | R5: Institutions | T5: Trading Book (excl. correlation trading) | V5: TDI - General risk | X5: of which: loans and advances | Z5: RWA Securitisation and re-securitisations | AB5: =IF(LEFT(Menu!H28,1)="1", "Ratio (% RWA)", IF(LEFT(Menu!H28,1)="2","LTV %", "")) ->  | AD5: =IF(LEFT(Menu!H28,1)="2", "F-IRB", IF(LEFT(Menu!H28,1)="4","SA", "")) ->  | AF5: =IF(LEFT(Menu!H28,1)="2", "Defaulted","") ->  | AH5: 2 | AI5: Belgium | AJ5: 2 | AK5: =IF(LEFT(Menu!H28,1)="5","[ 3M - 1Y ]","") ->  | AM5: =IF(LEFT(Menu!H28,1)="5", "Belgium", "") ->  | AP5: BE005 | AQ5: 2
A6: AT002 | B6: Raiffeisen Zentralbank Österreich (RZB) | C6: =LEFT(A6,2) -> AT | D6: [BE] Belgium | E6: 1 | F6: [BE005] KBC BANK | H6: 3. Securitisation Summary | J6: BE | N6: 4. Market Risk | P6: B) Deductions from common equity (Elements deducted from original own funds) (-) | R6: Corporates | T6: Correlation Trading Portfolio | V6: TDI - Specific risk | X6: NET DIRECT POSITIONS (gross exposures (long) net of cash short positions of sovereign debt to other counterpaties only where there is a maturity matching) | Z6: RWA Other credit risk | AD6: =IF(LEFT(Menu!H28,1)="2","STA","") ->  | AH6: 3 | AI6: Bulgaria | AJ6: 3 | AK6: =IF(LEFT(Menu!H28,1)="5", "[ 1Y - 2Y ]", "") ->  | AM6: =IF(LEFT(Menu!H28,1)="5", "Bulgaria", "") ->  | AP6: CY007 | AQ6: Not Applicable (3)
A7: BE005 | B7: KBC BANK | C7: BE | D7: [CY] Cyprus | E7: 1 | F7: =CONCATENATE("[",A8,"] ",B8) -> [CY007] BANK OF CYPRUS PUBLIC CO LTD | H7: 4. Market Risk | J7: CY | N7: 6.RWA | P7: Of which: IRB provision shortfall and IRB equity expected loss amounts (before tax) (-) | R7: Corporates - Of Which: Specialised Lending | T7: Total | V7: Equities | X7: of which: AFS banking book | Z7: RWA for market risk | AH7: 4 | AI7: Cyprus | AJ7: 4 | AK7: =IF(LEFT(Menu!H28,1)="5", "[ 2Y - 3Y ]", "") ->  | AM7: =IF(LEFT(Menu!H28,1)="5", "Cyprus", "") ->  | AP7: DE017 | AQ7: 1
A8: CY007 | B8: BANK OF CYPRUS PUBLIC CO LTD | C8: CY | D8: [DK] Denmark | E8: 4 | F8: [DE017] DEUTSCHE BANK AG | H8: 6. RWA | J8: DE | P8: C) Common equity (A+B) | R8: Corporates - Of Which: SME | V8: Equities - General risk | X8: of which: FVO (designated at fair value through profit&loss) banking book (FVO) | Z8: RWA for operational risk | AH8: 5 | AI8: Czech Republic | AJ8: 5 | AK8: =IF(LEFT(Menu!H28,1)="5", "[3Y - 5Y ]", "") ->  | AM8: =IF(LEFT(Menu!H28,1)="5", "Czech Republic", "") ->  | AP8: DE018 | AQ8: 2
A9: DE017 | B9: DEUTSCHE BANK AG | C9: =LEFT(A8,2) -> CY | D9: [DE] Germany | E9: 12 | F9: [DE018] COMMERZBANK AG | J9: DK | P9: Of which: ordinary shares subscribed by government | R9: Retail | V9: Equities - Specific risk | X9: of which: Financial assets held for trading | Z9: RWA Transitional floors | AH9: 6 | AI9: Denmark | AJ9: 6 | AK9: =IF(LEFT(Menu!H28,1)="5", "[5Y - 10Y ]", "") ->  | AM9: =IF(LEFT(Menu!H28,1)="5", "Denmark", "") ->  | AP9: DE019 | AQ9: 1
A10: DE018 | B10: COMMERZBANK AG | C10: DE | D10: [ES] Spain | E10: 4 | F10: [DE019] Landesbank Baden-Württemberg | J10: ES | P10: D) CoCos issued before 30 June 2012 according to EBA Common Term Sheet (+) | R10: Retail - Secured on real estate property | V10: Foreign exchange risk | Z10: RWA Other | AH10: 7 | AI10: Estonia | AJ10: 7 | AK10: =IF(LEFT(Menu!H28,1)="5", "[10Y - more ]", "") ->  | AM10: =IF(LEFT(Menu!H28,1)="5", "Estonia", "") ->  | AP10: DE020 | AQ10: 2
A11: DE019 | B11: Landesbank Baden-Württemberg | C11: DE | D11: [FI] Finland | E11: 1 | F11: [DE020] DZ BANK AG Dt. Zentral-Genossenschaftsbank | J11: FI | P11: E) Other Existing government support measures (+) | R11: Retail - Secured on real estate property - Of Which: SME | V11: Commodities risk | X11: DIRECT SOVEREIGN EXPOSURES IN DERIVATIVES - Net position at fair values (Derivatives with positive fair value + Derivatives with negative fair value) | Z11: Total RWA | AH11: 8 | AI11: Finland | AJ11: 8 | AK11: =IF(LEFT(Menu!H28,1)="5", "Total", "") ->  | AM11: =IF(LEFT(Menu!H28,1)="5", "Finland", "") ->  | AP11: DE021 | AQ11: 2
A12: DE020 | B12: DZ BANK AG Dt. Zentral-Genossenschaftsbank | C12: DE | D12: [FR] France | E12: 4 | F12: [DE021] Bayerische Landesbank | J12: FR | P12: F) Core Tier 1 including other intruments eligible and existing government support measures (C+D+E) | R12: Retail - Secured on real estate property - Of Which: non-SME | X12: INDIRECT SOVEREIGN EXPOSURES (on and off balance sheet) - Net position at fair values (Derivatives with positive fair value + Derivatives with negative fair value) | AH12: 9 | AI12: France | AJ12: 9 | AM12: =IF(LEFT(Menu!H28,1)="5", "France", "") ->  | AP12: DE022 | AQ12: 2
A13: DE021 | B13: Bayerische Landesbank | C13: DE | D13: [GB] United Kingdom | E13: 4 | F13: [DE022] Norddeutsche Landesbank -GZ | J13: GB | P13: G) Hybrid instruments not subscribed by government | R13: Retail - Qualifying Revolving | AH13: 10 | AI13: Germany | AJ13: 10 | AM13: =IF(LEFT(Menu!H28,1)="5", "Germany", "") ->  | AP13: DE023 | AQ13: 2
A14: DE022 | B14: Norddeutsche Landesbank -GZ | C14: DE | D14: [GR] Greece | E14: 4 | F14: [DE023] Hypo Real Estate Holding AG | J14: HU | P14: H) Tier 1 Capital (F+G) | R14: Retail - Other Retail | AH14: 11 | AI14: Greece | AJ14: 11 | AM14: =IF(LEFT(Menu!H28,1)="5", "Greece", "") ->  | AP14: DE025 | AQ14: 2
A15: DE023 | B15: Hypo Real Estate Holding AG | C15: DE | D15: [HU] Hungary | E15: 1 | F15: [DE025] HSH Nordbank AG, Hamburg | H15: Templates 1,3,4,6 | J15: IE | P15: I) RWA | R15: Retail - Other Retail - Of Which: SME | AH15: 12 | AI15: Hungary | AJ15: 12 | AM15: =IF(LEFT(Menu!H28,1)="5", "Hungary", "") ->  | AP15: DE026 | AQ15: 2
A16: DE025 | B16: HSH Nordbank AG, Hamburg | C16: DE | D16: [IE] Ireland | E16: 3 | F16: [DE026] Landesbank Hessen-Thüringen GZ, Frankfurt | H16: 1. Capital | J16: IT | R16: Equity | AH16: 13 | AI16: Iceland | AJ16: 13 | AM16: =IF(LEFT(Menu!H28,1)="5", "Iceland", "") ->  | AP16: DE027 | AQ16: 1
A17: DE026 | B17: Landesbank Hessen-Thüringen GZ, Frankfurt | C17: DE | D17: [IT] Italy | E17: 5 | F17: [DE027] Landesbank Berlin AG | H17: 3. Securitisation Summary | J17: LU | P17: Common Equity instruments under A) not eligible as CET1 (under CRR) | R17: Securitisation | AH17: 14 | AI17: Ireland | AJ17: 14 | AM17: =IF(LEFT(Menu!H28,1)="5", "Ireland", "") ->  | AP17: DE028 | AQ17: 1
A18: DE027 | B18: Landesbank Berlin AG | C18: DE | D18: [LU] Luxemburg | E18: 1 | F18: [DE028] DekaBank Deutsche Girozentrale, Frankfurt | H18: 4. Market Risk | J18: MT | P18: Adjustments to Minority Interests | R18: Other non-credit obligation assets | Z18: Credit Risk Values | AH18: 15 | AI18: Italy | AJ18: 15 | AM18: =IF(LEFT(Menu!H28,1)="5", "Italy", "") ->  | AP18: DE029 | AQ18: 1
A19: DE028 | B19: DekaBank Deutsche Girozentrale, Frankfurt | C19: DE | D19: [MT] Malta | E19: 1 | F19: [DE029] WGZ BANK AG Westdt. Geno. Zentralbk, Ddf | H19: 6. RWA | J19: NL | P19: DTAs that rely on future profitability (net of associated DTL) | R19: TOTAL | AH19: 16 | AI19: Latvia | AJ19: 16 | AM19: =IF(LEFT(Menu!H28,1)="5", "Latvia", "") ->  | AP19: DK008 | AQ19: 2
A20: DE029 | B20: WGZ BANK AG Westdt. Geno. Zentralbk, Ddf | C20: DE | D20: [NL] Netherlands | E20: 4 | F20: [DK008] DANSKE BANK | J20: NO | P20: Holdings of CET1 capital instruments of financial sector entities: reciprocal cross holdings, non significant and significant investments | R20: Securitisation and re-securitisations positions deducted from capital * | Z20: =IF(LEFT(Menu!H28,1)="2", "Exposure values", "") ->  | AA20: 400000 | AH20: 17 | AI20: Liechtenstein | AJ20: 17 | AM20: =IF(LEFT(Menu!H28,1)="5", "Liechtenstein", "") ->  | AP20: DK009 | AQ20: 1
A21: DK008 | B21: DANSKE BANK | C21: DE | D21: [NO] Norway | E21: 1 | F21: [DK009] Jyske Bank | J21: PL | P21: RWA for Credit Value Adjustment Risk (CVA) | Z21: =IF(LEFT(Menu!H28,1)="2", "RWA", "") ->  | AA21: 400300 | AH21: 18 | AI21: Lithuania | AJ21: 18 | AM21: =IF(LEFT(Menu!H28,1)="5", "Lithuania", "") ->  | AP21: DK010 | AQ21: 2
A22: DK009 | B22: Jyske Bank | C22: DK | D22: [PL] Poland | E22: 1 | F22: [DK010] Sydbank | J22: PT | Z22: =IF(LEFT(Menu!H28,1)="2", "Value adjustments and provisions", "") ->  | AA22: 401100 | AH22: 19 | AI22: Luxembourg | AJ22: 19 | AM22: =IF(LEFT(Menu!H28,1)="5", "Luxembourg", "") ->  | AP22: DK011 | AQ22: 2
A23: DK010 | B23: Sydbank | C23: DK | D23: [PT] Portugal | E23: 4 | F23: [DK011] Nykredit | J23: SE | AH23: 20 | AI23: Malta | AJ23: 20 | AM23: =IF(LEFT(Menu!H28,1)="5", "Malta", "") ->  | AP23: ES059 | AQ23: 1
A24: DK011 | B24: Nykredit | C24: DK | D24: [SE] Sweden | E24: 4 | F24: [ES059] BANCO SANTANDER S.A. | J24: SI | AH24: 21 | AI24: Netherlands | AJ24: 21 | AM24: =IF(LEFT(Menu!H28,1)="5", "Netherlands", "") ->  | AP24: ES060 | AQ24: 1
A25: ES059 | B25: BANCO SANTANDER S.A. | C25: DK | D25: [SI] Slovenia | E25: 2 | F25: [ES060] BANCO BILBAO VIZCAYA ARGENTARIA S.A. (BBVA) | AH25: 22 | AI25: Norway | AJ25: 22 | AM25: =IF(LEFT(Menu!H28,1)="5", "Norway", "") ->  | AP25: ES062 | AQ25: 1
A26: ES060 | B26: BANCO BILBAO VIZCAYA ARGENTARIA S.A. (BBVA) | C26: ES | F26: [ES062] CAJA DE AHORROS Y PENSIONES DE BARCELONA | AH26: 23 | AI26: Poland | AJ26: 23 | AM26: =IF(LEFT(Menu!H28,1)="5", "Poland", "") ->  | AP26: ES064 | AQ26: 1
A27: ES062 | B27: CAJA DE AHORROS Y PENSIONES DE BARCELONA | C27: ES | F27: [ES064] BANCO POPULAR ESPAÑOL, S.A. | AH27: 24 | AI27: Portugal | AJ27: 24 | AM27: =IF(LEFT(Menu!H28,1)="5", "Portugal", "") ->  | AP27: FI012 | AQ27: 1
A28: ES064 | B28: BANCO POPULAR ESPAÑOL, S.A. | C28: ES | F28: [FI012] OP-Pohjola Group | AH28: 25 | AI28: Romania | AJ28: 25 | AM28: =IF(LEFT(Menu!H28,1)="5", "Romania", "") ->  | AP28: FR013 | AQ28: 2
A29: FI012 | B29: OP-Pohjola Group | C29: ES | F29: [FR013] BNP PARIBAS | AH29: 26 | AI29: Slovakia | AJ29: 26 | AM29: =IF(LEFT(Menu!H28,1)="5", "Slovakia", "") ->  | AP29: FR014 | AQ29: 2
A30: FR013 | B30: BNP PARIBAS | C30: FI | F30: [FR014] CREDIT AGRICOLE | AH30: 27 | AI30: Slovenia | AJ30: 27 | AM30: =IF(LEFT(Menu!H28,1)="5", "Slovenia", "") ->  | AP30: FR015 | AQ30: 2
A31: FR014 | B31: CREDIT AGRICOLE | C31: FR | F31: [FR015] BPCE | AH31: 28 | AI31: Spain | AJ31: 28 | AM31: =IF(LEFT(Menu!H28,1)="5", "Spain", "") ->  | AP31: FR016 | AQ31: 2
A32: FR015 | B32: BPCE | C32: FR | F32: [FR016] SOCIETE GENERALE | AH32: 29 | AI32: Sweden | AJ32: 29 | AM32: =IF(LEFT(Menu!H28,1)="5", "Sweden", "") ->  | AP32: GB088 | AQ32: 1
A33: FR016 | B33: SOCIETE GENERALE | C33: FR | F33: [GB088] ROYAL BANK OF SCOTLAND GROUP plc | AH33: 30 | AI33: United Kingdom | AJ33: 30 | AM33: =IF(LEFT(Menu!H28,1)="5", "United Kingdom", "") ->  | AP33: GB089 | AQ33: 1
A34: GB088 | B34: ROYAL BANK OF SCOTLAND GROUP plc | C34: FR | F34: [GB089] HSBC HOLDINGS plc | AH34: 31 | AI34: Brazil | AJ34: 31 | AM34: =IF(LEFT(Menu!H28,1)="5", "Australia", "") ->  | AP34: GB090 | AQ34: 1
A35: GB089 | B35: HSBC HOLDINGS plc | C35: GB | F35: [GB090] BARCLAYS plc | AH35: 32 | AI35: Chile | AJ35: 32 | AM35: =IF(LEFT(Menu!H28,1)="5", "Canada", "") ->  | AP35: GB091 | AQ35: 1
A36: GB090 | B36: BARCLAYS plc | C36: GB | F36: [GB091] LLOYDS BANKING GROUP plc | AH36: 33 | AI36: China | AJ36: 33 | AM36: =IF(LEFT(Menu!H28,1)="5", "Hong Kong", "") ->  | AP36: GR030 | AQ36: 2
A37: GB091 | B37: LLOYDS BANKING GROUP plc | C37: GB | F37: [GR030] EFG EUROBANK ERGASIAS S.A. | AH37: 34 | AI37: Croatia | AJ37: 34 | AM37: =IF(LEFT(Menu!H28,1)="5", "Japan", "") ->  | AP37: GR031 | AQ37: 1
A38: GR030 | B38: EFG EUROBANK ERGASIAS S.A. | C38: GB | F38: [GR031] NATIONAL BANK OF GREECE | AH38: 35 | AI38: Hong Kong | AJ38: 35 | AM38: =IF(LEFT(Menu!H28,1)="5", "U.S.", "") ->  | AP38: GR032 | AQ38: Not Applicable (3)
A39: GR031 | B39: NATIONAL BANK OF GREECE | C39: =LEFT(A42,2) -> HU | F39: =CONCATENATE("[",A40,"] ",B40) -> [GR032] ALPHA BANK | AH39: 36 | AI39: India | AJ39: 36 | AM39: =IF(LEFT(Menu!H28,1)="5", "Switzerland", "") ->  | AP39: GR033 | AQ39: Not Applicable (3)
A40: GR032 | B40: ALPHA BANK | C40: IE | F40: [GR033] PIRAEUS BANK GROUP | AH40: 37 | AI40: Japan | AJ40: 37 | AM40: =IF(LEFT(Menu!H28,1)="5", "Other advanced economies non EEA", "") ->  | AP40: HU036 | AQ40: Not Applicable (3)
A41: GR033 | B41: PIRAEUS BANK GROUP | C41: IE | F41: [HU036] OTP BANK NYRT. | AH41: 38 | AI41: Mexico | AJ41: 38 | AM41: =IF(LEFT(Menu!H28,1)="5", "Other Central and eastern Europe countries non EEA", "") ->  | AP41: IE037 | AQ41: 1 (3)
A42: HU036 | B42: OTP BANK NYRT. | C42: IE | F42: [IE037] ALLIED IRISH BANKS PLC | AH42: 39 | AI42: Peru | AJ42: 39 | AM42: =IF(LEFT(Menu!H28,1)="5", "Middle East", "") ->  | AP42: IE038 | AQ42: 1 (3)
A43: IE037 | B43: ALLIED IRISH BANKS PLC | C43: IT | F43: [IE038] BANK OF IRELAND | AH43: 40 | AI43: Russia | AJ43: 40 | AM43: =IF(LEFT(Menu!H28,1)="5", "Latin America and the Caribbean", "") ->  | AP43: IE039 | AQ43: 1 (3)
A44: IE038 | B44: BANK OF IRELAND | C44: IT | F44: [IE039] PERMANENT TSB | AH44: 41 | AI44: Switzerland | AJ44: 41 | AM44: =IF(LEFT(Menu!H28,1)="5", "Africa", "") ->  | AP44: IT040 | AQ44: 1
A45: IE039 | B45: PERMANENT TSB | C45: IT | F45: [IT040] INTESA SANPAOLO S.p.A | AH45: 42 | AI45: Turkey | AJ45: 42 | AM45: =IF(LEFT(Menu!H28,1)="5", "Others", "") ->  | AP45: IT041 | AQ45: 1
A46: IT040 | B46: INTESA SANPAOLO S.p.A | C46: IT | F46: [IT041] UNICREDIT S.p.A | AH46: 43 | AI46: U.S. | AJ46: 43 | AP46: IT042 | AQ46: 1
A47: IT041 | B47: UNICREDIT S.p.A | C47: IT | F47: [IT042] BANCA MONTE DEI PASCHI DI SIENA S.p.A | AH47: 44 | AI47: International organisations | AJ47: 44 | AP47: IT043 | AQ47: 1
A48: IT042 | B48: BANCA MONTE DEI PASCHI DI SIENA S.p.A | C48: LU | F48: [IT043] BANCO POPOLARE - S.C. | AH48: 45 | AI48: Rest of Asia | AJ48: 45 | AP48: IT044 | AQ48: 1
A49: IT043 | B49: BANCO POPOLARE - S.C. | C49: MT | F49: [IT044] UNIONE DI BANCHE ITALIANE SCPA (UBI BANCA) | AH49: 46 | AI49: Rest of CIS | AJ49: 46 | AP49: LU045 | AQ49: 1
A50: IT044 | B50: UNIONE DI BANCHE ITALIANE SCPA (UBI BANCA) | C50: NL | F50: [LU045] BANQUE ET CAISSE D'EPARGNE DE L'ETAT | AH50: 47 | AI50: Rest of Latin America | AJ50: 47 | AP50: MT046 | AQ50: Not Applicable (3)
A51: LU045 | B51: BANQUE ET CAISSE D'EPARGNE DE L'ETAT | C51: NL | F51: [MT046] BANK OF VALLETTA (BOV) | AH51: 48 | AI51: Rest of SEE (excluding Turkey) | AJ51: 48 | AP51: NL047 | AQ51: 2
A52: MT046 | B52: BANK OF VALLETTA (BOV) | C52: NL | F52: [NL047] ING BANK NV | AH52: 49 | AI52: Rest of the world | AJ52: 49 | AP52: NL048 | AQ52: 2
A53: NL047 | B53: ING BANK NV | C53: NL | F53: [NL048] RABOBANK NEDERLAND | AH53: 50 | AI53: Afghanistan | AJ53: 50 | AP53: NL049 | AQ53: 2
A54: NL048 | B54: RABOBANK NEDERLAND | C54: NO | F54: [NL049] ABN AMRO BANK NV | AH54: 51 | AI54: Albania | AJ54: 51 | AP54: NL050 | AQ54: 1
A55: NL049 | B55: ABN AMRO BANK NV | C55: PL | F55: [NL050] SNS BANK NV | AH55: 52 | AI55: Algeria | AJ55: 52 | AP55: NO051 | AQ55: 1
A56: NL050 | B56: SNS BANK NV | C56: PT | F56: [NO051] DNB Bank ASA | AH56: 53 | AI56: American Samoa | AJ56: 53 | AP56: PL052 | AQ56: 1
A57: NO051 | B57: DNB Bank ASA | C57: PT | F57: [PL052] POWSZECHNA KASA OSZCZEDNOSCI BANK POLSKI S.A. (PKO BANK POLSKI) | AH57: 54 | AI57: Andorra | AJ57: 54 | AP57: PT053 | AQ57: Not Applicable (3)
A58: PL052 | B58: POWSZECHNA KASA OSZCZEDNOSCI BANK POLSKI S.A. (PKO BANK POLSKI) | C58: PT | F58: [PT053] CAIXA GERAL DE DEPÓSITOS SA | AH58: 55 | AI58: Angola | AJ58: 55 | AP58: PT054 | AQ58: 1
A59: PT053 | B59: CAIXA GERAL DE DEPÓSITOS SA | C59: PT | F59: [PT054] BANCO COMERCIAL PORTUGUES SA (BCP OR MILLENNIUM BCP) | AH59: 56 | AI59: Anguilla | AJ59: 56 | AP59: PT055 | AQ59: 1
A60: PT054 | B60: BANCO COMERCIAL PORTUGUES SA (BCP OR MILLENNIUM BCP) | C60: SE | F60: [PT055] ESPÍRITO SANTO FINANCIAL GROUP SA (ESFG) | AH60: 57 | AI60: Antigua and Barbuda | AJ60: 57 | AP60: PT056 | AQ60: Not Applicable (3)
A61: PT055 | B61: ESPÍRITO SANTO FINANCIAL GROUP SA (ESFG) | C61: SE | F61: [PT056] Banco BPI, SA | AH61: 58 | AI61: Argentina | AJ61: 58 | AP61: SE084 | AQ61: 2
A62: PT056 | B62: Banco BPI, SA | C62: SE | F62: [SE084] Nordea Bank AB (publ) | AH62: 59 | AI62: Armenia | AJ62: 59 | AP62: SE085 | AQ62: 2
A63: SE084 | B63: Nordea Bank AB (publ) | C63: SE | F63: [SE085] Skandinaviska Enskilda Banken AB (publ) (SEB) | AH63: 60 | AI63: Aruba | AJ63: 60 | AP63: SE086 | AQ63: 2
A64: SE085 | B64: Skandinaviska Enskilda Banken AB (publ) (SEB) | C64: SI | F64: [SE086] Svenska Handelsbanken AB (publ) | AH64: 61 | AI64: Australia | AJ64: 61 | AP64: SE087 | AQ64: 2
A65: SE086 | B65: Svenska Handelsbanken AB (publ) | C65: SI | F65: [SE087] Swedbank AB (publ) | AH65: 62 | AI65: Azerbaijan | AJ65: 62 | AP65: SI057 | AQ65: Not Applicable (3)
A66: SE087 | B66: Swedbank AB (publ) | F66: [SI057] NOVA LJUBLJANSKA BANKA D.D. (NLB d.d.) | AH66: 63 | AI66: Bahamas, The | AJ66: 63 | AP66: SI058 | AQ66: Not Applicable (3)
A67: SI057 | B67: NOVA LJUBLJANSKA BANKA D.D. (NLB d.d.) | F67: [SI058] NOVA KREDITNA BANKA MARIBOR D.D. (NKBM d.d.) | AH67: 64 | AI67: Bahrain | AJ67: 64
A68: SI058 | B68: NOVA KREDITNA BANKA MARIBOR D.D. (NKBM d.d.) | AH68: 65 | AI68: Bangladesh | AJ68: 65
AH69: 66 | AI69: Barbados | AJ69: 66
A70: IF(H15="TOTAL","",IF(H15="[AT] Austria","",IF(H15="[BE] Belgium","",IF(H15="[CY] Cyprus","",IF(H15="[DE] Germany","DE019",IF(H15="[DK] Denmark","DK010",IF(H15="[ES] Spain","ES062",IF(H15="[FI] Finland","",IF(H15="[FR] France","FR015",IF(H15="[GB] United Kingdom","GB090",IF(H15="[HU] Hungary","",IF(H15="[IE] Ireland","IE039",IF(H15="[IT] Italy","IT042",IF(H15="[LU] Luxemburg","",IF(H15="[MT] Malta","",IF(H15="[NL] Netherlands","NL049",IF(H15="[NO] Norway","",IF(H15="[PL] Poland","",IF(H15="[PT] Portugal","PT055",IF(H15="[SE] Sweden","SE086",IF(H15="[SI] Slovenia","")))))))))))))))))))) | AH70: 68 | AI70: Belize | AJ70: 68
A71: IF(H15="TOTAL","",IF(H15="[AT] Austria","",IF(H15="[BE] Belgium","",IF(H15="[CY] Cyprus","",IF(H15="[DE] Germany","DE020",IF(H15="[DK] Denmark","DK011",IF(H15="[ES] Spain","ES064",IF(H15="[FI] Finland","",IF(H15="[FR] France","FR016",IF(H15="[GB] United Kingdom","GB091",IF(H15="[HU] Hungary","",IF(H15="[IE] Ireland","",IF(H15="[IT] Italy","IT043",IF(H15="[LU] Luxemburg","",IF(H15="[MT] Malta","",IF(H15="[NL] Netherlands","NL050",IF(H15="[NO] Norway","",IF(H15="[PL] Poland","",IF(H15="[PT] Portugal","PT056",IF(H15="[SE] Sweden","SE087",IF(H15="[SI] Slovenia","")))))))))))))))))))) | AH71: 69 | AI71: Benin | AJ71: 69
A72: IF(H15="TOTAL","",IF(H15="[AT] Austria","",IF(H15="[BE] Belgium","",IF(H15="[CY] Cyprus","",IF(H15="[DE] Germany","DE021",IF(H15="[DK] Denmark","",IF(H15="[ES] Spain","",IF(H15="[FI] Finland","",IF(H15="[FR] France","",IF(H15="[GB] United Kingdom","",IF(H15="[HU] Hungary","",IF(H15="[IE] Ireland","",IF(H15="[IT] Italy","",IF(H15="[LU] Luxemburg","",IF(H15="[MT] Malta","",IF(H15="[NL] Netherlands","",IF(H15="[NO] Norway","",IF(H15="[PL] Poland","",IF(H15="[PT] Portugal","",IF(H15="[SE] Sweden","",IF(H15="[SI] Slovenia","")))))))))))))))))))) | AH72: 70 | AI72: Bermuda | AJ72: 70
A73: IF(H15="TOTAL","",IF(H15="[AT] Austria","",IF(H15="[BE] Belgium","",IF(H15="[CY] Cyprus","",IF(H15="[DE] Germany","DE022",IF(H15="[DK] Denmark","",IF(H15="[ES] Spain","",IF(H15="[FI] Finland","",IF(H15="[FR] France","",IF(H15="[GB] United Kingdom","",IF(H15="[HU] Hungary","",IF(H15="[IE] Ireland","",IF(H15="[IT] Italy","IT044",IF(H15="[LU] Luxemburg","",IF(H15="[MT] Malta","",IF(H15="[NL] Netherlands","",IF(H15="[NO] Norway","",IF(H15="[PL] Poland","",IF(H15="[PT] Portugal","",IF(H15="[SE] Sweden","",IF(H15="[SI] Slovenia","")))))))))))))))))))) | AH73: 71 | AI73: Bhutan | AJ73: 71
A74: IF(H15="TOTAL","",IF(H15="[AT] Austria","",IF(H15="[BE] Belgium","",IF(H15="[CY] Cyprus","",IF(H15="[DE] Germany","DE023",IF(H15="[DK] Denmark","",IF(H15="[ES] Spain","",IF(H15="[FI] Finland","",IF(H15="[FR] France","",IF(H15="[GB] United Kingdom","",IF(H15="[HU] Hungary","",IF(H15="[IE] Ireland","",IF(H15="[IT] Italy","",IF(H15="[LU] Luxemburg","",IF(H15="[MT] Malta","",IF(H15="[NL] Netherlands","",IF(H15="[NO] Norway","",IF(H15="[PL] Poland","",IF(H15="[PT] Portugal","",IF(H15="[SE] Sweden","",IF(H15="[SI] Slovenia","")))))))))))))))))))) | AH74: 72 | AI74: Bolivia | AJ74: 72
A75: IF(H15="TOTAL","",IF(H15="[AT] Austria","",IF(H15="[BE] Belgium","",IF(H15="[CY] Cyprus","",IF(H15="[DE] Germany","DE025",IF(H15="[DK] Denmark","",IF(H15="[ES] Spain","",IF(H15="[FI] Finland","",IF(H15="[FR] France","",IF(H15="[GB] United Kingdom","",IF(H15="[HU] Hungary","",IF(H15="[IE] Ireland","",IF(H15="[IT] Italy","",IF(H15="[LU] Luxemburg","",IF(H15="[MT] Malta","",IF(H15="[NL] Netherlands","",IF(H15="[NO] Norway","",IF(H15="[PL] Poland","",IF(H15="[PT] Portugal","",IF(H15="[SE] Sweden","",IF(H15="[SI] Slovenia","")))))))))))))))))))) | AH75: 73 | AI75: Bonaire | AJ75: 73
A76: IF(H15="TOTAL","",IF(H15="[AT] Austria","",IF(H15="[BE] Belgium","",IF(H15="[CY] Cyprus","",IF(H15="[DE] Germany","DE026",IF(H15="[DK] Denmark","",IF(H15="[ES] Spain","",IF(H15="[FI] Finland","",IF(H15="[FR] France","",IF(H15="[GB] United Kingdom","",IF(H15="[HU] Hungary","",IF(H15="[IE] Ireland","",IF(H15="[IT] Italy","",IF(H15="[LU] Luxemburg","",IF(H15="[MT] Malta","",IF(H15="[NL] Netherlands","",IF(H15="[NO] Norway","",IF(H15="[PL] Poland","",IF(H15="[PT] Portugal","",IF(H15="[SE] Sweden","",IF(H15="[SI] Slovenia","")))))))))))))))))))) | AH76: 74 | AI76: Bosnia and Herzegovina | AJ76: 74
A77: IF(H15="TOTAL","",IF(H15="[AT] Austria","",IF(H15="[BE] Belgium","",IF(H15="[CY] Cyprus","",IF(H15="[DE] Germany","DE027",IF(H15="[DK] Denmark","",IF(H15="[ES] Spain","",IF(H15="[FI] Finland","",IF(H15="[FR] France","",IF(H15="[GB] United Kingdom","",IF(H15="[HU] Hungary","",IF(H15="[IE] Ireland","",IF(H15="[IT] Italy","",IF(H15="[LU] Luxemburg","",IF(H15="[MT] Malta","",IF(H15="[NL] Netherlands","",IF(H15="[NO] Norway","",IF(H15="[PL] Poland","",IF(H15="[PT] Portugal","",IF(H15="[SE] Sweden","",IF(H15="[SI] Slovenia","")))))))))))))))))))) | AH77: 75 | AI77: Botswana | AJ77: 75
A78: IF(H15="TOTAL","",IF(H15="[AT] Austria","",IF(H15="[BE] Belgium","",IF(H15="[CY] Cyprus","",IF(H15="[DE] Germany","DE028",IF(H15="[DK] Denmark","",IF(H15="[ES] Spain","",IF(H15="[FI] Finland","",IF(H15="[FR] France","",IF(H15="[GB] United Kingdom","",IF(H15="[HU] Hungary","",IF(H15="[IE] Ireland","",IF(H15="[IT] Italy","",IF(H15="[LU] Luxemburg","",IF(H15="[MT] Malta","",IF(H15="[NL] Netherlands","",IF(H15="[NO] Norway","",IF(H15="[PL] Poland","",IF(H15="[PT] Portugal","",IF(H15="[SE] Sweden","",IF(H15="[SI] Slovenia","")))))))))))))))))))) | AH78: 76 | AI78: British Virgin Islands | AJ78: 76
A79: IF(H15="TOTAL","",IF(H15="[AT] Austria","",IF(H15="[BE] Belgium","",IF(H15="[CY] Cyprus","",IF(H15="[DE] Germany","DE029",IF(H15="[DK] Denmark","",IF(H15="[ES] Spain","",IF(H15="[FI] Finland","",IF(H15="[FR] France","",IF(H15="[GB] United Kingdom","",IF(H15="[HU] Hungary","",IF(H15="[IE] Ireland","",IF(H15="[IT] Italy","",IF(H15="[LU] Luxemburg","",IF(H15="[MT] Malta","",IF(H15="[NL] Netherlands","",IF(H15="[NO] Norway","",IF(H15="[PL] Poland","",IF(H15="[PT] Portugal","",IF(H15="[SE] Sweden","",IF(H15="[SI] Slovenia","")))))))))))))))))))) | AH79: 77 | AI79: Brunei Darussalam | AJ79: 77
AH80: 78 | AI80: Burkina Faso | AJ80: 78
AH81: 79 | AI81: Burundi | AJ81: 79
AH82: 80 | AI82: Cambodia | AJ82: 80
A83: IF(H15="TOTAL","",IF(H15="[AT] Austria","Erste Group Bank (EGB)",IF(H15="[BE] Belgium","KBC BANK",IF(H15="[CY] Cyprus","MARFIN POPULAR BANK PUBLIC CO LTD",IF(H15="[DE] Germany","DEUTSCHE BANK AG",IF(H15="[DK] Denmark","DANSKE BANK",IF(H15="[ES] Spain","BANCO SANTANDER S.A.",IF(H15="[FI] Finland","OP-Pohjola Group",IF(H15="[FR] France","BNP PARIBAS",IF(H15="[GB] United Kingdom","ROYAL BANK OF SCOTLAND GROUP plc",IF(H15="[HU] Hungary","OTP BANK NYRT.",IF(H15="[IE] Ireland","ALLIED IRISH BANKS PLC",IF(H15="[IT] Italy","INTESA SANPAOLO S.p.A",IF(H15="[LU] Luxemburg","BANQUE ET CAISSE D'EPARGNE DE L'ETAT",IF(H15="[MT] Malta","BANK OF VALLETTA (BOV)",IF(H15="[NL] Netherlands","ING BANK NV",IF(H15="[NO] Norway","DnB NOR Bank ASA",IF(H15="[PL] Poland","POWSZECHNA KASA OSZCZEDNOSCI BANK POLSKI S.A. (PKO BANK POLSKI)",IF(H15="[PT] Portugal","CAIXA GERAL DE DEPÓSITOS SA",IF(H15="[SE] Sweden","Nordea Bank AB (publ)",IF(H15="[SI] Slovenia","NOVA LJUBLJANSKA BANKA D.D. (NLB d.d.)")))))))))))))))))))) | AH83: 81 | AI83: Cameroon | AJ83: 81
A84: IF(H15="TOTAL","",IF(H15="[AT] Austria","Raiffeisen Zentralbank Österreich (RZB)",IF(H15="[BE] Belgium","",IF(H15="[CY] Cyprus","BANK OF CYPRUS PUBLIC CO LTD",IF(H15="[DE] Germany","COMMERZBANK AG",IF(H15="[DK] Denmark","Jyske Bank",IF(H15="[ES] Spain","BANCO BILBAO VIZCAYA ARGENTARIA S.A. (BBVA)",IF(H15="[FI] Finland","",IF(H15="[FR] France","CREDIT AGRICOLE",IF(H15="[GB] United Kingdom","HSBC HOLDINGS plc",IF(H15="[HU] Hungary","",IF(H15="[IE] Ireland","BANK OF IRELAND",IF(H15="[IT] Italy","UNICREDIT S.p.A",IF(H15="[LU] Luxemburg","",IF(H15="[MT] Malta","",IF(H15="[NL] Netherlands","RABOBANK NEDERLAND",IF(H15="[NO] Norway","",IF(H15="[PL] Poland","",IF(H15="[PT] Portugal","BANCO COMERCIAL PORTUGUES SA (BCP OR MILLENNIUM BCP)",IF(H15="[SE] Sweden","Skandinaviska Enskilda Banken AB (publ) (SEB)",IF(H15="[SI] Slovenia","NOVA KREDITNA BANKA MARIBOR D.D. (NKBM d.d.)")))))))))))))))))))) | AH84: 82 | AI84: Canada | AJ84: 82
A85: IF(H15="TOTAL","",IF(H15="[AT] Austria","",IF(H15="[BE] Belgium","",IF(H15="[CY] Cyprus","",IF(H15="[DE] Germany","Landesbank Baden-Württemberg",IF(H15="[DK] Denmark","Sydbank",IF(H15="[ES] Spain","CAJA DE AHORROS Y PENSIONES DE BARCELONA",IF(H15="[FI] Finland","",IF(H15="[FR] France","BPCE",IF(H15="[GB] United Kingdom","BARCLAYS plc",IF(H15="[HU] Hungary","",IF(H15="[IE] Ireland","IRISH LIFE AND PERMANENT",IF(H15="[IT] Italy","BANCA MONTE DEI PASCHI DI SIENA S.p.A",IF(H15="[LU] Luxemburg","",IF(H15="[MT] Malta","",IF(H15="[NL] Netherlands","ABN AMRO BANK NV",IF(H15="[NO] Norway","",IF(H15="[PL] Poland","",IF(H15="[PT] Portugal","ESPÍRITO SANTO FINANCIAL GROUP SA (ESFG)",IF(H15="[SE] Sweden","Svenska Handelsbanken AB (publ)",IF(H15="[SI] Slovenia","")))))))))))))))))))) | AH85: 83 | AI85: Cape Verde | AJ85: 83
A86: IF(H15="TOTAL","",IF(H15="[AT] Austria","",IF(H15="[BE] Belgium","",IF(H15="[CY] Cyprus","",IF(H15="[DE] Germany","DZ BANK AG Dt. Zentral-Genossenschaftsbank",IF(H15="[DK] Denmark","Nykredit",IF(H15="[ES] Spain","BANCO POPULAR ESPAÑOL, S.A.",IF(H15="[FI] Finland","",IF(H15="[FR] France","SOCIETE GENERALE",IF(H15="[GB] United Kingdom","LLOYDS BANKING GROUP plc",IF(H15="[HU] Hungary","",IF(H15="[IE] Ireland","",IF(H15="[IT] Italy","BANCO POPOLARE - S.C.",IF(H15="[LU] Luxemburg","",IF(H15="[MT] Malta","",IF(H15="[NL] Netherlands","SNS BANK NV",IF(H15="[NO] Norway","",IF(H15="[PL] Poland","",IF(H15="[PT] Portugal","Banco BPI, SA",IF(H15="[SE] Sweden","Swedbank AB (publ)",IF(H15="[SI] Slovenia","")))))))))))))))))))) | AH86: 84 | AI86: Cayman Islands | AJ86: 84
A87: IF(H15="TOTAL","",IF(H15="[AT] Austria","",IF(H15="[BE] Belgium","",IF(H15="[CY] Cyprus","",IF(H15="[DE] Germany","Bayerische Landesbank",IF(H15="[DK] Denmark","",IF(H15="[ES] Spain","",IF(H15="[FI] Finland","",IF(H15="[FR] France","",IF(H15="[GB] United Kingdom","",IF(H15="[HU] Hungary","",IF(H15="[IE] Ireland","",IF(H15="[IT] Italy","UNIONE DI BANCHE ITALIANE SCPA (UBI BANCA)",IF(H15="[LU] Luxemburg","",IF(H15="[MT] Malta","",IF(H15="[NL] Netherlands","",IF(H15="[NO] Norway","",IF(H15="[PL] Poland","",IF(H15="[PT] Portugal","",IF(H15="[SE] Sweden","",IF(H15="[SI] Slovenia","")))))))))))))))))))) | AH87: 85 | AI87: Central African Republic | AJ87: 85
A88: IF(H15="TOTAL","",IF(H15="[AT] Austria","",IF(H15="[BE] Belgium","",IF(H15="[CY] Cyprus","",IF(H15="[DE] Germany","Norddeutsche Landesbank -GZ",IF(H15="[DK] Denmark","",IF(H15="[ES] Spain","",IF(H15="[FI] Finland","",IF(H15="[FR] France","",IF(H15="[GB] United Kingdom","",IF(H15="[HU] Hungary","",IF(H15="[IE] Ireland","",IF(H15="[IT] Italy","",IF(H15="[LU] Luxemburg","",IF(H15="[MT] Malta","",IF(H15="[NL] Netherlands","",IF(H15="[NO] Norway","",IF(H15="[PL] Poland","",IF(H15="[PT] Portugal","",IF(H15="[SE] Sweden","",IF(H15="[SI] Slovenia","")))))))))))))))))))) | AH88: 86 | AI88: Chad | AJ88: 86
A89: IF(H15="TOTAL","",IF(H15="[AT] Austria","",IF(H15="[BE] Belgium","",IF(H15="[CY] Cyprus","",IF(H15="[DE] Germany","Hypo Real Estate Holding AG",IF(H15="[DK] Denmark","",IF(H15="[ES] Spain","",IF(H15="[FI] Finland","",IF(H15="[FR] France","",IF(H15="[GB] United Kingdom","",IF(H15="[HU] Hungary","",IF(H15="[IE] Ireland","",IF(H15="[IT] Italy","",IF(H15="[LU] Luxemburg","",IF(H15="[MT] Malta","",IF(H15="[NL] Netherlands","",IF(H15="[NO] Norway","",IF(H15="[PL] Poland","",IF(H15="[PT] Portugal","",IF(H15="[SE] Sweden","",IF(H15="[SI] Slovenia","")))))))))))))))))))) | AH89: 87 | AI89: Channel Islands | AJ89: 87
A90: IF(H15="TOTAL","",IF(H15="[AT] Austria","",IF(H15="[BE] Belgium","",IF(H15="[CY] Cyprus","",IF(H15="[DE] Germany","HSH Nordbank AG, Hamburg",IF(H15="[DK] Denmark","",IF(H15="[ES] Spain","",IF(H15="[FI] Finland","",IF(H15="[FR] France","",IF(H15="[GB] United Kingdom","",IF(H15="[HU] Hungary","",IF(H15="[IE] Ireland","",IF(H15="[IT] Italy","",IF(H15="[LU] Luxemburg","",IF(H15="[MT] Malta","",IF(H15="[NL] Netherlands","",IF(H15="[NO] Norway","",IF(H15="[PL] Poland","",IF(H15="[PT] Portugal","",IF(H15="[SE] Sweden","",IF(H15="[SI] Slovenia","")))))))))))))))))))) | AH90: 88 | AI90: Colombia | AJ90: 88
A91: IF(H15="TOTAL","",IF(H15="[AT] Austria","",IF(H15="[BE] Belgium","",IF(H15="[CY] Cyprus","",IF(H15="[DE] Germany","Landesbank Hessen-Thüringen GZ, Frankfurt",IF(H15="[DK] Denmark","",IF(H15="[ES] Spain","",IF(H15="[FI] Finland","",IF(H15="[FR] France","",IF(H15="[GB] United Kingdom","",IF(H15="[HU] Hungary","",IF(H15="[IE] Ireland","",IF(H15="[IT] Italy","",IF(H15="[LU] Luxemburg","",IF(H15="[MT] Malta","",IF(H15="[NL] Netherlands","",IF(H15="[NO] Norway","",IF(H15="[PL] Poland","",IF(H15="[PT] Portugal","",IF(H15="[SE] Sweden","",IF(H15="[SI] Slovenia","")))))))))))))))))))) | AH91: 89 | AI91: Comoros | AJ91: 89
A92: IF(H15="TOTAL","",IF(H15="[AT] Austria","",IF(H15="[BE] Belgium","",IF(H15="[CY] Cyprus","",IF(H15="[DE] Germany","Landesbank Berlin AG",IF(H15="[DK] Denmark","",IF(H15="[ES] Spain","",IF(H15="[FI] Finland","",IF(H15="[FR] France","",IF(H15="[GB] United Kingdom","",IF(H15="[HU] Hungary","",IF(H15="[IE] Ireland","",IF(H15="[IT] Italy","",IF(H15="[LU] Luxemburg","",IF(H15="[MT] Malta","",IF(H15="[NL] Netherlands","",IF(H15="[NO] Norway","",IF(H15="[PL] Poland","",IF(H15="[PT] Portugal","",IF(H15="[SE] Sweden","",IF(H15="[SI] Slovenia","")))))))))))))))))))) | AH92: 90 | AI92: Congo, Dem. Rep. of the | AJ92: 90
A93: IF(H15="TOTAL","",IF(H15="[AT] Austria","",IF(H15="[BE] Belgium","",IF(H15="[CY] Cyprus","",IF(H15="[DE] Germany","DekaBank Deutsche Girozentrale, Frankfurt",IF(H15="[DK] Denmark","",IF(H15="[ES] Spain","",IF(H15="[FI] Finland","",IF(H15="[FR] France","",IF(H15="[GB] United Kingdom","",IF(H15="[HU] Hungary","",IF(H15="[IE] Ireland","",IF(H15="[IT] Italy","",IF(H15="[LU] Luxemburg","",IF(H15="[MT] Malta","",IF(H15="[NL] Netherlands","",IF(H15="[NO] Norway","",IF(H15="[PL] Poland","",IF(H15="[PT] Portugal","",IF(H15="[SE] Sweden","",IF(H15="[SI] Slovenia","")))))))))))))))))))) | AH93: 91 | AI93: Congo, Republic of | AJ93: 91
A94: IF(H15="TOTAL","",IF(H15="[AT] Austria","",IF(H15="[BE] Belgium","",IF(H15="[CY] Cyprus","",IF(H15="[DE] Germany","WGZ BANK AG Westdt. Geno. Zentralbk, Ddf",IF(H15="[DK] Denmark","",IF(H15="[ES] Spain","",IF(H15="[FI] Finland","",IF(H15="[FR] France","",IF(H15="[GB] United Kingdom","",IF(H15="[HU] Hungary","",IF(H15="[IE] Ireland","",IF(H15="[IT] Italy","",IF(H15="[LU] Luxemburg","",IF(H15="[MT] Malta","",IF(H15="[NL] Netherlands","",IF(H15="[NO] Norway","",IF(H15="[PL] Poland","",IF(H15="[PT] Portugal","",IF(H15="[SE] Sweden","",IF(H15="[SI] Slovenia","")))))))))))))))))))) | AH94: 92 | AI94: Cook Islands | AJ94: 92
AH95: 93 | AI95: Costa Rica | AJ95: 93
AH96: 94 | AI96: Côte d'Ivoire | AJ96: 94
AH97: 95 | AI97: Cuba | AJ97: 95
AH98: 96 | AI98: Curacao | AJ98: 96
AH99: 97 | AI99: Djibouti | AJ99: 97
AH100: 98 | AI100: Dominica | AJ100: 98
A101: IF(H15="TOTAL","",IF(H15="[AT] Austria","AT001",IF(H15="[BE] Belgium","BE005",IF(H15="[CY] Cyprus","CY006",IF(H15="[DE] Germany","DE017",IF(H15="[DK] Denmark","DK008",IF(H15="[ES] Spain","ES059",IF(H15="[FI] Finland","FI012",IF(H15="[FR] France","FR013",IF(H15="[GB] United Kingdom","GB088",IF(H15="[HU] Hungary","HU036",IF(H15="[IE] Ireland","IE037",IF(H15="[IT] Italy","IT040",IF(H15="[LU] Luxemburg","LU045",IF(H15="[MT] Malta","MT046",IF(H15="[NL] Netherlands","NL047",IF(H15="[NO] Norway","NO051",IF(H15="[PL] Poland","PL052",IF(H15="[PT] Portugal","PT053",IF(H15="[SE] Sweden","SE084",IF(H15="[SI] Slovenia","SI057")))))))))))))))))))) | AH101: 99 | AI101: Dominican Republic | AJ101: 99
A102: IF(H15="TOTAL","",IF(H15="[AT] Austria","AT002",IF(H15="[BE] Belgium","",IF(H15="[CY] Cyprus","CY007",IF(H15="[DE] Germany","DE018",IF(H15="[DK] Denmark","DK009",IF(H15="[ES] Spain","ES060",IF(H15="[FI] Finland","",IF(H15="[FR] France","FR014",IF(H15="[GB] United Kingdom","GB089",IF(H15="[HU] Hungary","",IF(H15="[IE] Ireland","IE038",IF(H15="[IT] Italy","IT041",IF(H15="[LU] Luxemburg","",IF(H15="[MT] Malta","",IF(H15="[NL] Netherlands","NL048",IF(H15="[NO] Norway","",IF(H15="[PL] Poland","",IF(H15="[PT] Portugal","PT054",IF(H15="[SE] Sweden","SE085",IF(H15="[SI] Slovenia","SI058")))))))))))))))))))) | AH102: 100 | AI102: Ecuador | AJ102: 100
A103: IF(H15="TOTAL","",IF(H15="[AT] Austria","",IF(H15="[BE] Belgium","",IF(H15="[CY] Cyprus","",IF(H15="[DE] Germany","DE019",IF(H15="[DK] Denmark","DK010",IF(H15="[ES] Spain","ES062",IF(H15="[FI] Finland","",IF(H15="[FR] France","FR015",IF(H15="[GB] United Kingdom","GB090",IF(H15="[HU] Hungary","",IF(H15="[IE] Ireland","IE039",IF(H15="[IT] Italy","IT042",IF(H15="[LU] Luxemburg","",IF(H15="[MT] Malta","",IF(H15="[NL] Netherlands","NL049",IF(H15="[NO] Norway","",IF(H15="[PL] Poland","",IF(H15="[PT] Portugal","PT055",IF(H15="[SE] Sweden","SE086",IF(H15="[SI] Slovenia","")))))))))))))))))))) | AH103: 101 | AI103: Egypt | AJ103: 101
A104: IF(H15="TOTAL","",IF(H15="[AT] Austria","",IF(H15="[BE] Belgium","",IF(H15="[CY] Cyprus","",IF(H15="[DE] Germany","DE020",IF(H15="[DK] Denmark","DK011",IF(H15="[ES] Spain","ES064",IF(H15="[FI] Finland","",IF(H15="[FR] France","FR016",IF(H15="[GB] United Kingdom","GB091",IF(H15="[HU] Hungary","",IF(H15="[IE] Ireland","",IF(H15="[IT] Italy","IT043",IF(H15="[LU] Luxemburg","",IF(H15="[MT] Malta","",IF(H15="[NL] Netherlands","NL050",IF(H15="[NO] Norway","",IF(H15="[PL] Poland","",IF(H15="[PT] Portugal","PT056",IF(H15="[SE] Sweden","SE087",IF(H15="[SI] Slovenia","")))))))))))))))))))) | AH104: 102 | AI104: El Salvador | AJ104: 102
A105: IF(H15="TOTAL","",IF(H15="[AT] Austria","",IF(H15="[BE] Belgium","",IF(H15="[CY] Cyprus","",IF(H15="[DE] Germany","DE021",IF(H15="[DK] Denmark","",IF(H15="[ES] Spain","",IF(H15="[FI] Finland","",IF(H15="[FR] France","",IF(H15="[GB] United Kingdom","",IF(H15="[HU] Hungary","",IF(H15="[IE] Ireland","",IF(H15="[IT] Italy","IT044",IF(H15="[LU] Luxemburg","",IF(H15="[MT] Malta","",IF(H15="[NL] Netherlands","",IF(H15="[NO] Norway","",IF(H15="[PL] Poland","",IF(H15="[PT] Portugal","",IF(H15="[SE] Sweden","",IF(H15="[SI] Slovenia","")))))))))))))))))))) | AH105: 103 | AI105: Equatorial Guinea | AJ105: 103
A106: IF(H15="TOTAL","",IF(H15="[AT] Austria","",IF(H15="[BE] Belgium","",IF(H15="[CY] Cyprus","",IF(H15="[DE] Germany","DE022",IF(H15="[DK] Denmark","",IF(H15="[ES] Spain","",IF(H15="[FI] Finland","",IF(H15="[FR] France","",IF(H15="[GB] United Kingdom","",IF(H15="[HU] Hungary","",IF(H15="[IE] Ireland","",IF(H15="[IT] Italy","",IF(H15="[LU] Luxemburg","",IF(H15="[MT] Malta","",IF(H15="[NL] Netherlands","",IF(H15="[NO] Norway","",IF(H15="[PL] Poland","",IF(H15="[PT] Portugal","",IF(H15="[SE] Sweden","",IF(H15="[SI] Slovenia","")))))))))))))))))))) | AH106: 104 | AI106: Eritrea | AJ106: 104
A107: IF(H15="TOTAL","",IF(H15="[AT] Austria","",IF(H15="[BE] Belgium","",IF(H15="[CY] Cyprus","",IF(H15="[DE] Germany","DE023",IF(H15="[DK] Denmark","",IF(H15="[ES] Spain","",IF(H15="[FI] Finland","",IF(H15="[FR] France","",IF(H15="[GB] United Kingdom","",IF(H15="[HU] Hungary","",IF(H15="[IE] Ireland","",IF(H15="[IT] Italy","",IF(H15="[LU] Luxemburg","",IF(H15="[MT] Malta","",IF(H15="[NL] Netherlands","",IF(H15="[NO] Norway","",IF(H15="[PL] Poland","",IF(H15="[PT] Portugal","",IF(H15="[SE] Sweden","",IF(H15="[SI] Slovenia","")))))))))))))))))))) | AH107: 105 | AI107: Ethiopia | AJ107: 105
A108: IF(H15="TOTAL","",IF(H15="[AT] Austria","",IF(H15="[BE] Belgium","",IF(H15="[CY] Cyprus","",IF(H15="[DE] Germany","DE025",IF(H15="[DK] Denmark","",IF(H15="[ES] Spain","",IF(H15="[FI] Finland","",IF(H15="[FR] France","",IF(H15="[GB] United Kingdom","",IF(H15="[HU] Hungary","",IF(H15="[IE] Ireland","",IF(H15="[IT] Italy","",IF(H15="[LU] Luxemburg","",IF(H15="[MT] Malta","",IF(H15="[NL] Netherlands","",IF(H15="[NO] Norway","",IF(H15="[PL] Poland","",IF(H15="[PT] Portugal","",IF(H15="[SE] Sweden","",IF(H15="[SI] Slovenia","")))))))))))))))))))) | AH108: 106 | AI108: Faeroe Islands | AJ108: 106
A109: IF(H15="TOTAL","",IF(H15="[AT] Austria","",IF(H15="[BE] Belgium","",IF(H15="[CY] Cyprus","",IF(H15="[DE] Germany","DE026",IF(H15="[DK] Denmark","",IF(H15="[ES] Spain","",IF(H15="[FI] Finland","",IF(H15="[FR] France","",IF(H15="[GB] United Kingdom","",IF(H15="[HU] Hungary","",IF(H15="[IE] Ireland","",IF(H15="[IT] Italy","",IF(H15="[LU] Luxemburg","",IF(H15="[MT] Malta","",IF(H15="[NL] Netherlands","",IF(H15="[NO] Norway","",IF(H15="[PL] Poland","",IF(H15="[PT] Portugal","",IF(H15="[SE] Sweden","",IF(H15="[SI] Slovenia","")))))))))))))))))))) | AH109: 107 | AI109: Falkland Islands | AJ109: 107
A110: IF(H15="TOTAL","",IF(H15="[AT] Austria","",IF(H15="[BE] Belgium","",IF(H15="[CY] Cyprus","",IF(H15="[DE] Germany","DE027",IF(H15="[DK] Denmark","",IF(H15="[ES] Spain","",IF(H15="[FI] Finland","",IF(H15="[FR] France","",IF(H15="[GB] United Kingdom","",IF(H15="[HU] Hungary","",IF(H15="[IE] Ireland","",IF(H15="[IT] Italy","",IF(H15="[LU] Luxemburg","",IF(H15="[MT] Malta","",IF(H15="[NL] Netherlands","",IF(H15="[NO] Norway","",IF(H15="[PL] Poland","",IF(H15="[PT] Portugal","",IF(H15="[SE] Sweden","",IF(H15="[SI] Slovenia","")))))))))))))))))))) | AH110: 108 | AI110: Fiji | AJ110: 108
A111: IF(H15="TOTAL","",IF(H15="[AT] Austria","",IF(H15="[BE] Belgium","",IF(H15="[CY] Cyprus","",IF(H15="[DE] Germany","DE028",IF(H15="[DK] Denmark","",IF(H15="[ES] Spain","",IF(H15="[FI] Finland","",IF(H15="[FR] France","",IF(H15="[GB] United Kingdom","",IF(H15="[HU] Hungary","",IF(H15="[IE] Ireland","",IF(H15="[IT] Italy","",IF(H15="[LU] Luxemburg","",IF(H15="[MT] Malta","",IF(H15="[NL] Netherlands","",IF(H15="[NO] Norway","",IF(H15="[PL] Poland","",IF(H15="[PT] Portugal","",IF(H15="[SE] Sweden","",IF(H15="[SI] Slovenia","")))))))))))))))))))) | AH111: 109 | AI111: French Guiana | AJ111: 109
A112: IF(H15="TOTAL","",IF(H15="[AT] Austria","",IF(H15="[BE] Belgium","",IF(H15="[CY] Cyprus","",IF(H15="[DE] Germany","DE029",IF(H15="[DK] Denmark","",IF(H15="[ES] Spain","",IF(H15="[FI] Finland","",IF(H15="[FR] France","",IF(H15="[GB] United Kingdom","",IF(H15="[HU] Hungary","",IF(H15="[IE] Ireland","",IF(H15="[IT] Italy","",IF(H15="[LU] Luxemburg","",IF(H15="[MT] Malta","",IF(H15="[NL] Netherlands","",IF(H15="[NO] Norway","",IF(H15="[PL] Poland","",IF(H15="[PT] Portugal","",IF(H15="[SE] Sweden","",IF(H15="[SI] Slovenia","")))))))))))))))))))) | AH112: 110 | AI112: French Polynesia | AJ112: 110
AH113: 111 | AI113: FYR Macedonia | AJ113: 111
AH114: 112 | AI114: Gabon | AJ114: 112
AH115: 113 | AI115: Gambia, The | AJ115: 113
AH116: 114 | AI116: Georgia | AJ116: 114
AH117: 115 | AI117: Ghana | AJ117: 115
AH118: 116 | AI118: Gibraltar | AJ118: 116
AH119: 117 | AI119: Greenland | AJ119: 117
AH120: 118 | AI120: Grenada | AJ120: 118
AH121: 119 | AI121: Guadeloupe | AJ121: 119
AH122: 120 | AI122: Guam | AJ122: 120
AH123: 121 | AI123: Guatemala | AJ123: 121
AH124: 122 | AI124: Guinea | AJ124: 122
AH125: 123 | AI125: Guinea-Bissau | AJ125: 123
AH126: 124 | AI126: Guyana | AJ126: 124
AH127: 125 | AI127: Haiti | AJ127: 125
AH128: 126 | AI128: Holy See | AJ128: 126
AH129: 127 | AI129: Honduras | AJ129: 127
AH130: 128 | AI130: Indonesia | AJ130: 128
AH131: 129 | AI131: Iran | AJ131: 129
AH132: 130 | AI132: Iraq | AJ132: 130
AH133: 131 | AI133: Isle of Man | AJ133: 131
AH134: 132 | AI134: Israel | AJ134: 132
AH135: 133 | AI135: Jamaica | AJ135: 133
AH136: 134 | AI136: Jordan | AJ136: 134
AH137: 135 | AI137: Kazakhstan | AJ137: 135
AH138: 136 | AI138: Kenya | AJ138: 136
AH139: 137 | AI139: Kiribati | AJ139: 137
AH140: 138 | AI140: Korea, Dem. People's Rep. of | AJ140: 138
AH141: 139 | AI141: Korea, Republic of | AJ141: 139
AH142: 140 | AI142: Kosovo | AJ142: 140
AH143: 141 | AI143: Kuwait | AJ143: 141
AH144: 142 | AI144: Kyrgyz Republic | AJ144: 142
AH145: 143 | AI145: Lao P.D.R. | AJ145: 143
AH146: 144 | AI146: Lebanon | AJ146: 144
AH147: 145 | AI147: Lesotho | AJ147: 145
AH148: 146 | AI148: Liberia | AJ148: 146
AH149: 147 | AI149: Libya | AJ149: 147
AH150: 148 | AI150: Macao SAR | AJ150: 148
AH151: 149 | AI151: Madagascar | AJ151: 149
AH152: 150 | AI152: Malawi | AJ152: 150
AH153: 151 | AI153: Malaysia | AJ153: 151
AH154: 152 | AI154: Maldives | AJ154: 152
AH155: 153 | AI155: Mali | AJ155: 153
AH156: 154 | AI156: Marshall Islands | AJ156: 154
AH157: 155 | AI157: Martinique | AJ157: 155
AH158: 156 | AI158: Mauritania | AJ158: 156
AH159: 157 | AI159: Mauritius | AJ159: 157
AH160: 158 | AI160: Mayotte | AJ160: 158
AH161: 159 | AI161: Micronesia, Fed. States of | AJ161: 159
AH162: 160 | AI162: Moldova | AJ162: 160
AH163: 161 | AI163: Monaco | AJ163: 161
AH164: 162 | AI164: Mongolia | AJ164: 162
AH165: 163 | AI165: Montenegro | AJ165: 163
AH166: 164 | AI166: Montserrat | AJ166: 164
AH167: 165 | AI167: Morocco | AJ167: 165
AH168: 166 | AI168: Mozambique | AJ168: 166
AH169: 167 | AI169: Myanmar | AJ169: 167
AH170: 168 | AI170: Namibia | AJ170: 168
AH171: 169 | AI171: Nauru | AJ171: 169
AH172: 170 | AI172: Nepal | AJ172: 170
AH173: 171 | AI173: New Caledonia | AJ173: 171
AH174: 172 | AI174: New Zealand | AJ174: 172
AH175: 173 | AI175: Nicaragua | AJ175: 173
AH176: 174 | AI176: Niger | AJ176: 174
AH177: 175 | AI177: Nigeria | AJ177: 175
AH178: 176 | AI178: Niue | AJ178: 176
AH179: 177 | AI179: Northern Mariana Islands | AJ179: 177
AH180: 178 | AI180: Oman | AJ180: 178
AH181: 179 | AI181: Pakistan | AJ181: 179
AH182: 180 | AI182: Palau | AJ182: 180
AH183: 181 | AI183: Panama | AJ183: 181
AH184: 182 | AI184: Papua New Guinea | AJ184: 182
AH185: 183 | AI185: Paraguay | AJ185: 183
AH186: 184 | AI186: Philippines | AJ186: 184
AH187: 185 | AI187: Pitcairn | AJ187: 185
AH188: 186 | AI188: Puerto Rico | AJ188: 186
AH189: 187 | AI189: Qatar | AJ189: 187
AH190: 188 | AI190: Reunion | AJ190: 188
AH191: 189 | AI191: Rwanda | AJ191: 189
AH192: 190 | AI192: Saint Helena | AJ192: 190
AH193: 191 | AI193: Saint Kitts and Nevis | AJ193: 191
AH194: 192 | AI194: Saint Lucia | AJ194: 192
AH195: 193 | AI195: Saint Martin | AJ195: 193
AH196: 194 | AI196: Saint Vincent and the Grenadines | AJ196: 194
AH197: 195 | AI197: Saint-Pierre and Miquelon | AJ197: 195
AH198: 196 | AI198: Samoa | AJ198: 196
AH199: 197 | AI199: San Marino | AJ199: 197
AH200: 198 | AI200: São Tomé and Príncipe | AJ200: 198
... 46 more rows

Sheet REPO 1. Capital_EUR_ (hidden)
D1: OK | F1: 0 | G1: 0 | H1: 0
B2: 1. CAPITAL | C2: =Menu!H29 -> 00:00:00 | D2: 0 | F2: 0 | G2: 0 | H2: 0
B3: =CONCATENATE("as of ", TEXT(C2,"dd/mm/yyyy")) -> as of 00/01/1900
B5: (in million Euro) | F5: =VLOOKUP(F6,'DATA MART_'!$Y$30:$Z$81,2,0) -> 100100 | G5: 100103 | H5: =VLOOKUP(H6,'DATA MART_'!$Y$30:$Z$81,2,0) -> 100200 | I5: 100203 | J5: =VLOOKUP(J6,'DATA MART_'!$Y$30:$Z$81,2,0) -> 100300 | K5: =VLOOKUP(K6,'DATA MART_'!$Y$30:$Z$81,2,0) -> 100301 | L5: =VLOOKUP(L6,'DATA MART_'!$Y$30:$Z$81,2,0) -> 100402 | M5: =VLOOKUP(M6,'DATA MART_'!$Y$30:$Z$81,2,0) -> 100500 | N5: =VLOOKUP(N6,'DATA MART_'!$Y$30:$Z$81,2,0) -> 100600 | O5: =VLOOKUP(O6,'DATA MART_'!$Y$30:$Z$81,2,0) -> 100700 | P5: 100800 | Q5: =VLOOKUP(Q6,'DATA MART_'!$Y$30:$Z$81,2,0) -> 100900 | R5: =VLOOKUP(R6,'DATA MART_'!$Y$30:$Z$81,2,0) -> 130100 | S5: =VLOOKUP(S6,'DATA MART_'!$Y$30:$Z$81,2,0) -> 130200 | T5: =VLOOKUP(T6,'DATA MART_'!$Y$30:$Z$81,2,0) -> 130300 | U5: =VLOOKUP(U6,'DATA MART_'!$Y$30:$Z$81,2,0) -> 130400 | V5: 130500
B6: Bankname | C6: Bankcode | D6: Country | E6: Approach (1) | F6: A) Common equity before deductions (Original own funds without hybrid instruments and government support measures other than ordinary shares) (+) | G6: Of which: adjustment to valuation differences in other AFS assets (4) (-/+) | H6: B) Deductions from common equity (Elements deducted from original own funds) (-) | I6: Of which: IRB provision shortfall and IRB equity expected loss amounts (before tax) (-) | J6: C) Common equity (A+B) | K6: Of which: ordinary shares subscribed by government | L6: D) CoCos issued before 30 June 2012 according to EBA Common Term Sheet (+) | M6: E) Other Existing government support measures (+) | N6: F) Core Tier 1 including other intruments eligible and existing government support measures (C+D+E) | O6: G) Hybrid instruments not subscribed by government | P6: H) Tier 1 Capital (F+G) | Q6: I) RWA | R6: Common Equity instruments under A) not eligible as CET1 (under CRR) | S6: Adjustments to Minority Interests | T6: DTAs that rely on future profitability (net of associated DTL) | U6: Holdings of CET1 capital instruments of financial sector entities: reciprocal cross holdings, non significant and significant investments | V6: RWA for Credit Value Adjustment Risk (CVA)
B7: Erste Group Bank (EGB) | C7: AT001 | D7: AT | E7: 2 | F7: =VLOOKUP(CONCATENATE($C7,"|",$C$2, "|", F$5,"|",$D$2,"|",$F$1,"|", $F$2,"|",$G$1,"|",$G$2,"|",$H$1,"|",$H$2),'DATA MART_'!$B$2:$Q$985098,16,0) ->  | G7: =VLOOKUP(CONCATENATE($C7,"|",$C$2, "|", G$5,"|",$D$2,"|",$F$1,"|", $F$2,"|",$G$1,"|",$G$2,"|",$H$1,"|",$H$2),'DATA MART_'!$B$2:$Q$985098,16,0) ->  | H7: =VLOOKUP(CONCATENATE($C7,"|",$C$2, "|", H$5,"|",$D$2,"|",$F$1,"|", $F$2,"|",$G$1,"|",$G$2,"|",$H$1,"|",$H$2),'DATA MART_'!$B$2:$Q$985098,16,0) ->  | I7: =VLOOKUP(CONCATENATE($C7,"|",$C$2, "|", I$5,"|",$D$2,"|",$F$1,"|", $F$2,"|",$G$1,"|",$G$2,"|",$H$1,"|",$H$2),'DATA MART_'!$B$2:$Q$985098,16,0) ->  | J7: =VLOOKUP(CONCATENATE($C7,"|",$C$2, "|", J$5,"|",$D$2,"|",$F$1,"|", $F$2,"|",$G$1,"|",$G$2,"|",$H$1,"|",$H$2),'DATA MART_'!$B$2:$Q$985098,16,0) ->  | K7: =VLOOKUP(CONCATENATE($C7,"|",$C$2, "|", K$5,"|",$D$2,"|",$F$1,"|", $F$2,"|",$G$1,"|",$G$2,"|",$H$1,"|",$H$2),'DATA MART_'!$B$2:$Q$985098,16,0) ->  | L7: =VLOOKUP(CONCATENATE($C7,"|",$C$2, "|", L$5,"|",$D$2,"|",$F$1,"|", $F$2,"|",$G$1,"|",$G$2,"|",$H$1,"|",$H$2),'DATA MART_'!$B$2:$Q$985098,16,0) ->  | M7: =VLOOKUP(CONCATENATE($C7,"|",$C$2, "|", M$5,"|",$D$2,"|",$F$1,"|", $F$2,"|",$G$1,"|",$G$2,"|",$H$1,"|",$H$2),'DATA MART_'!$B$2:$Q$985098,16,0) ->  | N7: =VLOOKUP(CONCATENATE($C7,"|",$C$2, "|", N$5,"|",$D$2,"|",$F$1,"|", $F$2,"|",$G$1,"|",$G$2,"|",$H$1,"|",$H$2),'DATA MART_'!$B$2:$Q$985098,16,0) ->  | O7: =VLOOKUP(CONCATENATE($C7,"|",$C$2, "|", O$5,"|",$D$2,"|",$F$1,"|", $F$2,"|",$G$1,"|",$G$2,"|",$H$1,"|",$H$2),'DATA MART_'!$B$2:$Q$985098,16,0) ->  | P7: =VLOOKUP(CONCATENATE($C7,"|",$C$2, "|", P$5,"|",$D$2,"|",$F$1,"|", $F$2,"|",$G$1,"|",$G$2,"|",$H$1,"|",$H$2),'DATA MART_'!$B$2:$Q$985098,16,0) ->  | Q7: =VLOOKUP(CONCATENATE($C7,"|",$C$2, "|", Q$5,"|",$D$2,"|",$F$1,"|", $F$2,"|",$G$1,"|",$G$2,"|",$H$1,"|",$H$2),'DATA MART_'!$B$2:$Q$985098,16,0) ->  | R7: =VLOOKUP(CONCATENATE($C7,"|",$C$2, "|", R$5,"|",$D$2,"|",$F$1,"|", $F$2,"|",$G$1,"|",$G$2,"|",$H$1,"|",$H$2),'DATA MART_'!$B$2:$Q$985098,16,0) ->  | S7: =VLOOKUP(CONCATENATE($C7,"|",$C$2, "|", S$5,"|",$D$2,"|",$F$1,"|", $F$2,"|",$G$1,"|",$G$2,"|",$H$1,"|",$H$2),'DATA MART_'!$B$2:$Q$985098,16,0) ->  | T7: =VLOOKUP(CONCATENATE($C7,"|",$C$2, "|", T$5,"|",$D$2,"|",$F$1,"|", $F$2,"|",$G$1,"|",$G$2,"|",$H$1,"|",$H$2),'DATA MART_'!$B$2:$Q$985098,16,0) ->  | U7: =VLOOKUP(CONCATENATE($C7,"|",$C$2, "|", U$5,"|",$D$2,"|",$F$1,"|", $F$2,"|",$G$1,"|",$G$2,"|",$H$1,"|",$H$2),'DATA MART_'!$B$2:$Q$985098,16,0) ->  | V7: =VLOOKUP(CONCATENATE($C7,"|",$C$2, "|", V$5,"|",$D$2,"|",$F$1,"|", $F$2,"|",$G$1,"|",$G$2,"|",$H$1,"|",$H$2),'DATA MART_'!$B$2:$Q$985098,16,0) -> 
B8: Raiffeisen Zentralbank Österreich (RZB) | C8: AT002 | D8: AT | E8: 1 | F8: =VLOOKUP(CONCATENATE($C8,"|",$C$2, "|", F$5,"|",$D$2,"|",$F$1,"|", $F$2,"|",$G$1,"|",$G$2,"|",$H$1,"|",$H$2),'DATA MART_'!$B$2:$Q$985098,16,0) ->  | G8: =VLOOKUP(CONCATENATE($C8,"|",$C$2, "|", G$5,"|",$D$2,"|",$F$1,"|", $F$2,"|",$G$1,"|",$G$2,"|",$H$1,"|",$H$2),'DATA MART_'!$B$2:$Q$985098,16,0) ->  | H8: =VLOOKUP(CONCATENATE($C8,"|",$C$2, "|", H$5,"|",$D$2,"|",$F$1,"|", $F$2,"|",$G$1,"|",$G$2,"|",$H$1,"|",$H$2),'DATA MART_'!$B$2:$Q$985098,16,0) ->  | I8: =VLOOKUP(CONCATENATE($C8,"|",$C$2, "|", I$5,"|",$D$2,"|",$F$1,"|", $F$2,"|",$G$1,"|",$G$2,"|",$H$1,"|",$H$2),'DATA MART_'!$B$2:$Q$985098,16,0) ->  | J8: =VLOOKUP(CONCATENATE($C8,"|",$C$2, "|", J$5,"|",$D$2,"|",$F$1,"|", $F$2,"|",$G$1,"|",$G$2,"|",$H$1,"|",$H$2),'DATA MART_'!$B$2:$Q$985098,16,0) ->  | K8: =VLOOKUP(CONCATENATE($C8,"|",$C$2, "|", K$5,"|",$D$2,"|",$F$1,"|", $F$2,"|",$G$1,"|",$G$2,"|",$H$1,"|",$H$2),'DATA MART_'!$B$2:$Q$985098,16,0) ->  | L8: =VLOOKUP(CONCATENATE($C8,"|",$C$2, "|", L$5,"|",$D$2,"|",$F$1,"|", $F$2,"|",$G$1,"|",$G$2,"|",$H$1,"|",$H$2),'DATA MART_'!$B$2:$Q$985098,16,0) ->  | M8: =VLOOKUP(CONCATENATE($C8,"|",$C$2, "|", M$5,"|",$D$2,"|",$F$1,"|", $F$2,"|",$G$1,"|",$G$2,"|",$H$1,"|",$H$2),'DATA MART_'!$B$2:$Q$985098,16,0) ->  | N8: =VLOOKUP(CONCATENATE($C8,"|",$C$2, "|", N$5,"|",$D$2,"|",$F$1,"|", $F$2,"|",$G$1,"|",$G$2,"|",$H$1,"|",$H$2),'DATA MART_'!$B$2:$Q$985098,16,0) ->  | O8: =VLOOKUP(CONCATENATE($C8,"|",$C$2, "|", O$5,"|",$D$2,"|",$F$1,"|", $F$2,"|",$G$1,"|",$G$2,"|",$H$1,"|",$H$2),'DATA MART_'!$B$2:$Q$985098,16,0) ->  | P8: =VLOOKUP(CONCATENATE($C8,"|",$C$2, "|", P$5,"|",$D$2,"|",$F$1,"|", $F$2,"|",$G$1,"|",$G$2,"|",$H$1,"|",$H$2),'DATA MART_'!$B$2:$Q$985098,16,0) ->  | Q8: =VLOOKUP(CONCATENATE($C8,"|",$C$2, "|", Q$5,"|",$D$2,"|",$F$1,"|", $F$2,"|",$G$1,"|",$G$2,"|",$H$1,"|",$H$2),'DATA MART_'!$B$2:$Q$985098,16,0) ->  | R8: =VLOOKUP(CONCATENATE($C8,"|",$C$2, "|", R$5,"|",$D$2,"|",$F$1,"|", $F$2,"|",$G$1,"|",$G$2,"|",$H$1,"|",$H$2),'DATA MART_'!$B$2:$Q$985098,16,0) ->  | S8: =VLOOKUP(CONCATENATE($C8,"|",$C$2, "|", S$5,"|",$D$2,"|",$F$1,"|", $F$2,"|",$G$1,"|",$G$2,"|",$H$1,"|",$H$2),'DATA MART_'!$B$2:$Q$985098,16,0) ->  | T8: =VLOOKUP(CONCATENATE($C8,"|",$C$2, "|", T$5,"|",$D$2,"|",$F$1,"|", $F$2,"|",$G$1,"|",$G$2,"|",$H$1,"|",$H$2),'DATA MART_'!$B$2:$Q$985098,16,0) ->  | U8: =VLOOKUP(CONCATENATE($C8,"|",$C$2, "|", U$5,"|",$D$2,"|",$F$1,"|", $F$2,"|",$G$1,"|",$G$2,"|",$H$1,"|",$H$2),'DATA MART_'!$B$2:$Q$985098,16,0) ->  | V8: =VLOOKUP(CONCATENATE($C8,"|",$C$2, "|", V$5,"|",$D$2,"|",$F$1,"|", $F$2,"|",$G$1,"|",$G$2,"|",$H$1,"|",$H$2),'DATA MART_'!$B$2:$Q$985098,16,0) -> 
B9: KBC BANK | C9: BE005 | D9: BE | E9: 2 | F9: =VLOOKUP(CONCATENATE($C9,"|",$C$2, "|", F$5,"|",$D$2,"|",$F$1,"|", $F$2,"|",$G$1,"|",$G$2,"|",$H$1,"|",$H$2),'DATA MART_'!$B$2:$Q$985098,16,0) ->  | G9: =VLOOKUP(CONCATENATE($C9,"|",$C$2, "|", G$5,"|",$D$2,"|",$F$1,"|", $F$2,"|",$G$1,"|",$G$2,"|",$H$1,"|",$H$2),'DATA MART_'!$B$2:$Q$985098,16,0) ->  | H9: =VLOOKUP(CONCATENATE($C9,"|",$C$2, "|", H$5,"|",$D$2,"|",$F$1,"|", $F$2,"|",$G$1,"|",$G$2,"|",$H$1,"|",$H$2),'DATA MART_'!$B$2:$Q$985098,16,0) ->  | I9: =VLOOKUP(CONCATENATE($C9,"|",$C$2, "|", I$5,"|",$D$2,"|",$F$1,"|", $F$2,"|",$G$1,"|",$G$2,"|",$H$1,"|",$H$2),'DATA MART_'!$B$2:$Q$985098,16,0) ->  | J9: =VLOOKUP(CONCATENATE($C9,"|",$C$2, "|", J$5,"|",$D$2,"|",$F$1,"|", $F$2,"|",$G$1,"|",$G$2,"|",$H$1,"|",$H$2),'DATA MART_'!$B$2:$Q$985098,16,0) ->  | K9: =VLOOKUP(CONCATENATE($C9,"|",$C$2, "|", K$5,"|",$D$2,"|",$F$1,"|", $F$2,"|",$G$1,"|",$G$2,"|",$H$1,"|",$H$2),'DATA MART_'!$B$2:$Q$985098,16,0) ->  | L9: =VLOOKUP(CONCATENATE($C9,"|",$C$2, "|", L$5,"|",$D$2,"|",$F$1,"|", $F$2,"|",$G$1,"|",$G$2,"|",$H$1,"|",$H$2),'DATA MART_'!$B$2:$Q$985098,16,0) ->  | M9: =VLOOKUP(CONCATENATE($C9,"|",$C$2, "|", M$5,"|",$D$2,"|",$F$1,"|", $F$2,"|",$G$1,"|",$G$2,"|",$H$1,"|",$H$2),'DATA MART_'!$B$2:$Q$985098,16,0) ->  | N9: =VLOOKUP(CONCATENATE($C9,"|",$C$2, "|", N$5,"|",$D$2,"|",$F$1,"|", $F$2,"|",$G$1,"|",$G$2,"|",$H$1,"|",$H$2),'DATA MART_'!$B$2:$Q$985098,16,0) ->  | O9: =VLOOKUP(CONCATENATE($C9,"|",$C$2, "|", O$5,"|",$D$2,"|",$F$1,"|", $F$2,"|",$G$1,"|",$G$2,"|",$H$1,"|",$H$2),'DATA MART_'!$B$2:$Q$985098,16,0) ->  | P9: =VLOOKUP(CONCATENATE($C9,"|",$C$2, "|", P$5,"|",$D$2,"|",$F$1,"|", $F$2,"|",$G$1,"|",$G$2,"|",$H$1,"|",$H$2),'DATA MART_'!$B$2:$Q$985098,16,0) ->  | Q9: =VLOOKUP(CONCATENATE($C9,"|",$C$2, "|", Q$5,"|",$D$2,"|",$F$1,"|", $F$2,"|",$G$1,"|",$G$2,"|",$H$1,"|",$H$2),'DATA MART_'!$B$2:$Q$985098,16,0) ->  | R9: =VLOOKUP(CONCATENATE($C9,"|",$C$2, "|", R$5,"|",$D$2,"|",$F$1,"|", $F$2,"|",$G$1,"|",$G$2,"|",$H$1,"|",$H$2),'DATA MART_'!$B$2:$Q$985098,16,0) ->  | S9: =VLOOKUP(CONCATENATE($C9,"|",$C$2, "|", S$5,"|",$D$2,"|",$F$1,"|", $F$2,"|",$G$1,"|",$G$2,"|",$H$1,"|",$H$2),'DATA MART_'!$B$2:$Q$985098,16,0) ->  | T9: =VLOOKUP(CONCATENATE($C9,"|",$C$2, "|", T$5,"|",$D$2,"|",$F$1,"|", $F$2,"|",$G$1,"|",$G$2,"|",$H$1,"|",$H$2),'DATA MART_'!$B$2:$Q$985098,16,0) ->  | U9: =VLOOKUP(CONCATENATE($C9,"|",$C$2, "|", U$5,"|",$D$2,"|",$F$1,"|", $F$2,"|",$G$1,"|",$G$2,"|",$H$1,"|",$H$2),'DATA MART_'!$B$2:$Q$985098,16,0) ->  | V9: =VLOOKUP(CONCATENATE($C9,"|",$C$2, "|", V$5,"|",$D$2,"|",$F$1,"|", $F$2,"|",$G$1,"|",$G$2,"|",$H$1,"|",$H$2),'DATA MART_'!$B$2:$Q$985098,16,0) -> 
B10: BANK OF CYPRUS PUBLIC CO LTD | C10: CY007 | D10: CY | E10: Not Applicable² | F10: =VLOOKUP(CONCATENATE($C10,"|",$C$2, "|", F$5,"|",$D$2,"|",$F$1,"|", $F$2,"|",$G$1,"|",$G$2,"|",$H$1,"|",$H$2),'DATA MART_'!$B$2:$Q$985098,16,0) ->  | G10: =VLOOKUP(CONCATENATE($C10,"|",$C$2, "|", G$5,"|",$D$2,"|",$F$1,"|", $F$2,"|",$G$1,"|",$G$2,"|",$H$1,"|",$H$2),'DATA MART_'!$B$2:$Q$985098,16,0) ->  | H10: =VLOOKUP(CONCATENATE($C10,"|",$C$2, "|", H$5,"|",$D$2,"|",$F$1,"|", $F$2,"|",$G$1,"|",$G$2,"|",$H$1,"|",$H$2),'DATA MART_'!$B$2:$Q$985098,16,0) ->  | I10: =VLOOKUP(CONCATENATE($C10,"|",$C$2, "|", I$5,"|",$D$2,"|",$F$1,"|", $F$2,"|",$G$1,"|",$G$2,"|",$H$1,"|",$H$2),'DATA MART_'!$B$2:$Q$985098,16,0) ->  | J10: =VLOOKUP(CONCATENATE($C10,"|",$C$2, "|", J$5,"|",$D$2,"|",$F$1,"|", $F$2,"|",$G$1,"|",$G$2,"|",$H$1,"|",$H$2),'DATA MART_'!$B$2:$Q$985098,16,0) ->  | K10: =VLOOKUP(CONCATENATE($C10,"|",$C$2, "|", K$5,"|",$D$2,"|",$F$1,"|", $F$2,"|",$G$1,"|",$G$2,"|",$H$1,"|",$H$2),'DATA MART_'!$B$2:$Q$985098,16,0) ->  | L10: =VLOOKUP(CONCATENATE($C10,"|",$C$2, "|", L$5,"|",$D$2,"|",$F$1,"|", $F$2,"|",$G$1,"|",$G$2,"|",$H$1,"|",$H$2),'DATA MART_'!$B$2:$Q$985098,16,0) ->  | M10: =VLOOKUP(CONCATENATE($C10,"|",$C$2, "|", M$5,"|",$D$2,"|",$F$1,"|", $F$2,"|",$G$1,"|",$G$2,"|",$H$1,"|",$H$2),'DATA MART_'!$B$2:$Q$985098,16,0) ->  | N10: =VLOOKUP(CONCATENATE($C10,"|",$C$2, "|", N$5,"|",$D$2,"|",$F$1,"|", $F$2,"|",$G$1,"|",$G$2,"|",$H$1,"|",$H$2),'DATA MART_'!$B$2:$Q$985098,16,0) ->  | O10: =VLOOKUP(CONCATENATE($C10,"|",$C$2, "|", O$5,"|",$D$2,"|",$F$1,"|", $F$2,"|",$G$1,"|",$G$2,"|",$H$1,"|",$H$2),'DATA MART_'!$B$2:$Q$985098,16,0) ->  | P10: =VLOOKUP(CONCATENATE($C10,"|",$C$2, "|", P$5,"|",$D$2,"|",$F$1,"|", $F$2,"|",$G$1,"|",$G$2,"|",$H$1,"|",$H$2),'DATA MART_'!$B$2:$Q$985098,16,0) ->  | Q10: =VLOOKUP(CONCATENATE($C10,"|",$C$2, "|", Q$5,"|",$D$2,"|",$F$1,"|", $F$2,"|",$G$1,"|",$G$2,"|",$H$1,"|",$H$2),'DATA MART_'!$B$2:$Q$985098,16,0) ->  | R10: =VLOOKUP(CONCATENATE($C10,"|",$C$2, "|", R$5,"|",$D$2,"|",$F$1,"|", $F$2,"|",$G$1,"|",$G$2,"|",$H$1,"|",$H$2),'DATA MART_'!$B$2:$Q$985098,16,0) ->  | S10: =VLOOKUP(CONCATENATE($C10,"|",$C$2, "|", S$5,"|",$D$2,"|",$F$1,"|", $F$2,"|",$G$1,"|",$G$2,"|",$H$1,"|",$H$2),'DATA MART_'!$B$2:$Q$985098,16,0) ->  | T10: =VLOOKUP(CONCATENATE($C10,"|",$C$2, "|", T$5,"|",$D$2,"|",$F$1,"|", $F$2,"|",$G$1,"|",$G$2,"|",$H$1,"|",$H$2),'DATA MART_'!$B$2:$Q$985098,16,0) ->  | U10: =VLOOKUP(CONCATENATE($C10,"|",$C$2, "|", U$5,"|",$D$2,"|",$F$1,"|", $F$2,"|",$G$1,"|",$G$2,"|",$H$1,"|",$H$2),'DATA MART_'!$B$2:$Q$985098,16,0) ->  | V10: =VLOOKUP(CONCATENATE($C10,"|",$C$2, "|", V$5,"|",$D$2,"|",$F$1,"|", $F$2,"|",$G$1,"|",$G$2,"|",$H$1,"|",$H$2),'DATA MART_'!$B$2:$Q$985098,16,0) -> 
B11: DEUTSCHE BANK AG | C11: DE017 | D11: DE | E11: 1 | F11: =VLOOKUP(CONCATENATE($C11,"|",$C$2, "|", F$5,"|",$D$2,"|",$F$1,"|", $F$2,"|",$G$1,"|",$G$2,"|",$H$1,"|",$H$2),'DATA MART_'!$B$2:$Q$985098,16,0) ->  | G11: =VLOOKUP(CONCATENATE($C11,"|",$C$2, "|", G$5,"|",$D$2,"|",$F$1,"|", $F$2,"|",$G$1,"|",$G$2,"|",$H$1,"|",$H$2),'DATA MART_'!$B$2:$Q$985098,16,0) ->  | H11: =VLOOKUP(CONCATENATE($C11,"|",$C$2, "|", H$5,"|",$D$2,"|",$F$1,"|", $F$2,"|",$G$1,"|",$G$2,"|",$H$1,"|",$H$2),'DATA MART_'!$B$2:$Q$985098,16,0) ->  | I11: =VLOOKUP(CONCATENATE($C11,"|",$C$2, "|", I$5,"|",$D$2,"|",$F$1,"|", $F$2,"|",$G$1,"|",$G$2,"|",$H$1,"|",$H$2),'DATA MART_'!$B$2:$Q$985098,16,0) ->  | J11: =VLOOKUP(CONCATENATE($C11,"|",$C$2, "|", J$5,"|",$D$2,"|",$F$1,"|", $F$2,"|",$G$1,"|",$G$2,"|",$H$1,"|",$H$2),'DATA MART_'!$B$2:$Q$985098,16,0) ->  | K11: =VLOOKUP(CONCATENATE($C11,"|",$C$2, "|", K$5,"|",$D$2,"|",$F$1,"|", $F$2,"|",$G$1,"|",$G$2,"|",$H$1,"|",$H$2),'DATA MART_'!$B$2:$Q$985098,16,0) ->  | L11: =VLOOKUP(CONCATENATE($C11,"|",$C$2, "|", L$5,"|",$D$2,"|",$F$1,"|", $F$2,"|",$G$1,"|",$G$2,"|",$H$1,"|",$H$2),'DATA MART_'!$B$2:$Q$985098,16,0) ->  | M11: =VLOOKUP(CONCATENATE($C11,"|",$C$2, "|", M$5,"|",$D$2,"|",$F$1,"|", $F$2,"|",$G$1,"|",$G$2,"|",$H$1,"|",$H$2),'DATA MART_'!$B$2:$Q$985098,16,0) ->  | N11: =VLOOKUP(CONCATENATE($C11,"|",$C$2, "|", N$5,"|",$D$2,"|",$F$1,"|", $F$2,"|",$G$1,"|",$G$2,"|",$H$1,"|",$H$2),'DATA MART_'!$B$2:$Q$985098,16,0) ->  | O11: =VLOOKUP(CONCATENATE($C11,"|",$C$2, "|", O$5,"|",$D$2,"|",$F$1,"|", $F$2,"|",$G$1,"|",$G$2,"|",$H$1,"|",$H$2),'DATA MART_'!$B$2:$Q$985098,16,0) ->  | P11: =VLOOKUP(CONCATENATE($C11,"|",$C$2, "|", P$5,"|",$D$2,"|",$F$1,"|", $F$2,"|",$G$1,"|",$G$2,"|",$H$1,"|",$H$2),'DATA MART_'!$B$2:$Q$985098,16,0) ->  | Q11: =VLOOKUP(CONCATENATE($C11,"|",$C$2, "|", Q$5,"|",$D$2,"|",$F$1,"|", $F$2,"|",$G$1,"|",$G$2,"|",$H$1,"|",$H$2),'DATA MART_'!$B$2:$Q$985098,16,0) ->  | R11: =VLOOKUP(CONCATENATE($C11,"|",$C$2, "|", R$5,"|",$D$2,"|",$F$1,"|", $F$2,"|",$G$1,"|",$G$2,"|",$H$1,"|",$H$2),'DATA MART_'!$B$2:$Q$985098,16,0) ->  | S11: =VLOOKUP(CONCATENATE($C11,"|",$C$2, "|", S$5,"|",$D$2,"|",$F$1,"|", $F$2,"|",$G$1,"|",$G$2,"|",$H$1,"|",$H$2),'DATA MART_'!$B$2:$Q$985098,16,0) ->  | T11: =VLOOKUP(CONCATENATE($C11,"|",$C$2, "|", T$5,"|",$D$2,"|",$F$1,"|", $F$2,"|",$G$1,"|",$G$2,"|",$H$1,"|",$H$2),'DATA MART_'!$B$2:$Q$985098,16,0) ->  | U11: =VLOOKUP(CONCATENATE($C11,"|",$C$2, "|", U$5,"|",$D$2,"|",$F$1,"|", $F$2,"|",$G$1,"|",$G$2,"|",$H$1,"|",$H$2),'DATA MART_'!$B$2:$Q$985098,16,0) ->  | V11: =VLOOKUP(CONCATENATE($C11,"|",$C$2, "|", V$5,"|",$D$2,"|",$F$1,"|", $F$2,"|",$G$1,"|",$G$2,"|",$H$1,"|",$H$2),'DATA MART_'!$B$2:$Q$985098,16,0) -> 
B12: COMMERZBANK AG | C12: DE018 | D12: DE | E12: 2 | F12: =VLOOKUP(CONCATENATE($C12,"|",$C$2, "|", F$5,"|",$D$2,"|",$F$1,"|", $F$2,"|",$G$1,"|",$G$2,"|",$H$1,"|",$H$2),'DATA MART_'!$B$2:$Q$985098,16,0) ->  | G12: =VLOOKUP(CONCATENATE($C12,"|",$C$2, "|", G$5,"|",$D$2,"|",$F$1,"|", $F$2,"|",$G$1,"|",$G$2,"|",$H$1,"|",$H$2),'DATA MART_'!$B$2:$Q$985098,16,0) ->  | H12: =VLOOKUP(CONCATENATE($C12,"|",$C$2, "|", H$5,"|",$D$2,"|",$F$1,"|", $F$2,"|",$G$1,"|",$G$2,"|",$H$1,"|",$H$2),'DATA MART_'!$B$2:$Q$985098,16,0) ->  | I12: =VLOOKUP(CONCATENATE($C12,"|",$C$2, "|", I$5,"|",$D$2,"|",$F$1,"|", $F$2,"|",$G$1,"|",$G$2,"|",$H$1,"|",$H$2),'DATA MART_'!$B$2:$Q$985098,16,0) ->  | J12: =VLOOKUP(CONCATENATE($C12,"|",$C$2, "|", J$5,"|",$D$2,"|",$F$1,"|", $F$2,"|",$G$1,"|",$G$2,"|",$H$1,"|",$H$2),'DATA MART_'!$B$2:$Q$985098,16,0) ->  | K12: =VLOOKUP(CONCATENATE($C12,"|",$C$2, "|", K$5,"|",$D$2,"|",$F$1,"|", $F$2,"|",$G$1,"|",$G$2,"|",$H$1,"|",$H$2),'DATA MART_'!$B$2:$Q$985098,16,0) ->  | L12: =VLOOKUP(CONCATENATE($C12,"|",$C$2, "|", L$5,"|",$D$2,"|",$F$1,"|", $F$2,"|",$G$1,"|",$G$2,"|",$H$1,"|",$H$2),'DATA MART_'!$B$2:$Q$985098,16,0) ->  | M12: =VLOOKUP(CONCATENATE($C12,"|",$C$2, "|", M$5,"|",$D$2,"|",$F$1,"|", $F$2,"|",$G$1,"|",$G$2,"|",$H$1,"|",$H$2),'DATA MART_'!$B$2:$Q$985098,16,0) ->  | N12: =VLOOKUP(CONCATENATE($C12,"|",$C$2, "|", N$5,"|",$D$2,"|",$F$1,"|", $F$2,"|",$G$1,"|",$G$2,"|",$H$1,"|",$H$2),'DATA MART_'!$B$2:$Q$985098,16,0) ->  | O12: =VLOOKUP(CONCATENATE($C12,"|",$C$2, "|", O$5,"|",$D$2,"|",$F$1,"|", $F$2,"|",$G$1,"|",$G$2,"|",$H$1,"|",$H$2),'DATA MART_'!$B$2:$Q$985098,16,0) ->  | P12: =VLOOKUP(CONCATENATE($C12,"|",$C$2, "|", P$5,"|",$D$2,"|",$F$1,"|", $F$2,"|",$G$1,"|",$G$2,"|",$H$1,"|",$H$2),'DATA MART_'!$B$2:$Q$985098,16,0) ->  | Q12: =VLOOKUP(CONCATENATE($C12,"|",$C$2, "|", Q$5,"|",$D$2,"|",$F$1,"|", $F$2,"|",$G$1,"|",$G$2,"|",$H$1,"|",$H$2),'DATA MART_'!$B$2:$Q$985098,16,0) ->  | R12: =VLOOKUP(CONCATENATE($C12,"|",$C$2, "|", R$5,"|",$D$2,"|",$F$1,"|", $F$2,"|",$G$1,"|",$G$2,"|",$H$1,"|",$H$2),'DATA MART_'!$B$2:$Q$985098,16,0) ->  | S12: =VLOOKUP(CONCATENATE($C12,"|",$C$2, "|", S$5,"|",$D$2,"|",$F$1,"|", $F$2,"|",$G$1,"|",$G$2,"|",$H$1,"|",$H$2),'DATA MART_'!$B$2:$Q$985098,16,0) ->  | T12: =VLOOKUP(CONCATENATE($C12,"|",$C$2, "|", T$5,"|",$D$2,"|",$F$1,"|", $F$2,"|",$G$1,"|",$G$2,"|",$H$1,"|",$H$2),'DATA MART_'!$B$2:$Q$985098,16,0) ->  | U12: =VLOOKUP(CONCATENATE($C12,"|",$C$2, "|", U$5,"|",$D$2,"|",$F$1,"|", $F$2,"|",$G$1,"|",$G$2,"|",$H$1,"|",$H$2),'DATA MART_'!$B$2:$Q$985098,16,0) ->  | V12: =VLOOKUP(CONCATENATE($C12,"|",$C$2, "|", V$5,"|",$D$2,"|",$F$1,"|", $F$2,"|",$G$1,"|",$G$2,"|",$H$1,"|",$H$2),'DATA MART_'!$B$2:$Q$985098,16,0) -> 
B13: Landesbank Baden-Württemberg | C13: DE019 | D13: DE | E13: 1 | F13: =VLOOKUP(CONCATENATE($C13,"|",$C$2, "|", F$5,"|",$D$2,"|",$F$1,"|", $F$2,"|",$G$1,"|",$G$2,"|",$H$1,"|",$H$2),'DATA MART_'!$B$2:$Q$985098,16,0) ->  | G13: =VLOOKUP(CONCATENATE($C13,"|",$C$2, "|", G$5,"|",$D$2,"|",$F$1,"|", $F$2,"|",$G$1,"|",$G$2,"|",$H$1,"|",$H$2),'DATA MART_'!$B$2:$Q$985098,16,0) ->  | H13: =VLOOKUP(CONCATENATE($C13,"|",$C$2, "|", H$5,"|",$D$2,"|",$F$1,"|", $F$2,"|",$G$1,"|",$G$2,"|",$H$1,"|",$H$2),'DATA MART_'!$B$2:$Q$985098,16,0) ->  | I13: =VLOOKUP(CONCATENATE($C13,"|",$C$2, "|", I$5,"|",$D$2,"|",$F$1,"|", $F$2,"|",$G$1,"|",$G$2,"|",$H$1,"|",$H$2),'DATA MART_'!$B$2:$Q$985098,16,0) ->  | J13: =VLOOKUP(CONCATENATE($C13,"|",$C$2, "|", J$5,"|",$D$2,"|",$F$1,"|", $F$2,"|",$G$1,"|",$G$2,"|",$H$1,"|",$H$2),'DATA MART_'!$B$2:$Q$985098,16,0) ->  | K13: =VLOOKUP(CONCATENATE($C13,"|",$C$2, "|", K$5,"|",$D$2,"|",$F$1,"|", $F$2,"|",$G$1,"|",$G$2,"|",$H$1,"|",$H$2),'DATA MART_'!$B$2:$Q$985098,16,0) ->  | L13: =VLOOKUP(CONCATENATE($C13,"|",$C$2, "|", L$5,"|",$D$2,"|",$F$1,"|", $F$2,"|",$G$1,"|",$G$2,"|",$H$1,"|",$H$2),'DATA MART_'!$B$2:$Q$985098,16,0) ->  | M13: =VLOOKUP(CONCATENATE($C13,"|",$C$2, "|", M$5,"|",$D$2,"|",$F$1,"|", $F$2,"|",$G$1,"|",$G$2,"|",$H$1,"|",$H$2),'DATA MART_'!$B$2:$Q$985098,16,0) ->  | N13: =VLOOKUP(CONCATENATE($C13,"|",$C$2, "|", N$5,"|",$D$2,"|",$F$1,"|", $F$2,"|",$G$1,"|",$G$2,"|",$H$1,"|",$H$2),'DATA MART_'!$B$2:$Q$985098,16,0) ->  | O13: =VLOOKUP(CONCATENATE($C13,"|",$C$2, "|", O$5,"|",$D$2,"|",$F$1,"|", $F$2,"|",$G$1,"|",$G$2,"|",$H$1,"|",$H$2),'DATA MART_'!$B$2:$Q$985098,16,0) ->  | P13: =VLOOKUP(CONCATENATE($C13,"|",$C$2, "|", P$5,"|",$D$2,"|",$F$1,"|", $F$2,"|",$G$1,"|",$G$2,"|",$H$1,"|",$H$2),'DATA MART_'!$B$2:$Q$985098,16,0) ->  | Q13: =VLOOKUP(CONCATENATE($C13,"|",$C$2, "|", Q$5,"|",$D$2,"|",$F$1,"|", $F$2,"|",$G$1,"|",$G$2,"|",$H$1,"|",$H$2),'DATA MART_'!$B$2:$Q$985098,16,0) ->  | R13: =VLOOKUP(CONCATENATE($C13,"|",$C$2, "|", R$5,"|",$D$2,"|",$F$1,"|", $F$2,"|",$G$1,"|",$G$2,"|",$H$1,"|",$H$2),'DATA MART_'!$B$2:$Q$985098,16,0) ->  | S13: =VLOOKUP(CONCATENATE($C13,"|",$C$2, "|", S$5,"|",$D$2,"|",$F$1,"|", $F$2,"|",$G$1,"|",$G$2,"|",$H$1,"|",$H$2),'DATA MART_'!$B$2:$Q$985098,16,0) ->  | T13: =VLOOKUP(CONCATENATE($C13,"|",$C$2, "|", T$5,"|",$D$2,"|",$F$1,"|", $F$2,"|",$G$1,"|",$G$2,"|",$H$1,"|",$H$2),'DATA MART_'!$B$2:$Q$985098,16,0) ->  | U13: =VLOOKUP(CONCATENATE($C13,"|",$C$2, "|", U$5,"|",$D$2,"|",$F$1,"|", $F$2,"|",$G$1,"|",$G$2,"|",$H$1,"|",$H$2),'DATA MART_'!$B$2:$Q$985098,16,0) ->  | V13: =VLOOKUP(CONCATENATE($C13,"|",$C$2, "|", V$5,"|",$D$2,"|",$F$1,"|", $F$2,"|",$G$1,"|",$G$2,"|",$H$1,"|",$H$2),'DATA MART_'!$B$2:$Q$985098,16,0) -> 
B14: DZ BANK AG Dt. Zentral-Genossenschaftsbank | C14: DE020 | D14: DE | E14: 2 | F14: =VLOOKUP(CONCATENATE($C14,"|",$C$2, "|", F$5,"|",$D$2,"|",$F$1,"|", $F$2,"|",$G$1,"|",$G$2,"|",$H$1,"|",$H$2),'DATA MART_'!$B$2:$Q$985098,16,0) ->  | G14: =VLOOKUP(CONCATENATE($C14,"|",$C$2, "|", G$5,"|",$D$2,"|",$F$1,"|", $F$2,"|",$G$1,"|",$G$2,"|",$H$1,"|",$H$2),'DATA MART_'!$B$2:$Q$985098,16,0) ->  | H14: =VLOOKUP(CONCATENATE($C14,"|",$C$2, "|", H$5,"|",$D$2,"|",$F$1,"|", $F$2,"|",$G$1,"|",$G$2,"|",$H$1,"|",$H$2),'DATA MART_'!$B$2:$Q$985098,16,0) ->  | I14: =VLOOKUP(CONCATENATE($C14,"|",$C$2, "|", I$5,"|",$D$2,"|",$F$1,"|", $F$2,"|",$G$1,"|",$G$2,"|",$H$1,"|",$H$2),'DATA MART_'!$B$2:$Q$985098,16,0) ->  | J14: =VLOOKUP(CONCATENATE($C14,"|",$C$2, "|", J$5,"|",$D$2,"|",$F$1,"|", $F$2,"|",$G$1,"|",$G$2,"|",$H$1,"|",$H$2),'DATA MART_'!$B$2:$Q$985098,16,0) ->  | K14: =VLOOKUP(CONCATENATE($C14,"|",$C$2, "|", K$5,"|",$D$2,"|",$F$1,"|", $F$2,"|",$G$1,"|",$G$2,"|",$H$1,"|",$H$2),'DATA MART_'!$B$2:$Q$985098,16,0) ->  | L14: =VLOOKUP(CONCATENATE($C14,"|",$C$2, "|", L$5,"|",$D$2,"|",$F$1,"|", $F$2,"|",$G$1,"|",$G$2,"|",$H$1,"|",$H$2),'DATA MART_'!$B$2:$Q$985098,16,0) ->  | M14: =VLOOKUP(CONCATENATE($C14,"|",$C$2, "|", M$5,"|",$D$2,"|",$F$1,"|", $F$2,"|",$G$1,"|",$G$2,"|",$H$1,"|",$H$2),'DATA MART_'!$B$2:$Q$985098,16,0) ->  | N14: =VLOOKUP(CONCATENATE($C14,"|",$C$2, "|", N$5,"|",$D$2,"|",$F$1,"|", $F$2,"|",$G$1,"|",$G$2,"|",$H$1,"|",$H$2),'DATA MART_'!$B$2:$Q$985098,16,0) ->  | O14: =VLOOKUP(CONCATENATE($C14,"|",$C$2, "|", O$5,"|",$D$2,"|",$F$1,"|", $F$2,"|",$G$1,"|",$G$2,"|",$H$1,"|",$H$2),'DATA MART_'!$B$2:$Q$985098,16,0) ->  | P14: =VLOOKUP(CONCATENATE($C14,"|",$C$2, "|", P$5,"|",$D$2,"|",$F$1,"|", $F$2,"|",$G$1,"|",$G$2,"|",$H$1,"|",$H$2),'DATA MART_'!$B$2:$Q$985098,16,0) ->  | Q14: =VLOOKUP(CONCATENATE($C14,"|",$C$2, "|", Q$5,"|",$D$2,"|",$F$1,"|", $F$2,"|",$G$1,"|",$G$2,"|",$H$1,"|",$H$2),'DATA MART_'!$B$2:$Q$985098,16,0) ->  | R14: =VLOOKUP(CONCATENATE($C14,"|",$C$2, "|", R$5,"|",$D$2,"|",$F$1,"|", $F$2,"|",$G$1,"|",$G$2,"|",$H$1,"|",$H$2),'DATA MART_'!$B$2:$Q$985098,16,0) ->  | S14: =VLOOKUP(CONCATENATE($C14,"|",$C$2, "|", S$5,"|",$D$2,"|",$F$1,"|", $F$2,"|",$G$1,"|",$G$2,"|",$H$1,"|",$H$2),'DATA MART_'!$B$2:$Q$985098,16,0) ->  | T14: =VLOOKUP(CONCATENATE($C14,"|",$C$2, "|", T$5,"|",$D$2,"|",$F$1,"|", $F$2,"|",$G$1,"|",$G$2,"|",$H$1,"|",$H$2),'DATA MART_'!$B$2:$Q$985098,16,0) ->  | U14: =VLOOKUP(CONCATENATE($C14,"|",$C$2, "|", U$5,"|",$D$2,"|",$F$1,"|", $F$2,"|",$G$1,"|",$G$2,"|",$H$1,"|",$H$2),'DATA MART_'!$B$2:$Q$985098,16,0) ->  | V14: =VLOOKUP(CONCATENATE($C14,"|",$C$2, "|", V$5,"|",$D$2,"|",$F$1,"|", $F$2,"|",$G$1,"|",$G$2,"|",$H$1,"|",$H$2),'DATA MART_'!$B$2:$Q$985098,16,0) -> 
B15: Bayerische Landesbank | C15: DE021 | D15: DE | E15: 2 | F15: =VLOOKUP(CONCATENATE($C15,"|",$C$2, "|", F$5,"|",$D$2,"|",$F$1,"|", $F$2,"|",$G$1,"|",$G$2,"|",$H$1,"|",$H$2),'DATA MART_'!$B$2:$Q$985098,16,0) ->  | G15: =VLOOKUP(CONCATENATE($C15,"|",$C$2, "|", G$5,"|",$D$2,"|",$F$1,"|", $F$2,"|",$G$1,"|",$G$2,"|",$H$1,"|",$H$2),'DATA MART_'!$B$2:$Q$985098,16,0) ->  | H15: =VLOOKUP(CONCATENATE($C15,"|",$C$2, "|", H$5,"|",$D$2,"|",$F$1,"|", $F$2,"|",$G$1,"|",$G$2,"|",$H$1,"|",$H$2),'DATA MART_'!$B$2:$Q$985098,16,0) ->  | I15: =VLOOKUP(CONCATENATE($C15,"|",$C$2, "|", I$5,"|",$D$2,"|",$F$1,"|", $F$2,"|",$G$1,"|",$G$2,"|",$H$1,"|",$H$2),'DATA MART_'!$B$2:$Q$985098,16,0) ->  | J15: =VLOOKUP(CONCATENATE($C15,"|",$C$2, "|", J$5,"|",$D$2,"|",$F$1,"|", $F$2,"|",$G$1,"|",$G$2,"|",$H$1,"|",$H$2),'DATA MART_'!$B$2:$Q$985098,16,0) ->  | K15: =VLOOKUP(CONCATENATE($C15,"|",$C$2, "|", K$5,"|",$D$2,"|",$F$1,"|", $F$2,"|",$G$1,"|",$G$2,"|",$H$1,"|",$H$2),'DATA MART_'!$B$2:$Q$985098,16,0) ->  | L15: =VLOOKUP(CONCATENATE($C15,"|",$C$2, "|", L$5,"|",$D$2,"|",$F$1,"|", $F$2,"|",$G$1,"|",$G$2,"|",$H$1,"|",$H$2),'DATA MART_'!$B$2:$Q$985098,16,0) ->  | M15: =VLOOKUP(CONCATENATE($C15,"|",$C$2, "|", M$5,"|",$D$2,"|",$F$1,"|", $F$2,"|",$G$1,"|",$G$2,"|",$H$1,"|",$H$2),'DATA MART_'!$B$2:$Q$985098,16,0) ->  | N15: =VLOOKUP(CONCATENATE($C15,"|",$C$2, "|", N$5,"|",$D$2,"|",$F$1,"|", $F$2,"|",$G$1,"|",$G$2,"|",$H$1,"|",$H$2),'DATA MART_'!$B$2:$Q$985098,16,0) ->  | O15: =VLOOKUP(CONCATENATE($C15,"|",$C$2, "|", O$5,"|",$D$2,"|",$F$1,"|", $F$2,"|",$G$1,"|",$G$2,"|",$H$1,"|",$H$2),'DATA MART_'!$B$2:$Q$985098,16,0) ->  | P15: =VLOOKUP(CONCATENATE($C15,"|",$C$2, "|", P$5,"|",$D$2,"|",$F$1,"|", $F$2,"|",$G$1,"|",$G$2,"|",$H$1,"|",$H$2),'DATA MART_'!$B$2:$Q$985098,16,0) ->  | Q15: =VLOOKUP(CONCATENATE($C15,"|",$C$2, "|", Q$5,"|",$D$2,"|",$F$1,"|", $F$2,"|",$G$1,"|",$G$2,"|",$H$1,"|",$H$2),'DATA MART_'!$B$2:$Q$985098,16,0) ->  | R15: =VLOOKUP(CONCATENATE($C15,"|",$C$2, "|", R$5,"|",$D$2,"|",$F$1,"|", $F$2,"|",$G$1,"|",$G$2,"|",$H$1,"|",$H$2),'DATA MART_'!$B$2:$Q$985098,16,0) ->  | S15: =VLOOKUP(CONCATENATE($C15,"|",$C$2, "|", S$5,"|",$D$2,"|",$F$1,"|", $F$2,"|",$G$1,"|",$G$2,"|",$H$1,"|",$H$2),'DATA MART_'!$B$2:$Q$985098,16,0) ->  | T15: =VLOOKUP(CONCATENATE($C15,"|",$C$2, "|", T$5,"|",$D$2,"|",$F$1,"|", $F$2,"|",$G$1,"|",$G$2,"|",$H$1,"|",$H$2),'DATA MART_'!$B$2:$Q$985098,16,0) ->  | U15: =VLOOKUP(CONCATENATE($C15,"|",$C$2, "|", U$5,"|",$D$2,"|",$F$1,"|", $F$2,"|",$G$1,"|",$G$2,"|",$H$1,"|",$H$2),'DATA MART_'!$B$2:$Q$985098,16,0) ->  | V15: =VLOOKUP(CONCATENATE($C15,"|",$C$2, "|", V$5,"|",$D$2,"|",$F$1,"|", $F$2,"|",$G$1,"|",$G$2,"|",$H$1,"|",$H$2),'DATA MART_'!$B$2:$Q$985098,16,0) -> 
B16: Norddeutsche Landesbank -GZ | C16: DE022 | D16: DE | E16: 2 | F16: =VLOOKUP(CONCATENATE($C16,"|",$C$2, "|", F$5,"|",$D$2,"|",$F$1,"|", $F$2,"|",$G$1,"|",$G$2,"|",$H$1,"|",$H$2),'DATA MART_'!$B$2:$Q$985098,16,0) ->  | G16: =VLOOKUP(CONCATENATE($C16,"|",$C$2, "|", G$5,"|",$D$2,"|",$F$1,"|", $F$2,"|",$G$1,"|",$G$2,"|",$H$1,"|",$H$2),'DATA MART_'!$B$2:$Q$985098,16,0) ->  | H16: =VLOOKUP(CONCATENATE($C16,"|",$C$2, "|", H$5,"|",$D$2,"|",$F$1,"|", $F$2,"|",$G$1,"|",$G$2,"|",$H$1,"|",$H$2),'DATA MART_'!$B$2:$Q$985098,16,0) ->  | I16: =VLOOKUP(CONCATENATE($C16,"|",$C$2, "|", I$5,"|",$D$2,"|",$F$1,"|", $F$2,"|",$G$1,"|",$G$2,"|",$H$1,"|",$H$2),'DATA MART_'!$B$2:$Q$985098,16,0) ->  | J16: =VLOOKUP(CONCATENATE($C16,"|",$C$2, "|", J$5,"|",$D$2,"|",$F$1,"|", $F$2,"|",$G$1,"|",$G$2,"|",$H$1,"|",$H$2),'DATA MART_'!$B$2:$Q$985098,16,0) ->  | K16: =VLOOKUP(CONCATENATE($C16,"|",$C$2, "|", K$5,"|",$D$2,"|",$F$1,"|", $F$2,"|",$G$1,"|",$G$2,"|",$H$1,"|",$H$2),'DATA MART_'!$B$2:$Q$985098,16,0) ->  | L16: =VLOOKUP(CONCATENATE($C16,"|",$C$2, "|", L$5,"|",$D$2,"|",$F$1,"|", $F$2,"|",$G$1,"|",$G$2,"|",$H$1,"|",$H$2),'DATA MART_'!$B$2:$Q$985098,16,0) ->  | M16: =VLOOKUP(CONCATENATE($C16,"|",$C$2, "|", M$5,"|",$D$2,"|",$F$1,"|", $F$2,"|",$G$1,"|",$G$2,"|",$H$1,"|",$H$2),'DATA MART_'!$B$2:$Q$985098,16,0) ->  | N16: =VLOOKUP(CONCATENATE($C16,"|",$C$2, "|", N$5,"|",$D$2,"|",$F$1,"|", $F$2,"|",$G$1,"|",$G$2,"|",$H$1,"|",$H$2),'DATA MART_'!$B$2:$Q$985098,16,0) ->  | O16: =VLOOKUP(CONCATENATE($C16,"|",$C$2, "|", O$5,"|",$D$2,"|",$F$1,"|", $F$2,"|",$G$1,"|",$G$2,"|",$H$1,"|",$H$2),'DATA MART_'!$B$2:$Q$985098,16,0) ->  | P16: =VLOOKUP(CONCATENATE($C16,"|",$C$2, "|", P$5,"|",$D$2,"|",$F$1,"|", $F$2,"|",$G$1,"|",$G$2,"|",$H$1,"|",$H$2),'DATA MART_'!$B$2:$Q$985098,16,0) ->  | Q16: =VLOOKUP(CONCATENATE($C16,"|",$C$2, "|", Q$5,"|",$D$2,"|",$F$1,"|", $F$2,"|",$G$1,"|",$G$2,"|",$H$1,"|",$H$2),'DATA MART_'!$B$2:$Q$985098,16,0) ->  | R16: =VLOOKUP(CONCATENATE($C16,"|",$C$2, "|", R$5,"|",$D$2,"|",$F$1,"|", $F$2,"|",$G$1,"|",$G$2,"|",$H$1,"|",$H$2),'DATA MART_'!$B$2:$Q$985098,16,0) ->  | S16: =VLOOKUP(CONCATENATE($C16,"|",$C$2, "|", S$5,"|",$D$2,"|",$F$1,"|", $F$2,"|",$G$1,"|",$G$2,"|",$H$1,"|",$H$2),'DATA MART_'!$B$2:$Q$985098,16,0) ->  | T16: =VLOOKUP(CONCATENATE($C16,"|",$C$2, "|", T$5,"|",$D$2,"|",$F$1,"|", $F$2,"|",$G$1,"|",$G$2,"|",$H$1,"|",$H$2),'DATA MART_'!$B$2:$Q$985098,16,0) ->  | U16: =VLOOKUP(CONCATENATE($C16,"|",$C$2, "|", U$5,"|",$D$2,"|",$F$1,"|", $F$2,"|",$G$1,"|",$G$2,"|",$H$1,"|",$H$2),'DATA MART_'!$B$2:$Q$985098,16,0) ->  | V16: =VLOOKUP(CONCATENATE($C16,"|",$C$2, "|", V$5,"|",$D$2,"|",$F$1,"|", $F$2,"|",$G$1,"|",$G$2,"|",$H$1,"|",$H$2),'DATA MART_'!$B$2:$Q$985098,16,0) -> 
B17: Hypo Real Estate Holding AG | C17: DE023 | D17: DE | E17: 2 | F17: =VLOOKUP(CONCATENATE($C17,"|",$C$2, "|", F$5,"|",$D$2,"|",$F$1,"|", $F$2,"|",$G$1,"|",$G$2,"|",$H$1,"|",$H$2),'DATA MART_'!$B$2:$Q$985098,16,0) ->  | G17: =VLOOKUP(CONCATENATE($C17,"|",$C$2, "|", G$5,"|",$D$2,"|",$F$1,"|", $F$2,"|",$G$1,"|",$G$2,"|",$H$1,"|",$H$2),'DATA MART_'!$B$2:$Q$985098,16,0) ->  | H17: =VLOOKUP(CONCATENATE($C17,"|",$C$2, "|", H$5,"|",$D$2,"|",$F$1,"|", $F$2,"|",$G$1,"|",$G$2,"|",$H$1,"|",$H$2),'DATA MART_'!$B$2:$Q$985098,16,0) ->  | I17: =VLOOKUP(CONCATENATE($C17,"|",$C$2, "|", I$5,"|",$D$2,"|",$F$1,"|", $F$2,"|",$G$1,"|",$G$2,"|",$H$1,"|",$H$2),'DATA MART_'!$B$2:$Q$985098,16,0) ->  | J17: =VLOOKUP(CONCATENATE($C17,"|",$C$2, "|", J$5,"|",$D$2,"|",$F$1,"|", $F$2,"|",$G$1,"|",$G$2,"|",$H$1,"|",$H$2),'DATA MART_'!$B$2:$Q$985098,16,0) ->  | K17: =VLOOKUP(CONCATENATE($C17,"|",$C$2, "|", K$5,"|",$D$2,"|",$F$1,"|", $F$2,"|",$G$1,"|",$G$2,"|",$H$1,"|",$H$2),'DATA MART_'!$B$2:$Q$985098,16,0) ->  | L17: =VLOOKUP(CONCATENATE($C17,"|",$C$2, "|", L$5,"|",$D$2,"|",$F$1,"|", $F$2,"|",$G$1,"|",$G$2,"|",$H$1,"|",$H$2),'DATA MART_'!$B$2:$Q$985098,16,0) ->  | M17: =VLOOKUP(CONCATENATE($C17,"|",$C$2, "|", M$5,"|",$D$2,"|",$F$1,"|", $F$2,"|",$G$1,"|",$G$2,"|",$H$1,"|",$H$2),'DATA MART_'!$B$2:$Q$985098,16,0) ->  | N17: =VLOOKUP(CONCATENATE($C17,"|",$C$2, "|", N$5,"|",$D$2,"|",$F$1,"|", $F$2,"|",$G$1,"|",$G$2,"|",$H$1,"|",$H$2),'DATA MART_'!$B$2:$Q$985098,16,0) ->  | O17: =VLOOKUP(CONCATENATE($C17,"|",$C$2, "|", O$5,"|",$D$2,"|",$F$1,"|", $F$2,"|",$G$1,"|",$G$2,"|",$H$1,"|",$H$2),'DATA MART_'!$B$2:$Q$985098,16,0) ->  | P17: =VLOOKUP(CONCATENATE($C17,"|",$C$2, "|", P$5,"|",$D$2,"|",$F$1,"|", $F$2,"|",$G$1,"|",$G$2,"|",$H$1,"|",$H$2),'DATA MART_'!$B$2:$Q$985098,16,0) ->  | Q17: =VLOOKUP(CONCATENATE($C17,"|",$C$2, "|", Q$5,"|",$D$2,"|",$F$1,"|", $F$2,"|",$G$1,"|",$G$2,"|",$H$1,"|",$H$2),'DATA MART_'!$B$2:$Q$985098,16,0) ->  | R17: =VLOOKUP(CONCATENATE($C17,"|",$C$2, "|", R$5,"|",$D$2,"|",$F$1,"|", $F$2,"|",$G$1,"|",$G$2,"|",$H$1,"|",$H$2),'DATA MART_'!$B$2:$Q$985098,16,0) ->  | S17: =VLOOKUP(CONCATENATE($C17,"|",$C$2, "|", S$5,"|",$D$2,"|",$F$1,"|", $F$2,"|",$G$1,"|",$G$2,"|",$H$1,"|",$H$2),'DATA MART_'!$B$2:$Q$985098,16,0) ->  | T17: =VLOOKUP(CONCATENATE($C17,"|",$C$2, "|", T$5,"|",$D$2,"|",$F$1,"|", $F$2,"|",$G$1,"|",$G$2,"|",$H$1,"|",$H$2),'DATA MART_'!$B$2:$Q$985098,16,0) ->  | U17: =VLOOKUP(CONCATENATE($C17,"|",$C$2, "|", U$5,"|",$D$2,"|",$F$1,"|", $F$2,"|",$G$1,"|",$G$2,"|",$H$1,"|",$H$2),'DATA MART_'!$B$2:$Q$985098,16,0) ->  | V17: =VLOOKUP(CONCATENATE($C17,"|",$C$2, "|", V$5,"|",$D$2,"|",$F$1,"|", $F$2,"|",$G$1,"|",$G$2,"|",$H$1,"|",$H$2),'DATA MART_'!$B$2:$Q$985098,16,0) -> 
B18: HSH Nordbank AG, Hamburg | C18: DE025 | D18: DE | E18: 2 | F18: =VLOOKUP(CONCATENATE($C18,"|",$C$2, "|", F$5,"|",$D$2,"|",$F$1,"|", $F$2,"|",$G$1,"|",$G$2,"|",$H$1,"|",$H$2),'DATA MART_'!$B$2:$Q$985098,16,0) ->  | G18: =VLOOKUP(CONCATENATE($C18,"|",$C$2, "|", G$5,"|",$D$2,"|",$F$1,"|", $F$2,"|",$G$1,"|",$G$2,"|",$H$1,"|",$H$2),'DATA MART_'!$B$2:$Q$985098,16,0) ->  | H18: =VLOOKUP(CONCATENATE($C18,"|",$C$2, "|", H$5,"|",$D$2,"|",$F$1,"|", $F$2,"|",$G$1,"|",$G$2,"|",$H$1,"|",$H$2),'DATA MART_'!$B$2:$Q$985098,16,0) ->  | I18: =VLOOKUP(CONCATENATE($C18,"|",$C$2, "|", I$5,"|",$D$2,"|",$F$1,"|", $F$2,"|",$G$1,"|",$G$2,"|",$H$1,"|",$H$2),'DATA MART_'!$B$2:$Q$985098,16,0) ->  | J18: =VLOOKUP(CONCATENATE($C18,"|",$C$2, "|", J$5,"|",$D$2,"|",$F$1,"|", $F$2,"|",$G$1,"|",$G$2,"|",$H$1,"|",$H$2),'DATA MART_'!$B$2:$Q$985098,16,0) ->  | K18: =VLOOKUP(CONCATENATE($C18,"|",$C$2, "|", K$5,"|",$D$2,"|",$F$1,"|", $F$2,"|",$G$1,"|",$G$2,"|",$H$1,"|",$H$2),'DATA MART_'!$B$2:$Q$985098,16,0) ->  | L18: =VLOOKUP(CONCATENATE($C18,"|",$C$2, "|", L$5,"|",$D$2,"|",$F$1,"|", $F$2,"|",$G$1,"|",$G$2,"|",$H$1,"|",$H$2),'DATA MART_'!$B$2:$Q$985098,16,0) ->  | M18: =VLOOKUP(CONCATENATE($C18,"|",$C$2, "|", M$5,"|",$D$2,"|",$F$1,"|", $F$2,"|",$G$1,"|",$G$2,"|",$H$1,"|",$H$2),'DATA MART_'!$B$2:$Q$985098,16,0) ->  | N18: =VLOOKUP(CONCATENATE($C18,"|",$C$2, "|", N$5,"|",$D$2,"|",$F$1,"|", $F$2,"|",$G$1,"|",$G$2,"|",$H$1,"|",$H$2),'DATA MART_'!$B$2:$Q$985098,16,0) ->  | O18: =VLOOKUP(CONCATENATE($C18,"|",$C$2, "|", O$5,"|",$D$2,"|",$F$1,"|", $F$2,"|",$G$1,"|",$G$2,"|",$H$1,"|",$H$2),'DATA MART_'!$B$2:$Q$985098,16,0) ->  | P18: =VLOOKUP(CONCATENATE($C18,"|",$C$2, "|", P$5,"|",$D$2,"|",$F$1,"|", $F$2,"|",$G$1,"|",$G$2,"|",$H$1,"|",$H$2),'DATA MART_'!$B$2:$Q$985098,16,0) ->  | Q18: =VLOOKUP(CONCATENATE($C18,"|",$C$2, "|", Q$5,"|",$D$2,"|",$F$1,"|", $F$2,"|",$G$1,"|",$G$2,"|",$H$1,"|",$H$2),'DATA MART_'!$B$2:$Q$985098,16,0) ->  | R18: =VLOOKUP(CONCATENATE($C18,"|",$C$2, "|", R$5,"|",$D$2,"|",$F$1,"|", $F$2,"|",$G$1,"|",$G$2,"|",$H$1,"|",$H$2),'DATA MART_'!$B$2:$Q$985098,16,0) ->  | S18: =VLOOKUP(CONCATENATE($C18,"|",$C$2, "|", S$5,"|",$D$2,"|",$F$1,"|", $F$2,"|",$G$1,"|",$G$2,"|",$H$1,"|",$H$2),'DATA MART_'!$B$2:$Q$985098,16,0) ->  | T18: =VLOOKUP(CONCATENATE($C18,"|",$C$2, "|", T$5,"|",$D$2,"|",$F$1,"|", $F$2,"|",$G$1,"|",$G$2,"|",$H$1,"|",$H$2),'DATA MART_'!$B$2:$Q$985098,16,0) ->  | U18: =VLOOKUP(CONCATENATE($C18,"|",$C$2, "|", U$5,"|",$D$2,"|",$F$1,"|", $F$2,"|",$G$1,"|",$G$2,"|",$H$1,"|",$H$2),'DATA MART_'!$B$2:$Q$985098,16,0) ->  | V18: =VLOOKUP(CONCATENATE($C18,"|",$C$2, "|", V$5,"|",$D$2,"|",$F$1,"|", $F$2,"|",$G$1,"|",$G$2,"|",$H$1,"|",$H$2),'DATA MART_'!$B$2:$Q$985098,16,0) -> 
B19: Landesbank Hessen-Thüringen GZ, Frankfurt | C19: DE026 | D19: DE | E19: 2 | F19: =VLOOKUP(CONCATENATE($C19,"|",$C$2, "|", F$5,"|",$D$2,"|",$F$1,"|", $F$2,"|",$G$1,"|",$G$2,"|",$H$1,"|",$H$2),'DATA MART_'!$B$2:$Q$985098,16,0) ->  | G19: =VLOOKUP(CONCATENATE($C19,"|",$C$2, "|", G$5,"|",$D$2,"|",$F$1,"|", $F$2,"|",$G$1,"|",$G$2,"|",$H$1,"|",$H$2),'DATA MART_'!$B$2:$Q$985098,16,0) ->  | H19: =VLOOKUP(CONCATENATE($C19,"|",$C$2, "|", H$5,"|",$D$2,"|",$F$1,"|", $F$2,"|",$G$1,"|",$G$2,"|",$H$1,"|",$H$2),'DATA MART_'!$B$2:$Q$985098,16,0) ->  | I19: =VLOOKUP(CONCATENATE($C19,"|",$C$2, "|", I$5,"|",$D$2,"|",$F$1,"|", $F$2,"|",$G$1,"|",$G$2,"|",$H$1,"|",$H$2),'DATA MART_'!$B$2:$Q$985098,16,0) ->  | J19: =VLOOKUP(CONCATENATE($C19,"|",$C$2, "|", J$5,"|",$D$2,"|",$F$1,"|", $F$2,"|",$G$1,"|",$G$2,"|",$H$1,"|",$H$2),'DATA MART_'!$B$2:$Q$985098,16,0) ->  | K19: =VLOOKUP(CONCATENATE($C19,"|",$C$2, "|", K$5,"|",$D$2,"|",$F$1,"|", $F$2,"|",$G$1,"|",$G$2,"|",$H$1,"|",$H$2),'DATA MART_'!$B$2:$Q$985098,16,0) ->  | L19: =VLOOKUP(CONCATENATE($C19,"|",$C$2, "|", L$5,"|",$D$2,"|",$F$1,"|", $F$2,"|",$G$1,"|",$G$2,"|",$H$1,"|",$H$2),'DATA MART_'!$B$2:$Q$985098,16,0) ->  | M19: =VLOOKUP(CONCATENATE($C19,"|",$C$2, "|", M$5,"|",$D$2,"|",$F$1,"|", $F$2,"|",$G$1,"|",$G$2,"|",$H$1,"|",$H$2),'DATA MART_'!$B$2:$Q$985098,16,0) ->  | N19: =VLOOKUP(CONCATENATE($C19,"|",$C$2, "|", N$5,"|",$D$2,"|",$F$1,"|", $F$2,"|",$G$1,"|",$G$2,"|",$H$1,"|",$H$2),'DATA MART_'!$B$2:$Q$985098,16,0) ->  | O19: =VLOOKUP(CONCATENATE($C19,"|",$C$2, "|", O$5,"|",$D$2,"|",$F$1,"|", $F$2,"|",$G$1,"|",$G$2,"|",$H$1,"|",$H$2),'DATA MART_'!$B$2:$Q$985098,16,0) ->  | P19: =VLOOKUP(CONCATENATE($C19,"|",$C$2, "|", P$5,"|",$D$2,"|",$F$1,"|", $F$2,"|",$G$1,"|",$G$2,"|",$H$1,"|",$H$2),'DATA MART_'!$B$2:$Q$985098,16,0) ->  | Q19: =VLOOKUP(CONCATENATE($C19,"|",$C$2, "|", Q$5,"|",$D$2,"|",$F$1,"|", $F$2,"|",$G$1,"|",$G$2,"|",$H$1,"|",$H$2),'DATA MART_'!$B$2:$Q$985098,16,0) ->  | R19: =VLOOKUP(CONCATENATE($C19,"|",$C$2, "|", R$5,"|",$D$2,"|",$F$1,"|", $F$2,"|",$G$1,"|",$G$2,"|",$H$1,"|",$H$2),'DATA MART_'!$B$2:$Q$985098,16,0) ->  | S19: =VLOOKUP(CONCATENATE($C19,"|",$C$2, "|", S$5,"|",$D$2,"|",$F$1,"|", $F$2,"|",$G$1,"|",$G$2,"|",$H$1,"|",$H$2),'DATA MART_'!$B$2:$Q$985098,16,0) ->  | T19: =VLOOKUP(CONCATENATE($C19,"|",$C$2, "|", T$5,"|",$D$2,"|",$F$1,"|", $F$2,"|",$G$1,"|",$G$2,"|",$H$1,"|",$H$2),'DATA MART_'!$B$2:$Q$985098,16,0) ->  | U19: =VLOOKUP(CONCATENATE($C19,"|",$C$2, "|", U$5,"|",$D$2,"|",$F$1,"|", $F$2,"|",$G$1,"|",$G$2,"|",$H$1,"|",$H$2),'DATA MART_'!$B$2:$Q$985098,16,0) ->  | V19: =VLOOKUP(CONCATENATE($C19,"|",$C$2, "|", V$5,"|",$D$2,"|",$F$1,"|", $F$2,"|",$G$1,"|",$G$2,"|",$H$1,"|",$H$2),'DATA MART_'!$B$2:$Q$985098,16,0) -> 
B20: Landesbank Berlin AG | C20: DE027 | D20: DE | E20: 1 | F20: =VLOOKUP(CONCATENATE($C20,"|",$C$2, "|", F$5,"|",$D$2,"|",$F$1,"|", $F$2,"|",$G$1,"|",$G$2,"|",$H$1,"|",$H$2),'DATA MART_'!$B$2:$Q$985098,16,0) ->  | G20: =VLOOKUP(CONCATENATE($C20,"|",$C$2, "|", G$5,"|",$D$2,"|",$F$1,"|", $F$2,"|",$G$1,"|",$G$2,"|",$H$1,"|",$H$2),'DATA MART_'!$B$2:$Q$985098,16,0) ->  | H20: =VLOOKUP(CONCATENATE($C20,"|",$C$2, "|", H$5,"|",$D$2,"|",$F$1,"|", $F$2,"|",$G$1,"|",$G$2,"|",$H$1,"|",$H$2),'DATA MART_'!$B$2:$Q$985098,16,0) ->  | I20: =VLOOKUP(CONCATENATE($C20,"|",$C$2, "|", I$5,"|",$D$2,"|",$F$1,"|", $F$2,"|",$G$1,"|",$G$2,"|",$H$1,"|",$H$2),'DATA MART_'!$B$2:$Q$985098,16,0) ->  | J20: =VLOOKUP(CONCATENATE($C20,"|",$C$2, "|", J$5,"|",$D$2,"|",$F$1,"|", $F$2,"|",$G$1,"|",$G$2,"|",$H$1,"|",$H$2),'DATA MART_'!$B$2:$Q$985098,16,0) ->  | K20: =VLOOKUP(CONCATENATE($C20,"|",$C$2, "|", K$5,"|",$D$2,"|",$F$1,"|", $F$2,"|",$G$1,"|",$G$2,"|",$H$1,"|",$H$2),'DATA MART_'!$B$2:$Q$985098,16,0) ->  | L20: =VLOOKUP(CONCATENATE($C20,"|",$C$2, "|", L$5,"|",$D$2,"|",$F$1,"|", $F$2,"|",$G$1,"|",$G$2,"|",$H$1,"|",$H$2),'DATA MART_'!$B$2:$Q$985098,16,0) ->  | M20: =VLOOKUP(CONCATENATE($C20,"|",$C$2, "|", M$5,"|",$D$2,"|",$F$1,"|", $F$2,"|",$G$1,"|",$G$2,"|",$H$1,"|",$H$2),'DATA MART_'!$B$2:$Q$985098,16,0) ->  | N20: =VLOOKUP(CONCATENATE($C20,"|",$C$2, "|", N$5,"|",$D$2,"|",$F$1,"|", $F$2,"|",$G$1,"|",$G$2,"|",$H$1,"|",$H$2),'DATA MART_'!$B$2:$Q$985098,16,0) ->  | O20: =VLOOKUP(CONCATENATE($C20,"|",$C$2, "|", O$5,"|",$D$2,"|",$F$1,"|", $F$2,"|",$G$1,"|",$G$2,"|",$H$1,"|",$H$2),'DATA MART_'!$B$2:$Q$985098,16,0) ->  | P20: =VLOOKUP(CONCATENATE($C20,"|",$C$2, "|", P$5,"|",$D$2,"|",$F$1,"|", $F$2,"|",$G$1,"|",$G$2,"|",$H$1,"|",$H$2),'DATA MART_'!$B$2:$Q$985098,16,0) ->  | Q20: =VLOOKUP(CONCATENATE($C20,"|",$C$2, "|", Q$5,"|",$D$2,"|",$F$1,"|", $F$2,"|",$G$1,"|",$G$2,"|",$H$1,"|",$H$2),'DATA MART_'!$B$2:$Q$985098,16,0) ->  | R20: =VLOOKUP(CONCATENATE($C20,"|",$C$2, "|", R$5,"|",$D$2,"|",$F$1,"|", $F$2,"|",$G$1,"|",$G$2,"|",$H$1,"|",$H$2),'DATA MART_'!$B$2:$Q$985098,16,0) ->  | S20: =VLOOKUP(CONCATENATE($C20,"|",$C$2, "|", S$5,"|",$D$2,"|",$F$1,"|", $F$2,"|",$G$1,"|",$G$2,"|",$H$1,"|",$H$2),'DATA MART_'!$B$2:$Q$985098,16,0) ->  | T20: =VLOOKUP(CONCATENATE($C20,"|",$C$2, "|", T$5,"|",$D$2,"|",$F$1,"|", $F$2,"|",$G$1,"|",$G$2,"|",$H$1,"|",$H$2),'DATA MART_'!$B$2:$Q$985098,16,0) ->  | U20: =VLOOKUP(CONCATENATE($C20,"|",$C$2, "|", U$5,"|",$D$2,"|",$F$1,"|", $F$2,"|",$G$1,"|",$G$2,"|",$H$1,"|",$H$2),'DATA MART_'!$B$2:$Q$985098,16,0) ->  | V20: =VLOOKUP(CONCATENATE($C20,"|",$C$2, "|", V$5,"|",$D$2,"|",$F$1,"|", $F$2,"|",$G$1,"|",$G$2,"|",$H$1,"|",$H$2),'DATA MART_'!$B$2:$Q$985098,16,0) -> 
B21: DekaBank Deutsche Girozentrale, Frankfurt | C21: DE028 | D21: DE | E21: 1 | F21: =VLOOKUP(CONCATENATE($C21,"|",$C$2, "|", F$5,"|",$D$2,"|",$F$1,"|", $F$2,"|",$G$1,"|",$G$2,"|",$H$1,"|",$H$2),'DATA MART_'!$B$2:$Q$985098,16,0) ->  | G21: =VLOOKUP(CONCATENATE($C21,"|",$C$2, "|", G$5,"|",$D$2,"|",$F$1,"|", $F$2,"|",$G$1,"|",$G$2,"|",$H$1,"|",$H$2),'DATA MART_'!$B$2:$Q$985098,16,0) ->  | H21: =VLOOKUP(CONCATENATE($C21,"|",$C$2, "|", H$5,"|",$D$2,"|",$F$1,"|", $F$2,"|",$G$1,"|",$G$2,"|",$H$1,"|",$H$2),'DATA MART_'!$B$2:$Q$985098,16,0) ->  | I21: =VLOOKUP(CONCATENATE($C21,"|",$C$2, "|", I$5,"|",$D$2,"|",$F$1,"|", $F$2,"|",$G$1,"|",$G$2,"|",$H$1,"|",$H$2),'DATA MART_'!$B$2:$Q$985098,16,0) ->  | J21: =VLOOKUP(CONCATENATE($C21,"|",$C$2, "|", J$5,"|",$D$2,"|",$F$1,"|", $F$2,"|",$G$1,"|",$G$2,"|",$H$1,"|",$H$2),'DATA MART_'!$B$2:$Q$985098,16,0) ->  | K21: =VLOOKUP(CONCATENATE($C21,"|",$C$2, "|", K$5,"|",$D$2,"|",$F$1,"|", $F$2,"|",$G$1,"|",$G$2,"|",$H$1,"|",$H$2),'DATA MART_'!$B$2:$Q$985098,16,0) ->  | L21: =VLOOKUP(CONCATENATE($C21,"|",$C$2, "|", L$5,"|",$D$2,"|",$F$1,"|", $F$2,"|",$G$1,"|",$G$2,"|",$H$1,"|",$H$2),'DATA MART_'!$B$2:$Q$985098,16,0) ->  | M21: =VLOOKUP(CONCATENATE($C21,"|",$C$2, "|", M$5,"|",$D$2,"|",$F$1,"|", $F$2,"|",$G$1,"|",$G$2,"|",$H$1,"|",$H$2),'DATA MART_'!$B$2:$Q$985098,16,0) ->  | N21: =VLOOKUP(CONCATENATE($C21,"|",$C$2, "|", N$5,"|",$D$2,"|",$F$1,"|", $F$2,"|",$G$1,"|",$G$2,"|",$H$1,"|",$H$2),'DATA MART_'!$B$2:$Q$985098,16,0) ->  | O21: =VLOOKUP(CONCATENATE($C21,"|",$C$2, "|", O$5,"|",$D$2,"|",$F$1,"|", $F$2,"|",$G$1,"|",$G$2,"|",$H$1,"|",$H$2),'DATA MART_'!$B$2:$Q$985098,16,0) ->  | P21: =VLOOKUP(CONCATENATE($C21,"|",$C$2, "|", P$5,"|",$D$2,"|",$F$1,"|", $F$2,"|",$G$1,"|",$G$2,"|",$H$1,"|",$H$2),'DATA MART_'!$B$2:$Q$985098,16,0) ->  | Q21: =VLOOKUP(CONCATENATE($C21,"|",$C$2, "|", Q$5,"|",$D$2,"|",$F$1,"|", $F$2,"|",$G$1,"|",$G$2,"|",$H$1,"|",$H$2),'DATA MART_'!$B$2:$Q$985098,16,0) ->  | R21: =VLOOKUP(CONCATENATE($C21,"|",$C$2, "|", R$5,"|",$D$2,"|",$F$1,"|", $F$2,"|",$G$1,"|",$G$2,"|",$H$1,"|",$H$2),'DATA MART_'!$B$2:$Q$985098,16,0) ->  | S21: =VLOOKUP(CONCATENATE($C21,"|",$C$2, "|", S$5,"|",$D$2,"|",$F$1,"|", $F$2,"|",$G$1,"|",$G$2,"|",$H$1,"|",$H$2),'DATA MART_'!$B$2:$Q$985098,16,0) ->  | T21: =VLOOKUP(CONCATENATE($C21,"|",$C$2, "|", T$5,"|",$D$2,"|",$F$1,"|", $F$2,"|",$G$1,"|",$G$2,"|",$H$1,"|",$H$2),'DATA MART_'!$B$2:$Q$985098,16,0) ->  | U21: =VLOOKUP(CONCATENATE($C21,"|",$C$2, "|", U$5,"|",$D$2,"|",$F$1,"|", $F$2,"|",$G$1,"|",$G$2,"|",$H$1,"|",$H$2),'DATA MART_'!$B$2:$Q$985098,16,0) ->  | V21: =VLOOKUP(CONCATENATE($C21,"|",$C$2, "|", V$5,"|",$D$2,"|",$F$1,"|", $F$2,"|",$G$1,"|",$G$2,"|",$H$1,"|",$H$2),'DATA MART_'!$B$2:$Q$985098,16,0) -> 
B22: WGZ BANK AG Westdt. Geno. Zentralbk, Ddf | C22: DE029 | D22: DE | E22: 1 | F22: =VLOOKUP(CONCATENATE($C22,"|",$C$2, "|", F$5,"|",$D$2,"|",$F$1,"|", $F$2,"|",$G$1,"|",$G$2,"|",$H$1,"|",$H$2),'DATA MART_'!$B$2:$Q$985098,16,0) ->  | G22: =VLOOKUP(CONCATENATE($C22,"|",$C$2, "|", G$5,"|",$D$2,"|",$F$1,"|", $F$2,"|",$G$1,"|",$G$2,"|",$H$1,"|",$H$2),'DATA MART_'!$B$2:$Q$985098,16,0) ->  | H22: =VLOOKUP(CONCATENATE($C22,"|",$C$2, "|", H$5,"|",$D$2,"|",$F$1,"|", $F$2,"|",$G$1,"|",$G$2,"|",$H$1,"|",$H$2),'DATA MART_'!$B$2:$Q$985098,16,0) ->  | I22: =VLOOKUP(CONCATENATE($C22,"|",$C$2, "|", I$5,"|",$D$2,"|",$F$1,"|", $F$2,"|",$G$1,"|",$G$2,"|",$H$1,"|",$H$2),'DATA MART_'!$B$2:$Q$985098,16,0) ->  | J22: =VLOOKUP(CONCATENATE($C22,"|",$C$2, "|", J$5,"|",$D$2,"|",$F$1,"|", $F$2,"|",$G$1,"|",$G$2,"|",$H$1,"|",$H$2),'DATA MART_'!$B$2:$Q$985098,16,0) ->  | K22: =VLOOKUP(CONCATENATE($C22,"|",$C$2, "|", K$5,"|",$D$2,"|",$F$1,"|", $F$2,"|",$G$1,"|",$G$2,"|",$H$1,"|",$H$2),'DATA MART_'!$B$2:$Q$985098,16,0) ->  | L22: =VLOOKUP(CONCATENATE($C22,"|",$C$2, "|", L$5,"|",$D$2,"|",$F$1,"|", $F$2,"|",$G$1,"|",$G$2,"|",$H$1,"|",$H$2),'DATA MART_'!$B$2:$Q$985098,16,0) ->  | M22: =VLOOKUP(CONCATENATE($C22,"|",$C$2, "|", M$5,"|",$D$2,"|",$F$1,"|", $F$2,"|",$G$1,"|",$G$2,"|",$H$1,"|",$H$2),'DATA MART_'!$B$2:$Q$985098,16,0) ->  | N22: =VLOOKUP(CONCATENATE($C22,"|",$C$2, "|", N$5,"|",$D$2,"|",$F$1,"|", $F$2,"|",$G$1,"|",$G$2,"|",$H$1,"|",$H$2),'DATA MART_'!$B$2:$Q$985098,16,0) ->  | O22: =VLOOKUP(CONCATENATE($C22,"|",$C$2, "|", O$5,"|",$D$2,"|",$F$1,"|", $F$2,"|",$G$1,"|",$G$2,"|",$H$1,"|",$H$2),'DATA MART_'!$B$2:$Q$985098,16,0) ->  | P22: =VLOOKUP(CONCATENATE($C22,"|",$C$2, "|", P$5,"|",$D$2,"|",$F$1,"|", $F$2,"|",$G$1,"|",$G$2,"|",$H$1,"|",$H$2),'DATA MART_'!$B$2:$Q$985098,16,0) ->  | Q22: =VLOOKUP(CONCATENATE($C22,"|",$C$2, "|", Q$5,"|",$D$2,"|",$F$1,"|", $F$2,"|",$G$1,"|",$G$2,"|",$H$1,"|",$H$2),'DATA MART_'!$B$2:$Q$985098,16,0) ->  | R22: =VLOOKUP(CONCATENATE($C22,"|",$C$2, "|", R$5,"|",$D$2,"|",$F$1,"|", $F$2,"|",$G$1,"|",$G$2,"|",$H$1,"|",$H$2),'DATA MART_'!$B$2:$Q$985098,16,0) ->  | S22: =VLOOKUP(CONCATENATE($C22,"|",$C$2, "|", S$5,"|",$D$2,"|",$F$1,"|", $F$2,"|",$G$1,"|",$G$2,"|",$H$1,"|",$H$2),'DATA MART_'!$B$2:$Q$985098,16,0) ->  | T22: =VLOOKUP(CONCATENATE($C22,"|",$C$2, "|", T$5,"|",$D$2,"|",$F$1,"|", $F$2,"|",$G$1,"|",$G$2,"|",$H$1,"|",$H$2),'DATA MART_'!$B$2:$Q$985098,16,0) ->  | U22: =VLOOKUP(CONCATENATE($C22,"|",$C$2, "|", U$5,"|",$D$2,"|",$F$1,"|", $F$2,"|",$G$1,"|",$G$2,"|",$H$1,"|",$H$2),'DATA MART_'!$B$2:$Q$985098,16,0) ->  | V22: =VLOOKUP(CONCATENATE($C22,"|",$C$2, "|", V$5,"|",$D$2,"|",$F$1,"|", $F$2,"|",$G$1,"|",$G$2,"|",$H$1,"|",$H$2),'DATA MART_'!$B$2:$Q$985098,16,0) -> 
B23: DANSKE BANK | C23: DK008 | D23: DK | E23: 2 | F23: =VLOOKUP(CONCATENATE($C23,"|",$C$2, "|", F$5,"|",$D$2,"|",$F$1,"|", $F$2,"|",$G$1,"|",$G$2,"|",$H$1,"|",$H$2),'DATA MART_'!$B$2:$Q$985098,16,0) ->  | G23: =VLOOKUP(CONCATENATE($C23,"|",$C$2, "|", G$5,"|",$D$2,"|",$F$1,"|", $F$2,"|",$G$1,"|",$G$2,"|",$H$1,"|",$H$2),'DATA MART_'!$B$2:$Q$985098,16,0) ->  | H23: =VLOOKUP(CONCATENATE($C23,"|",$C$2, "|", H$5,"|",$D$2,"|",$F$1,"|", $F$2,"|",$G$1,"|",$G$2,"|",$H$1,"|",$H$2),'DATA MART_'!$B$2:$Q$985098,16,0) ->  | I23: =VLOOKUP(CONCATENATE($C23,"|",$C$2, "|", I$5,"|",$D$2,"|",$F$1,"|", $F$2,"|",$G$1,"|",$G$2,"|",$H$1,"|",$H$2),'DATA MART_'!$B$2:$Q$985098,16,0) ->  | J23: =VLOOKUP(CONCATENATE($C23,"|",$C$2, "|", J$5,"|",$D$2,"|",$F$1,"|", $F$2,"|",$G$1,"|",$G$2,"|",$H$1,"|",$H$2),'DATA MART_'!$B$2:$Q$985098,16,0) ->  | K23: =VLOOKUP(CONCATENATE($C23,"|",$C$2, "|", K$5,"|",$D$2,"|",$F$1,"|", $F$2,"|",$G$1,"|",$G$2,"|",$H$1,"|",$H$2),'DATA MART_'!$B$2:$Q$985098,16,0) ->  | L23: =VLOOKUP(CONCATENATE($C23,"|",$C$2, "|", L$5,"|",$D$2,"|",$F$1,"|", $F$2,"|",$G$1,"|",$G$2,"|",$H$1,"|",$H$2),'DATA MART_'!$B$2:$Q$985098,16,0) ->  | M23: =VLOOKUP(CONCATENATE($C23,"|",$C$2, "|", M$5,"|",$D$2,"|",$F$1,"|", $F$2,"|",$G$1,"|",$G$2,"|",$H$1,"|",$H$2),'DATA MART_'!$B$2:$Q$985098,16,0) ->  | N23: =VLOOKUP(CONCATENATE($C23,"|",$C$2, "|", N$5,"|",$D$2,"|",$F$1,"|", $F$2,"|",$G$1,"|",$G$2,"|",$H$1,"|",$H$2),'DATA MART_'!$B$2:$Q$985098,16,0) ->  | O23: =VLOOKUP(CONCATENATE($C23,"|",$C$2, "|", O$5,"|",$D$2,"|",$F$1,"|", $F$2,"|",$G$1,"|",$G$2,"|",$H$1,"|",$H$2),'DATA MART_'!$B$2:$Q$985098,16,0) ->  | P23: =VLOOKUP(CONCATENATE($C23,"|",$C$2, "|", P$5,"|",$D$2,"|",$F$1,"|", $F$2,"|",$G$1,"|",$G$2,"|",$H$1,"|",$H$2),'DATA MART_'!$B$2:$Q$985098,16,0) ->  | Q23: =VLOOKUP(CONCATENATE($C23,"|",$C$2, "|", Q$5,"|",$D$2,"|",$F$1,"|", $F$2,"|",$G$1,"|",$G$2,"|",$H$1,"|",$H$2),'DATA MART_'!$B$2:$Q$985098,16,0) ->  | R23: =VLOOKUP(CONCATENATE($C23,"|",$C$2, "|", R$5,"|",$D$2,"|",$F$1,"|", $F$2,"|",$G$1,"|",$G$2,"|",$H$1,"|",$H$2),'DATA MART_'!$B$2:$Q$985098,16,0) ->  | S23: =VLOOKUP(CONCATENATE($C23,"|",$C$2, "|", S$5,"|",$D$2,"|",$F$1,"|", $F$2,"|",$G$1,"|",$G$2,"|",$H$1,"|",$H$2),'DATA MART_'!$B$2:$Q$985098,16,0) ->  | T23: =VLOOKUP(CONCATENATE($C23,"|",$C$2, "|", T$5,"|",$D$2,"|",$F$1,"|", $F$2,"|",$G$1,"|",$G$2,"|",$H$1,"|",$H$2),'DATA MART_'!$B$2:$Q$985098,16,0) ->  | U23: =VLOOKUP(CONCATENATE($C23,"|",$C$2, "|", U$5,"|",$D$2,"|",$F$1,"|", $F$2,"|",$G$1,"|",$G$2,"|",$H$1,"|",$H$2),'DATA MART_'!$B$2:$Q$985098,16,0) ->  | V23: =VLOOKUP(CONCATENATE($C23,"|",$C$2, "|", V$5,"|",$D$2,"|",$F$1,"|", $F$2,"|",$G$1,"|",$G$2,"|",$H$1,"|",$H$2),'DATA MART_'!$B$2:$Q$985098,16,0) -> 
B24: Jyske Bank | C24: DK009 | D24: DK | E24: 1 | F24: =VLOOKUP(CONCATENATE($C24,"|",$C$2, "|", F$5,"|",$D$2,"|",$F$1,"|", $F$2,"|",$G$1,"|",$G$2,"|",$H$1,"|",$H$2),'DATA MART_'!$B$2:$Q$985098,16,0) ->  | G24: =VLOOKUP(CONCATENATE($C24,"|",$C$2, "|", G$5,"|",$D$2,"|",$F$1,"|", $F$2,"|",$G$1,"|",$G$2,"|",$H$1,"|",$H$2),'DATA MART_'!$B$2:$Q$985098,16,0) ->  | H24: =VLOOKUP(CONCATENATE($C24,"|",$C$2, "|", H$5,"|",$D$2,"|",$F$1,"|", $F$2,"|",$G$1,"|",$G$2,"|",$H$1,"|",$H$2),'DATA MART_'!$B$2:$Q$985098,16,0) ->  | I24: =VLOOKUP(CONCATENATE($C24,"|",$C$2, "|", I$5,"|",$D$2,"|",$F$1,"|", $F$2,"|",$G$1,"|",$G$2,"|",$H$1,"|",$H$2),'DATA MART_'!$B$2:$Q$985098,16,0) ->  | J24: =VLOOKUP(CONCATENATE($C24,"|",$C$2, "|", J$5,"|",$D$2,"|",$F$1,"|", $F$2,"|",$G$1,"|",$G$2,"|",$H$1,"|",$H$2),'DATA MART_'!$B$2:$Q$985098,16,0) ->  | K24: =VLOOKUP(CONCATENATE($C24,"|",$C$2, "|", K$5,"|",$D$2,"|",$F$1,"|", $F$2,"|",$G$1,"|",$G$2,"|",$H$1,"|",$H$2),'DATA MART_'!$B$2:$Q$985098,16,0) ->  | L24: =VLOOKUP(CONCATENATE($C24,"|",$C$2, "|", L$5,"|",$D$2,"|",$F$1,"|", $F$2,"|",$G$1,"|",$G$2,"|",$H$1,"|",$H$2),'DATA MART_'!$B$2:$Q$985098,16,0) ->  | M24: =VLOOKUP(CONCATENATE($C24,"|",$C$2, "|", M$5,"|",$D$2,"|",$F$1,"|", $F$2,"|",$G$1,"|",$G$2,"|",$H$1,"|",$H$2),'DATA MART_'!$B$2:$Q$985098,16,0) ->  | N24: =VLOOKUP(CONCATENATE($C24,"|",$C$2, "|", N$5,"|",$D$2,"|",$F$1,"|", $F$2,"|",$G$1,"|",$G$2,"|",$H$1,"|",$H$2),'DATA MART_'!$B$2:$Q$985098,16,0) ->  | O24: =VLOOKUP(CONCATENATE($C24,"|",$C$2, "|", O$5,"|",$D$2,"|",$F$1,"|", $F$2,"|",$G$1,"|",$G$2,"|",$H$1,"|",$H$2),'DATA MART_'!$B$2:$Q$985098,16,0) ->  | P24: =VLOOKUP(CONCATENATE($C24,"|",$C$2, "|", P$5,"|",$D$2,"|",$F$1,"|", $F$2,"|",$G$1,"|",$G$2,"|",$H$1,"|",$H$2),'DATA MART_'!$B$2:$Q$985098,16,0) ->  | Q24: =VLOOKUP(CONCATENATE($C24,"|",$C$2, "|", Q$5,"|",$D$2,"|",$F$1,"|", $F$2,"|",$G$1,"|",$G$2,"|",$H$1,"|",$H$2),'DATA MART_'!$B$2:$Q$985098,16,0) ->  | R24: =VLOOKUP(CONCATENATE($C24,"|",$C$2, "|", R$5,"|",$D$2,"|",$F$1,"|", $F$2,"|",$G$1,"|",$G$2,"|",$H$1,"|",$H$2),'DATA MART_'!$B$2:$Q$985098,16,0) ->  | S24: =VLOOKUP(CONCATENATE($C24,"|",$C$2, "|", S$5,"|",$D$2,"|",$F$1,"|", $F$2,"|",$G$1,"|",$G$2,"|",$H$1,"|",$H$2),'DATA MART_'!$B$2:$Q$985098,16,0) ->  | T24: =VLOOKUP(CONCATENATE($C24,"|",$C$2, "|", T$5,"|",$D$2,"|",$F$1,"|", $F$2,"|",$G$1,"|",$G$2,"|",$H$1,"|",$H$2),'DATA MART_'!$B$2:$Q$985098,16,0) ->  | U24: =VLOOKUP(CONCATENATE($C24,"|",$C$2, "|", U$5,"|",$D$2,"|",$F$1,"|", $F$2,"|",$G$1,"|",$G$2,"|",$H$1,"|",$H$2),'DATA MART_'!$B$2:$Q$985098,16,0) ->  | V24: =VLOOKUP(CONCATENATE($C24,"|",$C$2, "|", V$5,"|",$D$2,"|",$F$1,"|", $F$2,"|",$G$1,"|",$G$2,"|",$H$1,"|",$H$2),'DATA MART_'!$B$2:$Q$985098,16,0) -> 
B25: Sydbank | C25: DK010 | D25: DK | E25: 2 | F25: =VLOOKUP(CONCATENATE($C25,"|",$C$2, "|", F$5,"|",$D$2,"|",$F$1,"|", $F$2,"|",$G$1,"|",$G$2,"|",$H$1,"|",$H$2),'DATA MART_'!$B$2:$Q$985098,16,0) ->  | G25: =VLOOKUP(CONCATENATE($C25,"|",$C$2, "|", G$5,"|",$D$2,"|",$F$1,"|", $F$2,"|",$G$1,"|",$G$2,"|",$H$1,"|",$H$2),'DATA MART_'!$B$2:$Q$985098,16,0) ->  | H25: =VLOOKUP(CONCATENATE($C25,"|",$C$2, "|", H$5,"|",$D$2,"|",$F$1,"|", $F$2,"|",$G$1,"|",$G$2,"|",$H$1,"|",$H$2),'DATA MART_'!$B$2:$Q$985098,16,0) ->  | I25: =VLOOKUP(CONCATENATE($C25,"|",$C$2, "|", I$5,"|",$D$2,"|",$F$1,"|", $F$2,"|",$G$1,"|",$G$2,"|",$H$1,"|",$H$2),'DATA MART_'!$B$2:$Q$985098,16,0) ->  | J25: =VLOOKUP(CONCATENATE($C25,"|",$C$2, "|", J$5,"|",$D$2,"|",$F$1,"|", $F$2,"|",$G$1,"|",$G$2,"|",$H$1,"|",$H$2),'DATA MART_'!$B$2:$Q$985098,16,0) ->  | K25: =VLOOKUP(CONCATENATE($C25,"|",$C$2, "|", K$5,"|",$D$2,"|",$F$1,"|", $F$2,"|",$G$1,"|",$G$2,"|",$H$1,"|",$H$2),'DATA MART_'!$B$2:$Q$985098,16,0) ->  | L25: =VLOOKUP(CONCATENATE($C25,"|",$C$2, "|", L$5,"|",$D$2,"|",$F$1,"|", $F$2,"|",$G$1,"|",$G$2,"|",$H$1,"|",$H$2),'DATA MART_'!$B$2:$Q$985098,16,0) ->  | M25: =VLOOKUP(CONCATENATE($C25,"|",$C$2, "|", M$5,"|",$D$2,"|",$F$1,"|", $F$2,"|",$G$1,"|",$G$2,"|",$H$1,"|",$H$2),'DATA MART_'!$B$2:$Q$985098,16,0) ->  | N25: =VLOOKUP(CONCATENATE($C25,"|",$C$2, "|", N$5,"|",$D$2,"|",$F$1,"|", $F$2,"|",$G$1,"|",$G$2,"|",$H$1,"|",$H$2),'DATA MART_'!$B$2:$Q$985098,16,0) ->  | O25: =VLOOKUP(CONCATENATE($C25,"|",$C$2, "|", O$5,"|",$D$2,"|",$F$1,"|", $F$2,"|",$G$1,"|",$G$2,"|",$H$1,"|",$H$2),'DATA MART_'!$B$2:$Q$985098,16,0) ->  | P25: =VLOOKUP(CONCATENATE($C25,"|",$C$2, "|", P$5,"|",$D$2,"|",$F$1,"|", $F$2,"|",$G$1,"|",$G$2,"|",$H$1,"|",$H$2),'DATA MART_'!$B$2:$Q$985098,16,0) ->  | Q25: =VLOOKUP(CONCATENATE($C25,"|",$C$2, "|", Q$5,"|",$D$2,"|",$F$1,"|", $F$2,"|",$G$1,"|",$G$2,"|",$H$1,"|",$H$2),'DATA MART_'!$B$2:$Q$985098,16,0) ->  | R25: =VLOOKUP(CONCATENATE($C25,"|",$C$2, "|", R$5,"|",$D$2,"|",$F$1,"|", $F$2,"|",$G$1,"|",$G$2,"|",$H$1,"|",$H$2),'DATA MART_'!$B$2:$Q$985098,16,0) ->  | S25: =VLOOKUP(CONCATENATE($C25,"|",$C$2, "|", S$5,"|",$D$2,"|",$F$1,"|", $F$2,"|",$G$1,"|",$G$2,"|",$H$1,"|",$H$2),'DATA MART_'!$B$2:$Q$985098,16,0) ->  | T25: =VLOOKUP(CONCATENATE($C25,"|",$C$2, "|", T$5,"|",$D$2,"|",$F$1,"|", $F$2,"|",$G$1,"|",$G$2,"|",$H$1,"|",$H$2),'DATA MART_'!$B$2:$Q$985098,16,0) ->  | U25: =VLOOKUP(CONCATENATE($C25,"|",$C$2, "|", U$5,"|",$D$2,"|",$F$1,"|", $F$2,"|",$G$1,"|",$G$2,"|",$H$1,"|",$H$2),'DATA MART_'!$B$2:$Q$985098,16,0) ->  | V25: =VLOOKUP(CONCATENATE($C25,"|",$C$2, "|", V$5,"|",$D$2,"|",$F$1,"|", $F$2,"|",$G$1,"|",$G$2,"|",$H$1,"|",$H$2),'DATA MART_'!$B$2:$Q$985098,16,0) -> 
B26: Nykredit | C26: DK011 | D26: DK | E26: 2 | F26: =VLOOKUP(CONCATENATE($C26,"|",$C$2, "|", F$5,"|",$D$2,"|",$F$1,"|", $F$2,"|",$G$1,"|",$G$2,"|",$H$1,"|",$H$2),'DATA MART_'!$B$2:$Q$985098,16,0) ->  | G26: =VLOOKUP(CONCATENATE($C26,"|",$C$2, "|", G$5,"|",$D$2,"|",$F$1,"|", $F$2,"|",$G$1,"|",$G$2,"|",$H$1,"|",$H$2),'DATA MART_'!$B$2:$Q$985098,16,0) ->  | H26: =VLOOKUP(CONCATENATE($C26,"|",$C$2, "|", H$5,"|",$D$2,"|",$F$1,"|", $F$2,"|",$G$1,"|",$G$2,"|",$H$1,"|",$H$2),'DATA MART_'!$B$2:$Q$985098,16,0) ->  | I26: =VLOOKUP(CONCATENATE($C26,"|",$C$2, "|", I$5,"|",$D$2,"|",$F$1,"|", $F$2,"|",$G$1,"|",$G$2,"|",$H$1,"|",$H$2),'DATA MART_'!$B$2:$Q$985098,16,0) ->  | J26: =VLOOKUP(CONCATENATE($C26,"|",$C$2, "|", J$5,"|",$D$2,"|",$F$1,"|", $F$2,"|",$G$1,"|",$G$2,"|",$H$1,"|",$H$2),'DATA MART_'!$B$2:$Q$985098,16,0) ->  | K26: =VLOOKUP(CONCATENATE($C26,"|",$C$2, "|", K$5,"|",$D$2,"|",$F$1,"|", $F$2,"|",$G$1,"|",$G$2,"|",$H$1,"|",$H$2),'DATA MART_'!$B$2:$Q$985098,16,0) ->  | L26: =VLOOKUP(CONCATENATE($C26,"|",$C$2, "|", L$5,"|",$D$2,"|",$F$1,"|", $F$2,"|",$G$1,"|",$G$2,"|",$H$1,"|",$H$2),'DATA MART_'!$B$2:$Q$985098,16,0) ->  | M26: =VLOOKUP(CONCATENATE($C26,"|",$C$2, "|", M$5,"|",$D$2,"|",$F$1,"|", $F$2,"|",$G$1,"|",$G$2,"|",$H$1,"|",$H$2),'DATA MART_'!$B$2:$Q$985098,16,0) ->  | N26: =VLOOKUP(CONCATENATE($C26,"|",$C$2, "|", N$5,"|",$D$2,"|",$F$1,"|", $F$2,"|",$G$1,"|",$G$2,"|",$H$1,"|",$H$2),'DATA MART_'!$B$2:$Q$985098,16,0) ->  | O26: =VLOOKUP(CONCATENATE($C26,"|",$C$2, "|", O$5,"|",$D$2,"|",$F$1,"|", $F$2,"|",$G$1,"|",$G$2,"|",$H$1,"|",$H$2),'DATA MART_'!$B$2:$Q$985098,16,0) ->  | P26: =VLOOKUP(CONCATENATE($C26,"|",$C$2, "|", P$5,"|",$D$2,"|",$F$1,"|", $F$2,"|",$G$1,"|",$G$2,"|",$H$1,"|",$H$2),'DATA MART_'!$B$2:$Q$985098,16,0) ->  | Q26: =VLOOKUP(CONCATENATE($C26,"|",$C$2, "|", Q$5,"|",$D$2,"|",$F$1,"|", $F$2,"|",$G$1,"|",$G$2,"|",$H$1,"|",$H$2),'DATA MART_'!$B$2:$Q$985098,16,0) ->  | R26: =VLOOKUP(CONCATENATE($C26,"|",$C$2, "|", R$5,"|",$D$2,"|",$F$1,"|", $F$2,"|",$G$1,"|",$G$2,"|",$H$1,"|",$H$2),'DATA MART_'!$B$2:$Q$985098,16,0) ->  | S26: =VLOOKUP(CONCATENATE($C26,"|",$C$2, "|", S$5,"|",$D$2,"|",$F$1,"|", $F$2,"|",$G$1,"|",$G$2,"|",$H$1,"|",$H$2),'DATA MART_'!$B$2:$Q$985098,16,0) ->  | T26: =VLOOKUP(CONCATENATE($C26,"|",$C$2, "|", T$5,"|",$D$2,"|",$F$1,"|", $F$2,"|",$G$1,"|",$G$2,"|",$H$1,"|",$H$2),'DATA MART_'!$B$2:$Q$985098,16,0) ->  | U26: =VLOOKUP(CONCATENATE($C26,"|",$C$2, "|", U$5,"|",$D$2,"|",$F$1,"|", $F$2,"|",$G$1,"|",$G$2,"|",$H$1,"|",$H$2),'DATA MART_'!$B$2:$Q$985098,16,0) ->  | V26: =VLOOKUP(CONCATENATE($C26,"|",$C$2, "|", V$5,"|",$D$2,"|",$F$1,"|", $F$2,"|",$G$1,"|",$G$2,"|",$H$1,"|",$H$2),'DATA MART_'!$B$2:$Q$985098,16,0) -> 
B27: BANCO SANTANDER S.A. | C27: ES059 | D27: ES | E27: 1 | F27: =VLOOKUP(CONCATENATE($C27,"|",$C$2, "|", F$5,"|",$D$2,"|",$F$1,"|", $F$2,"|",$G$1,"|",$G$2,"|",$H$1,"|",$H$2),'DATA MART_'!$B$2:$Q$985098,16,0) ->  | G27: =VLOOKUP(CONCATENATE($C27,"|",$C$2, "|", G$5,"|",$D$2,"|",$F$1,"|", $F$2,"|",$G$1,"|",$G$2,"|",$H$1,"|",$H$2),'DATA MART_'!$B$2:$Q$985098,16,0) ->  | H27: =VLOOKUP(CONCATENATE($C27,"|",$C$2, "|", H$5,"|",$D$2,"|",$F$1,"|", $F$2,"|",$G$1,"|",$G$2,"|",$H$1,"|",$H$2),'DATA MART_'!$B$2:$Q$985098,16,0) ->  | I27: =VLOOKUP(CONCATENATE($C27,"|",$C$2, "|", I$5,"|",$D$2,"|",$F$1,"|", $F$2,"|",$G$1,"|",$G$2,"|",$H$1,"|",$H$2),'DATA MART_'!$B$2:$Q$985098,16,0) ->  | J27: =VLOOKUP(CONCATENATE($C27,"|",$C$2, "|", J$5,"|",$D$2,"|",$F$1,"|", $F$2,"|",$G$1,"|",$G$2,"|",$H$1,"|",$H$2),'DATA MART_'!$B$2:$Q$985098,16,0) ->  | K27: =VLOOKUP(CONCATENATE($C27,"|",$C$2, "|", K$5,"|",$D$2,"|",$F$1,"|", $F$2,"|",$G$1,"|",$G$2,"|",$H$1,"|",$H$2),'DATA MART_'!$B$2:$Q$985098,16,0) ->  | L27: =VLOOKUP(CONCATENATE($C27,"|",$C$2, "|", L$5,"|",$D$2,"|",$F$1,"|", $F$2,"|",$G$1,"|",$G$2,"|",$H$1,"|",$H$2),'DATA MART_'!$B$2:$Q$985098,16,0) ->  | M27: =VLOOKUP(CONCATENATE($C27,"|",$C$2, "|", M$5,"|",$D$2,"|",$F$1,"|", $F$2,"|",$G$1,"|",$G$2,"|",$H$1,"|",$H$2),'DATA MART_'!$B$2:$Q$985098,16,0) ->  | N27: =VLOOKUP(CONCATENATE($C27,"|",$C$2, "|", N$5,"|",$D$2,"|",$F$1,"|", $F$2,"|",$G$1,"|",$G$2,"|",$H$1,"|",$H$2),'DATA MART_'!$B$2:$Q$985098,16,0) ->  | O27: =VLOOKUP(CONCATENATE($C27,"|",$C$2, "|", O$5,"|",$D$2,"|",$F$1,"|", $F$2,"|",$G$1,"|",$G$2,"|",$H$1,"|",$H$2),'DATA MART_'!$B$2:$Q$985098,16,0) ->  | P27: =VLOOKUP(CONCATENATE($C27,"|",$C$2, "|", P$5,"|",$D$2,"|",$F$1,"|", $F$2,"|",$G$1,"|",$G$2,"|",$H$1,"|",$H$2),'DATA MART_'!$B$2:$Q$985098,16,0) ->  | Q27: =VLOOKUP(CONCATENATE($C27,"|",$C$2, "|", Q$5,"|",$D$2,"|",$F$1,"|", $F$2,"|",$G$1,"|",$G$2,"|",$H$1,"|",$H$2),'DATA MART_'!$B$2:$Q$985098,16,0) ->  | R27: =VLOOKUP(CONCATENATE($C27,"|",$C$2, "|", R$5,"|",$D$2,"|",$F$1,"|", $F$2,"|",$G$1,"|",$G$2,"|",$H$1,"|",$H$2),'DATA MART_'!$B$2:$Q$985098,16,0) ->  | S27: =VLOOKUP(CONCATENATE($C27,"|",$C$2, "|", S$5,"|",$D$2,"|",$F$1,"|", $F$2,"|",$G$1,"|",$G$2,"|",$H$1,"|",$H$2),'DATA MART_'!$B$2:$Q$985098,16,0) ->  | T27: =VLOOKUP(CONCATENATE($C27,"|",$C$2, "|", T$5,"|",$D$2,"|",$F$1,"|", $F$2,"|",$G$1,"|",$G$2,"|",$H$1,"|",$H$2),'DATA MART_'!$B$2:$Q$985098,16,0) ->  | U27: =VLOOKUP(CONCATENATE($C27,"|",$C$2, "|", U$5,"|",$D$2,"|",$F$1,"|", $F$2,"|",$G$1,"|",$G$2,"|",$H$1,"|",$H$2),'DATA MART_'!$B$2:$Q$985098,16,0) ->  | V27: =VLOOKUP(CONCATENATE($C27,"|",$C$2, "|", V$5,"|",$D$2,"|",$F$1,"|", $F$2,"|",$G$1,"|",$G$2,"|",$H$1,"|",$H$2),'DATA MART_'!$B$2:$Q$985098,16,0) -> 
B28: BANCO BILBAO VIZCAYA ARGENTARIA S.A. (BBVA) | C28: ES060 | D28: ES | E28: 1 | F28: =VLOOKUP(CONCATENATE($C28,"|",$C$2, "|", F$5,"|",$D$2,"|",$F$1,"|", $F$2,"|",$G$1,"|",$G$2,"|",$H$1,"|",$H$2),'DATA MART_'!$B$2:$Q$985098,16,0) ->  | G28: =VLOOKUP(CONCATENATE($C28,"|",$C$2, "|", G$5,"|",$D$2,"|",$F$1,"|", $F$2,"|",$G$1,"|",$G$2,"|",$H$1,"|",$H$2),'DATA MART_'!$B$2:$Q$985098,16,0) ->  | H28: =VLOOKUP(CONCATENATE($C28,"|",$C$2, "|", H$5,"|",$D$2,"|",$F$1,"|", $F$2,"|",$G$1,"|",$G$2,"|",$H$1,"|",$H$2),'DATA MART_'!$B$2:$Q$985098,16,0) ->  | I28: =VLOOKUP(CONCATENATE($C28,"|",$C$2, "|", I$5,"|",$D$2,"|",$F$1,"|", $F$2,"|",$G$1,"|",$G$2,"|",$H$1,"|",$H$2),'DATA MART_'!$B$2:$Q$985098,16,0) ->  | J28: =VLOOKUP(CONCATENATE($C28,"|",$C$2, "|", J$5,"|",$D$2,"|",$F$1,"|", $F$2,"|",$G$1,"|",$G$2,"|",$H$1,"|",$H$2),'DATA MART_'!$B$2:$Q$985098,16,0) ->  | K28: =VLOOKUP(CONCATENATE($C28,"|",$C$2, "|", K$5,"|",$D$2,"|",$F$1,"|", $F$2,"|",$G$1,"|",$G$2,"|",$H$1,"|",$H$2),'DATA MART_'!$B$2:$Q$985098,16,0) ->  | L28: =VLOOKUP(CONCATENATE($C28,"|",$C$2, "|", L$5,"|",$D$2,"|",$F$1,"|", $F$2,"|",$G$1,"|",$G$2,"|",$H$1,"|",$H$2),'DATA MART_'!$B$2:$Q$985098,16,0) ->  | M28: =VLOOKUP(CONCATENATE($C28,"|",$C$2, "|", M$5,"|",$D$2,"|",$F$1,"|", $F$2,"|",$G$1,"|",$G$2,"|",$H$1,"|",$H$2),'DATA MART_'!$B$2:$Q$985098,16,0) ->  | N28: =VLOOKUP(CONCATENATE($C28,"|",$C$2, "|", N$5,"|",$D$2,"|",$F$1,"|", $F$2,"|",$G$1,"|",$G$2,"|",$H$1,"|",$H$2),'DATA MART_'!$B$2:$Q$985098,16,0) ->  | O28: =VLOOKUP(CONCATENATE($C28,"|",$C$2, "|", O$5,"|",$D$2,"|",$F$1,"|", $F$2,"|",$G$1,"|",$G$2,"|",$H$1,"|",$H$2),'DATA MART_'!$B$2:$Q$985098,16,0) ->  | P28: =VLOOKUP(CONCATENATE($C28,"|",$C$2, "|", P$5,"|",$D$2,"|",$F$1,"|", $F$2,"|",$G$1,"|",$G$2,"|",$H$1,"|",$H$2),'DATA MART_'!$B$2:$Q$985098,16,0) ->  | Q28: =VLOOKUP(CONCATENATE($C28,"|",$C$2, "|", Q$5,"|",$D$2,"|",$F$1,"|", $F$2,"|",$G$1,"|",$G$2,"|",$H$1,"|",$H$2),'DATA MART_'!$B$2:$Q$985098,16,0) ->  | R28: =VLOOKUP(CONCATENATE($C28,"|",$C$2, "|", R$5,"|",$D$2,"|",$F$1,"|", $F$2,"|",$G$1,"|",$G$2,"|",$H$1,"|",$H$2),'DATA MART_'!$B$2:$Q$985098,16,0) ->  | S28: =VLOOKUP(CONCATENATE($C28,"|",$C$2, "|", S$5,"|",$D$2,"|",$F$1,"|", $F$2,"|",$G$1,"|",$G$2,"|",$H$1,"|",$H$2),'DATA MART_'!$B$2:$Q$985098,16,0) ->  | T28: =VLOOKUP(CONCATENATE($C28,"|",$C$2, "|", T$5,"|",$D$2,"|",$F$1,"|", $F$2,"|",$G$1,"|",$G$2,"|",$H$1,"|",$H$2),'DATA MART_'!$B$2:$Q$985098,16,0) ->  | U28: =VLOOKUP(CONCATENATE($C28,"|",$C$2, "|", U$5,"|",$D$2,"|",$F$1,"|", $F$2,"|",$G$1,"|",$G$2,"|",$H$1,"|",$H$2),'DATA MART_'!$B$2:$Q$985098,16,0) ->  | V28: =VLOOKUP(CONCATENATE($C28,"|",$C$2, "|", V$5,"|",$D$2,"|",$F$1,"|", $F$2,"|",$G$1,"|",$G$2,"|",$H$1,"|",$H$2),'DATA MART_'!$B$2:$Q$985098,16,0) -> 
B29: CAJA DE AHORROS Y PENSIONES DE BARCELONA | C29: ES062 | D29: ES | E29: 1 | F29: =VLOOKUP(CONCATENATE($C29,"|",$C$2, "|", F$5,"|",$D$2,"|",$F$1,"|", $F$2,"|",$G$1,"|",$G$2,"|",$H$1,"|",$H$2),'DATA MART_'!$B$2:$Q$985098,16,0) ->  | G29: =VLOOKUP(CONCATENATE($C29,"|",$C$2, "|", G$5,"|",$D$2,"|",$F$1,"|", $F$2,"|",$G$1,"|",$G$2,"|",$H$1,"|",$H$2),'DATA MART_'!$B$2:$Q$985098,16,0) ->  | H29: =VLOOKUP(CONCATENATE($C29,"|",$C$2, "|", H$5,"|",$D$2,"|",$F$1,"|", $F$2,"|",$G$1,"|",$G$2,"|",$H$1,"|",$H$2),'DATA MART_'!$B$2:$Q$985098,16,0) ->  | I29: =VLOOKUP(CONCATENATE($C29,"|",$C$2, "|", I$5,"|",$D$2,"|",$F$1,"|", $F$2,"|",$G$1,"|",$G$2,"|",$H$1,"|",$H$2),'DATA MART_'!$B$2:$Q$985098,16,0) ->  | J29: =VLOOKUP(CONCATENATE($C29,"|",$C$2, "|", J$5,"|",$D$2,"|",$F$1,"|", $F$2,"|",$G$1,"|",$G$2,"|",$H$1,"|",$H$2),'DATA MART_'!$B$2:$Q$985098,16,0) ->  | K29: =VLOOKUP(CONCATENATE($C29,"|",$C$2, "|", K$5,"|",$D$2,"|",$F$1,"|", $F$2,"|",$G$1,"|",$G$2,"|",$H$1,"|",$H$2),'DATA MART_'!$B$2:$Q$985098,16,0) ->  | L29: =VLOOKUP(CONCATENATE($C29,"|",$C$2, "|", L$5,"|",$D$2,"|",$F$1,"|", $F$2,"|",$G$1,"|",$G$2,"|",$H$1,"|",$H$2),'DATA MART_'!$B$2:$Q$985098,16,0) ->  | M29: =VLOOKUP(CONCATENATE($C29,"|",$C$2, "|", M$5,"|",$D$2,"|",$F$1,"|", $F$2,"|",$G$1,"|",$G$2,"|",$H$1,"|",$H$2),'DATA MART_'!$B$2:$Q$985098,16,0) ->  | N29: =VLOOKUP(CONCATENATE($C29,"|",$C$2, "|", N$5,"|",$D$2,"|",$F$1,"|", $F$2,"|",$G$1,"|",$G$2,"|",$H$1,"|",$H$2),'DATA MART_'!$B$2:$Q$985098,16,0) ->  | O29: =VLOOKUP(CONCATENATE($C29,"|",$C$2, "|", O$5,"|",$D$2,"|",$F$1,"|", $F$2,"|",$G$1,"|",$G$2,"|",$H$1,"|",$H$2),'DATA MART_'!$B$2:$Q$985098,16,0) ->  | P29: =VLOOKUP(CONCATENATE($C29,"|",$C$2, "|", P$5,"|",$D$2,"|",$F$1,"|", $F$2,"|",$G$1,"|",$G$2,"|",$H$1,"|",$H$2),'DATA MART_'!$B$2:$Q$985098,16,0) ->  | Q29: =VLOOKUP(CONCATENATE($C29,"|",$C$2, "|", Q$5,"|",$D$2,"|",$F$1,"|", $F$2,"|",$G$1,"|",$G$2,"|",$H$1,"|",$H$2),'DATA MART_'!$B$2:$Q$985098,16,0) ->  | R29: =VLOOKUP(CONCATENATE($C29,"|",$C$2, "|", R$5,"|",$D$2,"|",$F$1,"|", $F$2,"|",$G$1,"|",$G$2,"|",$H$1,"|",$H$2),'DATA MART_'!$B$2:$Q$985098,16,0) ->  | S29: =VLOOKUP(CONCATENATE($C29,"|",$C$2, "|", S$5,"|",$D$2,"|",$F$1,"|", $F$2,"|",$G$1,"|",$G$2,"|",$H$1,"|",$H$2),'DATA MART_'!$B$2:$Q$985098,16,0) ->  | T29: =VLOOKUP(CONCATENATE($C29,"|",$C$2, "|", T$5,"|",$D$2,"|",$F$1,"|", $F$2,"|",$G$1,"|",$G$2,"|",$H$1,"|",$H$2),'DATA MART_'!$B$2:$Q$985098,16,0) ->  | U29: =VLOOKUP(CONCATENATE($C29,"|",$C$2, "|", U$5,"|",$D$2,"|",$F$1,"|", $F$2,"|",$G$1,"|",$G$2,"|",$H$1,"|",$H$2),'DATA MART_'!$B$2:$Q$985098,16,0) ->  | V29: =VLOOKUP(CONCATENATE($C29,"|",$C$2, "|", V$5,"|",$D$2,"|",$F$1,"|", $F$2,"|",$G$1,"|",$G$2,"|",$H$1,"|",$H$2),'DATA MART_'!$B$2:$Q$985098,16,0) -> 
B30: BANCO POPULAR ESPAÑOL, S.A. | C30: ES064 | D30: ES | E30: 1 | F30: =VLOOKUP(CONCATENATE($C30,"|",$C$2, "|", F$5,"|",$D$2,"|",$F$1,"|", $F$2,"|",$G$1,"|",$G$2,"|",$H$1,"|",$H$2),'DATA MART_'!$B$2:$Q$985098,16,0) ->  | G30: =VLOOKUP(CONCATENATE($C30,"|",$C$2, "|", G$5,"|",$D$2,"|",$F$1,"|", $F$2,"|",$G$1,"|",$G$2,"|",$H$1,"|",$H$2),'DATA MART_'!$B$2:$Q$985098,16,0) ->  | H30: =VLOOKUP(CONCATENATE($C30,"|",$C$2, "|", H$5,"|",$D$2,"|",$F$1,"|", $F$2,"|",$G$1,"|",$G$2,"|",$H$1,"|",$H$2),'DATA MART_'!$B$2:$Q$985098,16,0) ->  | I30: =VLOOKUP(CONCATENATE($C30,"|",$C$2, "|", I$5,"|",$D$2,"|",$F$1,"|", $F$2,"|",$G$1,"|",$G$2,"|",$H$1,"|",$H$2),'DATA MART_'!$B$2:$Q$985098,16,0) ->  | J30: =VLOOKUP(CONCATENATE($C30,"|",$C$2, "|", J$5,"|",$D$2,"|",$F$1,"|", $F$2,"|",$G$1,"|",$G$2,"|",$H$1,"|",$H$2),'DATA MART_'!$B$2:$Q$985098,16,0) ->  | K30: =VLOOKUP(CONCATENATE($C30,"|",$C$2, "|", K$5,"|",$D$2,"|",$F$1,"|", $F$2,"|",$G$1,"|",$G$2,"|",$H$1,"|",$H$2),'DATA MART_'!$B$2:$Q$985098,16,0) ->  | L30: =VLOOKUP(CONCATENATE($C30,"|",$C$2, "|", L$5,"|",$D$2,"|",$F$1,"|", $F$2,"|",$G$1,"|",$G$2,"|",$H$1,"|",$H$2),'DATA MART_'!$B$2:$Q$985098,16,0) ->  | M30: =VLOOKUP(CONCATENATE($C30,"|",$C$2, "|", M$5,"|",$D$2,"|",$F$1,"|", $F$2,"|",$G$1,"|",$G$2,"|",$H$1,"|",$H$2),'DATA MART_'!$B$2:$Q$985098,16,0) ->  | N30: =VLOOKUP(CONCATENATE($C30,"|",$C$2, "|", N$5,"|",$D$2,"|",$F$1,"|", $F$2,"|",$G$1,"|",$G$2,"|",$H$1,"|",$H$2),'DATA MART_'!$B$2:$Q$985098,16,0) ->  | O30: =VLOOKUP(CONCATENATE($C30,"|",$C$2, "|", O$5,"|",$D$2,"|",$F$1,"|", $F$2,"|",$G$1,"|",$G$2,"|",$H$1,"|",$H$2),'DATA MART_'!$B$2:$Q$985098,16,0) ->  | P30: =VLOOKUP(CONCATENATE($C30,"|",$C$2, "|", P$5,"|",$D$2,"|",$F$1,"|", $F$2,"|",$G$1,"|",$G$2,"|",$H$1,"|",$H$2),'DATA MART_'!$B$2:$Q$985098,16,0) ->  | Q30: =VLOOKUP(CONCATENATE($C30,"|",$C$2, "|", Q$5,"|",$D$2,"|",$F$1,"|", $F$2,"|",$G$1,"|",$G$2,"|",$H$1,"|",$H$2),'DATA MART_'!$B$2:$Q$985098,16,0) ->  | R30: =VLOOKUP(CONCATENATE($C30,"|",$C$2, "|", R$5,"|",$D$2,"|",$F$1,"|", $F$2,"|",$G$1,"|",$G$2,"|",$H$1,"|",$H$2),'DATA MART_'!$B$2:$Q$985098,16,0) ->  | S30: =VLOOKUP(CONCATENATE($C30,"|",$C$2, "|", S$5,"|",$D$2,"|",$F$1,"|", $F$2,"|",$G$1,"|",$G$2,"|",$H$1,"|",$H$2),'DATA MART_'!$B$2:$Q$985098,16,0) ->  | T30: =VLOOKUP(CONCATENATE($C30,"|",$C$2, "|", T$5,"|",$D$2,"|",$F$1,"|", $F$2,"|",$G$1,"|",$G$2,"|",$H$1,"|",$H$2),'DATA MART_'!$B$2:$Q$985098,16,0) ->  | U30: =VLOOKUP(CONCATENATE($C30,"|",$C$2, "|", U$5,"|",$D$2,"|",$F$1,"|", $F$2,"|",$G$1,"|",$G$2,"|",$H$1,"|",$H$2),'DATA MART_'!$B$2:$Q$985098,16,0) ->  | V30: =VLOOKUP(CONCATENATE($C30,"|",$C$2, "|", V$5,"|",$D$2,"|",$F$1,"|", $F$2,"|",$G$1,"|",$G$2,"|",$H$1,"|",$H$2),'DATA MART_'!$B$2:$Q$985098,16,0) -> 
B31: OP-Pohjola Group | C31: FI012 | D31: FI | E31: 1 | F31: =VLOOKUP(CONCATENATE($C31,"|",$C$2, "|", F$5,"|",$D$2,"|",$F$1,"|", $F$2,"|",$G$1,"|",$G$2,"|",$H$1,"|",$H$2),'DATA MART_'!$B$2:$Q$985098,16,0) ->  | G31: =VLOOKUP(CONCATENATE($C31,"|",$C$2, "|", G$5,"|",$D$2,"|",$F$1,"|", $F$2,"|",$G$1,"|",$G$2,"|",$H$1,"|",$H$2),'DATA MART_'!$B$2:$Q$985098,16,0) ->  | H31: =VLOOKUP(CONCATENATE($C31,"|",$C$2, "|", H$5,"|",$D$2,"|",$F$1,"|", $F$2,"|",$G$1,"|",$G$2,"|",$H$1,"|",$H$2),'DATA MART_'!$B$2:$Q$985098,16,0) ->  | I31: =VLOOKUP(CONCATENATE($C31,"|",$C$2, "|", I$5,"|",$D$2,"|",$F$1,"|", $F$2,"|",$G$1,"|",$G$2,"|",$H$1,"|",$H$2),'DATA MART_'!$B$2:$Q$985098,16,0) ->  | J31: =VLOOKUP(CONCATENATE($C31,"|",$C$2, "|", J$5,"|",$D$2,"|",$F$1,"|", $F$2,"|",$G$1,"|",$G$2,"|",$H$1,"|",$H$2),'DATA MART_'!$B$2:$Q$985098,16,0) ->  | K31: =VLOOKUP(CONCATENATE($C31,"|",$C$2, "|", K$5,"|",$D$2,"|",$F$1,"|", $F$2,"|",$G$1,"|",$G$2,"|",$H$1,"|",$H$2),'DATA MART_'!$B$2:$Q$985098,16,0) ->  | L31: =VLOOKUP(CONCATENATE($C31,"|",$C$2, "|", L$5,"|",$D$2,"|",$F$1,"|", $F$2,"|",$G$1,"|",$G$2,"|",$H$1,"|",$H$2),'DATA MART_'!$B$2:$Q$985098,16,0) ->  | M31: =VLOOKUP(CONCATENATE($C31,"|",$C$2, "|", M$5,"|",$D$2,"|",$F$1,"|", $F$2,"|",$G$1,"|",$G$2,"|",$H$1,"|",$H$2),'DATA MART_'!$B$2:$Q$985098,16,0) ->  | N31: =VLOOKUP(CONCATENATE($C31,"|",$C$2, "|", N$5,"|",$D$2,"|",$F$1,"|", $F$2,"|",$G$1,"|",$G$2,"|",$H$1,"|",$H$2),'DATA MART_'!$B$2:$Q$985098,16,0) ->  | O31: =VLOOKUP(CONCATENATE($C31,"|",$C$2, "|", O$5,"|",$D$2,"|",$F$1,"|", $F$2,"|",$G$1,"|",$G$2,"|",$H$1,"|",$H$2),'DATA MART_'!$B$2:$Q$985098,16,0) ->  | P31: =VLOOKUP(CONCATENATE($C31,"|",$C$2, "|", P$5,"|",$D$2,"|",$F$1,"|", $F$2,"|",$G$1,"|",$G$2,"|",$H$1,"|",$H$2),'DATA MART_'!$B$2:$Q$985098,16,0) ->  | Q31: =VLOOKUP(CONCATENATE($C31,"|",$C$2, "|", Q$5,"|",$D$2,"|",$F$1,"|", $F$2,"|",$G$1,"|",$G$2,"|",$H$1,"|",$H$2),'DATA MART_'!$B$2:$Q$985098,16,0) ->  | R31: =VLOOKUP(CONCATENATE($C31,"|",$C$2, "|", R$5,"|",$D$2,"|",$F$1,"|", $F$2,"|",$G$1,"|",$G$2,"|",$H$1,"|",$H$2),'DATA MART_'!$B$2:$Q$985098,16,0) ->  | S31: =VLOOKUP(CONCATENATE($C31,"|",$C$2, "|", S$5,"|",$D$2,"|",$F$1,"|", $F$2,"|",$G$1,"|",$G$2,"|",$H$1,"|",$H$2),'DATA MART_'!$B$2:$Q$985098,16,0) ->  | T31: =VLOOKUP(CONCATENATE($C31,"|",$C$2, "|", T$5,"|",$D$2,"|",$F$1,"|", $F$2,"|",$G$1,"|",$G$2,"|",$H$1,"|",$H$2),'DATA MART_'!$B$2:$Q$985098,16,0) ->  | U31: =VLOOKUP(CONCATENATE($C31,"|",$C$2, "|", U$5,"|",$D$2,"|",$F$1,"|", $F$2,"|",$G$1,"|",$G$2,"|",$H$1,"|",$H$2),'DATA MART_'!$B$2:$Q$985098,16,0) ->  | V31: =VLOOKUP(CONCATENATE($C31,"|",$C$2, "|", V$5,"|",$D$2,"|",$F$1,"|", $F$2,"|",$G$1,"|",$G$2,"|",$H$1,"|",$H$2),'DATA MART_'!$B$2:$Q$985098,16,0) -> 
B32: BNP PARIBAS | C32: FR013 | D32: FR | E32: 2 | F32: =VLOOKUP(CONCATENATE($C32,"|",$C$2, "|", F$5,"|",$D$2,"|",$F$1,"|", $F$2,"|",$G$1,"|",$G$2,"|",$H$1,"|",$H$2),'DATA MART_'!$B$2:$Q$985098,16,0) ->  | G32: =VLOOKUP(CONCATENATE($C32,"|",$C$2, "|", G$5,"|",$D$2,"|",$F$1,"|", $F$2,"|",$G$1,"|",$G$2,"|",$H$1,"|",$H$2),'DATA MART_'!$B$2:$Q$985098,16,0) ->  | H32: =VLOOKUP(CONCATENATE($C32,"|",$C$2, "|", H$5,"|",$D$2,"|",$F$1,"|", $F$2,"|",$G$1,"|",$G$2,"|",$H$1,"|",$H$2),'DATA MART_'!$B$2:$Q$985098,16,0) ->  | I32: =VLOOKUP(CONCATENATE($C32,"|",$C$2, "|", I$5,"|",$D$2,"|",$F$1,"|", $F$2,"|",$G$1,"|",$G$2,"|",$H$1,"|",$H$2),'DATA MART_'!$B$2:$Q$985098,16,0) ->  | J32: =VLOOKUP(CONCATENATE($C32,"|",$C$2, "|", J$5,"|",$D$2,"|",$F$1,"|", $F$2,"|",$G$1,"|",$G$2,"|",$H$1,"|",$H$2),'DATA MART_'!$B$2:$Q$985098,16,0) ->  | K32: =VLOOKUP(CONCATENATE($C32,"|",$C$2, "|", K$5,"|",$D$2,"|",$F$1,"|", $F$2,"|",$G$1,"|",$G$2,"|",$H$1,"|",$H$2),'DATA MART_'!$B$2:$Q$985098,16,0) ->  | L32: =VLOOKUP(CONCATENATE($C32,"|",$C$2, "|", L$5,"|",$D$2,"|",$F$1,"|", $F$2,"|",$G$1,"|",$G$2,"|",$H$1,"|",$H$2),'DATA MART_'!$B$2:$Q$985098,16,0) ->  | M32: =VLOOKUP(CONCATENATE($C32,"|",$C$2, "|", M$5,"|",$D$2,"|",$F$1,"|", $F$2,"|",$G$1,"|",$G$2,"|",$H$1,"|",$H$2),'DATA MART_'!$B$2:$Q$985098,16,0) ->  | N32: =VLOOKUP(CONCATENATE($C32,"|",$C$2, "|", N$5,"|",$D$2,"|",$F$1,"|", $F$2,"|",$G$1,"|",$G$2,"|",$H$1,"|",$H$2),'DATA MART_'!$B$2:$Q$985098,16,0) ->  | O32: =VLOOKUP(CONCATENATE($C32,"|",$C$2, "|", O$5,"|",$D$2,"|",$F$1,"|", $F$2,"|",$G$1,"|",$G$2,"|",$H$1,"|",$H$2),'DATA MART_'!$B$2:$Q$985098,16,0) ->  | P32: =VLOOKUP(CONCATENATE($C32,"|",$C$2, "|", P$5,"|",$D$2,"|",$F$1,"|", $F$2,"|",$G$1,"|",$G$2,"|",$H$1,"|",$H$2),'DATA MART_'!$B$2:$Q$985098,16,0) ->  | Q32: =VLOOKUP(CONCATENATE($C32,"|",$C$2, "|", Q$5,"|",$D$2,"|",$F$1,"|", $F$2,"|",$G$1,"|",$G$2,"|",$H$1,"|",$H$2),'DATA MART_'!$B$2:$Q$985098,16,0) ->  | R32: =VLOOKUP(CONCATENATE($C32,"|",$C$2, "|", R$5,"|",$D$2,"|",$F$1,"|", $F$2,"|",$G$1,"|",$G$2,"|",$H$1,"|",$H$2),'DATA MART_'!$B$2:$Q$985098,16,0) ->  | S32: =VLOOKUP(CONCATENATE($C32,"|",$C$2, "|", S$5,"|",$D$2,"|",$F$1,"|", $F$2,"|",$G$1,"|",$G$2,"|",$H$1,"|",$H$2),'DATA MART_'!$B$2:$Q$985098,16,0) ->  | T32: =VLOOKUP(CONCATENATE($C32,"|",$C$2, "|", T$5,"|",$D$2,"|",$F$1,"|", $F$2,"|",$G$1,"|",$G$2,"|",$H$1,"|",$H$2),'DATA MART_'!$B$2:$Q$985098,16,0) ->  | U32: =VLOOKUP(CONCATENATE($C32,"|",$C$2, "|", U$5,"|",$D$2,"|",$F$1,"|", $F$2,"|",$G$1,"|",$G$2,"|",$H$1,"|",$H$2),'DATA MART_'!$B$2:$Q$985098,16,0) ->  | V32: =VLOOKUP(CONCATENATE($C32,"|",$C$2, "|", V$5,"|",$D$2,"|",$F$1,"|", $F$2,"|",$G$1,"|",$G$2,"|",$H$1,"|",$H$2),'DATA MART_'!$B$2:$Q$985098,16,0) -> 
B33: CREDIT AGRICOLE | C33: FR014 | D33: FR | E33: 2 | F33: =VLOOKUP(CONCATENATE($C33,"|",$C$2, "|", F$5,"|",$D$2,"|",$F$1,"|", $F$2,"|",$G$1,"|",$G$2,"|",$H$1,"|",$H$2),'DATA MART_'!$B$2:$Q$985098,16,0) ->  | G33: =VLOOKUP(CONCATENATE($C33,"|",$C$2, "|", G$5,"|",$D$2,"|",$F$1,"|", $F$2,"|",$G$1,"|",$G$2,"|",$H$1,"|",$H$2),'DATA MART_'!$B$2:$Q$985098,16,0) ->  | H33: =VLOOKUP(CONCATENATE($C33,"|",$C$2, "|", H$5,"|",$D$2,"|",$F$1,"|", $F$2,"|",$G$1,"|",$G$2,"|",$H$1,"|",$H$2),'DATA MART_'!$B$2:$Q$985098,16,0) ->  | I33: =VLOOKUP(CONCATENATE($C33,"|",$C$2, "|", I$5,"|",$D$2,"|",$F$1,"|", $F$2,"|",$G$1,"|",$G$2,"|",$H$1,"|",$H$2),'DATA MART_'!$B$2:$Q$985098,16,0) ->  | J33: =VLOOKUP(CONCATENATE($C33,"|",$C$2, "|", J$5,"|",$D$2,"|",$F$1,"|", $F$2,"|",$G$1,"|",$G$2,"|",$H$1,"|",$H$2),'DATA MART_'!$B$2:$Q$985098,16,0) ->  | K33: =VLOOKUP(CONCATENATE($C33,"|",$C$2, "|", K$5,"|",$D$2,"|",$F$1,"|", $F$2,"|",$G$1,"|",$G$2,"|",$H$1,"|",$H$2),'DATA MART_'!$B$2:$Q$985098,16,0) ->  | L33: =VLOOKUP(CONCATENATE($C33,"|",$C$2, "|", L$5,"|",$D$2,"|",$F$1,"|", $F$2,"|",$G$1,"|",$G$2,"|",$H$1,"|",$H$2),'DATA MART_'!$B$2:$Q$985098,16,0) ->  | M33: =VLOOKUP(CONCATENATE($C33,"|",$C$2, "|", M$5,"|",$D$2,"|",$F$1,"|", $F$2,"|",$G$1,"|",$G$2,"|",$H$1,"|",$H$2),'DATA MART_'!$B$2:$Q$985098,16,0) ->  | N33: =VLOOKUP(CONCATENATE($C33,"|",$C$2, "|", N$5,"|",$D$2,"|",$F$1,"|", $F$2,"|",$G$1,"|",$G$2,"|",$H$1,"|",$H$2),'DATA MART_'!$B$2:$Q$985098,16,0) ->  | O33: =VLOOKUP(CONCATENATE($C33,"|",$C$2, "|", O$5,"|",$D$2,"|",$F$1,"|", $F$2,"|",$G$1,"|",$G$2,"|",$H$1,"|",$H$2),'DATA MART_'!$B$2:$Q$985098,16,0) ->  | P33: =VLOOKUP(CONCATENATE($C33,"|",$C$2, "|", P$5,"|",$D$2,"|",$F$1,"|", $F$2,"|",$G$1,"|",$G$2,"|",$H$1,"|",$H$2),'DATA MART_'!$B$2:$Q$985098,16,0) ->  | Q33: =VLOOKUP(CONCATENATE($C33,"|",$C$2, "|", Q$5,"|",$D$2,"|",$F$1,"|", $F$2,"|",$G$1,"|",$G$2,"|",$H$1,"|",$H$2),'DATA MART_'!$B$2:$Q$985098,16,0) ->  | R33: =VLOOKUP(CONCATENATE($C33,"|",$C$2, "|", R$5,"|",$D$2,"|",$F$1,"|", $F$2,"|",$G$1,"|",$G$2,"|",$H$1,"|",$H$2),'DATA MART_'!$B$2:$Q$985098,16,0) ->  | S33: =VLOOKUP(CONCATENATE($C33,"|",$C$2, "|", S$5,"|",$D$2,"|",$F$1,"|", $F$2,"|",$G$1,"|",$G$2,"|",$H$1,"|",$H$2),'DATA MART_'!$B$2:$Q$985098,16,0) ->  | T33: =VLOOKUP(CONCATENATE($C33,"|",$C$2, "|", T$5,"|",$D$2,"|",$F$1,"|", $F$2,"|",$G$1,"|",$G$2,"|",$H$1,"|",$H$2),'DATA MART_'!$B$2:$Q$985098,16,0) ->  | U33: =VLOOKUP(CONCATENATE($C33,"|",$C$2, "|", U$5,"|",$D$2,"|",$F$1,"|", $F$2,"|",$G$1,"|",$G$2,"|",$H$1,"|",$H$2),'DATA MART_'!$B$2:$Q$985098,16,0) ->  | V33: =VLOOKUP(CONCATENATE($C33,"|",$C$2, "|", V$5,"|",$D$2,"|",$F$1,"|", $F$2,"|",$G$1,"|",$G$2,"|",$H$1,"|",$H$2),'DATA MART_'!$B$2:$Q$985098,16,0) -> 
B34: BPCE | C34: FR015 | D34: FR | E34: 2 | F34: =VLOOKUP(CONCATENATE($C34,"|",$C$2, "|", F$5,"|",$D$2,"|",$F$1,"|", $F$2,"|",$G$1,"|",$G$2,"|",$H$1,"|",$H$2),'DATA MART_'!$B$2:$Q$985098,16,0) ->  | G34: =VLOOKUP(CONCATENATE($C34,"|",$C$2, "|", G$5,"|",$D$2,"|",$F$1,"|", $F$2,"|",$G$1,"|",$G$2,"|",$H$1,"|",$H$2),'DATA MART_'!$B$2:$Q$985098,16,0) ->  | H34: =VLOOKUP(CONCATENATE($C34,"|",$C$2, "|", H$5,"|",$D$2,"|",$F$1,"|", $F$2,"|",$G$1,"|",$G$2,"|",$H$1,"|",$H$2),'DATA MART_'!$B$2:$Q$985098,16,0) ->  | I34: =VLOOKUP(CONCATENATE($C34,"|",$C$2, "|", I$5,"|",$D$2,"|",$F$1,"|", $F$2,"|",$G$1,"|",$G$2,"|",$H$1,"|",$H$2),'DATA MART_'!$B$2:$Q$985098,16,0) ->  | J34: =VLOOKUP(CONCATENATE($C34,"|",$C$2, "|", J$5,"|",$D$2,"|",$F$1,"|", $F$2,"|",$G$1,"|",$G$2,"|",$H$1,"|",$H$2),'DATA MART_'!$B$2:$Q$985098,16,0) ->  | K34: =VLOOKUP(CONCATENATE($C34,"|",$C$2, "|", K$5,"|",$D$2,"|",$F$1,"|", $F$2,"|",$G$1,"|",$G$2,"|",$H$1,"|",$H$2),'DATA MART_'!$B$2:$Q$985098,16,0) ->  | L34: =VLOOKUP(CONCATENATE($C34,"|",$C$2, "|", L$5,"|",$D$2,"|",$F$1,"|", $F$2,"|",$G$1,"|",$G$2,"|",$H$1,"|",$H$2),'DATA MART_'!$B$2:$Q$985098,16,0) ->  | M34: =VLOOKUP(CONCATENATE($C34,"|",$C$2, "|", M$5,"|",$D$2,"|",$F$1,"|", $F$2,"|",$G$1,"|",$G$2,"|",$H$1,"|",$H$2),'DATA MART_'!$B$2:$Q$985098,16,0) ->  | N34: =VLOOKUP(CONCATENATE($C34,"|",$C$2, "|", N$5,"|",$D$2,"|",$F$1,"|", $F$2,"|",$G$1,"|",$G$2,"|",$H$1,"|",$H$2),'DATA MART_'!$B$2:$Q$985098,16,0) ->  | O34: =VLOOKUP(CONCATENATE($C34,"|",$C$2, "|", O$5,"|",$D$2,"|",$F$1,"|", $F$2,"|",$G$1,"|",$G$2,"|",$H$1,"|",$H$2),'DATA MART_'!$B$2:$Q$985098,16,0) ->  | P34: =VLOOKUP(CONCATENATE($C34,"|",$C$2, "|", P$5,"|",$D$2,"|",$F$1,"|", $F$2,"|",$G$1,"|",$G$2,"|",$H$1,"|",$H$2),'DATA MART_'!$B$2:$Q$985098,16,0) ->  | Q34: =VLOOKUP(CONCATENATE($C34,"|",$C$2, "|", Q$5,"|",$D$2,"|",$F$1,"|", $F$2,"|",$G$1,"|",$G$2,"|",$H$1,"|",$H$2),'DATA MART_'!$B$2:$Q$985098,16,0) ->  | R34: =VLOOKUP(CONCATENATE($C34,"|",$C$2, "|", R$5,"|",$D$2,"|",$F$1,"|", $F$2,"|",$G$1,"|",$G$2,"|",$H$1,"|",$H$2),'DATA MART_'!$B$2:$Q$985098,16,0) ->  | S34: =VLOOKUP(CONCATENATE($C34,"|",$C$2, "|", S$5,"|",$D$2,"|",$F$1,"|", $F$2,"|",$G$1,"|",$G$2,"|",$H$1,"|",$H$2),'DATA MART_'!$B$2:$Q$985098,16,0) ->  | T34: =VLOOKUP(CONCATENATE($C34,"|",$C$2, "|", T$5,"|",$D$2,"|",$F$1,"|", $F$2,"|",$G$1,"|",$G$2,"|",$H$1,"|",$H$2),'DATA MART_'!$B$2:$Q$985098,16,0) ->  | U34: =VLOOKUP(CONCATENATE($C34,"|",$C$2, "|", U$5,"|",$D$2,"|",$F$1,"|", $F$2,"|",$G$1,"|",$G$2,"|",$H$1,"|",$H$2),'DATA MART_'!$B$2:$Q$985098,16,0) ->  | V34: =VLOOKUP(CONCATENATE($C34,"|",$C$2, "|", V$5,"|",$D$2,"|",$F$1,"|", $F$2,"|",$G$1,"|",$G$2,"|",$H$1,"|",$H$2),'DATA MART_'!$B$2:$Q$985098,16,0) -> 
B35: SOCIETE GENERALE | C35: FR016 | D35: FR | E35: 2 | F35: =VLOOKUP(CONCATENATE($C35,"|",$C$2, "|", F$5,"|",$D$2,"|",$F$1,"|", $F$2,"|",$G$1,"|",$G$2,"|",$H$1,"|",$H$2),'DATA MART_'!$B$2:$Q$985098,16,0) ->  | G35: =VLOOKUP(CONCATENATE($C35,"|",$C$2, "|", G$5,"|",$D$2,"|",$F$1,"|", $F$2,"|",$G$1,"|",$G$2,"|",$H$1,"|",$H$2),'DATA MART_'!$B$2:$Q$985098,16,0) ->  | H35: =VLOOKUP(CONCATENATE($C35,"|",$C$2, "|", H$5,"|",$D$2,"|",$F$1,"|", $F$2,"|",$G$1,"|",$G$2,"|",$H$1,"|",$H$2),'DATA MART_'!$B$2:$Q$985098,16,0) ->  | I35: =VLOOKUP(CONCATENATE($C35,"|",$C$2, "|", I$5,"|",$D$2,"|",$F$1,"|", $F$2,"|",$G$1,"|",$G$2,"|",$H$1,"|",$H$2),'DATA MART_'!$B$2:$Q$985098,16,0) ->  | J35: =VLOOKUP(CONCATENATE($C35,"|",$C$2, "|", J$5,"|",$D$2,"|",$F$1,"|", $F$2,"|",$G$1,"|",$G$2,"|",$H$1,"|",$H$2),'DATA MART_'!$B$2:$Q$985098,16,0) ->  | K35: =VLOOKUP(CONCATENATE($C35,"|",$C$2, "|", K$5,"|",$D$2,"|",$F$1,"|", $F$2,"|",$G$1,"|",$G$2,"|",$H$1,"|",$H$2),'DATA MART_'!$B$2:$Q$985098,16,0) ->  | L35: =VLOOKUP(CONCATENATE($C35,"|",$C$2, "|", L$5,"|",$D$2,"|",$F$1,"|", $F$2,"|",$G$1,"|",$G$2,"|",$H$1,"|",$H$2),'DATA MART_'!$B$2:$Q$985098,16,0) ->  | M35: =VLOOKUP(CONCATENATE($C35,"|",$C$2, "|", M$5,"|",$D$2,"|",$F$1,"|", $F$2,"|",$G$1,"|",$G$2,"|",$H$1,"|",$H$2),'DATA MART_'!$B$2:$Q$985098,16,0) ->  | N35: =VLOOKUP(CONCATENATE($C35,"|",$C$2, "|", N$5,"|",$D$2,"|",$F$1,"|", $F$2,"|",$G$1,"|",$G$2,"|",$H$1,"|",$H$2),'DATA MART_'!$B$2:$Q$985098,16,0) ->  | O35: =VLOOKUP(CONCATENATE($C35,"|",$C$2, "|", O$5,"|",$D$2,"|",$F$1,"|", $F$2,"|",$G$1,"|",$G$2,"|",$H$1,"|",$H$2),'DATA MART_'!$B$2:$Q$985098,16,0) ->  | P35: =VLOOKUP(CONCATENATE($C35,"|",$C$2, "|", P$5,"|",$D$2,"|",$F$1,"|", $F$2,"|",$G$1,"|",$G$2,"|",$H$1,"|",$H$2),'DATA MART_'!$B$2:$Q$985098,16,0) ->  | Q35: =VLOOKUP(CONCATENATE($C35,"|",$C$2, "|", Q$5,"|",$D$2,"|",$F$1,"|", $F$2,"|",$G$1,"|",$G$2,"|",$H$1,"|",$H$2),'DATA MART_'!$B$2:$Q$985098,16,0) ->  | R35: =VLOOKUP(CONCATENATE($C35,"|",$C$2, "|", R$5,"|",$D$2,"|",$F$1,"|", $F$2,"|",$G$1,"|",$G$2,"|",$H$1,"|",$H$2),'DATA MART_'!$B$2:$Q$985098,16,0) ->  | S35: =VLOOKUP(CONCATENATE($C35,"|",$C$2, "|", S$5,"|",$D$2,"|",$F$1,"|", $F$2,"|",$G$1,"|",$G$2,"|",$H$1,"|",$H$2),'DATA MART_'!$B$2:$Q$985098,16,0) ->  | T35: =VLOOKUP(CONCATENATE($C35,"|",$C$2, "|", T$5,"|",$D$2,"|",$F$1,"|", $F$2,"|",$G$1,"|",$G$2,"|",$H$1,"|",$H$2),'DATA MART_'!$B$2:$Q$985098,16,0) ->  | U35: =VLOOKUP(CONCATENATE($C35,"|",$C$2, "|", U$5,"|",$D$2,"|",$F$1,"|", $F$2,"|",$G$1,"|",$G$2,"|",$H$1,"|",$H$2),'DATA MART_'!$B$2:$Q$985098,16,0) ->  | V35: =VLOOKUP(CONCATENATE($C35,"|",$C$2, "|", V$5,"|",$D$2,"|",$F$1,"|", $F$2,"|",$G$1,"|",$G$2,"|",$H$1,"|",$H$2),'DATA MART_'!$B$2:$Q$985098,16,0) -> 
B36: ROYAL BANK OF SCOTLAND GROUP plc | C36: GB088 | D36: GB | E36: 1 | F36: =VLOOKUP(CONCATENATE($C36,"|",$C$2, "|", F$5,"|",$D$2,"|",$F$1,"|", $F$2,"|",$G$1,"|",$G$2,"|",$H$1,"|",$H$2),'DATA MART_'!$B$2:$Q$985098,16,0) ->  | G36: =VLOOKUP(CONCATENATE($C36,"|",$C$2, "|", G$5,"|",$D$2,"|",$F$1,"|", $F$2,"|",$G$1,"|",$G$2,"|",$H$1,"|",$H$2),'DATA MART_'!$B$2:$Q$985098,16,0) ->  | H36: =VLOOKUP(CONCATENATE($C36,"|",$C$2, "|", H$5,"|",$D$2,"|",$F$1,"|", $F$2,"|",$G$1,"|",$G$2,"|",$H$1,"|",$H$2),'DATA MART_'!$B$2:$Q$985098,16,0) ->  | I36: =VLOOKUP(CONCATENATE($C36,"|",$C$2, "|", I$5,"|",$D$2,"|",$F$1,"|", $F$2,"|",$G$1,"|",$G$2,"|",$H$1,"|",$H$2),'DATA MART_'!$B$2:$Q$985098,16,0) ->  | J36: =VLOOKUP(CONCATENATE($C36,"|",$C$2, "|", J$5,"|",$D$2,"|",$F$1,"|", $F$2,"|",$G$1,"|",$G$2,"|",$H$1,"|",$H$2),'DATA MART_'!$B$2:$Q$985098,16,0) ->  | K36: =VLOOKUP(CONCATENATE($C36,"|",$C$2, "|", K$5,"|",$D$2,"|",$F$1,"|", $F$2,"|",$G$1,"|",$G$2,"|",$H$1,"|",$H$2),'DATA MART_'!$B$2:$Q$985098,16,0) ->  | L36: =VLOOKUP(CONCATENATE($C36,"|",$C$2, "|", L$5,"|",$D$2,"|",$F$1,"|", $F$2,"|",$G$1,"|",$G$2,"|",$H$1,"|",$H$2),'DATA MART_'!$B$2:$Q$985098,16,0) ->  | M36: =VLOOKUP(CONCATENATE($C36,"|",$C$2, "|", M$5,"|",$D$2,"|",$F$1,"|", $F$2,"|",$G$1,"|",$G$2,"|",$H$1,"|",$H$2),'DATA MART_'!$B$2:$Q$985098,16,0) ->  | N36: =VLOOKUP(CONCATENATE($C36,"|",$C$2, "|", N$5,"|",$D$2,"|",$F$1,"|", $F$2,"|",$G$1,"|",$G$2,"|",$H$1,"|",$H$2),'DATA MART_'!$B$2:$Q$985098,16,0) ->  | O36: =VLOOKUP(CONCATENATE($C36,"|",$C$2, "|", O$5,"|",$D$2,"|",$F$1,"|", $F$2,"|",$G$1,"|",$G$2,"|",$H$1,"|",$H$2),'DATA MART_'!$B$2:$Q$985098,16,0) ->  | P36: =VLOOKUP(CONCATENATE($C36,"|",$C$2, "|", P$5,"|",$D$2,"|",$F$1,"|", $F$2,"|",$G$1,"|",$G$2,"|",$H$1,"|",$H$2),'DATA MART_'!$B$2:$Q$985098,16,0) ->  | Q36: =VLOOKUP(CONCATENATE($C36,"|",$C$2, "|", Q$5,"|",$D$2,"|",$F$1,"|", $F$2,"|",$G$1,"|",$G$2,"|",$H$1,"|",$H$2),'DATA MART_'!$B$2:$Q$985098,16,0) ->  | R36: =VLOOKUP(CONCATENATE($C36,"|",$C$2, "|", R$5,"|",$D$2,"|",$F$1,"|", $F$2,"|",$G$1,"|",$G$2,"|",$H$1,"|",$H$2),'DATA MART_'!$B$2:$Q$985098,16,0) ->  | S36: =VLOOKUP(CONCATENATE($C36,"|",$C$2, "|", S$5,"|",$D$2,"|",$F$1,"|", $F$2,"|",$G$1,"|",$G$2,"|",$H$1,"|",$H$2),'DATA MART_'!$B$2:$Q$985098,16,0) ->  | T36: =VLOOKUP(CONCATENATE($C36,"|",$C$2, "|", T$5,"|",$D$2,"|",$F$1,"|", $F$2,"|",$G$1,"|",$G$2,"|",$H$1,"|",$H$2),'DATA MART_'!$B$2:$Q$985098,16,0) ->  | U36: =VLOOKUP(CONCATENATE($C36,"|",$C$2, "|", U$5,"|",$D$2,"|",$F$1,"|", $F$2,"|",$G$1,"|",$G$2,"|",$H$1,"|",$H$2),'DATA MART_'!$B$2:$Q$985098,16,0) ->  | V36: =VLOOKUP(CONCATENATE($C36,"|",$C$2, "|", V$5,"|",$D$2,"|",$F$1,"|", $F$2,"|",$G$1,"|",$G$2,"|",$H$1,"|",$H$2),'DATA MART_'!$B$2:$Q$985098,16,0) -> 
B37: HSBC HOLDINGS plc | C37: GB089 | D37: GB | E37: 1 | F37: =VLOOKUP(CONCATENATE($C37,"|",$C$2, "|", F$5,"|",$D$2,"|",$F$1,"|", $F$2,"|",$G$1,"|",$G$2,"|",$H$1,"|",$H$2),'DATA MART_'!$B$2:$Q$985098,16,0) ->  | G37: =VLOOKUP(CONCATENATE($C37,"|",$C$2, "|", G$5,"|",$D$2,"|",$F$1,"|", $F$2,"|",$G$1,"|",$G$2,"|",$H$1,"|",$H$2),'DATA MART_'!$B$2:$Q$985098,16,0) ->  | H37: =VLOOKUP(CONCATENATE($C37,"|",$C$2, "|", H$5,"|",$D$2,"|",$F$1,"|", $F$2,"|",$G$1,"|",$G$2,"|",$H$1,"|",$H$2),'DATA MART_'!$B$2:$Q$985098,16,0) ->  | I37: =VLOOKUP(CONCATENATE($C37,"|",$C$2, "|", I$5,"|",$D$2,"|",$F$1,"|", $F$2,"|",$G$1,"|",$G$2,"|",$H$1,"|",$H$2),'DATA MART_'!$B$2:$Q$985098,16,0) ->  | J37: =VLOOKUP(CONCATENATE($C37,"|",$C$2, "|", J$5,"|",$D$2,"|",$F$1,"|", $F$2,"|",$G$1,"|",$G$2,"|",$H$1,"|",$H$2),'DATA MART_'!$B$2:$Q$985098,16,0) ->  | K37: =VLOOKUP(CONCATENATE($C37,"|",$C$2, "|", K$5,"|",$D$2,"|",$F$1,"|", $F$2,"|",$G$1,"|",$G$2,"|",$H$1,"|",$H$2),'DATA MART_'!$B$2:$Q$985098,16,0) ->  | L37: =VLOOKUP(CONCATENATE($C37,"|",$C$2, "|", L$5,"|",$D$2,"|",$F$1,"|", $F$2,"|",$G$1,"|",$G$2,"|",$H$1,"|",$H$2),'DATA MART_'!$B$2:$Q$985098,16,0) ->  | M37: =VLOOKUP(CONCATENATE($C37,"|",$C$2, "|", M$5,"|",$D$2,"|",$F$1,"|", $F$2,"|",$G$1,"|",$G$2,"|",$H$1,"|",$H$2),'DATA MART_'!$B$2:$Q$985098,16,0) ->  | N37: =VLOOKUP(CONCATENATE($C37,"|",$C$2, "|", N$5,"|",$D$2,"|",$F$1,"|", $F$2,"|",$G$1,"|",$G$2,"|",$H$1,"|",$H$2),'DATA MART_'!$B$2:$Q$985098,16,0) ->  | O37: =VLOOKUP(CONCATENATE($C37,"|",$C$2, "|", O$5,"|",$D$2,"|",$F$1,"|", $F$2,"|",$G$1,"|",$G$2,"|",$H$1,"|",$H$2),'DATA MART_'!$B$2:$Q$985098,16,0) ->  | P37: =VLOOKUP(CONCATENATE($C37,"|",$C$2, "|", P$5,"|",$D$2,"|",$F$1,"|", $F$2,"|",$G$1,"|",$G$2,"|",$H$1,"|",$H$2),'DATA MART_'!$B$2:$Q$985098,16,0) ->  | Q37: =VLOOKUP(CONCATENATE($C37,"|",$C$2, "|", Q$5,"|",$D$2,"|",$F$1,"|", $F$2,"|",$G$1,"|",$G$2,"|",$H$1,"|",$H$2),'DATA MART_'!$B$2:$Q$985098,16,0) ->  | R37: =VLOOKUP(CONCATENATE($C37,"|",$C$2, "|", R$5,"|",$D$2,"|",$F$1,"|", $F$2,"|",$G$1,"|",$G$2,"|",$H$1,"|",$H$2),'DATA MART_'!$B$2:$Q$985098,16,0) ->  | S37: =VLOOKUP(CONCATENATE($C37,"|",$C$2, "|", S$5,"|",$D$2,"|",$F$1,"|", $F$2,"|",$G$1,"|",$G$2,"|",$H$1,"|",$H$2),'DATA MART_'!$B$2:$Q$985098,16,0) ->  | T37: =VLOOKUP(CONCATENATE($C37,"|",$C$2, "|", T$5,"|",$D$2,"|",$F$1,"|", $F$2,"|",$G$1,"|",$G$2,"|",$H$1,"|",$H$2),'DATA MART_'!$B$2:$Q$985098,16,0) ->  | U37: =VLOOKUP(CONCATENATE($C37,"|",$C$2, "|", U$5,"|",$D$2,"|",$F$1,"|", $F$2,"|",$G$1,"|",$G$2,"|",$H$1,"|",$H$2),'DATA MART_'!$B$2:$Q$985098,16,0) ->  | V37: =VLOOKUP(CONCATENATE($C37,"|",$C$2, "|", V$5,"|",$D$2,"|",$F$1,"|", $F$2,"|",$G$1,"|",$G$2,"|",$H$1,"|",$H$2),'DATA MART_'!$B$2:$Q$985098,16,0) -> 
B38: BARCLAYS plc | C38: GB090 | D38: GB | E38: 1 | F38: =VLOOKUP(CONCATENATE($C38,"|",$C$2, "|", F$5,"|",$D$2,"|",$F$1,"|", $F$2,"|",$G$1,"|",$G$2,"|",$H$1,"|",$H$2),'DATA MART_'!$B$2:$Q$985098,16,0) ->  | G38: =VLOOKUP(CONCATENATE($C38,"|",$C$2, "|", G$5,"|",$D$2,"|",$F$1,"|", $F$2,"|",$G$1,"|",$G$2,"|",$H$1,"|",$H$2),'DATA MART_'!$B$2:$Q$985098,16,0) ->  | H38: =VLOOKUP(CONCATENATE($C38,"|",$C$2, "|", H$5,"|",$D$2,"|",$F$1,"|", $F$2,"|",$G$1,"|",$G$2,"|",$H$1,"|",$H$2),'DATA MART_'!$B$2:$Q$985098,16,0) ->  | I38: =VLOOKUP(CONCATENATE($C38,"|",$C$2, "|", I$5,"|",$D$2,"|",$F$1,"|", $F$2,"|",$G$1,"|",$G$2,"|",$H$1,"|",$H$2),'DATA MART_'!$B$2:$Q$985098,16,0) ->  | J38: =VLOOKUP(CONCATENATE($C38,"|",$C$2, "|", J$5,"|",$D$2,"|",$F$1,"|", $F$2,"|",$G$1,"|",$G$2,"|",$H$1,"|",$H$2),'DATA MART_'!$B$2:$Q$985098,16,0) ->  | K38: =VLOOKUP(CONCATENATE($C38,"|",$C$2, "|", K$5,"|",$D$2,"|",$F$1,"|", $F$2,"|",$G$1,"|",$G$2,"|",$H$1,"|",$H$2),'DATA MART_'!$B$2:$Q$985098,16,0) ->  | L38: =VLOOKUP(CONCATENATE($C38,"|",$C$2, "|", L$5,"|",$D$2,"|",$F$1,"|", $F$2,"|",$G$1,"|",$G$2,"|",$H$1,"|",$H$2),'DATA MART_'!$B$2:$Q$985098,16,0) ->  | M38: =VLOOKUP(CONCATENATE($C38,"|",$C$2, "|", M$5,"|",$D$2,"|",$F$1,"|", $F$2,"|",$G$1,"|",$G$2,"|",$H$1,"|",$H$2),'DATA MART_'!$B$2:$Q$985098,16,0) ->  | N38: =VLOOKUP(CONCATENATE($C38,"|",$C$2, "|", N$5,"|",$D$2,"|",$F$1,"|", $F$2,"|",$G$1,"|",$G$2,"|",$H$1,"|",$H$2),'DATA MART_'!$B$2:$Q$985098,16,0) ->  | O38: =VLOOKUP(CONCATENATE($C38,"|",$C$2, "|", O$5,"|",$D$2,"|",$F$1,"|", $F$2,"|",$G$1,"|",$G$2,"|",$H$1,"|",$H$2),'DATA MART_'!$B$2:$Q$985098,16,0) ->  | P38: =VLOOKUP(CONCATENATE($C38,"|",$C$2, "|", P$5,"|",$D$2,"|",$F$1,"|", $F$2,"|",$G$1,"|",$G$2,"|",$H$1,"|",$H$2),'DATA MART_'!$B$2:$Q$985098,16,0) ->  | Q38: =VLOOKUP(CONCATENATE($C38,"|",$C$2, "|", Q$5,"|",$D$2,"|",$F$1,"|", $F$2,"|",$G$1,"|",$G$2,"|",$H$1,"|",$H$2),'DATA MART_'!$B$2:$Q$985098,16,0) ->  | R38: =VLOOKUP(CONCATENATE($C38,"|",$C$2, "|", R$5,"|",$D$2,"|",$F$1,"|", $F$2,"|",$G$1,"|",$G$2,"|",$H$1,"|",$H$2),'DATA MART_'!$B$2:$Q$985098,16,0) ->  | S38: =VLOOKUP(CONCATENATE($C38,"|",$C$2, "|", S$5,"|",$D$2,"|",$F$1,"|", $F$2,"|",$G$1,"|",$G$2,"|",$H$1,"|",$H$2),'DATA MART_'!$B$2:$Q$985098,16,0) ->  | T38: =VLOOKUP(CONCATENATE($C38,"|",$C$2, "|", T$5,"|",$D$2,"|",$F$1,"|", $F$2,"|",$G$1,"|",$G$2,"|",$H$1,"|",$H$2),'DATA MART_'!$B$2:$Q$985098,16,0) ->  | U38: =VLOOKUP(CONCATENATE($C38,"|",$C$2, "|", U$5,"|",$D$2,"|",$F$1,"|", $F$2,"|",$G$1,"|",$G$2,"|",$H$1,"|",$H$2),'DATA MART_'!$B$2:$Q$985098,16,0) ->  | V38: =VLOOKUP(CONCATENATE($C38,"|",$C$2, "|", V$5,"|",$D$2,"|",$F$1,"|", $F$2,"|",$G$1,"|",$G$2,"|",$H$1,"|",$H$2),'DATA MART_'!$B$2:$Q$985098,16,0) -> 
B39: LLOYDS BANKING GROUP plc | C39: GB091 | D39: GB | E39: 1 | F39: =VLOOKUP(CONCATENATE($C39,"|",$C$2, "|", F$5,"|",$D$2,"|",$F$1,"|", $F$2,"|",$G$1,"|",$G$2,"|",$H$1,"|",$H$2),'DATA MART_'!$B$2:$Q$985098,16,0) ->  | G39: =VLOOKUP(CONCATENATE($C39,"|",$C$2, "|", G$5,"|",$D$2,"|",$F$1,"|", $F$2,"|",$G$1,"|",$G$2,"|",$H$1,"|",$H$2),'DATA MART_'!$B$2:$Q$985098,16,0) ->  | H39: =VLOOKUP(CONCATENATE($C39,"|",$C$2, "|", H$5,"|",$D$2,"|",$F$1,"|", $F$2,"|",$G$1,"|",$G$2,"|",$H$1,"|",$H$2),'DATA MART_'!$B$2:$Q$985098,16,0) ->  | I39: =VLOOKUP(CONCATENATE($C39,"|",$C$2, "|", I$5,"|",$D$2,"|",$F$1,"|", $F$2,"|",$G$1,"|",$G$2,"|",$H$1,"|",$H$2),'DATA MART_'!$B$2:$Q$985098,16,0) ->  | J39: =VLOOKUP(CONCATENATE($C39,"|",$C$2, "|", J$5,"|",$D$2,"|",$F$1,"|", $F$2,"|",$G$1,"|",$G$2,"|",$H$1,"|",$H$2),'DATA MART_'!$B$2:$Q$985098,16,0) ->  | K39: =VLOOKUP(CONCATENATE($C39,"|",$C$2, "|", K$5,"|",$D$2,"|",$F$1,"|", $F$2,"|",$G$1,"|",$G$2,"|",$H$1,"|",$H$2),'DATA MART_'!$B$2:$Q$985098,16,0) ->  | L39: =VLOOKUP(CONCATENATE($C39,"|",$C$2, "|", L$5,"|",$D$2,"|",$F$1,"|", $F$2,"|",$G$1,"|",$G$2,"|",$H$1,"|",$H$2),'DATA MART_'!$B$2:$Q$985098,16,0) ->  | M39: =VLOOKUP(CONCATENATE($C39,"|",$C$2, "|", M$5,"|",$D$2,"|",$F$1,"|", $F$2,"|",$G$1,"|",$G$2,"|",$H$1,"|",$H$2),'DATA MART_'!$B$2:$Q$985098,16,0) ->  | N39: =VLOOKUP(CONCATENATE($C39,"|",$C$2, "|", N$5,"|",$D$2,"|",$F$1,"|", $F$2,"|",$G$1,"|",$G$2,"|",$H$1,"|",$H$2),'DATA MART_'!$B$2:$Q$985098,16,0) ->  | O39: =VLOOKUP(CONCATENATE($C39,"|",$C$2, "|", O$5,"|",$D$2,"|",$F$1,"|", $F$2,"|",$G$1,"|",$G$2,"|",$H$1,"|",$H$2),'DATA MART_'!$B$2:$Q$985098,16,0) ->  | P39: =VLOOKUP(CONCATENATE($C39,"|",$C$2, "|", P$5,"|",$D$2,"|",$F$1,"|", $F$2,"|",$G$1,"|",$G$2,"|",$H$1,"|",$H$2),'DATA MART_'!$B$2:$Q$985098,16,0) ->  | Q39: =VLOOKUP(CONCATENATE($C39,"|",$C$2, "|", Q$5,"|",$D$2,"|",$F$1,"|", $F$2,"|",$G$1,"|",$G$2,"|",$H$1,"|",$H$2),'DATA MART_'!$B$2:$Q$985098,16,0) ->  | R39: =VLOOKUP(CONCATENATE($C39,"|",$C$2, "|", R$5,"|",$D$2,"|",$F$1,"|", $F$2,"|",$G$1,"|",$G$2,"|",$H$1,"|",$H$2),'DATA MART_'!$B$2:$Q$985098,16,0) ->  | S39: =VLOOKUP(CONCATENATE($C39,"|",$C$2, "|", S$5,"|",$D$2,"|",$F$1,"|", $F$2,"|",$G$1,"|",$G$2,"|",$H$1,"|",$H$2),'DATA MART_'!$B$2:$Q$985098,16,0) ->  | T39: =VLOOKUP(CONCATENATE($C39,"|",$C$2, "|", T$5,"|",$D$2,"|",$F$1,"|", $F$2,"|",$G$1,"|",$G$2,"|",$H$1,"|",$H$2),'DATA MART_'!$B$2:$Q$985098,16,0) ->  | U39: =VLOOKUP(CONCATENATE($C39,"|",$C$2, "|", U$5,"|",$D$2,"|",$F$1,"|", $F$2,"|",$G$1,"|",$G$2,"|",$H$1,"|",$H$2),'DATA MART_'!$B$2:$Q$985098,16,0) ->  | V39: =VLOOKUP(CONCATENATE($C39,"|",$C$2, "|", V$5,"|",$D$2,"|",$F$1,"|", $F$2,"|",$G$1,"|",$G$2,"|",$H$1,"|",$H$2),'DATA MART_'!$B$2:$Q$985098,16,0) -> 
B40: EFG EUROBANK ERGASIAS S.A. | C40: GR030 | D40: GR | E40: 2 | F40: =VLOOKUP(CONCATENATE($C40,"|",$C$2, "|", F$5,"|",$D$2,"|",$F$1,"|", $F$2,"|",$G$1,"|",$G$2,"|",$H$1,"|",$H$2),'DATA MART_'!$B$2:$Q$985098,16,0) ->  | G40: =VLOOKUP(CONCATENATE($C40,"|",$C$2, "|", G$5,"|",$D$2,"|",$F$1,"|", $F$2,"|",$G$1,"|",$G$2,"|",$H$1,"|",$H$2),'DATA MART_'!$B$2:$Q$985098,16,0) ->  | H40: =VLOOKUP(CONCATENATE($C40,"|",$C$2, "|", H$5,"|",$D$2,"|",$F$1,"|", $F$2,"|",$G$1,"|",$G$2,"|",$H$1,"|",$H$2),'DATA MART_'!$B$2:$Q$985098,16,0) ->  | I40: =VLOOKUP(CONCATENATE($C40,"|",$C$2, "|", I$5,"|",$D$2,"|",$F$1,"|", $F$2,"|",$G$1,"|",$G$2,"|",$H$1,"|",$H$2),'DATA MART_'!$B$2:$Q$985098,16,0) ->  | J40: =VLOOKUP(CONCATENATE($C40,"|",$C$2, "|", J$5,"|",$D$2,"|",$F$1,"|", $F$2,"|",$G$1,"|",$G$2,"|",$H$1,"|",$H$2),'DATA MART_'!$B$2:$Q$985098,16,0) ->  | K40: =VLOOKUP(CONCATENATE($C40,"|",$C$2, "|", K$5,"|",$D$2,"|",$F$1,"|", $F$2,"|",$G$1,"|",$G$2,"|",$H$1,"|",$H$2),'DATA MART_'!$B$2:$Q$985098,16,0) ->  | L40: =VLOOKUP(CONCATENATE($C40,"|",$C$2, "|", L$5,"|",$D$2,"|",$F$1,"|", $F$2,"|",$G$1,"|",$G$2,"|",$H$1,"|",$H$2),'DATA MART_'!$B$2:$Q$985098,16,0) ->  | M40: =VLOOKUP(CONCATENATE($C40,"|",$C$2, "|", M$5,"|",$D$2,"|",$F$1,"|", $F$2,"|",$G$1,"|",$G$2,"|",$H$1,"|",$H$2),'DATA MART_'!$B$2:$Q$985098,16,0) ->  | N40: =VLOOKUP(CONCATENATE($C40,"|",$C$2, "|", N$5,"|",$D$2,"|",$F$1,"|", $F$2,"|",$G$1,"|",$G$2,"|",$H$1,"|",$H$2),'DATA MART_'!$B$2:$Q$985098,16,0) ->  | O40: =VLOOKUP(CONCATENATE($C40,"|",$C$2, "|", O$5,"|",$D$2,"|",$F$1,"|", $F$2,"|",$G$1,"|",$G$2,"|",$H$1,"|",$H$2),'DATA MART_'!$B$2:$Q$985098,16,0) ->  | P40: =VLOOKUP(CONCATENATE($C40,"|",$C$2, "|", P$5,"|",$D$2,"|",$F$1,"|", $F$2,"|",$G$1,"|",$G$2,"|",$H$1,"|",$H$2),'DATA MART_'!$B$2:$Q$985098,16,0) ->  | Q40: =VLOOKUP(CONCATENATE($C40,"|",$C$2, "|", Q$5,"|",$D$2,"|",$F$1,"|", $F$2,"|",$G$1,"|",$G$2,"|",$H$1,"|",$H$2),'DATA MART_'!$B$2:$Q$985098,16,0) ->  | R40: =VLOOKUP(CONCATENATE($C40,"|",$C$2, "|", R$5,"|",$D$2,"|",$F$1,"|", $F$2,"|",$G$1,"|",$G$2,"|",$H$1,"|",$H$2),'DATA MART_'!$B$2:$Q$985098,16,0) ->  | S40: =VLOOKUP(CONCATENATE($C40,"|",$C$2, "|", S$5,"|",$D$2,"|",$F$1,"|", $F$2,"|",$G$1,"|",$G$2,"|",$H$1,"|",$H$2),'DATA MART_'!$B$2:$Q$985098,16,0) ->  | T40: =VLOOKUP(CONCATENATE($C40,"|",$C$2, "|", T$5,"|",$D$2,"|",$F$1,"|", $F$2,"|",$G$1,"|",$G$2,"|",$H$1,"|",$H$2),'DATA MART_'!$B$2:$Q$985098,16,0) ->  | U40: =VLOOKUP(CONCATENATE($C40,"|",$C$2, "|", U$5,"|",$D$2,"|",$F$1,"|", $F$2,"|",$G$1,"|",$G$2,"|",$H$1,"|",$H$2),'DATA MART_'!$B$2:$Q$985098,16,0) ->  | V40: =VLOOKUP(CONCATENATE($C40,"|",$C$2, "|", V$5,"|",$D$2,"|",$F$1,"|", $F$2,"|",$G$1,"|",$G$2,"|",$H$1,"|",$H$2),'DATA MART_'!$B$2:$Q$985098,16,0) -> 
B41: NATIONAL BANK OF GREECE | C41: GR031 | D41: GR | E41: 1 | F41: =VLOOKUP(CONCATENATE($C41,"|",$C$2, "|", F$5,"|",$D$2,"|",$F$1,"|", $F$2,"|",$G$1,"|",$G$2,"|",$H$1,"|",$H$2),'DATA MART_'!$B$2:$Q$985098,16,0) ->  | G41: =VLOOKUP(CONCATENATE($C41,"|",$C$2, "|", G$5,"|",$D$2,"|",$F$1,"|", $F$2,"|",$G$1,"|",$G$2,"|",$H$1,"|",$H$2),'DATA MART_'!$B$2:$Q$985098,16,0) ->  | H41: =VLOOKUP(CONCATENATE($C41,"|",$C$2, "|", H$5,"|",$D$2,"|",$F$1,"|", $F$2,"|",$G$1,"|",$G$2,"|",$H$1,"|",$H$2),'DATA MART_'!$B$2:$Q$985098,16,0) ->  | I41: =VLOOKUP(CONCATENATE($C41,"|",$C$2, "|", I$5,"|",$D$2,"|",$F$1,"|", $F$2,"|",$G$1,"|",$G$2,"|",$H$1,"|",$H$2),'DATA MART_'!$B$2:$Q$985098,16,0) ->  | J41: =VLOOKUP(CONCATENATE($C41,"|",$C$2, "|", J$5,"|",$D$2,"|",$F$1,"|", $F$2,"|",$G$1,"|",$G$2,"|",$H$1,"|",$H$2),'DATA MART_'!$B$2:$Q$985098,16,0) ->  | K41: =VLOOKUP(CONCATENATE($C41,"|",$C$2, "|", K$5,"|",$D$2,"|",$F$1,"|", $F$2,"|",$G$1,"|",$G$2,"|",$H$1,"|",$H$2),'DATA MART_'!$B$2:$Q$985098,16,0) ->  | L41: =VLOOKUP(CONCATENATE($C41,"|",$C$2, "|", L$5,"|",$D$2,"|",$F$1,"|", $F$2,"|",$G$1,"|",$G$2,"|",$H$1,"|",$H$2),'DATA MART_'!$B$2:$Q$985098,16,0) ->  | M41: =VLOOKUP(CONCATENATE($C41,"|",$C$2, "|", M$5,"|",$D$2,"|",$F$1,"|", $F$2,"|",$G$1,"|",$G$2,"|",$H$1,"|",$H$2),'DATA MART_'!$B$2:$Q$985098,16,0) ->  | N41: =VLOOKUP(CONCATENATE($C41,"|",$C$2, "|", N$5,"|",$D$2,"|",$F$1,"|", $F$2,"|",$G$1,"|",$G$2,"|",$H$1,"|",$H$2),'DATA MART_'!$B$2:$Q$985098,16,0) ->  | O41: =VLOOKUP(CONCATENATE($C41,"|",$C$2, "|", O$5,"|",$D$2,"|",$F$1,"|", $F$2,"|",$G$1,"|",$G$2,"|",$H$1,"|",$H$2),'DATA MART_'!$B$2:$Q$985098,16,0) ->  | P41: =VLOOKUP(CONCATENATE($C41,"|",$C$2, "|", P$5,"|",$D$2,"|",$F$1,"|", $F$2,"|",$G$1,"|",$G$2,"|",$H$1,"|",$H$2),'DATA MART_'!$B$2:$Q$985098,16,0) ->  | Q41: =VLOOKUP(CONCATENATE($C41,"|",$C$2, "|", Q$5,"|",$D$2,"|",$F$1,"|", $F$2,"|",$G$1,"|",$G$2,"|",$H$1,"|",$H$2),'DATA MART_'!$B$2:$Q$985098,16,0) ->  | R41: =VLOOKUP(CONCATENATE($C41,"|",$C$2, "|", R$5,"|",$D$2,"|",$F$1,"|", $F$2,"|",$G$1,"|",$G$2,"|",$H$1,"|",$H$2),'DATA MART_'!$B$2:$Q$985098,16,0) ->  | S41: =VLOOKUP(CONCATENATE($C41,"|",$C$2, "|", S$5,"|",$D$2,"|",$F$1,"|", $F$2,"|",$G$1,"|",$G$2,"|",$H$1,"|",$H$2),'DATA MART_'!$B$2:$Q$985098,16,0) ->  | T41: =VLOOKUP(CONCATENATE($C41,"|",$C$2, "|", T$5,"|",$D$2,"|",$F$1,"|", $F$2,"|",$G$1,"|",$G$2,"|",$H$1,"|",$H$2),'DATA MART_'!$B$2:$Q$985098,16,0) ->  | U41: =VLOOKUP(CONCATENATE($C41,"|",$C$2, "|", U$5,"|",$D$2,"|",$F$1,"|", $F$2,"|",$G$1,"|",$G$2,"|",$H$1,"|",$H$2),'DATA MART_'!$B$2:$Q$985098,16,0) ->  | V41: =VLOOKUP(CONCATENATE($C41,"|",$C$2, "|", V$5,"|",$D$2,"|",$F$1,"|", $F$2,"|",$G$1,"|",$G$2,"|",$H$1,"|",$H$2),'DATA MART_'!$B$2:$Q$985098,16,0) -> 
B42: ALPHA BANK | C42: GR032 | D42: GR | E42: Not Applicable² | F42: =VLOOKUP(CONCATENATE($C42,"|",$C$2, "|", F$5,"|",$D$2,"|",$F$1,"|", $F$2,"|",$G$1,"|",$G$2,"|",$H$1,"|",$H$2),'DATA MART_'!$B$2:$Q$985098,16,0) ->  | G42: =VLOOKUP(CONCATENATE($C42,"|",$C$2, "|", G$5,"|",$D$2,"|",$F$1,"|", $F$2,"|",$G$1,"|",$G$2,"|",$H$1,"|",$H$2),'DATA MART_'!$B$2:$Q$985098,16,0) ->  | H42: =VLOOKUP(CONCATENATE($C42,"|",$C$2, "|", H$5,"|",$D$2,"|",$F$1,"|", $F$2,"|",$G$1,"|",$G$2,"|",$H$1,"|",$H$2),'DATA MART_'!$B$2:$Q$985098,16,0) ->  | I42: =VLOOKUP(CONCATENATE($C42,"|",$C$2, "|", I$5,"|",$D$2,"|",$F$1,"|", $F$2,"|",$G$1,"|",$G$2,"|",$H$1,"|",$H$2),'DATA MART_'!$B$2:$Q$985098,16,0) ->  | J42: =VLOOKUP(CONCATENATE($C42,"|",$C$2, "|", J$5,"|",$D$2,"|",$F$1,"|", $F$2,"|",$G$1,"|",$G$2,"|",$H$1,"|",$H$2),'DATA MART_'!$B$2:$Q$985098,16,0) ->  | K42: =VLOOKUP(CONCATENATE($C42,"|",$C$2, "|", K$5,"|",$D$2,"|",$F$1,"|", $F$2,"|",$G$1,"|",$G$2,"|",$H$1,"|",$H$2),'DATA MART_'!$B$2:$Q$985098,16,0) ->  | L42: =VLOOKUP(CONCATENATE($C42,"|",$C$2, "|", L$5,"|",$D$2,"|",$F$1,"|", $F$2,"|",$G$1,"|",$G$2,"|",$H$1,"|",$H$2),'DATA MART_'!$B$2:$Q$985098,16,0) ->  | M42: =VLOOKUP(CONCATENATE($C42,"|",$C$2, "|", M$5,"|",$D$2,"|",$F$1,"|", $F$2,"|",$G$1,"|",$G$2,"|",$H$1,"|",$H$2),'DATA MART_'!$B$2:$Q$985098,16,0) ->  | N42: =VLOOKUP(CONCATENATE($C42,"|",$C$2, "|", N$5,"|",$D$2,"|",$F$1,"|", $F$2,"|",$G$1,"|",$G$2,"|",$H$1,"|",$H$2),'DATA MART_'!$B$2:$Q$985098,16,0) ->  | O42: =VLOOKUP(CONCATENATE($C42,"|",$C$2, "|", O$5,"|",$D$2,"|",$F$1,"|", $F$2,"|",$G$1,"|",$G$2,"|",$H$1,"|",$H$2),'DATA MART_'!$B$2:$Q$985098,16,0) ->  | P42: =VLOOKUP(CONCATENATE($C42,"|",$C$2, "|", P$5,"|",$D$2,"|",$F$1,"|", $F$2,"|",$G$1,"|",$G$2,"|",$H$1,"|",$H$2),'DATA MART_'!$B$2:$Q$985098,16,0) ->  | Q42: =VLOOKUP(CONCATENATE($C42,"|",$C$2, "|", Q$5,"|",$D$2,"|",$F$1,"|", $F$2,"|",$G$1,"|",$G$2,"|",$H$1,"|",$H$2),'DATA MART_'!$B$2:$Q$985098,16,0) ->  | R42: =VLOOKUP(CONCATENATE($C42,"|",$C$2, "|", R$5,"|",$D$2,"|",$F$1,"|", $F$2,"|",$G$1,"|",$G$2,"|",$H$1,"|",$H$2),'DATA MART_'!$B$2:$Q$985098,16,0) ->  | S42: =VLOOKUP(CONCATENATE($C42,"|",$C$2, "|", S$5,"|",$D$2,"|",$F$1,"|", $F$2,"|",$G$1,"|",$G$2,"|",$H$1,"|",$H$2),'DATA MART_'!$B$2:$Q$985098,16,0) ->  | T42: =VLOOKUP(CONCATENATE($C42,"|",$C$2, "|", T$5,"|",$D$2,"|",$F$1,"|", $F$2,"|",$G$1,"|",$G$2,"|",$H$1,"|",$H$2),'DATA MART_'!$B$2:$Q$985098,16,0) ->  | U42: =VLOOKUP(CONCATENATE($C42,"|",$C$2, "|", U$5,"|",$D$2,"|",$F$1,"|", $F$2,"|",$G$1,"|",$G$2,"|",$H$1,"|",$H$2),'DATA MART_'!$B$2:$Q$985098,16,0) ->  | V42: =VLOOKUP(CONCATENATE($C42,"|",$C$2, "|", V$5,"|",$D$2,"|",$F$1,"|", $F$2,"|",$G$1,"|",$G$2,"|",$H$1,"|",$H$2),'DATA MART_'!$B$2:$Q$985098,16,0) -> 
B43: PIRAEUS BANK GROUP | C43: GR033 | D43: GR | E43: Not Applicable² | F43: =VLOOKUP(CONCATENATE($C43,"|",$C$2, "|", F$5,"|",$D$2,"|",$F$1,"|", $F$2,"|",$G$1,"|",$G$2,"|",$H$1,"|",$H$2),'DATA MART_'!$B$2:$Q$985098,16,0) ->  | G43: =VLOOKUP(CONCATENATE($C43,"|",$C$2, "|", G$5,"|",$D$2,"|",$F$1,"|", $F$2,"|",$G$1,"|",$G$2,"|",$H$1,"|",$H$2),'DATA MART_'!$B$2:$Q$985098,16,0) ->  | H43: =VLOOKUP(CONCATENATE($C43,"|",$C$2, "|", H$5,"|",$D$2,"|",$F$1,"|", $F$2,"|",$G$1,"|",$G$2,"|",$H$1,"|",$H$2),'DATA MART_'!$B$2:$Q$985098,16,0) ->  | I43: =VLOOKUP(CONCATENATE($C43,"|",$C$2, "|", I$5,"|",$D$2,"|",$F$1,"|", $F$2,"|",$G$1,"|",$G$2,"|",$H$1,"|",$H$2),'DATA MART_'!$B$2:$Q$985098,16,0) ->  | J43: =VLOOKUP(CONCATENATE($C43,"|",$C$2, "|", J$5,"|",$D$2,"|",$F$1,"|", $F$2,"|",$G$1,"|",$G$2,"|",$H$1,"|",$H$2),'DATA MART_'!$B$2:$Q$985098,16,0) ->  | K43: =VLOOKUP(CONCATENATE($C43,"|",$C$2, "|", K$5,"|",$D$2,"|",$F$1,"|", $F$2,"|",$G$1,"|",$G$2,"|",$H$1,"|",$H$2),'DATA MART_'!$B$2:$Q$985098,16,0) ->  | L43: =VLOOKUP(CONCATENATE($C43,"|",$C$2, "|", L$5,"|",$D$2,"|",$F$1,"|", $F$2,"|",$G$1,"|",$G$2,"|",$H$1,"|",$H$2),'DATA MART_'!$B$2:$Q$985098,16,0) ->  | M43: =VLOOKUP(CONCATENATE($C43,"|",$C$2, "|", M$5,"|",$D$2,"|",$F$1,"|", $F$2,"|",$G$1,"|",$G$2,"|",$H$1,"|",$H$2),'DATA MART_'!$B$2:$Q$985098,16,0) ->  | N43: =VLOOKUP(CONCATENATE($C43,"|",$C$2, "|", N$5,"|",$D$2,"|",$F$1,"|", $F$2,"|",$G$1,"|",$G$2,"|",$H$1,"|",$H$2),'DATA MART_'!$B$2:$Q$985098,16,0) ->  | O43: =VLOOKUP(CONCATENATE($C43,"|",$C$2, "|", O$5,"|",$D$2,"|",$F$1,"|", $F$2,"|",$G$1,"|",$G$2,"|",$H$1,"|",$H$2),'DATA MART_'!$B$2:$Q$985098,16,0) ->  | P43: =VLOOKUP(CONCATENATE($C43,"|",$C$2, "|", P$5,"|",$D$2,"|",$F$1,"|", $F$2,"|",$G$1,"|",$G$2,"|",$H$1,"|",$H$2),'DATA MART_'!$B$2:$Q$985098,16,0) ->  | Q43: =VLOOKUP(CONCATENATE($C43,"|",$C$2, "|", Q$5,"|",$D$2,"|",$F$1,"|", $F$2,"|",$G$1,"|",$G$2,"|",$H$1,"|",$H$2),'DATA MART_'!$B$2:$Q$985098,16,0) ->  | R43: =VLOOKUP(CONCATENATE($C43,"|",$C$2, "|", R$5,"|",$D$2,"|",$F$1,"|", $F$2,"|",$G$1,"|",$G$2,"|",$H$1,"|",$H$2),'DATA MART_'!$B$2:$Q$985098,16,0) ->  | S43: =VLOOKUP(CONCATENATE($C43,"|",$C$2, "|", S$5,"|",$D$2,"|",$F$1,"|", $F$2,"|",$G$1,"|",$G$2,"|",$H$1,"|",$H$2),'DATA MART_'!$B$2:$Q$985098,16,0) ->  | T43: =VLOOKUP(CONCATENATE($C43,"|",$C$2, "|", T$5,"|",$D$2,"|",$F$1,"|", $F$2,"|",$G$1,"|",$G$2,"|",$H$1,"|",$H$2),'DATA MART_'!$B$2:$Q$985098,16,0) ->  | U43: =VLOOKUP(CONCATENATE($C43,"|",$C$2, "|", U$5,"|",$D$2,"|",$F$1,"|", $F$2,"|",$G$1,"|",$G$2,"|",$H$1,"|",$H$2),'DATA MART_'!$B$2:$Q$985098,16,0) ->  | V43: =VLOOKUP(CONCATENATE($C43,"|",$C$2, "|", V$5,"|",$D$2,"|",$F$1,"|", $F$2,"|",$G$1,"|",$G$2,"|",$H$1,"|",$H$2),'DATA MART_'!$B$2:$Q$985098,16,0) -> 
B44: OTP BANK NYRT. | C44: HU036 | D44: HU | E44: Not Applicable² | F44: =VLOOKUP(CONCATENATE($C44,"|",$C$2, "|", F$5,"|",$D$2,"|",$F$1,"|", $F$2,"|",$G$1,"|",$G$2,"|",$H$1,"|",$H$2),'DATA MART_'!$B$2:$Q$985098,16,0) ->  | G44: =VLOOKUP(CONCATENATE($C44,"|",$C$2, "|", G$5,"|",$D$2,"|",$F$1,"|", $F$2,"|",$G$1,"|",$G$2,"|",$H$1,"|",$H$2),'DATA MART_'!$B$2:$Q$985098,16,0) ->  | H44: =VLOOKUP(CONCATENATE($C44,"|",$C$2, "|", H$5,"|",$D$2,"|",$F$1,"|", $F$2,"|",$G$1,"|",$G$2,"|",$H$1,"|",$H$2),'DATA MART_'!$B$2:$Q$985098,16,0) ->  | I44: =VLOOKUP(CONCATENATE($C44,"|",$C$2, "|", I$5,"|",$D$2,"|",$F$1,"|", $F$2,"|",$G$1,"|",$G$2,"|",$H$1,"|",$H$2),'DATA MART_'!$B$2:$Q$985098,16,0) ->  | J44: =VLOOKUP(CONCATENATE($C44,"|",$C$2, "|", J$5,"|",$D$2,"|",$F$1,"|", $F$2,"|",$G$1,"|",$G$2,"|",$H$1,"|",$H$2),'DATA MART_'!$B$2:$Q$985098,16,0) ->  | K44: =VLOOKUP(CONCATENATE($C44,"|",$C$2, "|", K$5,"|",$D$2,"|",$F$1,"|", $F$2,"|",$G$1,"|",$G$2,"|",$H$1,"|",$H$2),'DATA MART_'!$B$2:$Q$985098,16,0) ->  | L44: =VLOOKUP(CONCATENATE($C44,"|",$C$2, "|", L$5,"|",$D$2,"|",$F$1,"|", $F$2,"|",$G$1,"|",$G$2,"|",$H$1,"|",$H$2),'DATA MART_'!$B$2:$Q$985098,16,0) ->  | M44: =VLOOKUP(CONCATENATE($C44,"|",$C$2, "|", M$5,"|",$D$2,"|",$F$1,"|", $F$2,"|",$G$1,"|",$G$2,"|",$H$1,"|",$H$2),'DATA MART_'!$B$2:$Q$985098,16,0) ->  | N44: =VLOOKUP(CONCATENATE($C44,"|",$C$2, "|", N$5,"|",$D$2,"|",$F$1,"|", $F$2,"|",$G$1,"|",$G$2,"|",$H$1,"|",$H$2),'DATA MART_'!$B$2:$Q$985098,16,0) ->  | O44: =VLOOKUP(CONCATENATE($C44,"|",$C$2, "|", O$5,"|",$D$2,"|",$F$1,"|", $F$2,"|",$G$1,"|",$G$2,"|",$H$1,"|",$H$2),'DATA MART_'!$B$2:$Q$985098,16,0) ->  | P44: =VLOOKUP(CONCATENATE($C44,"|",$C$2, "|", P$5,"|",$D$2,"|",$F$1,"|", $F$2,"|",$G$1,"|",$G$2,"|",$H$1,"|",$H$2),'DATA MART_'!$B$2:$Q$985098,16,0) ->  | Q44: =VLOOKUP(CONCATENATE($C44,"|",$C$2, "|", Q$5,"|",$D$2,"|",$F$1,"|", $F$2,"|",$G$1,"|",$G$2,"|",$H$1,"|",$H$2),'DATA MART_'!$B$2:$Q$985098,16,0) ->  | R44: =VLOOKUP(CONCATENATE($C44,"|",$C$2, "|", R$5,"|",$D$2,"|",$F$1,"|", $F$2,"|",$G$1,"|",$G$2,"|",$H$1,"|",$H$2),'DATA MART_'!$B$2:$Q$985098,16,0) ->  | S44: =VLOOKUP(CONCATENATE($C44,"|",$C$2, "|", S$5,"|",$D$2,"|",$F$1,"|", $F$2,"|",$G$1,"|",$G$2,"|",$H$1,"|",$H$2),'DATA MART_'!$B$2:$Q$985098,16,0) ->  | T44: =VLOOKUP(CONCATENATE($C44,"|",$C$2, "|", T$5,"|",$D$2,"|",$F$1,"|", $F$2,"|",$G$1,"|",$G$2,"|",$H$1,"|",$H$2),'DATA MART_'!$B$2:$Q$985098,16,0) ->  | U44: =VLOOKUP(CONCATENATE($C44,"|",$C$2, "|", U$5,"|",$D$2,"|",$F$1,"|", $F$2,"|",$G$1,"|",$G$2,"|",$H$1,"|",$H$2),'DATA MART_'!$B$2:$Q$985098,16,0) ->  | V44: =VLOOKUP(CONCATENATE($C44,"|",$C$2, "|", V$5,"|",$D$2,"|",$F$1,"|", $F$2,"|",$G$1,"|",$G$2,"|",$H$1,"|",$H$2),'DATA MART_'!$B$2:$Q$985098,16,0) -> 
B45: ALLIED IRISH BANKS PLC | C45: IE037 | D45: IE | E45: 1³ | F45: =VLOOKUP(CONCATENATE($C45,"|",$C$2, "|", F$5,"|",$D$2,"|",$F$1,"|", $F$2,"|",$G$1,"|",$G$2,"|",$H$1,"|",$H$2),'DATA MART_'!$B$2:$Q$985098,16,0) ->  | G45: =VLOOKUP(CONCATENATE($C45,"|",$C$2, "|", G$5,"|",$D$2,"|",$F$1,"|", $F$2,"|",$G$1,"|",$G$2,"|",$H$1,"|",$H$2),'DATA MART_'!$B$2:$Q$985098,16,0) ->  | H45: =VLOOKUP(CONCATENATE($C45,"|",$C$2, "|", H$5,"|",$D$2,"|",$F$1,"|", $F$2,"|",$G$1,"|",$G$2,"|",$H$1,"|",$H$2),'DATA MART_'!$B$2:$Q$985098,16,0) ->  | I45: =VLOOKUP(CONCATENATE($C45,"|",$C$2, "|", I$5,"|",$D$2,"|",$F$1,"|", $F$2,"|",$G$1,"|",$G$2,"|",$H$1,"|",$H$2),'DATA MART_'!$B$2:$Q$985098,16,0) ->  | J45: =VLOOKUP(CONCATENATE($C45,"|",$C$2, "|", J$5,"|",$D$2,"|",$F$1,"|", $F$2,"|",$G$1,"|",$G$2,"|",$H$1,"|",$H$2),'DATA MART_'!$B$2:$Q$985098,16,0) ->  | K45: =VLOOKUP(CONCATENATE($C45,"|",$C$2, "|", K$5,"|",$D$2,"|",$F$1,"|", $F$2,"|",$G$1,"|",$G$2,"|",$H$1,"|",$H$2),'DATA MART_'!$B$2:$Q$985098,16,0) ->  | L45: =VLOOKUP(CONCATENATE($C45,"|",$C$2, "|", L$5,"|",$D$2,"|",$F$1,"|", $F$2,"|",$G$1,"|",$G$2,"|",$H$1,"|",$H$2),'DATA MART_'!$B$2:$Q$985098,16,0) ->  | M45: =VLOOKUP(CONCATENATE($C45,"|",$C$2, "|", M$5,"|",$D$2,"|",$F$1,"|", $F$2,"|",$G$1,"|",$G$2,"|",$H$1,"|",$H$2),'DATA MART_'!$B$2:$Q$985098,16,0) ->  | N45: =VLOOKUP(CONCATENATE($C45,"|",$C$2, "|", N$5,"|",$D$2,"|",$F$1,"|", $F$2,"|",$G$1,"|",$G$2,"|",$H$1,"|",$H$2),'DATA MART_'!$B$2:$Q$985098,16,0) ->  | O45: =VLOOKUP(CONCATENATE($C45,"|",$C$2, "|", O$5,"|",$D$2,"|",$F$1,"|", $F$2,"|",$G$1,"|",$G$2,"|",$H$1,"|",$H$2),'DATA MART_'!$B$2:$Q$985098,16,0) ->  | P45: =VLOOKUP(CONCATENATE($C45,"|",$C$2, "|", P$5,"|",$D$2,"|",$F$1,"|", $F$2,"|",$G$1,"|",$G$2,"|",$H$1,"|",$H$2),'DATA MART_'!$B$2:$Q$985098,16,0) ->  | Q45: =VLOOKUP(CONCATENATE($C45,"|",$C$2, "|", Q$5,"|",$D$2,"|",$F$1,"|", $F$2,"|",$G$1,"|",$G$2,"|",$H$1,"|",$H$2),'DATA MART_'!$B$2:$Q$985098,16,0) ->  | R45: =VLOOKUP(CONCATENATE($C45,"|",$C$2, "|", R$5,"|",$D$2,"|",$F$1,"|", $F$2,"|",$G$1,"|",$G$2,"|",$H$1,"|",$H$2),'DATA MART_'!$B$2:$Q$985098,16,0) ->  | S45: =VLOOKUP(CONCATENATE($C45,"|",$C$2, "|", S$5,"|",$D$2,"|",$F$1,"|", $F$2,"|",$G$1,"|",$G$2,"|",$H$1,"|",$H$2),'DATA MART_'!$B$2:$Q$985098,16,0) ->  | T45: =VLOOKUP(CONCATENATE($C45,"|",$C$2, "|", T$5,"|",$D$2,"|",$F$1,"|", $F$2,"|",$G$1,"|",$G$2,"|",$H$1,"|",$H$2),'DATA MART_'!$B$2:$Q$985098,16,0) ->  | U45: =VLOOKUP(CONCATENATE($C45,"|",$C$2, "|", U$5,"|",$D$2,"|",$F$1,"|", $F$2,"|",$G$1,"|",$G$2,"|",$H$1,"|",$H$2),'DATA MART_'!$B$2:$Q$985098,16,0) ->  | V45: =VLOOKUP(CONCATENATE($C45,"|",$C$2, "|", V$5,"|",$D$2,"|",$F$1,"|", $F$2,"|",$G$1,"|",$G$2,"|",$H$1,"|",$H$2),'DATA MART_'!$B$2:$Q$985098,16,0) -> 
B46: BANK OF IRELAND | C46: IE038 | D46: IE | E46: 1³ | F46: =VLOOKUP(CONCATENATE($C46,"|",$C$2, "|", F$5,"|",$D$2,"|",$F$1,"|", $F$2,"|",$G$1,"|",$G$2,"|",$H$1,"|",$H$2),'DATA MART_'!$B$2:$Q$985098,16,0) ->  | G46: =VLOOKUP(CONCATENATE($C46,"|",$C$2, "|", G$5,"|",$D$2,"|",$F$1,"|", $F$2,"|",$G$1,"|",$G$2,"|",$H$1,"|",$H$2),'DATA MART_'!$B$2:$Q$985098,16,0) ->  | H46: =VLOOKUP(CONCATENATE($C46,"|",$C$2, "|", H$5,"|",$D$2,"|",$F$1,"|", $F$2,"|",$G$1,"|",$G$2,"|",$H$1,"|",$H$2),'DATA MART_'!$B$2:$Q$985098,16,0) ->  | I46: =VLOOKUP(CONCATENATE($C46,"|",$C$2, "|", I$5,"|",$D$2,"|",$F$1,"|", $F$2,"|",$G$1,"|",$G$2,"|",$H$1,"|",$H$2),'DATA MART_'!$B$2:$Q$985098,16,0) ->  | J46: =VLOOKUP(CONCATENATE($C46,"|",$C$2, "|", J$5,"|",$D$2,"|",$F$1,"|", $F$2,"|",$G$1,"|",$G$2,"|",$H$1,"|",$H$2),'DATA MART_'!$B$2:$Q$985098,16,0) ->  | K46: =VLOOKUP(CONCATENATE($C46,"|",$C$2, "|", K$5,"|",$D$2,"|",$F$1,"|", $F$2,"|",$G$1,"|",$G$2,"|",$H$1,"|",$H$2),'DATA MART_'!$B$2:$Q$985098,16,0) ->  | L46: =VLOOKUP(CONCATENATE($C46,"|",$C$2, "|", L$5,"|",$D$2,"|",$F$1,"|", $F$2,"|",$G$1,"|",$G$2,"|",$H$1,"|",$H$2),'DATA MART_'!$B$2:$Q$985098,16,0) ->  | M46: =VLOOKUP(CONCATENATE($C46,"|",$C$2, "|", M$5,"|",$D$2,"|",$F$1,"|", $F$2,"|",$G$1,"|",$G$2,"|",$H$1,"|",$H$2),'DATA MART_'!$B$2:$Q$985098,16,0) ->  | N46: =VLOOKUP(CONCATENATE($C46,"|",$C$2, "|", N$5,"|",$D$2,"|",$F$1,"|", $F$2,"|",$G$1,"|",$G$2,"|",$H$1,"|",$H$2),'DATA MART_'!$B$2:$Q$985098,16,0) ->  | O46: =VLOOKUP(CONCATENATE($C46,"|",$C$2, "|", O$5,"|",$D$2,"|",$F$1,"|", $F$2,"|",$G$1,"|",$G$2,"|",$H$1,"|",$H$2),'DATA MART_'!$B$2:$Q$985098,16,0) ->  | P46: =VLOOKUP(CONCATENATE($C46,"|",$C$2, "|", P$5,"|",$D$2,"|",$F$1,"|", $F$2,"|",$G$1,"|",$G$2,"|",$H$1,"|",$H$2),'DATA MART_'!$B$2:$Q$985098,16,0) ->  | Q46: =VLOOKUP(CONCATENATE($C46,"|",$C$2, "|", Q$5,"|",$D$2,"|",$F$1,"|", $F$2,"|",$G$1,"|",$G$2,"|",$H$1,"|",$H$2),'DATA MART_'!$B$2:$Q$985098,16,0) ->  | R46: =VLOOKUP(CONCATENATE($C46,"|",$C$2, "|", R$5,"|",$D$2,"|",$F$1,"|", $F$2,"|",$G$1,"|",$G$2,"|",$H$1,"|",$H$2),'DATA MART_'!$B$2:$Q$985098,16,0) ->  | S46: =VLOOKUP(CONCATENATE($C46,"|",$C$2, "|", S$5,"|",$D$2,"|",$F$1,"|", $F$2,"|",$G$1,"|",$G$2,"|",$H$1,"|",$H$2),'DATA MART_'!$B$2:$Q$985098,16,0) ->  | T46: =VLOOKUP(CONCATENATE($C46,"|",$C$2, "|", T$5,"|",$D$2,"|",$F$1,"|", $F$2,"|",$G$1,"|",$G$2,"|",$H$1,"|",$H$2),'DATA MART_'!$B$2:$Q$985098,16,0) ->  | U46: =VLOOKUP(CONCATENATE($C46,"|",$C$2, "|", U$5,"|",$D$2,"|",$F$1,"|", $F$2,"|",$G$1,"|",$G$2,"|",$H$1,"|",$H$2),'DATA MART_'!$B$2:$Q$985098,16,0) ->  | V46: =VLOOKUP(CONCATENATE($C46,"|",$C$2, "|", V$5,"|",$D$2,"|",$F$1,"|", $F$2,"|",$G$1,"|",$G$2,"|",$H$1,"|",$H$2),'DATA MART_'!$B$2:$Q$985098,16,0) -> 
B47: PERMANENT TSB | C47: IE039 | D47: IE | E47: 1³ | F47: =VLOOKUP(CONCATENATE($C47,"|",$C$2, "|", F$5,"|",$D$2,"|",$F$1,"|", $F$2,"|",$G$1,"|",$G$2,"|",$H$1,"|",$H$2),'DATA MART_'!$B$2:$Q$985098,16,0) ->  | G47: =VLOOKUP(CONCATENATE($C47,"|",$C$2, "|", G$5,"|",$D$2,"|",$F$1,"|", $F$2,"|",$G$1,"|",$G$2,"|",$H$1,"|",$H$2),'DATA MART_'!$B$2:$Q$985098,16,0) ->  | H47: =VLOOKUP(CONCATENATE($C47,"|",$C$2, "|", H$5,"|",$D$2,"|",$F$1,"|", $F$2,"|",$G$1,"|",$G$2,"|",$H$1,"|",$H$2),'DATA MART_'!$B$2:$Q$985098,16,0) ->  | I47: =VLOOKUP(CONCATENATE($C47,"|",$C$2, "|", I$5,"|",$D$2,"|",$F$1,"|", $F$2,"|",$G$1,"|",$G$2,"|",$H$1,"|",$H$2),'DATA MART_'!$B$2:$Q$985098,16,0) ->  | J47: =VLOOKUP(CONCATENATE($C47,"|",$C$2, "|", J$5,"|",$D$2,"|",$F$1,"|", $F$2,"|",$G$1,"|",$G$2,"|",$H$1,"|",$H$2),'DATA MART_'!$B$2:$Q$985098,16,0) ->  | K47: =VLOOKUP(CONCATENATE($C47,"|",$C$2, "|", K$5,"|",$D$2,"|",$F$1,"|", $F$2,"|",$G$1,"|",$G$2,"|",$H$1,"|",$H$2),'DATA MART_'!$B$2:$Q$985098,16,0) ->  | L47: =VLOOKUP(CONCATENATE($C47,"|",$C$2, "|", L$5,"|",$D$2,"|",$F$1,"|", $F$2,"|",$G$1,"|",$G$2,"|",$H$1,"|",$H$2),'DATA MART_'!$B$2:$Q$985098,16,0) ->  | M47: =VLOOKUP(CONCATENATE($C47,"|",$C$2, "|", M$5,"|",$D$2,"|",$F$1,"|", $F$2,"|",$G$1,"|",$G$2,"|",$H$1,"|",$H$2),'DATA MART_'!$B$2:$Q$985098,16,0) ->  | N47: =VLOOKUP(CONCATENATE($C47,"|",$C$2, "|", N$5,"|",$D$2,"|",$F$1,"|", $F$2,"|",$G$1,"|",$G$2,"|",$H$1,"|",$H$2),'DATA MART_'!$B$2:$Q$985098,16,0) ->  | O47: =VLOOKUP(CONCATENATE($C47,"|",$C$2, "|", O$5,"|",$D$2,"|",$F$1,"|", $F$2,"|",$G$1,"|",$G$2,"|",$H$1,"|",$H$2),'DATA MART_'!$B$2:$Q$985098,16,0) ->  | P47: =VLOOKUP(CONCATENATE($C47,"|",$C$2, "|", P$5,"|",$D$2,"|",$F$1,"|", $F$2,"|",$G$1,"|",$G$2,"|",$H$1,"|",$H$2),'DATA MART_'!$B$2:$Q$985098,16,0) ->  | Q47: =VLOOKUP(CONCATENATE($C47,"|",$C$2, "|", Q$5,"|",$D$2,"|",$F$1,"|", $F$2,"|",$G$1,"|",$G$2,"|",$H$1,"|",$H$2),'DATA MART_'!$B$2:$Q$985098,16,0) ->  | R47: =VLOOKUP(CONCATENATE($C47,"|",$C$2, "|", R$5,"|",$D$2,"|",$F$1,"|", $F$2,"|",$G$1,"|",$G$2,"|",$H$1,"|",$H$2),'DATA MART_'!$B$2:$Q$985098,16,0) ->  | S47: =VLOOKUP(CONCATENATE($C47,"|",$C$2, "|", S$5,"|",$D$2,"|",$F$1,"|", $F$2,"|",$G$1,"|",$G$2,"|",$H$1,"|",$H$2),'DATA MART_'!$B$2:$Q$985098,16,0) ->  | T47: =VLOOKUP(CONCATENATE($C47,"|",$C$2, "|", T$5,"|",$D$2,"|",$F$1,"|", $F$2,"|",$G$1,"|",$G$2,"|",$H$1,"|",$H$2),'DATA MART_'!$B$2:$Q$985098,16,0) ->  | U47: =VLOOKUP(CONCATENATE($C47,"|",$C$2, "|", U$5,"|",$D$2,"|",$F$1,"|", $F$2,"|",$G$1,"|",$G$2,"|",$H$1,"|",$H$2),'DATA MART_'!$B$2:$Q$985098,16,0) ->  | V47: =VLOOKUP(CONCATENATE($C47,"|",$C$2, "|", V$5,"|",$D$2,"|",$F$1,"|", $F$2,"|",$G$1,"|",$G$2,"|",$H$1,"|",$H$2),'DATA MART_'!$B$2:$Q$985098,16,0) -> 
B48: INTESA SANPAOLO S.p.A | C48: IT040 | D48: IT | E48: 1 | F48: =VLOOKUP(CONCATENATE($C48,"|",$C$2, "|", F$5,"|",$D$2,"|",$F$1,"|", $F$2,"|",$G$1,"|",$G$2,"|",$H$1,"|",$H$2),'DATA MART_'!$B$2:$Q$985098,16,0) ->  | G48: =VLOOKUP(CONCATENATE($C48,"|",$C$2, "|", G$5,"|",$D$2,"|",$F$1,"|", $F$2,"|",$G$1,"|",$G$2,"|",$H$1,"|",$H$2),'DATA MART_'!$B$2:$Q$985098,16,0) ->  | H48: =VLOOKUP(CONCATENATE($C48,"|",$C$2, "|", H$5,"|",$D$2,"|",$F$1,"|", $F$2,"|",$G$1,"|",$G$2,"|",$H$1,"|",$H$2),'DATA MART_'!$B$2:$Q$985098,16,0) ->  | I48: =VLOOKUP(CONCATENATE($C48,"|",$C$2, "|", I$5,"|",$D$2,"|",$F$1,"|", $F$2,"|",$G$1,"|",$G$2,"|",$H$1,"|",$H$2),'DATA MART_'!$B$2:$Q$985098,16,0) ->  | J48: =VLOOKUP(CONCATENATE($C48,"|",$C$2, "|", J$5,"|",$D$2,"|",$F$1,"|", $F$2,"|",$G$1,"|",$G$2,"|",$H$1,"|",$H$2),'DATA MART_'!$B$2:$Q$985098,16,0) ->  | K48: =VLOOKUP(CONCATENATE($C48,"|",$C$2, "|", K$5,"|",$D$2,"|",$F$1,"|", $F$2,"|",$G$1,"|",$G$2,"|",$H$1,"|",$H$2),'DATA MART_'!$B$2:$Q$985098,16,0) ->  | L48: =VLOOKUP(CONCATENATE($C48,"|",$C$2, "|", L$5,"|",$D$2,"|",$F$1,"|", $F$2,"|",$G$1,"|",$G$2,"|",$H$1,"|",$H$2),'DATA MART_'!$B$2:$Q$985098,16,0) ->  | M48: =VLOOKUP(CONCATENATE($C48,"|",$C$2, "|", M$5,"|",$D$2,"|",$F$1,"|", $F$2,"|",$G$1,"|",$G$2,"|",$H$1,"|",$H$2),'DATA MART_'!$B$2:$Q$985098,16,0) ->  | N48: =VLOOKUP(CONCATENATE($C48,"|",$C$2, "|", N$5,"|",$D$2,"|",$F$1,"|", $F$2,"|",$G$1,"|",$G$2,"|",$H$1,"|",$H$2),'DATA MART_'!$B$2:$Q$985098,16,0) ->  | O48: =VLOOKUP(CONCATENATE($C48,"|",$C$2, "|", O$5,"|",$D$2,"|",$F$1,"|", $F$2,"|",$G$1,"|",$G$2,"|",$H$1,"|",$H$2),'DATA MART_'!$B$2:$Q$985098,16,0) ->  | P48: =VLOOKUP(CONCATENATE($C48,"|",$C$2, "|", P$5,"|",$D$2,"|",$F$1,"|", $F$2,"|",$G$1,"|",$G$2,"|",$H$1,"|",$H$2),'DATA MART_'!$B$2:$Q$985098,16,0) ->  | Q48: =VLOOKUP(CONCATENATE($C48,"|",$C$2, "|", Q$5,"|",$D$2,"|",$F$1,"|", $F$2,"|",$G$1,"|",$G$2,"|",$H$1,"|",$H$2),'DATA MART_'!$B$2:$Q$985098,16,0) ->  | R48: =VLOOKUP(CONCATENATE($C48,"|",$C$2, "|", R$5,"|",$D$2,"|",$F$1,"|", $F$2,"|",$G$1,"|",$G$2,"|",$H$1,"|",$H$2),'DATA MART_'!$B$2:$Q$985098,16,0) ->  | S48: =VLOOKUP(CONCATENATE($C48,"|",$C$2, "|", S$5,"|",$D$2,"|",$F$1,"|", $F$2,"|",$G$1,"|",$G$2,"|",$H$1,"|",$H$2),'DATA MART_'!$B$2:$Q$985098,16,0) ->  | T48: =VLOOKUP(CONCATENATE($C48,"|",$C$2, "|", T$5,"|",$D$2,"|",$F$1,"|", $F$2,"|",$G$1,"|",$G$2,"|",$H$1,"|",$H$2),'DATA MART_'!$B$2:$Q$985098,16,0) ->  | U48: =VLOOKUP(CONCATENATE($C48,"|",$C$2, "|", U$5,"|",$D$2,"|",$F$1,"|", $F$2,"|",$G$1,"|",$G$2,"|",$H$1,"|",$H$2),'DATA MART_'!$B$2:$Q$985098,16,0) ->  | V48: =VLOOKUP(CONCATENATE($C48,"|",$C$2, "|", V$5,"|",$D$2,"|",$F$1,"|", $F$2,"|",$G$1,"|",$G$2,"|",$H$1,"|",$H$2),'DATA MART_'!$B$2:$Q$985098,16,0) -> 
B49: UNICREDIT S.p.A | C49: IT041 | D49: IT | E49: 1 | F49: =VLOOKUP(CONCATENATE($C49,"|",$C$2, "|", F$5,"|",$D$2,"|",$F$1,"|", $F$2,"|",$G$1,"|",$G$2,"|",$H$1,"|",$H$2),'DATA MART_'!$B$2:$Q$985098,16,0) ->  | G49: =VLOOKUP(CONCATENATE($C49,"|",$C$2, "|", G$5,"|",$D$2,"|",$F$1,"|", $F$2,"|",$G$1,"|",$G$2,"|",$H$1,"|",$H$2),'DATA MART_'!$B$2:$Q$985098,16,0) ->  | H49: =VLOOKUP(CONCATENATE($C49,"|",$C$2, "|", H$5,"|",$D$2,"|",$F$1,"|", $F$2,"|",$G$1,"|",$G$2,"|",$H$1,"|",$H$2),'DATA MART_'!$B$2:$Q$985098,16,0) ->  | I49: =VLOOKUP(CONCATENATE($C49,"|",$C$2, "|", I$5,"|",$D$2,"|",$F$1,"|", $F$2,"|",$G$1,"|",$G$2,"|",$H$1,"|",$H$2),'DATA MART_'!$B$2:$Q$985098,16,0) ->  | J49: =VLOOKUP(CONCATENATE($C49,"|",$C$2, "|", J$5,"|",$D$2,"|",$F$1,"|", $F$2,"|",$G$1,"|",$G$2,"|",$H$1,"|",$H$2),'DATA MART_'!$B$2:$Q$985098,16,0) ->  | K49: =VLOOKUP(CONCATENATE($C49,"|",$C$2, "|", K$5,"|",$D$2,"|",$F$1,"|", $F$2,"|",$G$1,"|",$G$2,"|",$H$1,"|",$H$2),'DATA MART_'!$B$2:$Q$985098,16,0) ->  | L49: =VLOOKUP(CONCATENATE($C49,"|",$C$2, "|", L$5,"|",$D$2,"|",$F$1,"|", $F$2,"|",$G$1,"|",$G$2,"|",$H$1,"|",$H$2),'DATA MART_'!$B$2:$Q$985098,16,0) ->  | M49: =VLOOKUP(CONCATENATE($C49,"|",$C$2, "|", M$5,"|",$D$2,"|",$F$1,"|", $F$2,"|",$G$1,"|",$G$2,"|",$H$1,"|",$H$2),'DATA MART_'!$B$2:$Q$985098,16,0) ->  | N49: =VLOOKUP(CONCATENATE($C49,"|",$C$2, "|", N$5,"|",$D$2,"|",$F$1,"|", $F$2,"|",$G$1,"|",$G$2,"|",$H$1,"|",$H$2),'DATA MART_'!$B$2:$Q$985098,16,0) ->  | O49: =VLOOKUP(CONCATENATE($C49,"|",$C$2, "|", O$5,"|",$D$2,"|",$F$1,"|", $F$2,"|",$G$1,"|",$G$2,"|",$H$1,"|",$H$2),'DATA MART_'!$B$2:$Q$985098,16,0) ->  | P49: =VLOOKUP(CONCATENATE($C49,"|",$C$2, "|", P$5,"|",$D$2,"|",$F$1,"|", $F$2,"|",$G$1,"|",$G$2,"|",$H$1,"|",$H$2),'DATA MART_'!$B$2:$Q$985098,16,0) ->  | Q49: =VLOOKUP(CONCATENATE($C49,"|",$C$2, "|", Q$5,"|",$D$2,"|",$F$1,"|", $F$2,"|",$G$1,"|",$G$2,"|",$H$1,"|",$H$2),'DATA MART_'!$B$2:$Q$985098,16,0) ->  | R49: =VLOOKUP(CONCATENATE($C49,"|",$C$2, "|", R$5,"|",$D$2,"|",$F$1,"|", $F$2,"|",$G$1,"|",$G$2,"|",$H$1,"|",$H$2),'DATA MART_'!$B$2:$Q$985098,16,0) ->  | S49: =VLOOKUP(CONCATENATE($C49,"|",$C$2, "|", S$5,"|",$D$2,"|",$F$1,"|", $F$2,"|",$G$1,"|",$G$2,"|",$H$1,"|",$H$2),'DATA MART_'!$B$2:$Q$985098,16,0) ->  | T49: =VLOOKUP(CONCATENATE($C49,"|",$C$2, "|", T$5,"|",$D$2,"|",$F$1,"|", $F$2,"|",$G$1,"|",$G$2,"|",$H$1,"|",$H$2),'DATA MART_'!$B$2:$Q$985098,16,0) ->  | U49: =VLOOKUP(CONCATENATE($C49,"|",$C$2, "|", U$5,"|",$D$2,"|",$F$1,"|", $F$2,"|",$G$1,"|",$G$2,"|",$H$1,"|",$H$2),'DATA MART_'!$B$2:$Q$985098,16,0) ->  | V49: =VLOOKUP(CONCATENATE($C49,"|",$C$2, "|", V$5,"|",$D$2,"|",$F$1,"|", $F$2,"|",$G$1,"|",$G$2,"|",$H$1,"|",$H$2),'DATA MART_'!$B$2:$Q$985098,16,0) -> 
B50: BANCA MONTE DEI PASCHI DI SIENA S.p.A | C50: IT042 | D50: IT | E50: 1 | F50: =VLOOKUP(CONCATENATE($C50,"|",$C$2, "|", F$5,"|",$D$2,"|",$F$1,"|", $F$2,"|",$G$1,"|",$G$2,"|",$H$1,"|",$H$2),'DATA MART_'!$B$2:$Q$985098,16,0) ->  | G50: =VLOOKUP(CONCATENATE($C50,"|",$C$2, "|", G$5,"|",$D$2,"|",$F$1,"|", $F$2,"|",$G$1,"|",$G$2,"|",$H$1,"|",$H$2),'DATA MART_'!$B$2:$Q$985098,16,0) ->  | H50: =VLOOKUP(CONCATENATE($C50,"|",$C$2, "|", H$5,"|",$D$2,"|",$F$1,"|", $F$2,"|",$G$1,"|",$G$2,"|",$H$1,"|",$H$2),'DATA MART_'!$B$2:$Q$985098,16,0) ->  | I50: =VLOOKUP(CONCATENATE($C50,"|",$C$2, "|", I$5,"|",$D$2,"|",$F$1,"|", $F$2,"|",$G$1,"|",$G$2,"|",$H$1,"|",$H$2),'DATA MART_'!$B$2:$Q$985098,16,0) ->  | J50: =VLOOKUP(CONCATENATE($C50,"|",$C$2, "|", J$5,"|",$D$2,"|",$F$1,"|", $F$2,"|",$G$1,"|",$G$2,"|",$H$1,"|",$H$2),'DATA MART_'!$B$2:$Q$985098,16,0) ->  | K50: =VLOOKUP(CONCATENATE($C50,"|",$C$2, "|", K$5,"|",$D$2,"|",$F$1,"|", $F$2,"|",$G$1,"|",$G$2,"|",$H$1,"|",$H$2),'DATA MART_'!$B$2:$Q$985098,16,0) ->  | L50: =VLOOKUP(CONCATENATE($C50,"|",$C$2, "|", L$5,"|",$D$2,"|",$F$1,"|", $F$2,"|",$G$1,"|",$G$2,"|",$H$1,"|",$H$2),'DATA MART_'!$B$2:$Q$985098,16,0) ->  | M50: =VLOOKUP(CONCATENATE($C50,"|",$C$2, "|", M$5,"|",$D$2,"|",$F$1,"|", $F$2,"|",$G$1,"|",$G$2,"|",$H$1,"|",$H$2),'DATA MART_'!$B$2:$Q$985098,16,0) ->  | N50: =VLOOKUP(CONCATENATE($C50,"|",$C$2, "|", N$5,"|",$D$2,"|",$F$1,"|", $F$2,"|",$G$1,"|",$G$2,"|",$H$1,"|",$H$2),'DATA MART_'!$B$2:$Q$985098,16,0) ->  | O50: =VLOOKUP(CONCATENATE($C50,"|",$C$2, "|", O$5,"|",$D$2,"|",$F$1,"|", $F$2,"|",$G$1,"|",$G$2,"|",$H$1,"|",$H$2),'DATA MART_'!$B$2:$Q$985098,16,0) ->  | P50: =VLOOKUP(CONCATENATE($C50,"|",$C$2, "|", P$5,"|",$D$2,"|",$F$1,"|", $F$2,"|",$G$1,"|",$G$2,"|",$H$1,"|",$H$2),'DATA MART_'!$B$2:$Q$985098,16,0) ->  | Q50: =VLOOKUP(CONCATENATE($C50,"|",$C$2, "|", Q$5,"|",$D$2,"|",$F$1,"|", $F$2,"|",$G$1,"|",$G$2,"|",$H$1,"|",$H$2),'DATA MART_'!$B$2:$Q$985098,16,0) ->  | R50: =VLOOKUP(CONCATENATE($C50,"|",$C$2, "|", R$5,"|",$D$2,"|",$F$1,"|", $F$2,"|",$G$1,"|",$G$2,"|",$H$1,"|",$H$2),'DATA MART_'!$B$2:$Q$985098,16,0) ->  | S50: =VLOOKUP(CONCATENATE($C50,"|",$C$2, "|", S$5,"|",$D$2,"|",$F$1,"|", $F$2,"|",$G$1,"|",$G$2,"|",$H$1,"|",$H$2),'DATA MART_'!$B$2:$Q$985098,16,0) ->  | T50: =VLOOKUP(CONCATENATE($C50,"|",$C$2, "|", T$5,"|",$D$2,"|",$F$1,"|", $F$2,"|",$G$1,"|",$G$2,"|",$H$1,"|",$H$2),'DATA MART_'!$B$2:$Q$985098,16,0) ->  | U50: =VLOOKUP(CONCATENATE($C50,"|",$C$2, "|", U$5,"|",$D$2,"|",$F$1,"|", $F$2,"|",$G$1,"|",$G$2,"|",$H$1,"|",$H$2),'DATA MART_'!$B$2:$Q$985098,16,0) ->  | V50: =VLOOKUP(CONCATENATE($C50,"|",$C$2, "|", V$5,"|",$D$2,"|",$F$1,"|", $F$2,"|",$G$1,"|",$G$2,"|",$H$1,"|",$H$2),'DATA MART_'!$B$2:$Q$985098,16,0) -> 
B51: BANCO POPOLARE - S.C. | C51: IT043 | D51: IT | E51: 1 | F51: =VLOOKUP(CONCATENATE($C51,"|",$C$2, "|", F$5,"|",$D$2,"|",$F$1,"|", $F$2,"|",$G$1,"|",$G$2,"|",$H$1,"|",$H$2),'DATA MART_'!$B$2:$Q$985098,16,0) ->  | G51: =VLOOKUP(CONCATENATE($C51,"|",$C$2, "|", G$5,"|",$D$2,"|",$F$1,"|", $F$2,"|",$G$1,"|",$G$2,"|",$H$1,"|",$H$2),'DATA MART_'!$B$2:$Q$985098,16,0) ->  | H51: =VLOOKUP(CONCATENATE($C51,"|",$C$2, "|", H$5,"|",$D$2,"|",$F$1,"|", $F$2,"|",$G$1,"|",$G$2,"|",$H$1,"|",$H$2),'DATA MART_'!$B$2:$Q$985098,16,0) ->  | I51: =VLOOKUP(CONCATENATE($C51,"|",$C$2, "|", I$5,"|",$D$2,"|",$F$1,"|", $F$2,"|",$G$1,"|",$G$2,"|",$H$1,"|",$H$2),'DATA MART_'!$B$2:$Q$985098,16,0) ->  | J51: =VLOOKUP(CONCATENATE($C51,"|",$C$2, "|", J$5,"|",$D$2,"|",$F$1,"|", $F$2,"|",$G$1,"|",$G$2,"|",$H$1,"|",$H$2),'DATA MART_'!$B$2:$Q$985098,16,0) ->  | K51: =VLOOKUP(CONCATENATE($C51,"|",$C$2, "|", K$5,"|",$D$2,"|",$F$1,"|", $F$2,"|",$G$1,"|",$G$2,"|",$H$1,"|",$H$2),'DATA MART_'!$B$2:$Q$985098,16,0) ->  | L51: =VLOOKUP(CONCATENATE($C51,"|",$C$2, "|", L$5,"|",$D$2,"|",$F$1,"|", $F$2,"|",$G$1,"|",$G$2,"|",$H$1,"|",$H$2),'DATA MART_'!$B$2:$Q$985098,16,0) ->  | M51: =VLOOKUP(CONCATENATE($C51,"|",$C$2, "|", M$5,"|",$D$2,"|",$F$1,"|", $F$2,"|",$G$1,"|",$G$2,"|",$H$1,"|",$H$2),'DATA MART_'!$B$2:$Q$985098,16,0) ->  | N51: =VLOOKUP(CONCATENATE($C51,"|",$C$2, "|", N$5,"|",$D$2,"|",$F$1,"|", $F$2,"|",$G$1,"|",$G$2,"|",$H$1,"|",$H$2),'DATA MART_'!$B$2:$Q$985098,16,0) ->  | O51: =VLOOKUP(CONCATENATE($C51,"|",$C$2, "|", O$5,"|",$D$2,"|",$F$1,"|", $F$2,"|",$G$1,"|",$G$2,"|",$H$1,"|",$H$2),'DATA MART_'!$B$2:$Q$985098,16,0) ->  | P51: =VLOOKUP(CONCATENATE($C51,"|",$C$2, "|", P$5,"|",$D$2,"|",$F$1,"|", $F$2,"|",$G$1,"|",$G$2,"|",$H$1,"|",$H$2),'DATA MART_'!$B$2:$Q$985098,16,0) ->  | Q51: =VLOOKUP(CONCATENATE($C51,"|",$C$2, "|", Q$5,"|",$D$2,"|",$F$1,"|", $F$2,"|",$G$1,"|",$G$2,"|",$H$1,"|",$H$2),'DATA MART_'!$B$2:$Q$985098,16,0) ->  | R51: =VLOOKUP(CONCATENATE($C51,"|",$C$2, "|", R$5,"|",$D$2,"|",$F$1,"|", $F$2,"|",$G$1,"|",$G$2,"|",$H$1,"|",$H$2),'DATA MART_'!$B$2:$Q$985098,16,0) ->  | S51: =VLOOKUP(CONCATENATE($C51,"|",$C$2, "|", S$5,"|",$D$2,"|",$F$1,"|", $F$2,"|",$G$1,"|",$G$2,"|",$H$1,"|",$H$2),'DATA MART_'!$B$2:$Q$985098,16,0) ->  | T51: =VLOOKUP(CONCATENATE($C51,"|",$C$2, "|", T$5,"|",$D$2,"|",$F$1,"|", $F$2,"|",$G$1,"|",$G$2,"|",$H$1,"|",$H$2),'DATA MART_'!$B$2:$Q$985098,16,0) ->  | U51: =VLOOKUP(CONCATENATE($C51,"|",$C$2, "|", U$5,"|",$D$2,"|",$F$1,"|", $F$2,"|",$G$1,"|",$G$2,"|",$H$1,"|",$H$2),'DATA MART_'!$B$2:$Q$985098,16,0) ->  | V51: =VLOOKUP(CONCATENATE($C51,"|",$C$2, "|", V$5,"|",$D$2,"|",$F$1,"|", $F$2,"|",$G$1,"|",$G$2,"|",$H$1,"|",$H$2),'DATA MART_'!$B$2:$Q$985098,16,0) -> 
B52: UNIONE DI BANCHE ITALIANE SCPA (UBI BANCA) | C52: IT044 | D52: IT | E52: 1 | F52: =VLOOKUP(CONCATENATE($C52,"|",$C$2, "|", F$5,"|",$D$2,"|",$F$1,"|", $F$2,"|",$G$1,"|",$G$2,"|",$H$1,"|",$H$2),'DATA MART_'!$B$2:$Q$985098,16,0) ->  | G52: =VLOOKUP(CONCATENATE($C52,"|",$C$2, "|", G$5,"|",$D$2,"|",$F$1,"|", $F$2,"|",$G$1,"|",$G$2,"|",$H$1,"|",$H$2),'DATA MART_'!$B$2:$Q$985098,16,0) ->  | H52: =VLOOKUP(CONCATENATE($C52,"|",$C$2, "|", H$5,"|",$D$2,"|",$F$1,"|", $F$2,"|",$G$1,"|",$G$2,"|",$H$1,"|",$H$2),'DATA MART_'!$B$2:$Q$985098,16,0) ->  | I52: =VLOOKUP(CONCATENATE($C52,"|",$C$2, "|", I$5,"|",$D$2,"|",$F$1,"|", $F$2,"|",$G$1,"|",$G$2,"|",$H$1,"|",$H$2),'DATA MART_'!$B$2:$Q$985098,16,0) ->  | J52: =VLOOKUP(CONCATENATE($C52,"|",$C$2, "|", J$5,"|",$D$2,"|",$F$1,"|", $F$2,"|",$G$1,"|",$G$2,"|",$H$1,"|",$H$2),'DATA MART_'!$B$2:$Q$985098,16,0) ->  | K52: =VLOOKUP(CONCATENATE($C52,"|",$C$2, "|", K$5,"|",$D$2,"|",$F$1,"|", $F$2,"|",$G$1,"|",$G$2,"|",$H$1,"|",$H$2),'DATA MART_'!$B$2:$Q$985098,16,0) ->  | L52: =VLOOKUP(CONCATENATE($C52,"|",$C$2, "|", L$5,"|",$D$2,"|",$F$1,"|", $F$2,"|",$G$1,"|",$G$2,"|",$H$1,"|",$H$2),'DATA MART_'!$B$2:$Q$985098,16,0) ->  | M52: =VLOOKUP(CONCATENATE($C52,"|",$C$2, "|", M$5,"|",$D$2,"|",$F$1,"|", $F$2,"|",$G$1,"|",$G$2,"|",$H$1,"|",$H$2),'DATA MART_'!$B$2:$Q$985098,16,0) ->  | N52: =VLOOKUP(CONCATENATE($C52,"|",$C$2, "|", N$5,"|",$D$2,"|",$F$1,"|", $F$2,"|",$G$1,"|",$G$2,"|",$H$1,"|",$H$2),'DATA MART_'!$B$2:$Q$985098,16,0) ->  | O52: =VLOOKUP(CONCATENATE($C52,"|",$C$2, "|", O$5,"|",$D$2,"|",$F$1,"|", $F$2,"|",$G$1,"|",$G$2,"|",$H$1,"|",$H$2),'DATA MART_'!$B$2:$Q$985098,16,0) ->  | P52: =VLOOKUP(CONCATENATE($C52,"|",$C$2, "|", P$5,"|",$D$2,"|",$F$1,"|", $F$2,"|",$G$1,"|",$G$2,"|",$H$1,"|",$H$2),'DATA MART_'!$B$2:$Q$985098,16,0) ->  | Q52: =VLOOKUP(CONCATENATE($C52,"|",$C$2, "|", Q$5,"|",$D$2,"|",$F$1,"|", $F$2,"|",$G$1,"|",$G$2,"|",$H$1,"|",$H$2),'DATA MART_'!$B$2:$Q$985098,16,0) ->  | R52: =VLOOKUP(CONCATENATE($C52,"|",$C$2, "|", R$5,"|",$D$2,"|",$F$1,"|", $F$2,"|",$G$1,"|",$G$2,"|",$H$1,"|",$H$2),'DATA MART_'!$B$2:$Q$985098,16,0) ->  | S52: =VLOOKUP(CONCATENATE($C52,"|",$C$2, "|", S$5,"|",$D$2,"|",$F$1,"|", $F$2,"|",$G$1,"|",$G$2,"|",$H$1,"|",$H$2),'DATA MART_'!$B$2:$Q$985098,16,0) ->  | T52: =VLOOKUP(CONCATENATE($C52,"|",$C$2, "|", T$5,"|",$D$2,"|",$F$1,"|", $F$2,"|",$G$1,"|",$G$2,"|",$H$1,"|",$H$2),'DATA MART_'!$B$2:$Q$985098,16,0) ->  | U52: =VLOOKUP(CONCATENATE($C52,"|",$C$2, "|", U$5,"|",$D$2,"|",$F$1,"|", $F$2,"|",$G$1,"|",$G$2,"|",$H$1,"|",$H$2),'DATA MART_'!$B$2:$Q$985098,16,0) ->  | V52: =VLOOKUP(CONCATENATE($C52,"|",$C$2, "|", V$5,"|",$D$2,"|",$F$1,"|", $F$2,"|",$G$1,"|",$G$2,"|",$H$1,"|",$H$2),'DATA MART_'!$B$2:$Q$985098,16,0) -> 
B53: BANQUE ET CAISSE D'EPARGNE DE L'ETAT | C53: LU045 | D53: LU | E53: 1 | F53: =VLOOKUP(CONCATENATE($C53,"|",$C$2, "|", F$5,"|",$D$2,"|",$F$1,"|", $F$2,"|",$G$1,"|",$G$2,"|",$H$1,"|",$H$2),'DATA MART_'!$B$2:$Q$985098,16,0) ->  | G53: =VLOOKUP(CONCATENATE($C53,"|",$C$2, "|", G$5,"|",$D$2,"|",$F$1,"|", $F$2,"|",$G$1,"|",$G$2,"|",$H$1,"|",$H$2),'DATA MART_'!$B$2:$Q$985098,16,0) ->  | H53: =VLOOKUP(CONCATENATE($C53,"|",$C$2, "|", H$5,"|",$D$2,"|",$F$1,"|", $F$2,"|",$G$1,"|",$G$2,"|",$H$1,"|",$H$2),'DATA MART_'!$B$2:$Q$985098,16,0) ->  | I53: =VLOOKUP(CONCATENATE($C53,"|",$C$2, "|", I$5,"|",$D$2,"|",$F$1,"|", $F$2,"|",$G$1,"|",$G$2,"|",$H$1,"|",$H$2),'DATA MART_'!$B$2:$Q$985098,16,0) ->  | J53: =VLOOKUP(CONCATENATE($C53,"|",$C$2, "|", J$5,"|",$D$2,"|",$F$1,"|", $F$2,"|",$G$1,"|",$G$2,"|",$H$1,"|",$H$2),'DATA MART_'!$B$2:$Q$985098,16,0) ->  | K53: =VLOOKUP(CONCATENATE($C53,"|",$C$2, "|", K$5,"|",$D$2,"|",$F$1,"|", $F$2,"|",$G$1,"|",$G$2,"|",$H$1,"|",$H$2),'DATA MART_'!$B$2:$Q$985098,16,0) ->  | L53: =VLOOKUP(CONCATENATE($C53,"|",$C$2, "|", L$5,"|",$D$2,"|",$F$1,"|", $F$2,"|",$G$1,"|",$G$2,"|",$H$1,"|",$H$2),'DATA MART_'!$B$2:$Q$985098,16,0) ->  | M53: =VLOOKUP(CONCATENATE($C53,"|",$C$2, "|", M$5,"|",$D$2,"|",$F$1,"|", $F$2,"|",$G$1,"|",$G$2,"|",$H$1,"|",$H$2),'DATA MART_'!$B$2:$Q$985098,16,0) ->  | N53: =VLOOKUP(CONCATENATE($C53,"|",$C$2, "|", N$5,"|",$D$2,"|",$F$1,"|", $F$2,"|",$G$1,"|",$G$2,"|",$H$1,"|",$H$2),'DATA MART_'!$B$2:$Q$985098,16,0) ->  | O53: =VLOOKUP(CONCATENATE($C53,"|",$C$2, "|", O$5,"|",$D$2,"|",$F$1,"|", $F$2,"|",$G$1,"|",$G$2,"|",$H$1,"|",$H$2),'DATA MART_'!$B$2:$Q$985098,16,0) ->  | P53: =VLOOKUP(CONCATENATE($C53,"|",$C$2, "|", P$5,"|",$D$2,"|",$F$1,"|", $F$2,"|",$G$1,"|",$G$2,"|",$H$1,"|",$H$2),'DATA MART_'!$B$2:$Q$985098,16,0) ->  | Q53: =VLOOKUP(CONCATENATE($C53,"|",$C$2, "|", Q$5,"|",$D$2,"|",$F$1,"|", $F$2,"|",$G$1,"|",$G$2,"|",$H$1,"|",$H$2),'DATA MART_'!$B$2:$Q$985098,16,0) ->  | R53: =VLOOKUP(CONCATENATE($C53,"|",$C$2, "|", R$5,"|",$D$2,"|",$F$1,"|", $F$2,"|",$G$1,"|",$G$2,"|",$H$1,"|",$H$2),'DATA MART_'!$B$2:$Q$985098,16,0) ->  | S53: =VLOOKUP(CONCATENATE($C53,"|",$C$2, "|", S$5,"|",$D$2,"|",$F$1,"|", $F$2,"|",$G$1,"|",$G$2,"|",$H$1,"|",$H$2),'DATA MART_'!$B$2:$Q$985098,16,0) ->  | T53: =VLOOKUP(CONCATENATE($C53,"|",$C$2, "|", T$5,"|",$D$2,"|",$F$1,"|", $F$2,"|",$G$1,"|",$G$2,"|",$H$1,"|",$H$2),'DATA MART_'!$B$2:$Q$985098,16,0) ->  | U53: =VLOOKUP(CONCATENATE($C53,"|",$C$2, "|", U$5,"|",$D$2,"|",$F$1,"|", $F$2,"|",$G$1,"|",$G$2,"|",$H$1,"|",$H$2),'DATA MART_'!$B$2:$Q$985098,16,0) ->  | V53: =VLOOKUP(CONCATENATE($C53,"|",$C$2, "|", V$5,"|",$D$2,"|",$F$1,"|", $F$2,"|",$G$1,"|",$G$2,"|",$H$1,"|",$H$2),'DATA MART_'!$B$2:$Q$985098,16,0) -> 
B54: BANK OF VALLETTA (BOV) | C54: MT046 | D54: MT | E54: Not Applicable² | F54: =VLOOKUP(CONCATENATE($C54,"|",$C$2, "|", F$5,"|",$D$2,"|",$F$1,"|", $F$2,"|",$G$1,"|",$G$2,"|",$H$1,"|",$H$2),'DATA MART_'!$B$2:$Q$985098,16,0) ->  | G54: =VLOOKUP(CONCATENATE($C54,"|",$C$2, "|", G$5,"|",$D$2,"|",$F$1,"|", $F$2,"|",$G$1,"|",$G$2,"|",$H$1,"|",$H$2),'DATA MART_'!$B$2:$Q$985098,16,0) ->  | H54: =VLOOKUP(CONCATENATE($C54,"|",$C$2, "|", H$5,"|",$D$2,"|",$F$1,"|", $F$2,"|",$G$1,"|",$G$2,"|",$H$1,"|",$H$2),'DATA MART_'!$B$2:$Q$985098,16,0) ->  | I54: =VLOOKUP(CONCATENATE($C54,"|",$C$2, "|", I$5,"|",$D$2,"|",$F$1,"|", $F$2,"|",$G$1,"|",$G$2,"|",$H$1,"|",$H$2),'DATA MART_'!$B$2:$Q$985098,16,0) ->  | J54: =VLOOKUP(CONCATENATE($C54,"|",$C$2, "|", J$5,"|",$D$2,"|",$F$1,"|", $F$2,"|",$G$1,"|",$G$2,"|",$H$1,"|",$H$2),'DATA MART_'!$B$2:$Q$985098,16,0) ->  | K54: =VLOOKUP(CONCATENATE($C54,"|",$C$2, "|", K$5,"|",$D$2,"|",$F$1,"|", $F$2,"|",$G$1,"|",$G$2,"|",$H$1,"|",$H$2),'DATA MART_'!$B$2:$Q$985098,16,0) ->  | L54: =VLOOKUP(CONCATENATE($C54,"|",$C$2, "|", L$5,"|",$D$2,"|",$F$1,"|", $F$2,"|",$G$1,"|",$G$2,"|",$H$1,"|",$H$2),'DATA MART_'!$B$2:$Q$985098,16,0) ->  | M54: =VLOOKUP(CONCATENATE($C54,"|",$C$2, "|", M$5,"|",$D$2,"|",$F$1,"|", $F$2,"|",$G$1,"|",$G$2,"|",$H$1,"|",$H$2),'DATA MART_'!$B$2:$Q$985098,16,0) ->  | N54: =VLOOKUP(CONCATENATE($C54,"|",$C$2, "|", N$5,"|",$D$2,"|",$F$1,"|", $F$2,"|",$G$1,"|",$G$2,"|",$H$1,"|",$H$2),'DATA MART_'!$B$2:$Q$985098,16,0) ->  | O54: =VLOOKUP(CONCATENATE($C54,"|",$C$2, "|", O$5,"|",$D$2,"|",$F$1,"|", $F$2,"|",$G$1,"|",$G$2,"|",$H$1,"|",$H$2),'DATA MART_'!$B$2:$Q$985098,16,0) ->  | P54: =VLOOKUP(CONCATENATE($C54,"|",$C$2, "|", P$5,"|",$D$2,"|",$F$1,"|", $F$2,"|",$G$1,"|",$G$2,"|",$H$1,"|",$H$2),'DATA MART_'!$B$2:$Q$985098,16,0) ->  | Q54: =VLOOKUP(CONCATENATE($C54,"|",$C$2, "|", Q$5,"|",$D$2,"|",$F$1,"|", $F$2,"|",$G$1,"|",$G$2,"|",$H$1,"|",$H$2),'DATA MART_'!$B$2:$Q$985098,16,0) ->  | R54: =VLOOKUP(CONCATENATE($C54,"|",$C$2, "|", R$5,"|",$D$2,"|",$F$1,"|", $F$2,"|",$G$1,"|",$G$2,"|",$H$1,"|",$H$2),'DATA MART_'!$B$2:$Q$985098,16,0) ->  | S54: =VLOOKUP(CONCATENATE($C54,"|",$C$2, "|", S$5,"|",$D$2,"|",$F$1,"|", $F$2,"|",$G$1,"|",$G$2,"|",$H$1,"|",$H$2),'DATA MART_'!$B$2:$Q$985098,16,0) ->  | T54: =VLOOKUP(CONCATENATE($C54,"|",$C$2, "|", T$5,"|",$D$2,"|",$F$1,"|", $F$2,"|",$G$1,"|",$G$2,"|",$H$1,"|",$H$2),'DATA MART_'!$B$2:$Q$985098,16,0) ->  | U54: =VLOOKUP(CONCATENATE($C54,"|",$C$2, "|", U$5,"|",$D$2,"|",$F$1,"|", $F$2,"|",$G$1,"|",$G$2,"|",$H$1,"|",$H$2),'DATA MART_'!$B$2:$Q$985098,16,0) ->  | V54: =VLOOKUP(CONCATENATE($C54,"|",$C$2, "|", V$5,"|",$D$2,"|",$F$1,"|", $F$2,"|",$G$1,"|",$G$2,"|",$H$1,"|",$H$2),'DATA MART_'!$B$2:$Q$985098,16,0) -> 
B55: ING BANK NV | C55: NL047 | D55: NL | E55: 2 | F55: =VLOOKUP(CONCATENATE($C55,"|",$C$2, "|", F$5,"|",$D$2,"|",$F$1,"|", $F$2,"|",$G$1,"|",$G$2,"|",$H$1,"|",$H$2),'DATA MART_'!$B$2:$Q$985098,16,0) ->  | G55: =VLOOKUP(CONCATENATE($C55,"|",$C$2, "|", G$5,"|",$D$2,"|",$F$1,"|", $F$2,"|",$G$1,"|",$G$2,"|",$H$1,"|",$H$2),'DATA MART_'!$B$2:$Q$985098,16,0) ->  | H55: =VLOOKUP(CONCATENATE($C55,"|",$C$2, "|", H$5,"|",$D$2,"|",$F$1,"|", $F$2,"|",$G$1,"|",$G$2,"|",$H$1,"|",$H$2),'DATA MART_'!$B$2:$Q$985098,16,0) ->  | I55: =VLOOKUP(CONCATENATE($C55,"|",$C$2, "|", I$5,"|",$D$2,"|",$F$1,"|", $F$2,"|",$G$1,"|",$G$2,"|",$H$1,"|",$H$2),'DATA MART_'!$B$2:$Q$985098,16,0) ->  | J55: =VLOOKUP(CONCATENATE($C55,"|",$C$2, "|", J$5,"|",$D$2,"|",$F$1,"|", $F$2,"|",$G$1,"|",$G$2,"|",$H$1,"|",$H$2),'DATA MART_'!$B$2:$Q$985098,16,0) ->  | K55: =VLOOKUP(CONCATENATE($C55,"|",$C$2, "|", K$5,"|",$D$2,"|",$F$1,"|", $F$2,"|",$G$1,"|",$G$2,"|",$H$1,"|",$H$2),'DATA MART_'!$B$2:$Q$985098,16,0) ->  | L55: =VLOOKUP(CONCATENATE($C55,"|",$C$2, "|", L$5,"|",$D$2,"|",$F$1,"|", $F$2,"|",$G$1,"|",$G$2,"|",$H$1,"|",$H$2),'DATA MART_'!$B$2:$Q$985098,16,0) ->  | M55: =VLOOKUP(CONCATENATE($C55,"|",$C$2, "|", M$5,"|",$D$2,"|",$F$1,"|", $F$2,"|",$G$1,"|",$G$2,"|",$H$1,"|",$H$2),'DATA MART_'!$B$2:$Q$985098,16,0) ->  | N55: =VLOOKUP(CONCATENATE($C55,"|",$C$2, "|", N$5,"|",$D$2,"|",$F$1,"|", $F$2,"|",$G$1,"|",$G$2,"|",$H$1,"|",$H$2),'DATA MART_'!$B$2:$Q$985098,16,0) ->  | O55: =VLOOKUP(CONCATENATE($C55,"|",$C$2, "|", O$5,"|",$D$2,"|",$F$1,"|", $F$2,"|",$G$1,"|",$G$2,"|",$H$1,"|",$H$2),'DATA MART_'!$B$2:$Q$985098,16,0) ->  | P55: =VLOOKUP(CONCATENATE($C55,"|",$C$2, "|", P$5,"|",$D$2,"|",$F$1,"|", $F$2,"|",$G$1,"|",$G$2,"|",$H$1,"|",$H$2),'DATA MART_'!$B$2:$Q$985098,16,0) ->  | Q55: =VLOOKUP(CONCATENATE($C55,"|",$C$2, "|", Q$5,"|",$D$2,"|",$F$1,"|", $F$2,"|",$G$1,"|",$G$2,"|",$H$1,"|",$H$2),'DATA MART_'!$B$2:$Q$985098,16,0) ->  | R55: =VLOOKUP(CONCATENATE($C55,"|",$C$2, "|", R$5,"|",$D$2,"|",$F$1,"|", $F$2,"|",$G$1,"|",$G$2,"|",$H$1,"|",$H$2),'DATA MART_'!$B$2:$Q$985098,16,0) ->  | S55: =VLOOKUP(CONCATENATE($C55,"|",$C$2, "|", S$5,"|",$D$2,"|",$F$1,"|", $F$2,"|",$G$1,"|",$G$2,"|",$H$1,"|",$H$2),'DATA MART_'!$B$2:$Q$985098,16,0) ->  | T55: =VLOOKUP(CONCATENATE($C55,"|",$C$2, "|", T$5,"|",$D$2,"|",$F$1,"|", $F$2,"|",$G$1,"|",$G$2,"|",$H$1,"|",$H$2),'DATA MART_'!$B$2:$Q$985098,16,0) ->  | U55: =VLOOKUP(CONCATENATE($C55,"|",$C$2, "|", U$5,"|",$D$2,"|",$F$1,"|", $F$2,"|",$G$1,"|",$G$2,"|",$H$1,"|",$H$2),'DATA MART_'!$B$2:$Q$985098,16,0) ->  | V55: =VLOOKUP(CONCATENATE($C55,"|",$C$2, "|", V$5,"|",$D$2,"|",$F$1,"|", $F$2,"|",$G$1,"|",$G$2,"|",$H$1,"|",$H$2),'DATA MART_'!$B$2:$Q$985098,16,0) -> 
B56: RABOBANK NEDERLAND | C56: NL048 | D56: NL | E56: 2 | F56: =VLOOKUP(CONCATENATE($C56,"|",$C$2, "|", F$5,"|",$D$2,"|",$F$1,"|", $F$2,"|",$G$1,"|",$G$2,"|",$H$1,"|",$H$2),'DATA MART_'!$B$2:$Q$985098,16,0) ->  | G56: =VLOOKUP(CONCATENATE($C56,"|",$C$2, "|", G$5,"|",$D$2,"|",$F$1,"|", $F$2,"|",$G$1,"|",$G$2,"|",$H$1,"|",$H$2),'DATA MART_'!$B$2:$Q$985098,16,0) ->  | H56: =VLOOKUP(CONCATENATE($C56,"|",$C$2, "|", H$5,"|",$D$2,"|",$F$1,"|", $F$2,"|",$G$1,"|",$G$2,"|",$H$1,"|",$H$2),'DATA MART_'!$B$2:$Q$985098,16,0) ->  | I56: =VLOOKUP(CONCATENATE($C56,"|",$C$2, "|", I$5,"|",$D$2,"|",$F$1,"|", $F$2,"|",$G$1,"|",$G$2,"|",$H$1,"|",$H$2),'DATA MART_'!$B$2:$Q$985098,16,0) ->  | J56: =VLOOKUP(CONCATENATE($C56,"|",$C$2, "|", J$5,"|",$D$2,"|",$F$1,"|", $F$2,"|",$G$1,"|",$G$2,"|",$H$1,"|",$H$2),'DATA MART_'!$B$2:$Q$985098,16,0) ->  | K56: =VLOOKUP(CONCATENATE($C56,"|",$C$2, "|", K$5,"|",$D$2,"|",$F$1,"|", $F$2,"|",$G$1,"|",$G$2,"|",$H$1,"|",$H$2),'DATA MART_'!$B$2:$Q$985098,16,0) ->  | L56: =VLOOKUP(CONCATENATE($C56,"|",$C$2, "|", L$5,"|",$D$2,"|",$F$1,"|", $F$2,"|",$G$1,"|",$G$2,"|",$H$1,"|",$H$2),'DATA MART_'!$B$2:$Q$985098,16,0) ->  | M56: =VLOOKUP(CONCATENATE($C56,"|",$C$2, "|", M$5,"|",$D$2,"|",$F$1,"|", $F$2,"|",$G$1,"|",$G$2,"|",$H$1,"|",$H$2),'DATA MART_'!$B$2:$Q$985098,16,0) ->  | N56: =VLOOKUP(CONCATENATE($C56,"|",$C$2, "|", N$5,"|",$D$2,"|",$F$1,"|", $F$2,"|",$G$1,"|",$G$2,"|",$H$1,"|",$H$2),'DATA MART_'!$B$2:$Q$985098,16,0) ->  | O56: =VLOOKUP(CONCATENATE($C56,"|",$C$2, "|", O$5,"|",$D$2,"|",$F$1,"|", $F$2,"|",$G$1,"|",$G$2,"|",$H$1,"|",$H$2),'DATA MART_'!$B$2:$Q$985098,16,0) ->  | P56: =VLOOKUP(CONCATENATE($C56,"|",$C$2, "|", P$5,"|",$D$2,"|",$F$1,"|", $F$2,"|",$G$1,"|",$G$2,"|",$H$1,"|",$H$2),'DATA MART_'!$B$2:$Q$985098,16,0) ->  | Q56: =VLOOKUP(CONCATENATE($C56,"|",$C$2, "|", Q$5,"|",$D$2,"|",$F$1,"|", $F$2,"|",$G$1,"|",$G$2,"|",$H$1,"|",$H$2),'DATA MART_'!$B$2:$Q$985098,16,0) ->  | R56: =VLOOKUP(CONCATENATE($C56,"|",$C$2, "|", R$5,"|",$D$2,"|",$F$1,"|", $F$2,"|",$G$1,"|",$G$2,"|",$H$1,"|",$H$2),'DATA MART_'!$B$2:$Q$985098,16,0) ->  | S56: =VLOOKUP(CONCATENATE($C56,"|",$C$2, "|", S$5,"|",$D$2,"|",$F$1,"|", $F$2,"|",$G$1,"|",$G$2,"|",$H$1,"|",$H$2),'DATA MART_'!$B$2:$Q$985098,16,0) ->  | T56: =VLOOKUP(CONCATENATE($C56,"|",$C$2, "|", T$5,"|",$D$2,"|",$F$1,"|", $F$2,"|",$G$1,"|",$G$2,"|",$H$1,"|",$H$2),'DATA MART_'!$B$2:$Q$985098,16,0) ->  | U56: =VLOOKUP(CONCATENATE($C56,"|",$C$2, "|", U$5,"|",$D$2,"|",$F$1,"|", $F$2,"|",$G$1,"|",$G$2,"|",$H$1,"|",$H$2),'DATA MART_'!$B$2:$Q$985098,16,0) ->  | V56: =VLOOKUP(CONCATENATE($C56,"|",$C$2, "|", V$5,"|",$D$2,"|",$F$1,"|", $F$2,"|",$G$1,"|",$G$2,"|",$H$1,"|",$H$2),'DATA MART_'!$B$2:$Q$985098,16,0) -> 
B57: ABN AMRO BANK NV | C57: NL049 | D57: NL | E57: 2 | F57: =VLOOKUP(CONCATENATE($C57,"|",$C$2, "|", F$5,"|",$D$2,"|",$F$1,"|", $F$2,"|",$G$1,"|",$G$2,"|",$H$1,"|",$H$2),'DATA MART_'!$B$2:$Q$985098,16,0) ->  | G57: =VLOOKUP(CONCATENATE($C57,"|",$C$2, "|", G$5,"|",$D$2,"|",$F$1,"|", $F$2,"|",$G$1,"|",$G$2,"|",$H$1,"|",$H$2),'DATA MART_'!$B$2:$Q$985098,16,0) ->  | H57: =VLOOKUP(CONCATENATE($C57,"|",$C$2, "|", H$5,"|",$D$2,"|",$F$1,"|", $F$2,"|",$G$1,"|",$G$2,"|",$H$1,"|",$H$2),'DATA MART_'!$B$2:$Q$985098,16,0) ->  | I57: =VLOOKUP(CONCATENATE($C57,"|",$C$2, "|", I$5,"|",$D$2,"|",$F$1,"|", $F$2,"|",$G$1,"|",$G$2,"|",$H$1,"|",$H$2),'DATA MART_'!$B$2:$Q$985098,16,0) ->  | J57: =VLOOKUP(CONCATENATE($C57,"|",$C$2, "|", J$5,"|",$D$2,"|",$F$1,"|", $F$2,"|",$G$1,"|",$G$2,"|",$H$1,"|",$H$2),'DATA MART_'!$B$2:$Q$985098,16,0) ->  | K57: =VLOOKUP(CONCATENATE($C57,"|",$C$2, "|", K$5,"|",$D$2,"|",$F$1,"|", $F$2,"|",$G$1,"|",$G$2,"|",$H$1,"|",$H$2),'DATA MART_'!$B$2:$Q$985098,16,0) ->  | L57: =VLOOKUP(CONCATENATE($C57,"|",$C$2, "|", L$5,"|",$D$2,"|",$F$1,"|", $F$2,"|",$G$1,"|",$G$2,"|",$H$1,"|",$H$2),'DATA MART_'!$B$2:$Q$985098,16,0) ->  | M57: =VLOOKUP(CONCATENATE($C57,"|",$C$2, "|", M$5,"|",$D$2,"|",$F$1,"|", $F$2,"|",$G$1,"|",$G$2,"|",$H$1,"|",$H$2),'DATA MART_'!$B$2:$Q$985098,16,0) ->  | N57: =VLOOKUP(CONCATENATE($C57,"|",$C$2, "|", N$5,"|",$D$2,"|",$F$1,"|", $F$2,"|",$G$1,"|",$G$2,"|",$H$1,"|",$H$2),'DATA MART_'!$B$2:$Q$985098,16,0) ->  | O57: =VLOOKUP(CONCATENATE($C57,"|",$C$2, "|", O$5,"|",$D$2,"|",$F$1,"|", $F$2,"|",$G$1,"|",$G$2,"|",$H$1,"|",$H$2),'DATA MART_'!$B$2:$Q$985098,16,0) ->  | P57: =VLOOKUP(CONCATENATE($C57,"|",$C$2, "|", P$5,"|",$D$2,"|",$F$1,"|", $F$2,"|",$G$1,"|",$G$2,"|",$H$1,"|",$H$2),'DATA MART_'!$B$2:$Q$985098,16,0) ->  | Q57: =VLOOKUP(CONCATENATE($C57,"|",$C$2, "|", Q$5,"|",$D$2,"|",$F$1,"|", $F$2,"|",$G$1,"|",$G$2,"|",$H$1,"|",$H$2),'DATA MART_'!$B$2:$Q$985098,16,0) ->  | R57: =VLOOKUP(CONCATENATE($C57,"|",$C$2, "|", R$5,"|",$D$2,"|",$F$1,"|", $F$2,"|",$G$1,"|",$G$2,"|",$H$1,"|",$H$2),'DATA MART_'!$B$2:$Q$985098,16,0) ->  | S57: =VLOOKUP(CONCATENATE($C57,"|",$C$2, "|", S$5,"|",$D$2,"|",$F$1,"|", $F$2,"|",$G$1,"|",$G$2,"|",$H$1,"|",$H$2),'DATA MART_'!$B$2:$Q$985098,16,0) ->  | T57: =VLOOKUP(CONCATENATE($C57,"|",$C$2, "|", T$5,"|",$D$2,"|",$F$1,"|", $F$2,"|",$G$1,"|",$G$2,"|",$H$1,"|",$H$2),'DATA MART_'!$B$2:$Q$985098,16,0) ->  | U57: =VLOOKUP(CONCATENATE($C57,"|",$C$2, "|", U$5,"|",$D$2,"|",$F$1,"|", $F$2,"|",$G$1,"|",$G$2,"|",$H$1,"|",$H$2),'DATA MART_'!$B$2:$Q$985098,16,0) ->  | V57: =VLOOKUP(CONCATENATE($C57,"|",$C$2, "|", V$5,"|",$D$2,"|",$F$1,"|", $F$2,"|",$G$1,"|",$G$2,"|",$H$1,"|",$H$2),'DATA MART_'!$B$2:$Q$985098,16,0) -> 
B58: SNS BANK NV | C58: NL050 | D58: NL | E58: 1 | F58: =VLOOKUP(CONCATENATE($C58,"|",$C$2, "|", F$5,"|",$D$2,"|",$F$1,"|", $F$2,"|",$G$1,"|",$G$2,"|",$H$1,"|",$H$2),'DATA MART_'!$B$2:$Q$985098,16,0) ->  | G58: =VLOOKUP(CONCATENATE($C58,"|",$C$2, "|", G$5,"|",$D$2,"|",$F$1,"|", $F$2,"|",$G$1,"|",$G$2,"|",$H$1,"|",$H$2),'DATA MART_'!$B$2:$Q$985098,16,0) ->  | H58: =VLOOKUP(CONCATENATE($C58,"|",$C$2, "|", H$5,"|",$D$2,"|",$F$1,"|", $F$2,"|",$G$1,"|",$G$2,"|",$H$1,"|",$H$2),'DATA MART_'!$B$2:$Q$985098,16,0) ->  | I58: =VLOOKUP(CONCATENATE($C58,"|",$C$2, "|", I$5,"|",$D$2,"|",$F$1,"|", $F$2,"|",$G$1,"|",$G$2,"|",$H$1,"|",$H$2),'DATA MART_'!$B$2:$Q$985098,16,0) ->  | J58: =VLOOKUP(CONCATENATE($C58,"|",$C$2, "|", J$5,"|",$D$2,"|",$F$1,"|", $F$2,"|",$G$1,"|",$G$2,"|",$H$1,"|",$H$2),'DATA MART_'!$B$2:$Q$985098,16,0) ->  | K58: =VLOOKUP(CONCATENATE($C58,"|",$C$2, "|", K$5,"|",$D$2,"|",$F$1,"|", $F$2,"|",$G$1,"|",$G$2,"|",$H$1,"|",$H$2),'DATA MART_'!$B$2:$Q$985098,16,0) ->  | L58: =VLOOKUP(CONCATENATE($C58,"|",$C$2, "|", L$5,"|",$D$2,"|",$F$1,"|", $F$2,"|",$G$1,"|",$G$2,"|",$H$1,"|",$H$2),'DATA MART_'!$B$2:$Q$985098,16,0) ->  | M58: =VLOOKUP(CONCATENATE($C58,"|",$C$2, "|", M$5,"|",$D$2,"|",$F$1,"|", $F$2,"|",$G$1,"|",$G$2,"|",$H$1,"|",$H$2),'DATA MART_'!$B$2:$Q$985098,16,0) ->  | N58: =VLOOKUP(CONCATENATE($C58,"|",$C$2, "|", N$5,"|",$D$2,"|",$F$1,"|", $F$2,"|",$G$1,"|",$G$2,"|",$H$1,"|",$H$2),'DATA MART_'!$B$2:$Q$985098,16,0) ->  | O58: =VLOOKUP(CONCATENATE($C58,"|",$C$2, "|", O$5,"|",$D$2,"|",$F$1,"|", $F$2,"|",$G$1,"|",$G$2,"|",$H$1,"|",$H$2),'DATA MART_'!$B$2:$Q$985098,16,0) ->  | P58: =VLOOKUP(CONCATENATE($C58,"|",$C$2, "|", P$5,"|",$D$2,"|",$F$1,"|", $F$2,"|",$G$1,"|",$G$2,"|",$H$1,"|",$H$2),'DATA MART_'!$B$2:$Q$985098,16,0) ->  | Q58: =VLOOKUP(CONCATENATE($C58,"|",$C$2, "|", Q$5,"|",$D$2,"|",$F$1,"|", $F$2,"|",$G$1,"|",$G$2,"|",$H$1,"|",$H$2),'DATA MART_'!$B$2:$Q$985098,16,0) ->  | R58: =VLOOKUP(CONCATENATE($C58,"|",$C$2, "|", R$5,"|",$D$2,"|",$F$1,"|", $F$2,"|",$G$1,"|",$G$2,"|",$H$1,"|",$H$2),'DATA MART_'!$B$2:$Q$985098,16,0) ->  | S58: =VLOOKUP(CONCATENATE($C58,"|",$C$2, "|", S$5,"|",$D$2,"|",$F$1,"|", $F$2,"|",$G$1,"|",$G$2,"|",$H$1,"|",$H$2),'DATA MART_'!$B$2:$Q$985098,16,0) ->  | T58: =VLOOKUP(CONCATENATE($C58,"|",$C$2, "|", T$5,"|",$D$2,"|",$F$1,"|", $F$2,"|",$G$1,"|",$G$2,"|",$H$1,"|",$H$2),'DATA MART_'!$B$2:$Q$985098,16,0) ->  | U58: =VLOOKUP(CONCATENATE($C58,"|",$C$2, "|", U$5,"|",$D$2,"|",$F$1,"|", $F$2,"|",$G$1,"|",$G$2,"|",$H$1,"|",$H$2),'DATA MART_'!$B$2:$Q$985098,16,0) ->  | V58: =VLOOKUP(CONCATENATE($C58,"|",$C$2, "|", V$5,"|",$D$2,"|",$F$1,"|", $F$2,"|",$G$1,"|",$G$2,"|",$H$1,"|",$H$2),'DATA MART_'!$B$2:$Q$985098,16,0) -> 
B59: DNB Bank ASA | C59: NO051 | D59: NO | E59: 1 | F59: =VLOOKUP(CONCATENATE($C59,"|",$C$2, "|", F$5,"|",$D$2,"|",$F$1,"|", $F$2,"|",$G$1,"|",$G$2,"|",$H$1,"|",$H$2),'DATA MART_'!$B$2:$Q$985098,16,0) ->  | G59: =VLOOKUP(CONCATENATE($C59,"|",$C$2, "|", G$5,"|",$D$2,"|",$F$1,"|", $F$2,"|",$G$1,"|",$G$2,"|",$H$1,"|",$H$2),'DATA MART_'!$B$2:$Q$985098,16,0) ->  | H59: =VLOOKUP(CONCATENATE($C59,"|",$C$2, "|", H$5,"|",$D$2,"|",$F$1,"|", $F$2,"|",$G$1,"|",$G$2,"|",$H$1,"|",$H$2),'DATA MART_'!$B$2:$Q$985098,16,0) ->  | I59: =VLOOKUP(CONCATENATE($C59,"|",$C$2, "|", I$5,"|",$D$2,"|",$F$1,"|", $F$2,"|",$G$1,"|",$G$2,"|",$H$1,"|",$H$2),'DATA MART_'!$B$2:$Q$985098,16,0) ->  | J59: =VLOOKUP(CONCATENATE($C59,"|",$C$2, "|", J$5,"|",$D$2,"|",$F$1,"|", $F$2,"|",$G$1,"|",$G$2,"|",$H$1,"|",$H$2),'DATA MART_'!$B$2:$Q$985098,16,0) ->  | K59: =VLOOKUP(CONCATENATE($C59,"|",$C$2, "|", K$5,"|",$D$2,"|",$F$1,"|", $F$2,"|",$G$1,"|",$G$2,"|",$H$1,"|",$H$2),'DATA MART_'!$B$2:$Q$985098,16,0) ->  | L59: =VLOOKUP(CONCATENATE($C59,"|",$C$2, "|", L$5,"|",$D$2,"|",$F$1,"|", $F$2,"|",$G$1,"|",$G$2,"|",$H$1,"|",$H$2),'DATA MART_'!$B$2:$Q$985098,16,0) ->  | M59: =VLOOKUP(CONCATENATE($C59,"|",$C$2, "|", M$5,"|",$D$2,"|",$F$1,"|", $F$2,"|",$G$1,"|",$G$2,"|",$H$1,"|",$H$2),'DATA MART_'!$B$2:$Q$985098,16,0) ->  | N59: =VLOOKUP(CONCATENATE($C59,"|",$C$2, "|", N$5,"|",$D$2,"|",$F$1,"|", $F$2,"|",$G$1,"|",$G$2,"|",$H$1,"|",$H$2),'DATA MART_'!$B$2:$Q$985098,16,0) ->  | O59: =VLOOKUP(CONCATENATE($C59,"|",$C$2, "|", O$5,"|",$D$2,"|",$F$1,"|", $F$2,"|",$G$1,"|",$G$2,"|",$H$1,"|",$H$2),'DATA MART_'!$B$2:$Q$985098,16,0) ->  | P59: =VLOOKUP(CONCATENATE($C59,"|",$C$2, "|", P$5,"|",$D$2,"|",$F$1,"|", $F$2,"|",$G$1,"|",$G$2,"|",$H$1,"|",$H$2),'DATA MART_'!$B$2:$Q$985098,16,0) ->  | Q59: =VLOOKUP(CONCATENATE($C59,"|",$C$2, "|", Q$5,"|",$D$2,"|",$F$1,"|", $F$2,"|",$G$1,"|",$G$2,"|",$H$1,"|",$H$2),'DATA MART_'!$B$2:$Q$985098,16,0) ->  | R59: =VLOOKUP(CONCATENATE($C59,"|",$C$2, "|", R$5,"|",$D$2,"|",$F$1,"|", $F$2,"|",$G$1,"|",$G$2,"|",$H$1,"|",$H$2),'DATA MART_'!$B$2:$Q$985098,16,0) ->  | S59: =VLOOKUP(CONCATENATE($C59,"|",$C$2, "|", S$5,"|",$D$2,"|",$F$1,"|", $F$2,"|",$G$1,"|",$G$2,"|",$H$1,"|",$H$2),'DATA MART_'!$B$2:$Q$985098,16,0) ->  | T59: =VLOOKUP(CONCATENATE($C59,"|",$C$2, "|", T$5,"|",$D$2,"|",$F$1,"|", $F$2,"|",$G$1,"|",$G$2,"|",$H$1,"|",$H$2),'DATA MART_'!$B$2:$Q$985098,16,0) ->  | U59: =VLOOKUP(CONCATENATE($C59,"|",$C$2, "|", U$5,"|",$D$2,"|",$F$1,"|", $F$2,"|",$G$1,"|",$G$2,"|",$H$1,"|",$H$2),'DATA MART_'!$B$2:$Q$985098,16,0) ->  | V59: =VLOOKUP(CONCATENATE($C59,"|",$C$2, "|", V$5,"|",$D$2,"|",$F$1,"|", $F$2,"|",$G$1,"|",$G$2,"|",$H$1,"|",$H$2),'DATA MART_'!$B$2:$Q$985098,16,0) -> 
B60: POWSZECHNA KASA OSZCZEDNOSCI BANK POLSKI S.A. (PKO BANK POLSKI) | C60: PL052 | D60: PL | E60: 1 | F60: =VLOOKUP(CONCATENATE($C60,"|",$C$2, "|", F$5,"|",$D$2,"|",$F$1,"|", $F$2,"|",$G$1,"|",$G$2,"|",$H$1,"|",$H$2),'DATA MART_'!$B$2:$Q$985098,16,0) ->  | G60: =VLOOKUP(CONCATENATE($C60,"|",$C$2, "|", G$5,"|",$D$2,"|",$F$1,"|", $F$2,"|",$G$1,"|",$G$2,"|",$H$1,"|",$H$2),'DATA MART_'!$B$2:$Q$985098,16,0) ->  | H60: =VLOOKUP(CONCATENATE($C60,"|",$C$2, "|", H$5,"|",$D$2,"|",$F$1,"|", $F$2,"|",$G$1,"|",$G$2,"|",$H$1,"|",$H$2),'DATA MART_'!$B$2:$Q$985098,16,0) ->  | I60: =VLOOKUP(CONCATENATE($C60,"|",$C$2, "|", I$5,"|",$D$2,"|",$F$1,"|", $F$2,"|",$G$1,"|",$G$2,"|",$H$1,"|",$H$2),'DATA MART_'!$B$2:$Q$985098,16,0) ->  | J60: =VLOOKUP(CONCATENATE($C60,"|",$C$2, "|", J$5,"|",$D$2,"|",$F$1,"|", $F$2,"|",$G$1,"|",$G$2,"|",$H$1,"|",$H$2),'DATA MART_'!$B$2:$Q$985098,16,0) ->  | K60: =VLOOKUP(CONCATENATE($C60,"|",$C$2, "|", K$5,"|",$D$2,"|",$F$1,"|", $F$2,"|",$G$1,"|",$G$2,"|",$H$1,"|",$H$2),'DATA MART_'!$B$2:$Q$985098,16,0) ->  | L60: =VLOOKUP(CONCATENATE($C60,"|",$C$2, "|", L$5,"|",$D$2,"|",$F$1,"|", $F$2,"|",$G$1,"|",$G$2,"|",$H$1,"|",$H$2),'DATA MART_'!$B$2:$Q$985098,16,0) ->  | M60: =VLOOKUP(CONCATENATE($C60,"|",$C$2, "|", M$5,"|",$D$2,"|",$F$1,"|", $F$2,"|",$G$1,"|",$G$2,"|",$H$1,"|",$H$2),'DATA MART_'!$B$2:$Q$985098,16,0) ->  | N60: =VLOOKUP(CONCATENATE($C60,"|",$C$2, "|", N$5,"|",$D$2,"|",$F$1,"|", $F$2,"|",$G$1,"|",$G$2,"|",$H$1,"|",$H$2),'DATA MART_'!$B$2:$Q$985098,16,0) ->  | O60: =VLOOKUP(CONCATENATE($C60,"|",$C$2, "|", O$5,"|",$D$2,"|",$F$1,"|", $F$2,"|",$G$1,"|",$G$2,"|",$H$1,"|",$H$2),'DATA MART_'!$B$2:$Q$985098,16,0) ->  | P60: =VLOOKUP(CONCATENATE($C60,"|",$C$2, "|", P$5,"|",$D$2,"|",$F$1,"|", $F$2,"|",$G$1,"|",$G$2,"|",$H$1,"|",$H$2),'DATA MART_'!$B$2:$Q$985098,16,0) ->  | Q60: =VLOOKUP(CONCATENATE($C60,"|",$C$2, "|", Q$5,"|",$D$2,"|",$F$1,"|", $F$2,"|",$G$1,"|",$G$2,"|",$H$1,"|",$H$2),'DATA MART_'!$B$2:$Q$985098,16,0) ->  | R60: =VLOOKUP(CONCATENATE($C60,"|",$C$2, "|", R$5,"|",$D$2,"|",$F$1,"|", $F$2,"|",$G$1,"|",$G$2,"|",$H$1,"|",$H$2),'DATA MART_'!$B$2:$Q$985098,16,0) ->  | S60: =VLOOKUP(CONCATENATE($C60,"|",$C$2, "|", S$5,"|",$D$2,"|",$F$1,"|", $F$2,"|",$G$1,"|",$G$2,"|",$H$1,"|",$H$2),'DATA MART_'!$B$2:$Q$985098,16,0) ->  | T60: =VLOOKUP(CONCATENATE($C60,"|",$C$2, "|", T$5,"|",$D$2,"|",$F$1,"|", $F$2,"|",$G$1,"|",$G$2,"|",$H$1,"|",$H$2),'DATA MART_'!$B$2:$Q$985098,16,0) ->  | U60: =VLOOKUP(CONCATENATE($C60,"|",$C$2, "|", U$5,"|",$D$2,"|",$F$1,"|", $F$2,"|",$G$1,"|",$G$2,"|",$H$1,"|",$H$2),'DATA MART_'!$B$2:$Q$985098,16,0) ->  | V60: =VLOOKUP(CONCATENATE($C60,"|",$C$2, "|", V$5,"|",$D$2,"|",$F$1,"|", $F$2,"|",$G$1,"|",$G$2,"|",$H$1,"|",$H$2),'DATA MART_'!$B$2:$Q$985098,16,0) -> 
B61: CAIXA GERAL DE DEPÓSITOS SA | C61: PT053 | D61: PT | E61: Not Applicable² | F61: =VLOOKUP(CONCATENATE($C61,"|",$C$2, "|", F$5,"|",$D$2,"|",$F$1,"|", $F$2,"|",$G$1,"|",$G$2,"|",$H$1,"|",$H$2),'DATA MART_'!$B$2:$Q$985098,16,0) ->  | G61: =VLOOKUP(CONCATENATE($C61,"|",$C$2, "|", G$5,"|",$D$2,"|",$F$1,"|", $F$2,"|",$G$1,"|",$G$2,"|",$H$1,"|",$H$2),'DATA MART_'!$B$2:$Q$985098,16,0) ->  | H61: =VLOOKUP(CONCATENATE($C61,"|",$C$2, "|", H$5,"|",$D$2,"|",$F$1,"|", $F$2,"|",$G$1,"|",$G$2,"|",$H$1,"|",$H$2),'DATA MART_'!$B$2:$Q$985098,16,0) ->  | I61: =VLOOKUP(CONCATENATE($C61,"|",$C$2, "|", I$5,"|",$D$2,"|",$F$1,"|", $F$2,"|",$G$1,"|",$G$2,"|",$H$1,"|",$H$2),'DATA MART_'!$B$2:$Q$985098,16,0) ->  | J61: =VLOOKUP(CONCATENATE($C61,"|",$C$2, "|", J$5,"|",$D$2,"|",$F$1,"|", $F$2,"|",$G$1,"|",$G$2,"|",$H$1,"|",$H$2),'DATA MART_'!$B$2:$Q$985098,16,0) ->  | K61: =VLOOKUP(CONCATENATE($C61,"|",$C$2, "|", K$5,"|",$D$2,"|",$F$1,"|", $F$2,"|",$G$1,"|",$G$2,"|",$H$1,"|",$H$2),'DATA MART_'!$B$2:$Q$985098,16,0) ->  | L61: =VLOOKUP(CONCATENATE($C61,"|",$C$2, "|", L$5,"|",$D$2,"|",$F$1,"|", $F$2,"|",$G$1,"|",$G$2,"|",$H$1,"|",$H$2),'DATA MART_'!$B$2:$Q$985098,16,0) ->  | M61: =VLOOKUP(CONCATENATE($C61,"|",$C$2, "|", M$5,"|",$D$2,"|",$F$1,"|", $F$2,"|",$G$1,"|",$G$2,"|",$H$1,"|",$H$2),'DATA MART_'!$B$2:$Q$985098,16,0) ->  | N61: =VLOOKUP(CONCATENATE($C61,"|",$C$2, "|", N$5,"|",$D$2,"|",$F$1,"|", $F$2,"|",$G$1,"|",$G$2,"|",$H$1,"|",$H$2),'DATA MART_'!$B$2:$Q$985098,16,0) ->  | O61: =VLOOKUP(CONCATENATE($C61,"|",$C$2, "|", O$5,"|",$D$2,"|",$F$1,"|", $F$2,"|",$G$1,"|",$G$2,"|",$H$1,"|",$H$2),'DATA MART_'!$B$2:$Q$985098,16,0) ->  | P61: =VLOOKUP(CONCATENATE($C61,"|",$C$2, "|", P$5,"|",$D$2,"|",$F$1,"|", $F$2,"|",$G$1,"|",$G$2,"|",$H$1,"|",$H$2),'DATA MART_'!$B$2:$Q$985098,16,0) ->  | Q61: =VLOOKUP(CONCATENATE($C61,"|",$C$2, "|", Q$5,"|",$D$2,"|",$F$1,"|", $F$2,"|",$G$1,"|",$G$2,"|",$H$1,"|",$H$2),'DATA MART_'!$B$2:$Q$985098,16,0) ->  | R61: =VLOOKUP(CONCATENATE($C61,"|",$C$2, "|", R$5,"|",$D$2,"|",$F$1,"|", $F$2,"|",$G$1,"|",$G$2,"|",$H$1,"|",$H$2),'DATA MART_'!$B$2:$Q$985098,16,0) ->  | S61: =VLOOKUP(CONCATENATE($C61,"|",$C$2, "|", S$5,"|",$D$2,"|",$F$1,"|", $F$2,"|",$G$1,"|",$G$2,"|",$H$1,"|",$H$2),'DATA MART_'!$B$2:$Q$985098,16,0) ->  | T61: =VLOOKUP(CONCATENATE($C61,"|",$C$2, "|", T$5,"|",$D$2,"|",$F$1,"|", $F$2,"|",$G$1,"|",$G$2,"|",$H$1,"|",$H$2),'DATA MART_'!$B$2:$Q$985098,16,0) ->  | U61: =VLOOKUP(CONCATENATE($C61,"|",$C$2, "|", U$5,"|",$D$2,"|",$F$1,"|", $F$2,"|",$G$1,"|",$G$2,"|",$H$1,"|",$H$2),'DATA MART_'!$B$2:$Q$985098,16,0) ->  | V61: =VLOOKUP(CONCATENATE($C61,"|",$C$2, "|", V$5,"|",$D$2,"|",$F$1,"|", $F$2,"|",$G$1,"|",$G$2,"|",$H$1,"|",$H$2),'DATA MART_'!$B$2:$Q$985098,16,0) -> 
B62: BANCO COMERCIAL PORTUGUES SA (BCP OR MILLENNIUM BCP) | C62: PT054 | D62: PT | E62: 1 | F62: =VLOOKUP(CONCATENATE($C62,"|",$C$2, "|", F$5,"|",$D$2,"|",$F$1,"|", $F$2,"|",$G$1,"|",$G$2,"|",$H$1,"|",$H$2),'DATA MART_'!$B$2:$Q$985098,16,0) ->  | G62: =VLOOKUP(CONCATENATE($C62,"|",$C$2, "|", G$5,"|",$D$2,"|",$F$1,"|", $F$2,"|",$G$1,"|",$G$2,"|",$H$1,"|",$H$2),'DATA MART_'!$B$2:$Q$985098,16,0) ->  | H62: =VLOOKUP(CONCATENATE($C62,"|",$C$2, "|", H$5,"|",$D$2,"|",$F$1,"|", $F$2,"|",$G$1,"|",$G$2,"|",$H$1,"|",$H$2),'DATA MART_'!$B$2:$Q$985098,16,0) ->  | I62: =VLOOKUP(CONCATENATE($C62,"|",$C$2, "|", I$5,"|",$D$2,"|",$F$1,"|", $F$2,"|",$G$1,"|",$G$2,"|",$H$1,"|",$H$2),'DATA MART_'!$B$2:$Q$985098,16,0) ->  | J62: =VLOOKUP(CONCATENATE($C62,"|",$C$2, "|", J$5,"|",$D$2,"|",$F$1,"|", $F$2,"|",$G$1,"|",$G$2,"|",$H$1,"|",$H$2),'DATA MART_'!$B$2:$Q$985098,16,0) ->  | K62: =VLOOKUP(CONCATENATE($C62,"|",$C$2, "|", K$5,"|",$D$2,"|",$F$1,"|", $F$2,"|",$G$1,"|",$G$2,"|",$H$1,"|",$H$2),'DATA MART_'!$B$2:$Q$985098,16,0) ->  | L62: =VLOOKUP(CONCATENATE($C62,"|",$C$2, "|", L$5,"|",$D$2,"|",$F$1,"|", $F$2,"|",$G$1,"|",$G$2,"|",$H$1,"|",$H$2),'DATA MART_'!$B$2:$Q$985098,16,0) ->  | M62: =VLOOKUP(CONCATENATE($C62,"|",$C$2, "|", M$5,"|",$D$2,"|",$F$1,"|", $F$2,"|",$G$1,"|",$G$2,"|",$H$1,"|",$H$2),'DATA MART_'!$B$2:$Q$985098,16,0) ->  | N62: =VLOOKUP(CONCATENATE($C62,"|",$C$2, "|", N$5,"|",$D$2,"|",$F$1,"|", $F$2,"|",$G$1,"|",$G$2,"|",$H$1,"|",$H$2),'DATA MART_'!$B$2:$Q$985098,16,0) ->  | O62: =VLOOKUP(CONCATENATE($C62,"|",$C$2, "|", O$5,"|",$D$2,"|",$F$1,"|", $F$2,"|",$G$1,"|",$G$2,"|",$H$1,"|",$H$2),'DATA MART_'!$B$2:$Q$985098,16,0) ->  | P62: =VLOOKUP(CONCATENATE($C62,"|",$C$2, "|", P$5,"|",$D$2,"|",$F$1,"|", $F$2,"|",$G$1,"|",$G$2,"|",$H$1,"|",$H$2),'DATA MART_'!$B$2:$Q$985098,16,0) ->  | Q62: =VLOOKUP(CONCATENATE($C62,"|",$C$2, "|", Q$5,"|",$D$2,"|",$F$1,"|", $F$2,"|",$G$1,"|",$G$2,"|",$H$1,"|",$H$2),'DATA MART_'!$B$2:$Q$985098,16,0) ->  | R62: =VLOOKUP(CONCATENATE($C62,"|",$C$2, "|", R$5,"|",$D$2,"|",$F$1,"|", $F$2,"|",$G$1,"|",$G$2,"|",$H$1,"|",$H$2),'DATA MART_'!$B$2:$Q$985098,16,0) ->  | S62: =VLOOKUP(CONCATENATE($C62,"|",$C$2, "|", S$5,"|",$D$2,"|",$F$1,"|", $F$2,"|",$G$1,"|",$G$2,"|",$H$1,"|",$H$2),'DATA MART_'!$B$2:$Q$985098,16,0) ->  | T62: =VLOOKUP(CONCATENATE($C62,"|",$C$2, "|", T$5,"|",$D$2,"|",$F$1,"|", $F$2,"|",$G$1,"|",$G$2,"|",$H$1,"|",$H$2),'DATA MART_'!$B$2:$Q$985098,16,0) ->  | U62: =VLOOKUP(CONCATENATE($C62,"|",$C$2, "|", U$5,"|",$D$2,"|",$F$1,"|", $F$2,"|",$G$1,"|",$G$2,"|",$H$1,"|",$H$2),'DATA MART_'!$B$2:$Q$985098,16,0) ->  | V62: =VLOOKUP(CONCATENATE($C62,"|",$C$2, "|", V$5,"|",$D$2,"|",$F$1,"|", $F$2,"|",$G$1,"|",$G$2,"|",$H$1,"|",$H$2),'DATA MART_'!$B$2:$Q$985098,16,0) -> 
B63: ESPÍRITO SANTO FINANCIAL GROUP SA (ESFG) | C63: PT055 | D63: PT | E63: 1 | F63: =VLOOKUP(CONCATENATE($C63,"|",$C$2, "|", F$5,"|",$D$2,"|",$F$1,"|", $F$2,"|",$G$1,"|",$G$2,"|",$H$1,"|",$H$2),'DATA MART_'!$B$2:$Q$985098,16,0) ->  | G63: =VLOOKUP(CONCATENATE($C63,"|",$C$2, "|", G$5,"|",$D$2,"|",$F$1,"|", $F$2,"|",$G$1,"|",$G$2,"|",$H$1,"|",$H$2),'DATA MART_'!$B$2:$Q$985098,16,0) ->  | H63: =VLOOKUP(CONCATENATE($C63,"|",$C$2, "|", H$5,"|",$D$2,"|",$F$1,"|", $F$2,"|",$G$1,"|",$G$2,"|",$H$1,"|",$H$2),'DATA MART_'!$B$2:$Q$985098,16,0) ->  | I63: =VLOOKUP(CONCATENATE($C63,"|",$C$2, "|", I$5,"|",$D$2,"|",$F$1,"|", $F$2,"|",$G$1,"|",$G$2,"|",$H$1,"|",$H$2),'DATA MART_'!$B$2:$Q$985098,16,0) ->  | J63: =VLOOKUP(CONCATENATE($C63,"|",$C$2, "|", J$5,"|",$D$2,"|",$F$1,"|", $F$2,"|",$G$1,"|",$G$2,"|",$H$1,"|",$H$2),'DATA MART_'!$B$2:$Q$985098,16,0) ->  | K63: =VLOOKUP(CONCATENATE($C63,"|",$C$2, "|", K$5,"|",$D$2,"|",$F$1,"|", $F$2,"|",$G$1,"|",$G$2,"|",$H$1,"|",$H$2),'DATA MART_'!$B$2:$Q$985098,16,0) ->  | L63: =VLOOKUP(CONCATENATE($C63,"|",$C$2, "|", L$5,"|",$D$2,"|",$F$1,"|", $F$2,"|",$G$1,"|",$G$2,"|",$H$1,"|",$H$2),'DATA MART_'!$B$2:$Q$985098,16,0) ->  | M63: =VLOOKUP(CONCATENATE($C63,"|",$C$2, "|", M$5,"|",$D$2,"|",$F$1,"|", $F$2,"|",$G$1,"|",$G$2,"|",$H$1,"|",$H$2),'DATA MART_'!$B$2:$Q$985098,16,0) ->  | N63: =VLOOKUP(CONCATENATE($C63,"|",$C$2, "|", N$5,"|",$D$2,"|",$F$1,"|", $F$2,"|",$G$1,"|",$G$2,"|",$H$1,"|",$H$2),'DATA MART_'!$B$2:$Q$985098,16,0) ->  | O63: =VLOOKUP(CONCATENATE($C63,"|",$C$2, "|", O$5,"|",$D$2,"|",$F$1,"|", $F$2,"|",$G$1,"|",$G$2,"|",$H$1,"|",$H$2),'DATA MART_'!$B$2:$Q$985098,16,0) ->  | P63: =VLOOKUP(CONCATENATE($C63,"|",$C$2, "|", P$5,"|",$D$2,"|",$F$1,"|", $F$2,"|",$G$1,"|",$G$2,"|",$H$1,"|",$H$2),'DATA MART_'!$B$2:$Q$985098,16,0) ->  | Q63: =VLOOKUP(CONCATENATE($C63,"|",$C$2, "|", Q$5,"|",$D$2,"|",$F$1,"|", $F$2,"|",$G$1,"|",$G$2,"|",$H$1,"|",$H$2),'DATA MART_'!$B$2:$Q$985098,16,0) ->  | R63: =VLOOKUP(CONCATENATE($C63,"|",$C$2, "|", R$5,"|",$D$2,"|",$F$1,"|", $F$2,"|",$G$1,"|",$G$2,"|",$H$1,"|",$H$2),'DATA MART_'!$B$2:$Q$985098,16,0) ->  | S63: =VLOOKUP(CONCATENATE($C63,"|",$C$2, "|", S$5,"|",$D$2,"|",$F$1,"|", $F$2,"|",$G$1,"|",$G$2,"|",$H$1,"|",$H$2),'DATA MART_'!$B$2:$Q$985098,16,0) ->  | T63: =VLOOKUP(CONCATENATE($C63,"|",$C$2, "|", T$5,"|",$D$2,"|",$F$1,"|", $F$2,"|",$G$1,"|",$G$2,"|",$H$1,"|",$H$2),'DATA MART_'!$B$2:$Q$985098,16,0) ->  | U63: =VLOOKUP(CONCATENATE($C63,"|",$C$2, "|", U$5,"|",$D$2,"|",$F$1,"|", $F$2,"|",$G$1,"|",$G$2,"|",$H$1,"|",$H$2),'DATA MART_'!$B$2:$Q$985098,16,0) ->  | V63: =VLOOKUP(CONCATENATE($C63,"|",$C$2, "|", V$5,"|",$D$2,"|",$F$1,"|", $F$2,"|",$G$1,"|",$G$2,"|",$H$1,"|",$H$2),'DATA MART_'!$B$2:$Q$985098,16,0) -> 
B64: Banco BPI, SA | C64: PT056 | D64: PT | E64: Not Applicable² | F64: =VLOOKUP(CONCATENATE($C64,"|",$C$2, "|", F$5,"|",$D$2,"|",$F$1,"|", $F$2,"|",$G$1,"|",$G$2,"|",$H$1,"|",$H$2),'DATA MART_'!$B$2:$Q$985098,16,0) ->  | G64: =VLOOKUP(CONCATENATE($C64,"|",$C$2, "|", G$5,"|",$D$2,"|",$F$1,"|", $F$2,"|",$G$1,"|",$G$2,"|",$H$1,"|",$H$2),'DATA MART_'!$B$2:$Q$985098,16,0) ->  | H64: =VLOOKUP(CONCATENATE($C64,"|",$C$2, "|", H$5,"|",$D$2,"|",$F$1,"|", $F$2,"|",$G$1,"|",$G$2,"|",$H$1,"|",$H$2),'DATA MART_'!$B$2:$Q$985098,16,0) ->  | I64: =VLOOKUP(CONCATENATE($C64,"|",$C$2, "|", I$5,"|",$D$2,"|",$F$1,"|", $F$2,"|",$G$1,"|",$G$2,"|",$H$1,"|",$H$2),'DATA MART_'!$B$2:$Q$985098,16,0) ->  | J64: =VLOOKUP(CONCATENATE($C64,"|",$C$2, "|", J$5,"|",$D$2,"|",$F$1,"|", $F$2,"|",$G$1,"|",$G$2,"|",$H$1,"|",$H$2),'DATA MART_'!$B$2:$Q$985098,16,0) ->  | K64: =VLOOKUP(CONCATENATE($C64,"|",$C$2, "|", K$5,"|",$D$2,"|",$F$1,"|", $F$2,"|",$G$1,"|",$G$2,"|",$H$1,"|",$H$2),'DATA MART_'!$B$2:$Q$985098,16,0) ->  | L64: =VLOOKUP(CONCATENATE($C64,"|",$C$2, "|", L$5,"|",$D$2,"|",$F$1,"|", $F$2,"|",$G$1,"|",$G$2,"|",$H$1,"|",$H$2),'DATA MART_'!$B$2:$Q$985098,16,0) ->  | M64: =VLOOKUP(CONCATENATE($C64,"|",$C$2, "|", M$5,"|",$D$2,"|",$F$1,"|", $F$2,"|",$G$1,"|",$G$2,"|",$H$1,"|",$H$2),'DATA MART_'!$B$2:$Q$985098,16,0) ->  | N64: =VLOOKUP(CONCATENATE($C64,"|",$C$2, "|", N$5,"|",$D$2,"|",$F$1,"|", $F$2,"|",$G$1,"|",$G$2,"|",$H$1,"|",$H$2),'DATA MART_'!$B$2:$Q$985098,16,0) ->  | O64: =VLOOKUP(CONCATENATE($C64,"|",$C$2, "|", O$5,"|",$D$2,"|",$F$1,"|", $F$2,"|",$G$1,"|",$G$2,"|",$H$1,"|",$H$2),'DATA MART_'!$B$2:$Q$985098,16,0) ->  | P64: =VLOOKUP(CONCATENATE($C64,"|",$C$2, "|", P$5,"|",$D$2,"|",$F$1,"|", $F$2,"|",$G$1,"|",$G$2,"|",$H$1,"|",$H$2),'DATA MART_'!$B$2:$Q$985098,16,0) ->  | Q64: =VLOOKUP(CONCATENATE($C64,"|",$C$2, "|", Q$5,"|",$D$2,"|",$F$1,"|", $F$2,"|",$G$1,"|",$G$2,"|",$H$1,"|",$H$2),'DATA MART_'!$B$2:$Q$985098,16,0) ->  | R64: =VLOOKUP(CONCATENATE($C64,"|",$C$2, "|", R$5,"|",$D$2,"|",$F$1,"|", $F$2,"|",$G$1,"|",$G$2,"|",$H$1,"|",$H$2),'DATA MART_'!$B$2:$Q$985098,16,0) ->  | S64: =VLOOKUP(CONCATENATE($C64,"|",$C$2, "|", S$5,"|",$D$2,"|",$F$1,"|", $F$2,"|",$G$1,"|",$G$2,"|",$H$1,"|",$H$2),'DATA MART_'!$B$2:$Q$985098,16,0) ->  | T64: =VLOOKUP(CONCATENATE($C64,"|",$C$2, "|", T$5,"|",$D$2,"|",$F$1,"|", $F$2,"|",$G$1,"|",$G$2,"|",$H$1,"|",$H$2),'DATA MART_'!$B$2:$Q$985098,16,0) ->  | U64: =VLOOKUP(CONCATENATE($C64,"|",$C$2, "|", U$5,"|",$D$2,"|",$F$1,"|", $F$2,"|",$G$1,"|",$G$2,"|",$H$1,"|",$H$2),'DATA MART_'!$B$2:$Q$985098,16,0) ->  | V64: =VLOOKUP(CONCATENATE($C64,"|",$C$2, "|", V$5,"|",$D$2,"|",$F$1,"|", $F$2,"|",$G$1,"|",$G$2,"|",$H$1,"|",$H$2),'DATA MART_'!$B$2:$Q$985098,16,0) -> 
B65: Nordea Bank AB (publ) | C65: SE084 | D65: SE | E65: 2 | F65: =VLOOKUP(CONCATENATE($C65,"|",$C$2, "|", F$5,"|",$D$2,"|",$F$1,"|", $F$2,"|",$G$1,"|",$G$2,"|",$H$1,"|",$H$2),'DATA MART_'!$B$2:$Q$985098,16,0) ->  | G65: =VLOOKUP(CONCATENATE($C65,"|",$C$2, "|", G$5,"|",$D$2,"|",$F$1,"|", $F$2,"|",$G$1,"|",$G$2,"|",$H$1,"|",$H$2),'DATA MART_'!$B$2:$Q$985098,16,0) ->  | H65: =VLOOKUP(CONCATENATE($C65,"|",$C$2, "|", H$5,"|",$D$2,"|",$F$1,"|", $F$2,"|",$G$1,"|",$G$2,"|",$H$1,"|",$H$2),'DATA MART_'!$B$2:$Q$985098,16,0) ->  | I65: =VLOOKUP(CONCATENATE($C65,"|",$C$2, "|", I$5,"|",$D$2,"|",$F$1,"|", $F$2,"|",$G$1,"|",$G$2,"|",$H$1,"|",$H$2),'DATA MART_'!$B$2:$Q$985098,16,0) ->  | J65: =VLOOKUP(CONCATENATE($C65,"|",$C$2, "|", J$5,"|",$D$2,"|",$F$1,"|", $F$2,"|",$G$1,"|",$G$2,"|",$H$1,"|",$H$2),'DATA MART_'!$B$2:$Q$985098,16,0) ->  | K65: =VLOOKUP(CONCATENATE($C65,"|",$C$2, "|", K$5,"|",$D$2,"|",$F$1,"|", $F$2,"|",$G$1,"|",$G$2,"|",$H$1,"|",$H$2),'DATA MART_'!$B$2:$Q$985098,16,0) ->  | L65: =VLOOKUP(CONCATENATE($C65,"|",$C$2, "|", L$5,"|",$D$2,"|",$F$1,"|", $F$2,"|",$G$1,"|",$G$2,"|",$H$1,"|",$H$2),'DATA MART_'!$B$2:$Q$985098,16,0) ->  | M65: =VLOOKUP(CONCATENATE($C65,"|",$C$2, "|", M$5,"|",$D$2,"|",$F$1,"|", $F$2,"|",$G$1,"|",$G$2,"|",$H$1,"|",$H$2),'DATA MART_'!$B$2:$Q$985098,16,0) ->  | N65: =VLOOKUP(CONCATENATE($C65,"|",$C$2, "|", N$5,"|",$D$2,"|",$F$1,"|", $F$2,"|",$G$1,"|",$G$2,"|",$H$1,"|",$H$2),'DATA MART_'!$B$2:$Q$985098,16,0) ->  | O65: =VLOOKUP(CONCATENATE($C65,"|",$C$2, "|", O$5,"|",$D$2,"|",$F$1,"|", $F$2,"|",$G$1,"|",$G$2,"|",$H$1,"|",$H$2),'DATA MART_'!$B$2:$Q$985098,16,0) ->  | P65: =VLOOKUP(CONCATENATE($C65,"|",$C$2, "|", P$5,"|",$D$2,"|",$F$1,"|", $F$2,"|",$G$1,"|",$G$2,"|",$H$1,"|",$H$2),'DATA MART_'!$B$2:$Q$985098,16,0) ->  | Q65: =VLOOKUP(CONCATENATE($C65,"|",$C$2, "|", Q$5,"|",$D$2,"|",$F$1,"|", $F$2,"|",$G$1,"|",$G$2,"|",$H$1,"|",$H$2),'DATA MART_'!$B$2:$Q$985098,16,0) ->  | R65: =VLOOKUP(CONCATENATE($C65,"|",$C$2, "|", R$5,"|",$D$2,"|",$F$1,"|", $F$2,"|",$G$1,"|",$G$2,"|",$H$1,"|",$H$2),'DATA MART_'!$B$2:$Q$985098,16,0) ->  | S65: =VLOOKUP(CONCATENATE($C65,"|",$C$2, "|", S$5,"|",$D$2,"|",$F$1,"|", $F$2,"|",$G$1,"|",$G$2,"|",$H$1,"|",$H$2),'DATA MART_'!$B$2:$Q$985098,16,0) ->  | T65: =VLOOKUP(CONCATENATE($C65,"|",$C$2, "|", T$5,"|",$D$2,"|",$F$1,"|", $F$2,"|",$G$1,"|",$G$2,"|",$H$1,"|",$H$2),'DATA MART_'!$B$2:$Q$985098,16,0) ->  | U65: =VLOOKUP(CONCATENATE($C65,"|",$C$2, "|", U$5,"|",$D$2,"|",$F$1,"|", $F$2,"|",$G$1,"|",$G$2,"|",$H$1,"|",$H$2),'DATA MART_'!$B$2:$Q$985098,16,0) ->  | V65: =VLOOKUP(CONCATENATE($C65,"|",$C$2, "|", V$5,"|",$D$2,"|",$F$1,"|", $F$2,"|",$G$1,"|",$G$2,"|",$H$1,"|",$H$2),'DATA MART_'!$B$2:$Q$985098,16,0) -> 
B66: Skandinaviska Enskilda Banken AB (publ) (SEB) | C66: SE085 | D66: SE | E66: 2 | F66: =VLOOKUP(CONCATENATE($C66,"|",$C$2, "|", F$5,"|",$D$2,"|",$F$1,"|", $F$2,"|",$G$1,"|",$G$2,"|",$H$1,"|",$H$2),'DATA MART_'!$B$2:$Q$985098,16,0) ->  | G66: =VLOOKUP(CONCATENATE($C66,"|",$C$2, "|", G$5,"|",$D$2,"|",$F$1,"|", $F$2,"|",$G$1,"|",$G$2,"|",$H$1,"|",$H$2),'DATA MART_'!$B$2:$Q$985098,16,0) ->  | H66: =VLOOKUP(CONCATENATE($C66,"|",$C$2, "|", H$5,"|",$D$2,"|",$F$1,"|", $F$2,"|",$G$1,"|",$G$2,"|",$H$1,"|",$H$2),'DATA MART_'!$B$2:$Q$985098,16,0) ->  | I66: =VLOOKUP(CONCATENATE($C66,"|",$C$2, "|", I$5,"|",$D$2,"|",$F$1,"|", $F$2,"|",$G$1,"|",$G$2,"|",$H$1,"|",$H$2),'DATA MART_'!$B$2:$Q$985098,16,0) ->  | J66: =VLOOKUP(CONCATENATE($C66,"|",$C$2, "|", J$5,"|",$D$2,"|",$F$1,"|", $F$2,"|",$G$1,"|",$G$2,"|",$H$1,"|",$H$2),'DATA MART_'!$B$2:$Q$985098,16,0) ->  | K66: =VLOOKUP(CONCATENATE($C66,"|",$C$2, "|", K$5,"|",$D$2,"|",$F$1,"|", $F$2,"|",$G$1,"|",$G$2,"|",$H$1,"|",$H$2),'DATA MART_'!$B$2:$Q$985098,16,0) ->  | L66: =VLOOKUP(CONCATENATE($C66,"|",$C$2, "|", L$5,"|",$D$2,"|",$F$1,"|", $F$2,"|",$G$1,"|",$G$2,"|",$H$1,"|",$H$2),'DATA MART_'!$B$2:$Q$985098,16,0) ->  | M66: =VLOOKUP(CONCATENATE($C66,"|",$C$2, "|", M$5,"|",$D$2,"|",$F$1,"|", $F$2,"|",$G$1,"|",$G$2,"|",$H$1,"|",$H$2),'DATA MART_'!$B$2:$Q$985098,16,0) ->  | N66: =VLOOKUP(CONCATENATE($C66,"|",$C$2, "|", N$5,"|",$D$2,"|",$F$1,"|", $F$2,"|",$G$1,"|",$G$2,"|",$H$1,"|",$H$2),'DATA MART_'!$B$2:$Q$985098,16,0) ->  | O66: =VLOOKUP(CONCATENATE($C66,"|",$C$2, "|", O$5,"|",$D$2,"|",$F$1,"|", $F$2,"|",$G$1,"|",$G$2,"|",$H$1,"|",$H$2),'DATA MART_'!$B$2:$Q$985098,16,0) ->  | P66: =VLOOKUP(CONCATENATE($C66,"|",$C$2, "|", P$5,"|",$D$2,"|",$F$1,"|", $F$2,"|",$G$1,"|",$G$2,"|",$H$1,"|",$H$2),'DATA MART_'!$B$2:$Q$985098,16,0) ->  | Q66: =VLOOKUP(CONCATENATE($C66,"|",$C$2, "|", Q$5,"|",$D$2,"|",$F$1,"|", $F$2,"|",$G$1,"|",$G$2,"|",$H$1,"|",$H$2),'DATA MART_'!$B$2:$Q$985098,16,0) ->  | R66: =VLOOKUP(CONCATENATE($C66,"|",$C$2, "|", R$5,"|",$D$2,"|",$F$1,"|", $F$2,"|",$G$1,"|",$G$2,"|",$H$1,"|",$H$2),'DATA MART_'!$B$2:$Q$985098,16,0) ->  | S66: =VLOOKUP(CONCATENATE($C66,"|",$C$2, "|", S$5,"|",$D$2,"|",$F$1,"|", $F$2,"|",$G$1,"|",$G$2,"|",$H$1,"|",$H$2),'DATA MART_'!$B$2:$Q$985098,16,0) ->  | T66: =VLOOKUP(CONCATENATE($C66,"|",$C$2, "|", T$5,"|",$D$2,"|",$F$1,"|", $F$2,"|",$G$1,"|",$G$2,"|",$H$1,"|",$H$2),'DATA MART_'!$B$2:$Q$985098,16,0) ->  | U66: =VLOOKUP(CONCATENATE($C66,"|",$C$2, "|", U$5,"|",$D$2,"|",$F$1,"|", $F$2,"|",$G$1,"|",$G$2,"|",$H$1,"|",$H$2),'DATA MART_'!$B$2:$Q$985098,16,0) ->  | V66: =VLOOKUP(CONCATENATE($C66,"|",$C$2, "|", V$5,"|",$D$2,"|",$F$1,"|", $F$2,"|",$G$1,"|",$G$2,"|",$H$1,"|",$H$2),'DATA MART_'!$B$2:$Q$985098,16,0) -> 
B67: Svenska Handelsbanken AB (publ) | C67: SE086 | D67: SE | E67: 2 | F67: =VLOOKUP(CONCATENATE($C67,"|",$C$2, "|", F$5,"|",$D$2,"|",$F$1,"|", $F$2,"|",$G$1,"|",$G$2,"|",$H$1,"|",$H$2),'DATA MART_'!$B$2:$Q$985098,16,0) ->  | G67: =VLOOKUP(CONCATENATE($C67,"|",$C$2, "|", G$5,"|",$D$2,"|",$F$1,"|", $F$2,"|",$G$1,"|",$G$2,"|",$H$1,"|",$H$2),'DATA MART_'!$B$2:$Q$985098,16,0) ->  | H67: =VLOOKUP(CONCATENATE($C67,"|",$C$2, "|", H$5,"|",$D$2,"|",$F$1,"|", $F$2,"|",$G$1,"|",$G$2,"|",$H$1,"|",$H$2),'DATA MART_'!$B$2:$Q$985098,16,0) ->  | I67: =VLOOKUP(CONCATENATE($C67,"|",$C$2, "|", I$5,"|",$D$2,"|",$F$1,"|", $F$2,"|",$G$1,"|",$G$2,"|",$H$1,"|",$H$2),'DATA MART_'!$B$2:$Q$985098,16,0) ->  | J67: =VLOOKUP(CONCATENATE($C67,"|",$C$2, "|", J$5,"|",$D$2,"|",$F$1,"|", $F$2,"|",$G$1,"|",$G$2,"|",$H$1,"|",$H$2),'DATA MART_'!$B$2:$Q$985098,16,0) ->  | K67: =VLOOKUP(CONCATENATE($C67,"|",$C$2, "|", K$5,"|",$D$2,"|",$F$1,"|", $F$2,"|",$G$1,"|",$G$2,"|",$H$1,"|",$H$2),'DATA MART_'!$B$2:$Q$985098,16,0) ->  | L67: =VLOOKUP(CONCATENATE($C67,"|",$C$2, "|", L$5,"|",$D$2,"|",$F$1,"|", $F$2,"|",$G$1,"|",$G$2,"|",$H$1,"|",$H$2),'DATA MART_'!$B$2:$Q$985098,16,0) ->  | M67: =VLOOKUP(CONCATENATE($C67,"|",$C$2, "|", M$5,"|",$D$2,"|",$F$1,"|", $F$2,"|",$G$1,"|",$G$2,"|",$H$1,"|",$H$2),'DATA MART_'!$B$2:$Q$985098,16,0) ->  | N67: =VLOOKUP(CONCATENATE($C67,"|",$C$2, "|", N$5,"|",$D$2,"|",$F$1,"|", $F$2,"|",$G$1,"|",$G$2,"|",$H$1,"|",$H$2),'DATA MART_'!$B$2:$Q$985098,16,0) ->  | O67: =VLOOKUP(CONCATENATE($C67,"|",$C$2, "|", O$5,"|",$D$2,"|",$F$1,"|", $F$2,"|",$G$1,"|",$G$2,"|",$H$1,"|",$H$2),'DATA MART_'!$B$2:$Q$985098,16,0) ->  | P67: =VLOOKUP(CONCATENATE($C67,"|",$C$2, "|", P$5,"|",$D$2,"|",$F$1,"|", $F$2,"|",$G$1,"|",$G$2,"|",$H$1,"|",$H$2),'DATA MART_'!$B$2:$Q$985098,16,0) ->  | Q67: =VLOOKUP(CONCATENATE($C67,"|",$C$2, "|", Q$5,"|",$D$2,"|",$F$1,"|", $F$2,"|",$G$1,"|",$G$2,"|",$H$1,"|",$H$2),'DATA MART_'!$B$2:$Q$985098,16,0) ->  | R67: =VLOOKUP(CONCATENATE($C67,"|",$C$2, "|", R$5,"|",$D$2,"|",$F$1,"|", $F$2,"|",$G$1,"|",$G$2,"|",$H$1,"|",$H$2),'DATA MART_'!$B$2:$Q$985098,16,0) ->  | S67: =VLOOKUP(CONCATENATE($C67,"|",$C$2, "|", S$5,"|",$D$2,"|",$F$1,"|", $F$2,"|",$G$1,"|",$G$2,"|",$H$1,"|",$H$2),'DATA MART_'!$B$2:$Q$985098,16,0) ->  | T67: =VLOOKUP(CONCATENATE($C67,"|",$C$2, "|", T$5,"|",$D$2,"|",$F$1,"|", $F$2,"|",$G$1,"|",$G$2,"|",$H$1,"|",$H$2),'DATA MART_'!$B$2:$Q$985098,16,0) ->  | U67: =VLOOKUP(CONCATENATE($C67,"|",$C$2, "|", U$5,"|",$D$2,"|",$F$1,"|", $F$2,"|",$G$1,"|",$G$2,"|",$H$1,"|",$H$2),'DATA MART_'!$B$2:$Q$985098,16,0) ->  | V67: =VLOOKUP(CONCATENATE($C67,"|",$C$2, "|", V$5,"|",$D$2,"|",$F$1,"|", $F$2,"|",$G$1,"|",$G$2,"|",$H$1,"|",$H$2),'DATA MART_'!$B$2:$Q$985098,16,0) -> 
